Workbook

Sheet PI vs gap
A1: Measurement | B1: Hall
A2: Type | B2: Gap dependence
A4: Project | B4: ='10 mm'!B5 -> 504314
A5: PS serial no | B5: ='10 mm'!B7 -> 2410096
A7: Measurement date | B7: =LEFT('10 mm'!B4,10) -> 13-09-2024
A11: Nominal gap [mm] | B11: Encoder [counts] | C11: Encoder [mm] | D11: PI [T^2mm^3] | E11: PI spec [T^2mm^3] | F11: Encoder value at 10 mm gap:
A12: ='10 mm'!$B$53 -> 10 | B12: ='10 mm'!$B$55 -> 19.73485 | C12: =-1*($F$12-B12)+10 -> 9.99865 | D12: ='10 mm'!$K$3 -> 10682.49117 | F12: 19.7362
A13: ='15 mm'!$B$53 -> 15 | B13: ='15 mm'!$B$55 -> 24.7275 | C13: =-1*($F$12-B13)+10 -> 14.9913 | D13: ='15 mm'!$K$3 -> 7283.584031
A14: ='20 mm'!$B$53 -> 20 | B14: ='20 mm'!$B$55 -> 29.737 | C14: 20.0008 | D14: ='20 mm'!$K$3 -> 5029.531481
A15: ='30 mm'!$B$53 -> 30 | B15: ='30 mm'!$B$55 -> 39.7334 | C15: 29.9972 | D15: ='30 mm'!$K$3 -> 2474.485911
A16: ='100 mm'!$B$53 -> 100 | B16: ='100 mm'!$B$55 -> 109.7331 | C16: 99.9969 | D16: ='100 mm'!$K$3 -> 38.7786243
A47: Measuring series at larger gaps:
A48: Reference magnet
A49: Tref | B49: 21.38 | C49: degC
A50: Hall ref field | B50: 0.505 | C50: T
A51: NMR ref field | B51: 0.50627 | C51: T
A53: Offset from Faro

Sheet 10 mm
A1: =IF('DF raw data'!A1="","",'DF raw data'!A1) -> Number of header lines | B1: =IF('DF raw data'!B1="","",'DF raw data'!B1) -> 54 | C1: =IF('DF raw data'!C1="","",'DF raw data'!C1) ->  | D1: =IF('DF raw data'!D1="","",'DF raw data'!D1) ->  | F1: T_coeff | G1: -0.001 | H1: /degC | J1: IBy total | K1: =J1267*1000 -> 8.370916248 | L1: muTm | M1: =L1267*1000 -> -17.51703658 | R1: DF ref | S1: 1
A2: =IF('DF raw data'!A2="","",'DF raw data'!A2) -> Measured by | B2: =IF('DF raw data'!B2="","",'DF raw data'!B2) -> Danfysik | C2: =IF('DF raw data'!C2="","",'DF raw data'!C2) ->  | D2: =IF('DF raw data'!D2="","",'DF raw data'!D2) ->  | F2: Tcorr | G2: 20 | H2: degC | J2: JBy total | K2: =K1267 -> -10.3609504 | L2: muTm^2 | M2: =M1267 -> -5.135116175
A3: =IF('DF raw data'!A3="","",'DF raw data'!A3) -> Operator | B3: =IF('DF raw data'!B3="","",'DF raw data'!B3) -> PMHA | C3: =IF('DF raw data'!C3="","",'DF raw data'!C3) ->  | D3: =IF('DF raw data'!D3="","",'DF raw data'!D3) ->  | F3: Step | G3: =A68-A67 -> 0.5 | H3: mm | J3: PI total | K3: =N1267 -> 10682.49117 | L3: T^2mm^3
A4: =IF('DF raw data'!A4="","",'DF raw data'!A4) -> Data-time | B4: =IF('DF raw data'!B4="","",'DF raw data'!B4) -> 13-09-2024, 10:59:47 | C4: =IF('DF raw data'!C4="","",'DF raw data'!C4) ->  | D4: =IF('DF raw data'!D4="","",'DF raw data'!D4) -> 
A5: =IF('DF raw data'!A5="","",'DF raw data'!A5) -> Project | B5: =IF('DF raw data'!B5="","",'DF raw data'!B5) -> 504314 | C5: =IF('DF raw data'!C5="","",'DF raw data'!C5) ->  | D5: Bamb avr | F5: =(AVERAGE(B67:B107) + AVERAGE(B1227:B1267))/2 -> -1.334671859e-05 | G5: =(AVERAGE(C67:C107) + AVERAGE(C1227:C1267))/2 -> 0.0002552096341 | H5: =(AVERAGE(D67:D107) + AVERAGE(D1227:D1267))/2 -> -1.517562389e-05
A6: =IF('DF raw data'!A6="","",'DF raw data'!A6) -> Magnet type | B6: =IF('DF raw data'!B6="","",'DF raw data'!B6) -> Dipole | C6: =IF('DF raw data'!C6="","",'DF raw data'!C6) -> 
A7: =IF('DF raw data'!A7="","",'DF raw data'!A7) -> Magnet nr. | B7: =IF('DF raw data'!B7="","",'DF raw data'!B7) -> 2410096 | C7: =IF('DF raw data'!C7="","",'DF raw data'!C7) -> 
A8: =IF('DF raw data'!A8="","",'DF raw data'!A8) -> Meas. number | B8: =IF('DF raw data'!B8="","",'DF raw data'!B8) -> 448 | C8: =IF('DF raw data'!C8="","",'DF raw data'!C8) -> 
A9: =IF('DF raw data'!A9="","",'DF raw data'!A9) -> Add. info | B9: =IF('DF raw data'!B9="","",'DF raw data'!B9) -> X-alignment scan 3) | C9: =IF('DF raw data'!C9="","",'DF raw data'!C9) ->  | D9: =IF('DF raw data'!D9="","",'DF raw data'!D9) -> 
A10: =IF('DF raw data'!A10="","",'DF raw data'!A10) -> Device | B10: =IF('DF raw data'!B10="","",'DF raw data'!B10) -> (HAL) HALL-PROBE | C10: =IF('DF raw data'!C10="","",'DF raw data'!C10) ->  | D10: =IF('DF raw data'!D10="","",'DF raw data'!D10) -> 
A11: =IF('DF raw data'!A11="","",'DF raw data'!A11) -> Goal | B11: =IF('DF raw data'!B11="","",'DF raw data'!B11) -> (AXI) AXis Integral (Line, EFB) | C11: =IF('DF raw data'!C11="","",'DF raw data'!C11) ->  | D11: =IF('DF raw data'!D11="","",'DF raw data'!D11) -> 
A12: =IF('DF raw data'!A12="","",'DF raw data'!A12) -> Power supply mode | B12: =IF('DF raw data'!B12="","",'DF raw data'!B12) -> (PM) Permanent Magnet (no MPS in use) | C12: =IF('DF raw data'!C12="","",'DF raw data'!C12) ->  | D12: =IF('DF raw data'!D12="","",'DF raw data'!D12) -> 
A13: =IF('DF raw data'!A13="","",'DF raw data'!A13) -> Data format | B13: =IF('DF raw data'!B13="","",'DF raw data'!B13) -> Raw data text file | C13: =IF('DF raw data'!C13="","",'DF raw data'!C13) ->  | D13: =IF('DF raw data'!D13="","",'DF raw data'!D13) -> 
A14: =IF('DF raw data'!A14="","",'DF raw data'!A14) -> Direction of the pos. x-axis | B14: =IF('DF raw data'!B14="","",'DF raw data'!B14) -> See test program | C14: =IF('DF raw data'!C14="","",'DF raw data'!C14) ->  | D14: =IF('DF raw data'!D14="","",'DF raw data'!D14) -> 
A15: =IF('DF raw data'!A15="","",'DF raw data'!A15) -> Direction of the pos. y-axis | B15: =IF('DF raw data'!B15="","",'DF raw data'!B15) -> Vertical up | C15: =IF('DF raw data'!C15="","",'DF raw data'!C15) ->  | D15: =IF('DF raw data'!D15="","",'DF raw data'!D15) -> 
A16: =IF('DF raw data'!A16="","",'DF raw data'!A16) -> Direction of the pos. z-axis | B16: =IF('DF raw data'!B16="","",'DF raw data'!B16) -> See test program | C16: =IF('DF raw data'!C16="","",'DF raw data'!C16) ->  | D16: =IF('DF raw data'!D16="","",'DF raw data'!D16) -> 
A17: =IF('DF raw data'!A17="","",'DF raw data'!A17) -> Mapper type | B17: =IF('DF raw data'!B17="","",'DF raw data'!B17) -> Precision Hall Mapper | C17: =IF('DF raw data'!C17="","",'DF raw data'!C17) ->  | D17: =IF('DF raw data'!D17="","",'DF raw data'!D17) -> 
A18: =IF('DF raw data'!A18="","",'DF raw data'!A18) -> Mapper Danfysik Reg. Number | B18: =IF('DF raw data'!B18="","",'DF raw data'!B18) -> 2033-D (mapper 1) | C18: =IF('DF raw data'!C18="","",'DF raw data'!C18) ->  | D18: =IF('DF raw data'!D18="","",'DF raw data'!D18) -> 
A19: =IF('DF raw data'!A19="","",'DF raw data'!A19) -> Measurement consept | B19: =IF('DF raw data'!B19="","",'DF raw data'!B19) -> Square line grid | C19: =IF('DF raw data'!C19="","",'DF raw data'!C19) ->  | D19: =IF('DF raw data'!D19="","",'DF raw data'!D19) -> 
A20: =IF('DF raw data'!A20="","",'DF raw data'!A20) -> Mode | B20: =IF('DF raw data'!B20="","",'DF raw data'!B20) -> On-the-fly measurement | C20: =IF('DF raw data'!C20="","",'DF raw data'!C20) ->  | D20: =IF('DF raw data'!D20="","",'DF raw data'!D20) -> 
A21: =IF('DF raw data'!A21="","",'DF raw data'!A21) ->  | B21: =IF('DF raw data'!B21="","",'DF raw data'!B21) ->  | C21: =IF('DF raw data'!C21="","",'DF raw data'!C21) ->  | D21: =IF('DF raw data'!D21="","",'DF raw data'!D21) -> 
A22: =IF('DF raw data'!A22="","",'DF raw data'!A22) -> Probe Name | B22: =IF('DF raw data'!B22="","",'DF raw data'!B22) -> ID12_By | C22: =IF('DF raw data'!C22="","",'DF raw data'!C22) ->  | D22: =IF('DF raw data'!D22="","",'DF raw data'!D22) -> 
A23: =IF('DF raw data'!A23="","",'DF raw data'!A23) -> Probe Type | B23: =IF('DF raw data'!B23="","",'DF raw data'!B23) -> DF_ID_3D_Bxyz | C23: =IF('DF raw data'!C23="","",'DF raw data'!C23) ->  | D23: =IF('DF raw data'!D23="","",'DF raw data'!D23) -> 
A24: =IF('DF raw data'!A24="","",'DF raw data'!A24) -> Probe Danfysik Reg. Number | B24: =IF('DF raw data'!B24="","",'DF raw data'!B24) -> 2277 | C24: =IF('DF raw data'!C24="","",'DF raw data'!C24) ->  | D24: =IF('DF raw data'!D24="","",'DF raw data'!D24) -> 
A25: =IF('DF raw data'!A25="","",'DF raw data'!A25) -> Probe Axis | B25: =IF('DF raw data'!B25="","",'DF raw data'!B25) -> By | C25: =IF('DF raw data'!C25="","",'DF raw data'!C25) ->  | D25: =IF('DF raw data'!D25="","",'DF raw data'!D25) -> 
A26: =IF('DF raw data'!A26="","",'DF raw data'!A26) -> Probe Current Supply | B26: =IF('DF raw data'!B26="","",'DF raw data'!B26) -> 1825-D | C26: =IF('DF raw data'!C26="","",'DF raw data'!C26) ->  | D26: =IF('DF raw data'!D26="","",'DF raw data'!D26) -> 
A27: =IF('DF raw data'!A27="","",'DF raw data'!A27) -> Probe Gain Correction | B27: =IF('DF raw data'!B27="","",'DF raw data'!B27) -> 0.99619 | C27: =IF('DF raw data'!C27="","",'DF raw data'!C27) ->  | D27: =IF('DF raw data'!D27="","",'DF raw data'!D27) -> 
A28: =IF('DF raw data'!A28="","",'DF raw data'!A28) -> Probe Offset Correction | B28: =IF('DF raw data'!B28="","",'DF raw data'!B28) -> 0.002767 | C28: =IF('DF raw data'!C28="","",'DF raw data'!C28) ->  | D28: =IF('DF raw data'!D28="","",'DF raw data'!D28) -> 
A29: =IF('DF raw data'!A29="","",'DF raw data'!A29) -> DVM Number | B29: =IF('DF raw data'!B29="","",'DF raw data'!B29) -> 2 | C29: =IF('DF raw data'!C29="","",'DF raw data'!C29) ->  | D29: =IF('DF raw data'!D29="","",'DF raw data'!D29) -> 
A30: =IF('DF raw data'!A30="","",'DF raw data'!A30) -> DVM Type | B30: =IF('DF raw data'!B30="","",'DF raw data'!B30) -> K2701 | C30: =IF('DF raw data'!C30="","",'DF raw data'!C30) ->  | D30: =IF('DF raw data'!D30="","",'DF raw data'!D30) -> 
A31: =IF('DF raw data'!A31="","",'DF raw data'!A31) -> DVM Danfysik Reg. Number | B31: =IF('DF raw data'!B31="","",'DF raw data'!B31) -> 1743-D | C31: =IF('DF raw data'!C31="","",'DF raw data'!C31) ->  | D31: =IF('DF raw data'!D31="","",'DF raw data'!D31) -> 
A32: =IF('DF raw data'!A32="","",'DF raw data'!A32) -> Probe Name | B32: =IF('DF raw data'!B32="","",'DF raw data'!B32) -> ID12_Bx | C32: =IF('DF raw data'!C32="","",'DF raw data'!C32) ->  | D32: =IF('DF raw data'!D32="","",'DF raw data'!D32) -> 
A33: =IF('DF raw data'!A33="","",'DF raw data'!A33) -> Probe Type | B33: =IF('DF raw data'!B33="","",'DF raw data'!B33) -> DF_ID_3D_Bxyz | C33: =IF('DF raw data'!C33="","",'DF raw data'!C33) ->  | D33: =IF('DF raw data'!D33="","",'DF raw data'!D33) -> 
A34: =IF('DF raw data'!A34="","",'DF raw data'!A34) -> Probe Danfysik Reg. Number | B34: =IF('DF raw data'!B34="","",'DF raw data'!B34) -> 2277 | C34: =IF('DF raw data'!C34="","",'DF raw data'!C34) ->  | D34: =IF('DF raw data'!D34="","",'DF raw data'!D34) -> 
A35: =IF('DF raw data'!A35="","",'DF raw data'!A35) -> Probe Axis | B35: =IF('DF raw data'!B35="","",'DF raw data'!B35) -> Bx | C35: =IF('DF raw data'!C35="","",'DF raw data'!C35) ->  | D35: =IF('DF raw data'!D35="","",'DF raw data'!D35) -> 
A36: =IF('DF raw data'!A36="","",'DF raw data'!A36) -> Probe Current Supply | B36: =IF('DF raw data'!B36="","",'DF raw data'!B36) -> 1825-D | C36: =IF('DF raw data'!C36="","",'DF raw data'!C36) ->  | D36: =IF('DF raw data'!D36="","",'DF raw data'!D36) -> 
A37: =IF('DF raw data'!A37="","",'DF raw data'!A37) -> Probe Gain Correction | B37: =IF('DF raw data'!B37="","",'DF raw data'!B37) -> 1 | C37: =IF('DF raw data'!C37="","",'DF raw data'!C37) ->  | D37: =IF('DF raw data'!D37="","",'DF raw data'!D37) -> 
A38: =IF('DF raw data'!A38="","",'DF raw data'!A38) -> Probe Offset Correction | B38: =IF('DF raw data'!B38="","",'DF raw data'!B38) -> -0.17549 | C38: =IF('DF raw data'!C38="","",'DF raw data'!C38) ->  | D38: =IF('DF raw data'!D38="","",'DF raw data'!D38) -> 
A39: =IF('DF raw data'!A39="","",'DF raw data'!A39) -> DVM Number | B39: =IF('DF raw data'!B39="","",'DF raw data'!B39) -> 3 | C39: =IF('DF raw data'!C39="","",'DF raw data'!C39) ->  | D39: =IF('DF raw data'!D39="","",'DF raw data'!D39) -> 
A40: =IF('DF raw data'!A40="","",'DF raw data'!A40) -> DVM Type | B40: =IF('DF raw data'!B40="","",'DF raw data'!B40) -> K2701 | C40: =IF('DF raw data'!C40="","",'DF raw data'!C40) ->  | D40: =IF('DF raw data'!D40="","",'DF raw data'!D40) -> 
A41: =IF('DF raw data'!A41="","",'DF raw data'!A41) -> DVM Danfysik Reg. Number | B41: =IF('DF raw data'!B41="","",'DF raw data'!B41) -> 1744-D | C41: =IF('DF raw data'!C41="","",'DF raw data'!C41) ->  | D41: =IF('DF raw data'!D41="","",'DF raw data'!D41) -> 
A42: =IF('DF raw data'!A42="","",'DF raw data'!A42) -> Probe Name | B42: =IF('DF raw data'!B42="","",'DF raw data'!B42) -> ID12_Bz | C42: =IF('DF raw data'!C42="","",'DF raw data'!C42) ->  | D42: =IF('DF raw data'!D42="","",'DF raw data'!D42) -> 
A43: =IF('DF raw data'!A43="","",'DF raw data'!A43) -> Probe Type | B43: =IF('DF raw data'!B43="","",'DF raw data'!B43) -> DF_ID_3D_Bxyz | C43: =IF('DF raw data'!C43="","",'DF raw data'!C43) ->  | D43: =IF('DF raw data'!D43="","",'DF raw data'!D43) -> 
A44: =IF('DF raw data'!A44="","",'DF raw data'!A44) -> Probe Danfysik Reg. Number | B44: =IF('DF raw data'!B44="","",'DF raw data'!B44) -> 2277 | C44: =IF('DF raw data'!C44="","",'DF raw data'!C44) ->  | D44: =IF('DF raw data'!D44="","",'DF raw data'!D44) -> 
A45: =IF('DF raw data'!A45="","",'DF raw data'!A45) -> Probe Axis | B45: =IF('DF raw data'!B45="","",'DF raw data'!B45) -> Bz | C45: =IF('DF raw data'!C45="","",'DF raw data'!C45) ->  | D45: =IF('DF raw data'!D45="","",'DF raw data'!D45) -> 
A46: =IF('DF raw data'!A46="","",'DF raw data'!A46) -> Probe Current Supply | B46: =IF('DF raw data'!B46="","",'DF raw data'!B46) -> 1825-D | C46: =IF('DF raw data'!C46="","",'DF raw data'!C46) ->  | D46: =IF('DF raw data'!D46="","",'DF raw data'!D46) -> 
A47: =IF('DF raw data'!A47="","",'DF raw data'!A47) -> Probe Gain Correction | B47: =IF('DF raw data'!B47="","",'DF raw data'!B47) -> 1 | C47: =IF('DF raw data'!C47="","",'DF raw data'!C47) ->  | D47: =IF('DF raw data'!D47="","",'DF raw data'!D47) -> 
A48: =IF('DF raw data'!A48="","",'DF raw data'!A48) -> Probe Offset Correction | B48: =IF('DF raw data'!B48="","",'DF raw data'!B48) -> 0.0073199 | C48: =IF('DF raw data'!C48="","",'DF raw data'!C48) ->  | D48: =IF('DF raw data'!D48="","",'DF raw data'!D48) -> 
A49: =IF('DF raw data'!A49="","",'DF raw data'!A49) -> DVM Number | B49: =IF('DF raw data'!B49="","",'DF raw data'!B49) -> 8 | C49: =IF('DF raw data'!C49="","",'DF raw data'!C49) ->  | D49: =IF('DF raw data'!D49="","",'DF raw data'!D49) -> 
A50: =IF('DF raw data'!A50="","",'DF raw data'!A50) -> DVM Type | B50: =IF('DF raw data'!B50="","",'DF raw data'!B50) -> K2700 | C50: =IF('DF raw data'!C50="","",'DF raw data'!C50) ->  | D50: =IF('DF raw data'!D50="","",'DF raw data'!D50) -> 
A51: =IF('DF raw data'!A51="","",'DF raw data'!A51) -> DVM Danfysik Reg. Number | B51: =IF('DF raw data'!B51="","",'DF raw data'!B51) -> 1756-D | C51: =IF('DF raw data'!C51="","",'DF raw data'!C51) ->  | D51: =IF('DF raw data'!D51="","",'DF raw data'!D51) -> 
A52: =IF('DF raw data'!A52="","",'DF raw data'!A52) -> NTC voltage | B52: =IF('DF raw data'!B52="","",'DF raw data'!B52) -> 0.41387 | C52: =IF('DF raw data'!C52="","",'DF raw data'!C52) ->  | D52: =IF('DF raw data'!D52="","",'DF raw data'!D52) -> 
A53: =IF('DF raw data'!A53="","",'DF raw data'!A53) -> PS-Gap: | B53: =IF('DF raw data'!B53="","",'DF raw data'!B53) -> 10 | C53: =IF('DF raw data'!C53="","",'DF raw data'!C53) ->  | D53: =IF('DF raw data'!D53="","",'DF raw data'!D53) -> 
A54: =IF('DF raw data'!A54="","",'DF raw data'!A54) -> PS-Temperature: | B54: =IF('DF raw data'!B54="","",'DF raw data'!B54) -> 24.5 | C54: =IF('DF raw data'!C54="","",'DF raw data'!C54) ->  | D54: =IF('DF raw data'!D54="","",'DF raw data'!D54) -> 
A55: =IF('DF raw data'!A55="","",'DF raw data'!A55) -> PS-Encoder: | B55: =IF('DF raw data'!B55="","",'DF raw data'!B55) -> 19.73485 | C55: =IF('DF raw data'!C55="","",'DF raw data'!C55) ->  | D55: =IF('DF raw data'!D55="","",'DF raw data'!D55) -> 
A56: =IF('DF raw data'!A56="","",'DF raw data'!A56) ->  | B56: =IF('DF raw data'!B56="","",'DF raw data'!B56) -> 
A57: =IF('DF raw data'!A57="","",'DF raw data'!A57) -> Monitor-Index | B57: =IF('DF raw data'!B57="","",'DF raw data'!B57) -> [1,1,4]
A58: =IF('DF raw data'!A58="","",'DF raw data'!A58) ->  | B58: =IF('DF raw data'!B58="","",'DF raw data'!B58) -> 
A59: =IF('DF raw data'!A59="","",'DF raw data'!A59) -> Time [s] | B59: =IF('DF raw data'!B59="","",'DF raw data'!B59) -> Y [mm]
A60: =IF('DF raw data'!A60="","",'DF raw data'!A60) ->  | B60: =IF('DF raw data'!B60="","",'DF raw data'!B60) -> 
A61: =IF('DF raw data'!A61="","",'DF raw data'!A61) -> 207.3 | B61: =IF('DF raw data'!B61="","",'DF raw data'!B61) -> 31.76
A62: =IF('DF raw data'!A62="","",'DF raw data'!A62) ->  | B62: =IF('DF raw data'!B62="","",'DF raw data'!B62) -> 
A63: =IF('DF raw data'!A63="","",'DF raw data'!A63) -> Measurement-Index | B63: =IF('DF raw data'!B63="","",'DF raw data'!B63) -> [1,1,1201,2]
A64: =IF('DF raw data'!A64="","",'DF raw data'!A64) ->  | B64: =IF('DF raw data'!B64="","",'DF raw data'!B64) -> 
A65: =IF('DF raw data'!A65="","",'DF raw data'!A65) -> Z [mm] | B65: =IF('DF raw data'!B65="","",'DF raw data'!B65) -> By [T] | C65: =IF('DF raw data'!C65="","",'DF raw data'!C65) -> Bx [T] | D65: =IF('DF raw data'!D65="","",'DF raw data'!D65) -> Bz [T] | F65: By_corr | G65: Bx_corr | H65: Bz_corr | J65: Iy | K65: Jy | L65: Ix | M65: Jx | N65: PI
A66: =IF('DF raw data'!A66="","",'DF raw data'!A66) -> [1, 0, 0, 0] | B66: =IF('DF raw data'!B66="","",'DF raw data'!B66) ->  | C66: =IF('DF raw data'!C66="","",'DF raw data'!C66) ->  | D66: =IF('DF raw data'!D66="","",'DF raw data'!D66) -> 
A67: =IF('DF raw data'!A67="","",'DF raw data'!A67) -> -300 | B67: =IF('DF raw data'!B67="","",'DF raw data'!B67) -> -1.19644e-05 | C67: =IF('DF raw data'!C67="","",'DF raw data'!C67) -> 0.000253506 | D67: =IF('DF raw data'!D67="","",'DF raw data'!D67) -> -2.16984e-05 | F67: =(1-$G$1*($B$54-$G$2))*(B67-F$5) -> 1.388539019e-06 | G67: =(1-$G$1*($B$54-$G$2))*(C67-G$5) -> -1.7113005e-06 | H67: =(1-$G$1*($B$54-$G$2))*(D67-H$5) -> -6.552128602e-06 | J67: =F67*$G$3+J66 -> 6.942695095e-07 | K67: =J67*$G$3+K66 -> 3.471347548e-07 | L67: =G67*$G$3+L66 -> -8.5565025e-07 | M67: =L67*$G$3+M66 -> -4.27825125e-07 | N67: =(J67^2+L67^2)*$G$3+N66 -> 6.070737511e-13
A68: =IF('DF raw data'!A68="","",'DF raw data'!A68) -> -299.5 | B68: =IF('DF raw data'!B68="","",'DF raw data'!B68) -> 4.66356e-07 | C68: =IF('DF raw data'!C68="","",'DF raw data'!C68) -> 0.000266391 | D68: =IF('DF raw data'!D68="","",'DF raw data'!D68) -> -2.24372e-05 | F68: 1.387523342e-05 | G68: 1.1231682e-05 | H68: -7.294253202e-06 | J68: =F68*$G$3+J67 -> 7.63188622e-06 | K68: =J68*$G$3+K67 -> 4.163077865e-06 | L68: =G68*$G$3+L67 -> 4.76019075e-06 | M68: =L68*$G$3+M67 -> 1.95227025e-06 | N68: =(J68^2+L68^2)*$G$3+N67 -> 4.105962538e-11
A69: =IF('DF raw data'!A69="","",'DF raw data'!A69) -> -299 | B69: =IF('DF raw data'!B69="","",'DF raw data'!B69) -> -7.54219e-06 | C69: =IF('DF raw data'!C69="","",'DF raw data'!C69) -> 0.000269491 | D69: =IF('DF raw data'!D69="","",'DF raw data'!D69) -> -2.34629e-05 | F69: 5.830648964e-06 | G69: 1.4345632e-05 | H69: -8.324568852e-06 | J69: 1.05472107e-05 | K69: 9.436683216e-06 | L69: 1.193300675e-05 | M69: 7.918773625e-06 | N69: 1.678797772e-10
A70: =IF('DF raw data'!A70="","",'DF raw data'!A70) -> -298.5 | B70: =IF('DF raw data'!B70="","",'DF raw data'!B70) -> -7.47718e-06 | C70: =IF('DF raw data'!C70="","",'DF raw data'!C70) -> 0.00026541 | D70: =IF('DF raw data'!D70="","",'DF raw data'!D70) -> -2.36777e-05 | F70: 5.895951509e-06 | G70: 1.02462675e-05 | H70: -8.540335452e-06 | J70: 1.349518646e-05 | K70: 1.618427644e-05 | L70: 1.70561405e-05 | M70: 1.644684387e-05 | N70: 4.043957703e-10
A71: =IF('DF raw data'!A71="","",'DF raw data'!A71) -> -298 | B71: =IF('DF raw data'!B71="","",'DF raw data'!B71) -> -7.09372e-06 | C71: =IF('DF raw data'!C71="","",'DF raw data'!C71) -> 0.000264021 | D71: =IF('DF raw data'!D71="","",'DF raw data'!D71) -> -2.32819e-05 | F71: 6.281137079e-06 | G71: 8.851017e-06 | H71: -8.142754352e-06 | J71: 1.6635755e-05 | K71: 2.450215394e-05 | L71: 2.1481649e-05 | M71: 2.718766837e-05 | N71: 7.735005644e-10
A72: =IF('DF raw data'!A72="","",'DF raw data'!A72) -> -297.5 | B72: =IF('DF raw data'!B72="","",'DF raw data'!B72) -> -9.5276e-06 | C72: =IF('DF raw data'!C72="","",'DF raw data'!C72) -> 0.000261413 | D72: =IF('DF raw data'!D72="","",'DF raw data'!D72) -> -2.30352e-05 | F72: 3.836304619e-06 | G72: 6.231281e-06 | H72: -7.894944202e-06 | J72: 1.855390731e-05 | K72: 3.377910759e-05 | L72: 2.45972895e-05 | M72: 3.948631312e-05 | N72: 1.248137628e-09
A73: =IF('DF raw data'!A73="","",'DF raw data'!A73) -> -297 | B73: =IF('DF raw data'!B73="","",'DF raw data'!B73) -> -9.4232e-07 | C73: =IF('DF raw data'!C73="","",'DF raw data'!C73) -> 0.000275983 | D73: =IF('DF raw data'!D73="","",'DF raw data'!D73) -> -2.38e-05 | F73: 1.246021838e-05 | G73: 2.0866846e-05 | H73: -8.663185802e-06 | J73: 2.47840165e-05 | K73: 4.617111584e-05 | L73: 3.50307125e-05 | M73: 5.700166937e-05 | N73: 2.168836774e-09
A74: =IF('DF raw data'!A74="","",'DF raw data'!A74) -> -296.5 | B74: =IF('DF raw data'!B74="","",'DF raw data'!B74) -> -2.92746e-06 | C74: =IF('DF raw data'!C74="","",'DF raw data'!C74) -> 0.000271342 | D74: =IF('DF raw data'!D74="","",'DF raw data'!D74) -> -2.5152e-05 | F74: 1.046614525e-05 | G74: 1.62049615e-05 | H74: -1.00212698e-05 | J74: 3.001708912e-05 | K74: 6.11796604e-05 | L74: 4.313319325e-05 | M74: 7.8568266e-05 | N74: 3.549585773e-09
A75: =IF('DF raw data'!A75="","",'DF raw data'!A75) -> -296 | B75: =IF('DF raw data'!B75="","",'DF raw data'!B75) -> -1.99714e-05 | C75: =IF('DF raw data'!C75="","",'DF raw data'!C75) -> 0.0002662 | D75: =IF('DF raw data'!D75="","",'DF raw data'!D75) -> -2.52657e-05 | F75: -6.654492481e-06 | G75: 1.10398225e-05 | H75: -1.013548145e-05 | J75: 2.668984288e-05 | K75: 7.452458184e-05 | L75: 4.86531045e-05 | M75: 0.0001028948182 | N75: 5.089321919e-09
A76: =IF('DF raw data'!A76="","",'DF raw data'!A76) -> -295.5 | B76: =IF('DF raw data'!B76="","",'DF raw data'!B76) -> -2.58003e-05 | C76: =IF('DF raw data'!C76="","",'DF raw data'!C76) -> 0.000272914 | D76: =IF('DF raw data'!D76="","",'DF raw data'!D76) -> -2.38146e-05 | F76: -1.250962253e-05 | G76: 1.77840355e-05 | H76: -8.677851502e-06 | J76: 2.043503161e-05 | K76: 8.474209765e-05 | L76: 5.754512225e-05 | M76: 0.0001316673794 | N76: 6.953837725e-09
A77: =IF('DF raw data'!A77="","",'DF raw data'!A77) -> -295 | B77: =IF('DF raw data'!B77="","",'DF raw data'!B77) -> -1.86916e-05 | C77: =IF('DF raw data'!C77="","",'DF raw data'!C77) -> 0.000272857 | D77: =IF('DF raw data'!D77="","",'DF raw data'!D77) -> -2.26527e-05 | F77: -5.368933381e-06 | G77: 1.7726779e-05 | H77: -7.510722952e-06 | J77: 1.775056492e-05 | K77: 9.361738011e-05 | L77: 6.640851175e-05 | M77: 0.0001648716352 | N77: 9.316424218e-09
A78: =IF('DF raw data'!A78="","",'DF raw data'!A78) -> -294.5 | B78: =IF('DF raw data'!B78="","",'DF raw data'!B78) -> -1.26031e-05 | C78: =IF('DF raw data'!C78="","",'DF raw data'!C78) -> 0.00026977 | D78: =IF('DF raw data'!D78="","",'DF raw data'!D78) -> -2.28193e-05 | F78: 7.46964869e-07 | G78: 1.46258875e-05 | H78: -7.678072652e-06 | J78: 1.812404736e-05 | K78: 0.0001026794038 | L78: 7.37214555e-05 | M78: 0.000201732363 | N78: 1.219809127e-08
A79: =IF('DF raw data'!A79="","",'DF raw data'!A79) -> -294 | B79: =IF('DF raw data'!B79="","",'DF raw data'!B79) -> -1.46543e-05 | C79: =IF('DF raw data'!C79="","",'DF raw data'!C79) -> 0.000266824 | D79: =IF('DF raw data'!D79="","",'DF raw data'!D79) -> -2.32938e-05 | F79: -1.313465531e-06 | G79: 1.16666305e-05 | H79: -8.154707902e-06 | J79: 1.746731459e-05 | K79: 0.0001114130611 | L79: 7.955477075e-05 | M79: 0.0002415097484 | N79: 1.551512558e-08
A80: =IF('DF raw data'!A80="","",'DF raw data'!A80) -> -293.5 | B80: =IF('DF raw data'!B80="","",'DF raw data'!B80) -> -1.84969e-05 | C80: =IF('DF raw data'!C80="","",'DF raw data'!C80) -> 0.000265938 | D80: =IF('DF raw data'!D80="","",'DF raw data'!D80) -> -2.33959e-05 | F80: -5.173357231e-06 | G80: 1.07766435e-05 | H80: -8.257267352e-06 | J80: 1.488063598e-05 | K80: 0.0001188533791 | L80: 8.49430925e-05 | M80: 0.0002839812946 | N80: 1.923350672e-08
A81: =IF('DF raw data'!A81="","",'DF raw data'!A81) -> -293 | B81: =IF('DF raw data'!B81="","",'DF raw data'!B81) -> -1.23474e-05 | C81: =IF('DF raw data'!C81="","",'DF raw data'!C81) -> 0.000265542 | D81: =IF('DF raw data'!D81="","",'DF raw data'!D81) -> -2.37896e-05 | F81: 1.003815519e-06 | G81: 1.03788615e-05 | H81: -8.652739002e-06 | J81: 1.538254374e-05 | K81: 0.0001265446509 | L81: 9.013252325e-05 | M81: 0.0003290475562 | N81: 2.341375392e-08
A82: =IF('DF raw data'!A82="","",'DF raw data'!A82) -> -292.5 | B82: =IF('DF raw data'!B82="","",'DF raw data'!B82) -> -1.24742e-05 | C82: =IF('DF raw data'!C82="","",'DF raw data'!C82) -> 0.000265148 | D82: =IF('DF raw data'!D82="","",'DF raw data'!D82) -> -2.40774e-05 | F82: 8.76444919e-07 | G82: 9.9830885e-06 | H82: -8.941834102e-06 | J82: 1.58207662e-05 | K82: 0.000134455034 | L82: 9.51240675e-05 | M82: 0.00037660959 | N82: 2.806319635e-08
A83: =IF('DF raw data'!A83="","",'DF raw data'!A83) -> -292 | B83: =IF('DF raw data'!B83="","",'DF raw data'!B83) -> -3.28516e-05 | C83: =IF('DF raw data'!C83="","",'DF raw data'!C83) -> 0.000260026 | D83: =IF('DF raw data'!D83="","",'DF raw data'!D83) -> -2.30849e-05 | F83: -1.959265338e-05 | G83: 4.8380395e-06 | H83: -7.944867852e-06 | J83: 6.024439505e-06 | K83: 0.0001374672538 | L83: 9.754308725e-05 | M83: 0.0004253811336 | N83: 3.283867023e-08
A84: =IF('DF raw data'!A84="","",'DF raw data'!A84) -> -291.5 | B84: =IF('DF raw data'!B84="","",'DF raw data'!B84) -> -9.27652e-06 | C84: =IF('DF raw data'!C84="","",'DF raw data'!C84) -> 0.000265229 | D84: =IF('DF raw data'!D84="","",'DF raw data'!D84) -> -1.50889e-05 | F84: 4.088514479e-06 | G84: 1.0064453e-05 | H84: 8.711414775e-08 | J84: 8.068696745e-06 | K84: 0.0001415016022 | L84: 0.0001025753137 | M84: 0.0004766687905 | N84: 3.813206965e-08
A85: =IF('DF raw data'!A85="","",'DF raw data'!A85) -> -291 | B85: =IF('DF raw data'!B85="","",'DF raw data'!B85) -> -1.70321e-05 | C85: =IF('DF raw data'!C85="","",'DF raw data'!C85) -> 0.000263722 | D85: =IF('DF raw data'!D85="","",'DF raw data'!D85) -> -1.23098e-05 | F85: -3.701965631e-06 | G85: 8.5506715e-06 | H85: 2.878720098e-06 | J85: 6.217713929e-06 | K85: 0.0001446104591 | L85: 0.0001068506495 | M85: 0.0005300941152 | N85: 4.385993029e-08
A86: =IF('DF raw data'!A86="","",'DF raw data'!A86) -> -290.5 | B86: =IF('DF raw data'!B86="","",'DF raw data'!B86) -> 8.52645e-06 | C86: =IF('DF raw data'!C86="","",'DF raw data'!C86) -> 0.000268284 | D86: =IF('DF raw data'!D86="","",'DF raw data'!D86) -> -3.11151e-06 | F86: 2.197159784e-05 | G86: 1.31332005e-05 | H86: 1.21184024e-05 | J86: 1.720351285e-05 | K86: 0.0001532122156 | L86: 0.0001134172497 | M86: 0.0005868027401 | N86: 5.043964698e-08
A87: =IF('DF raw data'!A87="","",'DF raw data'!A87) -> -290 | B87: =IF('DF raw data'!B87="","",'DF raw data'!B87) -> -1.08792e-05 | C87: =IF('DF raw data'!C87="","",'DF raw data'!C87) -> 0.000262191 | D87: =IF('DF raw data'!D87="","",'DF raw data'!D87) -> -1.52028e-05 | F87: 2.478622419e-06 | G87: 7.012782e-06 | H87: -2.729840225e-08 | J87: 1.844282406e-05 | K87: 0.0001624336276 | L87: 0.0001169236407 | M87: 0.0006452645605 | N87: 5.744528475e-08
A88: =IF('DF raw data'!A88="","",'DF raw data'!A88) -> -289.5 | B88: =IF('DF raw data'!B88="","",'DF raw data'!B88) -> -1.10058e-05 | C88: =IF('DF raw data'!C88="","",'DF raw data'!C88) -> 0.000260263 | D88: =IF('DF raw data'!D88="","",'DF raw data'!D88) -> -1.60755e-05 | F88: 2.351452719e-06 | G88: 5.076106e-06 | H88: -9.039255523e-07 | J88: 1.961855042e-05 | K88: 0.0001722429028 | L88: 0.0001194616937 | M88: 0.0007049954074 | N88: 6.477327664e-08
A89: =IF('DF raw data'!A89="","",'DF raw data'!A89) -> -289 | B89: =IF('DF raw data'!B89="","",'DF raw data'!B89) -> -4.08644e-06 | C89: =IF('DF raw data'!C89="","",'DF raw data'!C89) -> 0.000265282 | D89: =IF('DF raw data'!D89="","",'DF raw data'!D89) -> -1.67668e-05 | F89: 9.301949839e-06 | G89: 1.01176915e-05 | H89: -1.598336402e-06 | J89: 2.426952534e-05 | K89: 0.0001843776655 | L89: 0.0001245205395 | M89: 0.0007672556771 | N89: 7.282046395e-08
A90: =IF('DF raw data'!A90="","",'DF raw data'!A90) -> -288.5 | B90: =IF('DF raw data'!B90="","",'DF raw data'!B90) -> -1.0749e-05 | C90: =IF('DF raw data'!C90="","",'DF raw data'!C90) -> 0.000272729 | D90: =IF('DF raw data'!D90="","",'DF raw data'!D90) -> -1.69176e-05 | F90: 2.609408319e-06 | G90: 1.7598203e-05 | H90: -1.749815002e-06 | J90: 2.55742295e-05 | K90: 0.0001971647802 | L90: 0.000133319641 | M90: 0.0008339154976 | N90: 8.20345479e-08
A91: =IF('DF raw data'!A91="","",'DF raw data'!A91) -> -288 | B91: =IF('DF raw data'!B91="","",'DF raw data'!B91) -> -2.76008e-05 | C91: =IF('DF raw data'!C91="","",'DF raw data'!C91) -> 0.000267213 | D91: =IF('DF raw data'!D91="","",'DF raw data'!D91) -> -1.75467e-05 | F91: -1.431822478e-05 | G91: 1.2057381e-05 | H91: -2.381745952e-06 | J91: 1.841511711e-05 | K91: 0.0002063723388 | L91: 0.0001393483315 | M91: 0.0009035896634 | N91: 9.191308491e-08
A92: =IF('DF raw data'!A92="","",'DF raw data'!A92) -> -287.5 | B92: =IF('DF raw data'!B92="","",'DF raw data'!B92) -> -1.70327e-05 | C92: =IF('DF raw data'!C92="","",'DF raw data'!C92) -> 0.000269152 | D92: =IF('DF raw data'!D92="","",'DF raw data'!D92) -> -9.37791e-06 | F92: -3.702568331e-06 | G92: 1.40051065e-05 | H92: 5.823803603e-06 | J92: 1.656383294e-05 | K92: 0.0002146542552 | L92: 0.0001463508847 | M92: 0.0009767651057 | N92: 1.027595559e-07
A93: =IF('DF raw data'!A93="","",'DF raw data'!A93) -> -287 | B93: =IF('DF raw data'!B93="","",'DF raw data'!B93) -> -2.20371e-05 | C93: =IF('DF raw data'!C93="","",'DF raw data'!C93) -> 0.000256353 | D93: =IF('DF raw data'!D93="","",'DF raw data'!D93) -> -7.65224e-07 | F93: -8.729488131e-06 | G93: 1.148511e-06 | H93: 1.447524669e-05 | J93: 1.219908888e-05 | K93: 0.0002207537997 | L93: 0.0001469251402 | M93: 0.001050227676 | N93: 1.136274632e-07
A94: =IF('DF raw data'!A94="","",'DF raw data'!A94) -> -286.5 | B94: =IF('DF raw data'!B94="","",'DF raw data'!B94) -> -3.77482e-06 | C94: =IF('DF raw data'!C94="","",'DF raw data'!C94) -> 0.000253046 | D94: =IF('DF raw data'!D94="","",'DF raw data'!D94) -> -2.68156e-06 | F94: 9.614972129e-06 | G94: -2.1733705e-06 | H94: 1.255028718e-05 | J94: 1.700657494e-05 | K94: 0.0002292570871 | L94: 0.000145838455 | M94: 0.001123146903 | N94: 1.244065025e-07
A95: =IF('DF raw data'!A95="","",'DF raw data'!A95) -> -286 | B95: =IF('DF raw data'!B95="","",'DF raw data'!B95) -> -2.27294e-05 | C95: =IF('DF raw data'!C95="","",'DF raw data'!C95) -> 0.000259156 | D95: =IF('DF raw data'!D95="","",'DF raw data'!D95) -> -2.01509e-05 | F95: -9.424903481e-06 | G95: 3.9641245e-06 | H95: -4.997664852e-06 | J95: 1.22941232e-05 | K95: 0.0002354041487 | L95: 0.0001478205172 | M95: 0.001197057162 | N95: 1.354075279e-07
A96: =IF('DF raw data'!A96="","",'DF raw data'!A96) -> -285.5 | B96: =IF('DF raw data'!B96="","",'DF raw data'!B96) -> -6.64918e-06 | C96: =IF('DF raw data'!C96="","",'DF raw data'!C96) -> 0.000264804 | D96: =IF('DF raw data'!D96="","",'DF raw data'!D96) -> -1.61851e-05 | F96: 6.727677509e-06 | G96: 9.6375405e-06 | H96: -1.014018752e-06 | J96: 1.565796196e-05 | K96: 0.0002432331297 | L96: 0.0001526392875 | M96: 0.001273376806 | N96: 1.471794898e-07
A97: =IF('DF raw data'!A97="","",'DF raw data'!A97) -> -285 | B97: =IF('DF raw data'!B97="","",'DF raw data'!B97) -> -2.06227e-05 | C97: =IF('DF raw data'!C97="","",'DF raw data'!C97) -> 0.000258576 | D97: =IF('DF raw data'!D97="","",'DF raw data'!D97) -> -8.1778e-06 | F97: -7.308723331e-06 | G97: 3.3815145e-06 | H97: 7.029314098e-06 | J97: 1.200360029e-05 | K97: 0.0002492349299 | L97: 0.0001543300447 | M97: 0.001350541828 | N97: 1.591604144e-07
A98: =IF('DF raw data'!A98="","",'DF raw data'!A98) -> -284.5 | B98: =IF('DF raw data'!B98="","",'DF raw data'!B98) -> -3.11464e-06 | C98: =IF('DF raw data'!C98="","",'DF raw data'!C98) -> 0.000271052 | D98: =IF('DF raw data'!D98="","",'DF raw data'!D98) -> -3.2825e-05 | F98: 1.027812294e-05 | G98: 1.59136565e-05 | H98: -1.77287983e-05 | J98: 1.714266176e-05 | K98: 0.0002578062608 | L98: 0.000162286873 | M98: 0.001431685265 | N98: 1.724758644e-07
A99: =IF('DF raw data'!A99="","",'DF raw data'!A99) -> -284 | B99: =IF('DF raw data'!B99="","",'DF raw data'!B99) -> -1.47256e-05 | C99: =IF('DF raw data'!C99="","",'DF raw data'!C99) -> 0.000264248 | D99: =IF('DF raw data'!D99="","",'DF raw data'!D99) -> -1.18608e-05 | F99: -1.385086381e-06 | G99: 9.0790385e-06 | H99: 3.329740598e-06 | J99: 1.645011857e-05 | K99: 0.00026603132 | L99: 0.0001668263922 | M99: 0.001515098461 | N99: 1.865266902e-07
A100: =IF('DF raw data'!A100="","",'DF raw data'!A100) -> -283.5 | B100: =IF('DF raw data'!B100="","",'DF raw data'!B100) -> -6.84476e-06 | C100: =IF('DF raw data'!C100="","",'DF raw data'!C100) -> 0.000256908 | D100: =IF('DF raw data'!D100="","",'DF raw data'!D100) -> -1.12442e-05 | F100: 6.531217399e-06 | G100: 1.7060085e-06 | H100: 3.949115298e-06 | J100: 1.971572727e-05 | K100: 0.0002758891837 | L100: 0.0001676793965 | M100: 0.001598938159 | N100: 2.007792351e-07
A101: =IF('DF raw data'!A101="","",'DF raw data'!A101) -> -283 | B101: =IF('DF raw data'!B101="","",'DF raw data'!B101) -> -9.2089e-06 | C101: =IF('DF raw data'!C101="","",'DF raw data'!C101) -> 0.000256176 | D101: =IF('DF raw data'!D101="","",'DF raw data'!D101) -> -2.1777e-05 | F101: 4.156438769e-06 | G101: 9.707145e-07 | H101: -6.631082302e-06 | J101: 2.179394665e-05 | K101: 0.000286786157 | L101: 0.0001681647537 | M101: 0.001683020536 | N101: 2.151564154e-07
A102: =IF('DF raw data'!A102="","",'DF raw data'!A102) -> -282.5 | B102: =IF('DF raw data'!B102="","",'DF raw data'!B102) -> 1.10832e-06 | C102: =IF('DF raw data'!C102="","",'DF raw data'!C102) -> 0.000261307 | D102: =IF('DF raw data'!D102="","",'DF raw data'!D102) -> -2.4086e-05 | F102: 1.452008626e-05 | G102: 6.124804e-06 | H102: -8.950472802e-06 | J102: 2.905398978e-05 | K102: 0.0003013131519 | L102: 0.0001712271557 | M102: 0.001768634114 | N102: 2.30237852e-07
A103: =IF('DF raw data'!A103="","",'DF raw data'!A103) -> -282 | B103: =IF('DF raw data'!B103="","",'DF raw data'!B103) -> -1.65824e-05 | C103: =IF('DF raw data'!C103="","",'DF raw data'!C103) -> 0.000257925 | D103: =IF('DF raw data'!D103="","",'DF raw data'!D103) -> -1.37035e-05 | F103: -3.250241981e-06 | G103: 2.727585e-06 | H103: 1.478748448e-06 | J103: 2.742886879e-05 | K103: 0.0003150275863 | L103: 0.0001725909482 | M103: 0.001854929588 | N103: 2.455078411e-07
A104: =IF('DF raw data'!A104="","",'DF raw data'!A104) -> -281.5 | B104: =IF('DF raw data'!B104="","",'DF raw data'!B104) -> -5.62506e-06 | C104: =IF('DF raw data'!C104="","",'DF raw data'!C104) -> 0.00026288 | D104: =IF('DF raw data'!D104="","",'DF raw data'!D104) -> -1.48196e-05 | F104: 7.756406049e-06 | G104: 7.7048825e-06 | H104: 3.576259977e-07 | J104: 3.130707182e-05 | K104: 0.0003306811222 | L104: 0.0001764433895 | M104: 0.001943151283 | N104: 2.615640423e-07
A105: =IF('DF raw data'!A105="","",'DF raw data'!A105) -> -281 | B105: =IF('DF raw data'!B105="","",'DF raw data'!B105) -> -2.25376e-05 | C105: =IF('DF raw data'!C105="","",'DF raw data'!C105) -> 0.000256258 | D105: =IF('DF raw data'!D105="","",'DF raw data'!D105) -> -1.8908e-05 | F105: -9.232240381e-06 | G105: 1.0530835e-06 | H105: -3.749171802e-06 | J105: 2.669095163e-05 | K105: 0.000344026598 | L105: 0.0001769699312 | M105: 0.002031636248 | N105: 2.775794241e-07
A106: =IF('DF raw data'!A106="","",'DF raw data'!A106) -> -280.5 | B106: =IF('DF raw data'!B106="","",'DF raw data'!B106) -> -1.26112e-05 | C106: =IF('DF raw data'!C106="","",'DF raw data'!C106) -> 0.000255991 | D106: =IF('DF raw data'!D106="","",'DF raw data'!D106) -> -1.10523e-05 | F106: 7.38828419e-07 | G106: 7.84882e-07 | H106: 4.141878848e-06 | J106: 2.706036584e-05 | K106: 0.0003575567809 | L106: 0.0001773623722 | M106: 0.002120317434 | N106: 2.936742613e-07
A107: =IF('DF raw data'!A107="","",'DF raw data'!A107) -> -280 | B107: =IF('DF raw data'!B107="","",'DF raw data'!B107) -> -1.33816e-05 | C107: =IF('DF raw data'!C107="","",'DF raw data'!C107) -> 0.00026014 | D107: =IF('DF raw data'!D107="","",'DF raw data'!D107) -> -9.26573e-06 | F107: -3.5038381e-08 | G107: 4.9525525e-06 | H107: 5.936488413e-06 | J107: 2.704284665e-05 | K107: 0.0003710782042 | L107: 0.0001798386485 | M107: 0.002210236759 | N107: 3.102108888e-07
A108: =IF('DF raw data'!A108="","",'DF raw data'!A108) -> -279.5 | B108: =IF('DF raw data'!B108="","",'DF raw data'!B108) -> -5.81697e-06 | C108: =IF('DF raw data'!C108="","",'DF raw data'!C108) -> 0.000254995 | D108: =IF('DF raw data'!D108="","",'DF raw data'!D108) -> -1.54778e-05 | F108: 7.563632454e-06 | G108: -2.156e-07 | H108: -3.035359023e-07 | J108: 3.082466287e-05 | K108: 0.0003864905357 | L108: 0.0001797308485 | M108: 0.002300102183 | N108: 3.268375577e-07
A109: =IF('DF raw data'!A109="","",'DF raw data'!A109) -> -279 | B109: =IF('DF raw data'!B109="","",'DF raw data'!B109) -> -1.26744e-05 | C109: =IF('DF raw data'!C109="","",'DF raw data'!C109) -> 0.000263756 | D109: =IF('DF raw data'!D109="","",'DF raw data'!D109) -> -1.32488e-05 | F109: 6.75344019e-07 | G109: 8.5848245e-06 | H109: 1.935494598e-06 | J109: 3.116233488e-05 | K109: 0.0004020717031 | L109: 0.0001840232607 | M109: 0.002392113813 | N109: 3.442553835e-07
A110: =IF('DF raw data'!A110="","",'DF raw data'!A110) -> -278.5 | B110: =IF('DF raw data'!B110="","",'DF raw data'!B110) -> -7.60827e-06 | C110: =IF('DF raw data'!C110="","",'DF raw data'!C110) -> 0.000264405 | D110: =IF('DF raw data'!D110="","",'DF raw data'!D110) -> -1.94484e-05 | F110: 5.764271604e-06 | G110: 9.236745e-06 | H110: -4.292003602e-06 | J110: 3.404447068e-05 | K110: 0.0004190939385 | L110: 0.0001886416332 | M110: 0.00248643463 | N110: 3.626277294e-07
A111: =IF('DF raw data'!A111="","",'DF raw data'!A111) -> -278 | B111: =IF('DF raw data'!B111="","",'DF raw data'!B111) -> -1.64537e-05 | C111: =IF('DF raw data'!C111="","",'DF raw data'!C111) -> 0.000265211 | D111: =IF('DF raw data'!D111="","",'DF raw data'!D111) -> -1.46841e-05 | F111: -3.120962831e-06 | G111: 1.0046372e-05 | H111: 4.937357477e-07 | J111: 3.248398927e-05 | K111: 0.0004353359331 | L111: 0.0001936648192 | M111: 0.002583267039 | N111: 3.819083653e-07
A112: =IF('DF raw data'!A112="","",'DF raw data'!A112) -> -277.5 | B112: =IF('DF raw data'!B112="","",'DF raw data'!B112) -> -1.01681e-05 | C112: =IF('DF raw data'!C112="","",'DF raw data'!C112) -> 0.00026409 | D112: =IF('DF raw data'!D112="","",'DF raw data'!D112) -> -2.42158e-05 | F112: 3.192922369e-06 | G112: 8.9203275e-06 | H112: -9.080856902e-06 | J112: 3.408045045e-05 | K112: 0.0004523761583 | L112: 0.000198124983 | M112: 0.002682329531 | N112: 4.021158583e-07
A113: =IF('DF raw data'!A113="","",'DF raw data'!A113) -> -277 | B113: =IF('DF raw data'!B113="","",'DF raw data'!B113) -> -1.63946e-05 | C113: =IF('DF raw data'!C113="","",'DF raw data'!C113) -> 0.000254627 | D113: =IF('DF raw data'!D113="","",'DF raw data'!D113) -> -6.76224e-06 | F113: -3.061596881e-06 | G113: -5.85256e-07 | H113: 8.451244118e-06 | J113: 3.254965201e-05 | K113: 0.0004686509843 | L113: 0.000197832355 | M113: 0.002781245708 | N113: 4.222144185e-07
A114: =IF('DF raw data'!A114="","",'DF raw data'!A114) -> -276.5 | B114: =IF('DF raw data'!B114="","",'DF raw data'!B114) -> -3.69949e-06 | C114: =IF('DF raw data'!C114="","",'DF raw data'!C114) -> 0.000255884 | D114: =IF('DF raw data'!D114="","",'DF raw data'!D114) -> -2.03742e-05 | F114: 9.690641114e-06 | G114: 6.774005e-07 | H114: -5.221969702e-06 | J114: 3.739497257e-05 | K114: 0.0004873484706 | L114: 0.0001981710552 | M114: 0.002880331236 | N114: 4.425494941e-07
A115: =IF('DF raw data'!A115="","",'DF raw data'!A115) -> -276 | B115: =IF('DF raw data'!B115="","",'DF raw data'!B115) -> -1.22262e-05 | C115: =IF('DF raw data'!C115="","",'DF raw data'!C115) -> 0.000261491 | D115: =IF('DF raw data'!D115="","",'DF raw data'!D115) -> -1.25281e-05 | F115: 1.125560919e-06 | G115: 6.309632e-06 | H115: 2.659437748e-06 | J115: 3.795775303e-05 | K115: 0.0005063273471 | L115: 0.0002013258712 | M115: 0.002980994172 | N115: 4.635359428e-07
A116: =IF('DF raw data'!A116="","",'DF raw data'!A116) -> -275.5 | B116: =IF('DF raw data'!B116="","",'DF raw data'!B116) -> -8.12318e-06 | C116: =IF('DF raw data'!C116="","",'DF raw data'!C116) -> 0.000258598 | D116: =IF('DF raw data'!D116="","",'DF raw data'!D116) -> -1.58578e-05 | F116: 5.247044509e-06 | G116: 3.4036135e-06 | H116: -6.852459023e-07 | J116: 4.058127528e-05 | K116: 0.0005266179848 | L116: 0.000203027678 | M116: 0.003082508011 | N116: 4.849694818e-07
A117: =IF('DF raw data'!A117="","",'DF raw data'!A117) -> -275 | B117: =IF('DF raw data'!B117="","",'DF raw data'!B117) -> -2.15168e-05 | C117: =IF('DF raw data'!C117="","",'DF raw data'!C117) -> 0.000257775 | D117: =IF('DF raw data'!D117="","",'DF raw data'!D117) -> -1.20496e-05 | F117: -8.206846781e-06 | G117: 2.57691e-06 | H117: 3.140090998e-06 | J117: 3.647785189e-05 | K117: 0.0005448569107 | L117: 0.000204316133 | M117: 0.003184666077 | N117: 5.065073397e-07
A118: =IF('DF raw data'!A118="","",'DF raw data'!A118) -> -274.5 | B118: =IF('DF raw data'!B118="","",'DF raw data'!B118) -> -2.03758e-06 | C118: =IF('DF raw data'!C118="","",'DF raw data'!C118) -> 0.000255729 | D118: =IF('DF raw data'!D118="","",'DF raw data'!D118) -> -1.40891e-05 | F118: 1.136002971e-05 | G118: 5.21703e-07 | H118: 1.091413248e-06 | J118: 4.215786675e-05 | K118: 0.0005659358441 | L118: 0.0002045769845 | M118: 0.003286954569 | N118: 5.283218539e-07
A119: =IF('DF raw data'!A119="","",'DF raw data'!A119) -> -274 | B119: =IF('DF raw data'!B119="","",'DF raw data'!B119) -> -2.15872e-05 | C119: =IF('DF raw data'!C119="","",'DF raw data'!C119) -> 0.000252076 | D119: =IF('DF raw data'!D119="","",'DF raw data'!D119) -> -2.35521e-06 | F119: -8.277563581e-06 | G119: -3.1477355e-06 | H119: 1.287810575e-05 | J119: 3.801908496e-05 | K119: 0.0005849453866 | L119: 0.0002030031167 | M119: 0.003388456128 | N119: 5.49649712e-07
A120: =IF('DF raw data'!A120="","",'DF raw data'!A120) -> -273.5 | B120: =IF('DF raw data'!B120="","",'DF raw data'!B120) -> -1.2609e-05 | C120: =IF('DF raw data'!C120="","",'DF raw data'!C120) -> 0.000256825 | D120: =IF('DF raw data'!D120="","",'DF raw data'!D120) -> -1.46128e-05 | F120: 7.41038319e-07 | G120: 1.622635e-06 | H120: 5.653565977e-07 | J120: 3.838960412e-05 | K120: 0.0006041401886 | L120: 0.0002038144342 | M120: 0.003490363345 | N120: 5.711567547e-07
A121: =IF('DF raw data'!A121="","",'DF raw data'!A121) -> -273 | B121: =IF('DF raw data'!B121="","",'DF raw data'!B121) -> -1.13903e-05 | C121: =IF('DF raw data'!C121="","",'DF raw data'!C121) -> 0.000258454 | D121: =IF('DF raw data'!D121="","",'DF raw data'!D121) -> -1.68715e-05 | F121: 1.965222469e-06 | G121: 3.2589655e-06 | H121: -1.703507552e-06 | J121: 3.937221535e-05 | K121: 0.0006238262963 | L121: 0.000205443917 | M121: 0.003593085303 | N121: 5.930354419e-07
A122: =IF('DF raw data'!A122="","",'DF raw data'!A122) -> -272.5 | B122: =IF('DF raw data'!B122="","",'DF raw data'!B122) -> -1.61896e-05 | C122: =IF('DF raw data'!C122="","",'DF raw data'!C122) -> 0.000248061 | D122: =IF('DF raw data'!D122="","",'DF raw data'!D122) -> -2.6099e-05 | F122: -2.855674381e-06 | G122: -7.180803e-06 | H122: -1.09725313e-05 | J122: 3.794437816e-05 | K122: 0.0006427984854 | L122: 0.0002018535155 | M122: 0.003694012061 | N122: 6.141277506e-07
A123: =IF('DF raw data'!A123="","",'DF raw data'!A123) -> -272 | B123: =IF('DF raw data'!B123="","",'DF raw data'!B123) -> -3.12894e-06 | C123: =IF('DF raw data'!C123="","",'DF raw data'!C123) -> 0.000251365 | D123: =IF('DF raw data'!D123="","",'DF raw data'!D123) -> -1.09188e-05 | F123: 1.026375859e-05 | G123: -3.861935e-06 | H123: 4.275979598e-06 | J123: 4.307625746e-05 | K123: 0.0006643366141 | L123: 0.000199922548 | M123: 0.003793973335 | N123: 6.350400452e-07
A124: =IF('DF raw data'!A124="","",'DF raw data'!A124) -> -271.5 | B124: =IF('DF raw data'!B124="","",'DF raw data'!B124) -> -1.0048e-05 | C124: =IF('DF raw data'!C124="","",'DF raw data'!C124) -> 0.000256129 | D124: =IF('DF raw data'!D124="","",'DF raw data'!D124) -> -1.21441e-05 | F124: 3.313562819e-06 | G124: 9.23503e-07 | H124: 3.045165748e-06 | J124: 4.473303886e-05 | K124: 0.0006867031335 | L124: 0.0002003842995 | M124: 0.003894165485 | N124: 6.561175013e-07
A125: =IF('DF raw data'!A125="","",'DF raw data'!A125) -> -271 | B125: =IF('DF raw data'!B125="","",'DF raw data'!B125) -> -1.53662e-05 | C125: =IF('DF raw data'!C125="","",'DF raw data'!C125) -> 0.000255344 | D125: =IF('DF raw data'!D125="","",'DF raw data'!D125) -> -1.14305e-05 | F125: -2.028569081e-06 | G125: 1.349705e-07 | H125: 3.761976948e-06 | J125: 4.371875432e-05 | K125: 0.0007085625107 | L125: 0.0002004517847 | M125: 0.003994391377 | N125: 6.771636251e-07
A126: =IF('DF raw data'!A126="","",'DF raw data'!A126) -> -270.5 | B126: =IF('DF raw data'!B126="","",'DF raw data'!B126) -> -1.93949e-05 | C126: =IF('DF raw data'!C126="","",'DF raw data'!C126) -> 0.000256738 | D126: =IF('DF raw data'!D126="","",'DF raw data'!D126) -> -2.33798e-05 | F126: -6.075398231e-06 | G126: 1.5352435e-06 | H126: -8.241094902e-06 | J126: 4.068105521e-05 | K126: 0.0007289030383 | L126: 0.0002012194065 | M126: 0.004095001081 | N126: 6.98235724e-07
A127: =IF('DF raw data'!A127="","",'DF raw data'!A127) -> -270 | B127: =IF('DF raw data'!B127="","",'DF raw data'!B127) -> -7.6749e-06 | C127: =IF('DF raw data'!C127="","",'DF raw data'!C127) -> 0.000255612 | D127: =IF('DF raw data'!D127="","",'DF raw data'!D127) -> -1.59416e-05 | F127: 5.697341769e-06 | G127: 4.041765e-07 | H127: -7.694230023e-07 | J127: 4.352972609e-05 | K127: 0.0007506679014 | L127: 0.0002014214947 | M127: 0.004195711828 | N127: 7.194684518e-07
A128: =IF('DF raw data'!A128="","",'DF raw data'!A128) -> -269.5 | B128: =IF('DF raw data'!B128="","",'DF raw data'!B128) -> -2.27293e-05 | C128: =IF('DF raw data'!C128="","",'DF raw data'!C128) -> 0.000260576 | D128: =IF('DF raw data'!D128="","",'DF raw data'!D128) -> -1.92859e-05 | F128: -9.424803031e-06 | G128: 5.3905145e-06 | H128: -4.128772352e-06 | J128: =F128*$G$3+J127 -> 3.881732458e-05 | K128: =J128*$G$3+K127 -> 0.0007700765636 | L128: =G128*$G$3+L127 -> 0.000204116752 | M128: =L128*$G$3+M127 -> 0.004297770204 | N128: =(J128^2+L128^2)*$G$3+N127 -> 7.410536684e-07
A129: =IF('DF raw data'!A129="","",'DF raw data'!A129) -> -269 | B129: =IF('DF raw data'!B129="","",'DF raw data'!B129) -> -8.896e-06 | C129: =IF('DF raw data'!C129="","",'DF raw data'!C129) -> 0.000261102 | D129: =IF('DF raw data'!D129="","",'DF raw data'!D129) -> -9.87403e-06 | F129: 4.470746819e-06 | G129: 5.9188815e-06 | H129: 5.325451063e-06 | J129: 4.105269799e-05 | K129: 0.0007906029126 | L129: 0.0002070761927 | M129: 0.0044013083 | N129: 7.633366052e-07
A130: =IF('DF raw data'!A130="","",'DF raw data'!A130) -> -268.5 | B130: =IF('DF raw data'!B130="","",'DF raw data'!B130) -> -4.21015e-06 | C130: =IF('DF raw data'!C130="","",'DF raw data'!C130) -> 0.000250601 | D130: =IF('DF raw data'!D130="","",'DF raw data'!D130) -> -2.337e-05 | F130: 9.177683144e-06 | G130: -4.629373e-06 | H130: -8.231250802e-06 | J130: 4.564153956e-05 | K130: 0.0008134236824 | L130: 0.0002047615062 | M130: 0.004503689053 | N130: 7.853418174e-07
A131: =IF('DF raw data'!A131="","",'DF raw data'!A131) -> -268 | B131: =IF('DF raw data'!B131="","",'DF raw data'!B131) -> -1.69087e-05 | C131: =IF('DF raw data'!C131="","",'DF raw data'!C131) -> 0.000256634 | D131: =IF('DF raw data'!D131="","",'DF raw data'!D131) -> -3.96631e-06 | F131: =(1-$G$1*($B$54-$G$2))*(B131-F$5) -> -3.578010331e-06 | G131: =(1-$G$1*($B$54-$G$2))*(C131-G$5) -> 1.4307755e-06 | H131: =(1-$G$1*($B$54-$G$2))*(D131-H$5) -> 1.12597558e-05 | J131: 4.385253439e-05 | K131: 0.0008353499496 | L131: 0.000205476894 | M131: 0.0046064275 | N131: 8.074137168e-07
A132: =IF('DF raw data'!A132="","",'DF raw data'!A132) -> -267.5 | B132: =IF('DF raw data'!B132="","",'DF raw data'!B132) -> -1.63934e-05 | C132: =IF('DF raw data'!C132="","",'DF raw data'!C132) -> 0.000260452 | D132: =IF('DF raw data'!D132="","",'DF raw data'!D132) -> -8.26027e-06 | F132: -3.060391481e-06 | G132: 5.2659565e-06 | H132: 6.946472983e-06 | J132: 4.232233865e-05 | K132: 0.0008565111189 | L132: 0.0002081098722 | M132: 0.004710482437 | N132: 8.299641665e-07
A133: =IF('DF raw data'!A133="","",'DF raw data'!A133) -> -267 | B133: =IF('DF raw data'!B133="","",'DF raw data'!B133) -> -1.0944e-05 | C133: =IF('DF raw data'!C133="","",'DF raw data'!C133) -> 0.00025723 | D133: =IF('DF raw data'!D133="","",'DF raw data'!D133) -> -1.36207e-05 | F133: 2.413530819e-06 | G133: 2.0294575e-06 | H133: 1.561921048e-06 | J133: 4.352910406e-05 | K133: 0.000878275671 | L133: 0.000209124601 | M133: 0.004815044737 | N133: 8.527781073e-07
A134: =IF('DF raw data'!A134="","",'DF raw data'!A134) -> -266.5 | B134: =IF('DF raw data'!B134="","",'DF raw data'!B134) -> -5.04674e-06 | C134: =IF('DF raw data'!C134="","",'DF raw data'!C134) -> 0.000255192 | D134: =IF('DF raw data'!D134="","",'DF raw data'!D134) -> -1.7847e-05 | F134: 8.337328489e-06 | G134: -1.77135e-08 | H134: -2.683397302e-06 | J134: 4.769776831e-05 | K134: 0.0009021245551 | L134: 0.0002091157442 | M134: 0.004919602609 | N134: 8.757803431e-07
A135: =IF('DF raw data'!A135="","",'DF raw data'!A135) -> -266 | B135: =IF('DF raw data'!B135="","",'DF raw data'!B135) -> 2.43884e-06 | C135: =IF('DF raw data'!C135="","",'DF raw data'!C135) -> 0.000248649 | D135: =IF('DF raw data'!D135="","",'DF raw data'!D135) -> -1.26293e-06 | F135: 1.58565936e-05 | G135: -6.590157e-06 | H135: 1.397530101e-05 | J135: 5.562606511e-05 | K135: 0.0009299375877 | L135: 0.0002058206657 | M135: 0.005022512942 | N135: 8.985085459e-07
A136: =IF('DF raw data'!A136="","",'DF raw data'!A136) -> -265.5 | B136: =IF('DF raw data'!B136="","",'DF raw data'!B136) -> -1.78622e-05 | C136: =IF('DF raw data'!C136="","",'DF raw data'!C136) -> 0.000251813 | D136: =IF('DF raw data'!D136="","",'DF raw data'!D136) -> -1.58101e-05 | F136: -4.535801081e-06 | G136: -3.411919e-06 | H136: -6.373312523e-07 | J136: 5.335816457e-05 | K136: 0.00095661667 | L136: 0.0002041147062 | M136: 0.005124570295 | N136: 9.207634994e-07
A137: =IF('DF raw data'!A137="","",'DF raw data'!A137) -> -265 | B137: =IF('DF raw data'!B137="","",'DF raw data'!B137) -> -1.184e-05 | C137: =IF('DF raw data'!C137="","",'DF raw data'!C137) -> 0.000256012 | D137: =IF('DF raw data'!D137="","",'DF raw data'!D137) -> -1.51314e-05 | F137: 1.513498819e-06 | G137: 8.059765e-07 | H137: 4.442289775e-08 | J137: 5.411491398e-05 | K137: 0.000983674127 | L137: 0.0002045176945 | M137: 0.005226829142 | N137: 9.43141455e-07
A138: =IF('DF raw data'!A138="","",'DF raw data'!A138) -> -264.5 | B138: =IF('DF raw data'!B138="","",'DF raw data'!B138) -> -9.15265e-06 | C138: =IF('DF raw data'!C138="","",'DF raw data'!C138) -> 0.000266088 | D138: =IF('DF raw data'!D138="","",'DF raw data'!D138) -> -9.27734e-06 | F138: 4.212941894e-06 | G138: 1.09273185e-05 | H138: 5.924826168e-06 | J138: 5.622138492e-05 | K138: 0.001011784819 | L138: 0.0002099813537 | M138: 0.005331819819 | N138: 9.667679615e-07
A139: =IF('DF raw data'!A139="","",'DF raw data'!A139) -> -264 | B139: =IF('DF raw data'!B139="","",'DF raw data'!B139) -> -2.63248e-05 | C139: =IF('DF raw data'!C139="","",'DF raw data'!C139) -> 0.000259929 | D139: =IF('DF raw data'!D139="","",'DF raw data'!D139) -> -7.88234e-06 | F139: -1.303648278e-05 | G139: 4.740603e-06 | H139: 7.326103668e-06 | J139: 4.970314353e-05 | K139: 0.001036636391 | L139: 0.0002123516552 | M139: 0.005437995647 | N139: 9.905497755e-07
A140: =IF('DF raw data'!A140="","",'DF raw data'!A140) -> -263.5 | B140: =IF('DF raw data'!B140="","",'DF raw data'!B140) -> -1.97368e-06 | C140: =IF('DF raw data'!C140="","",'DF raw data'!C140) -> 0.000262949 | D140: =IF('DF raw data'!D140="","",'DF raw data'!D140) -> -1.40592e-05 | F140: 1.142421726e-05 | G140: 7.774193e-06 | H140: 1.121447798e-06 | J140: 5.541525216e-05 | K140: 0.001064344017 | L140: 0.0002162387517 | M140: 0.005546115023 | N140: 1.015464799e-06
A141: =IF('DF raw data'!A141="","",'DF raw data'!A141) -> -263 | B141: =IF('DF raw data'!B141="","",'DF raw data'!B141) -> -1.79924e-05 | C141: =IF('DF raw data'!C141="","",'DF raw data'!C141) -> 0.000257473 | D141: =IF('DF raw data'!D141="","",'DF raw data'!D141) -> -1.26728e-05 | F141: -4.666586981e-06 | G141: 2.273551e-06 | H141: 2.514086598e-06 | J141: 5.308195867e-05 | K141: 0.001090884997 | L141: 0.0002173755272 | M141: 0.005654802786 | N141: 1.040499707e-06
A142: =IF('DF raw data'!A142="","",'DF raw data'!A142) -> -262.5 | B142: =IF('DF raw data'!B142="","",'DF raw data'!B142) -> -1.38298e-05 | C142: =IF('DF raw data'!C142="","",'DF raw data'!C142) -> 0.00025843 | D142: =IF('DF raw data'!D142="","",'DF raw data'!D142) -> -9.54614e-06 | F142: -4.85255281e-07 | G142: 3.2348575e-06 | H142: 5.654816568e-06 | J142: 5.283933103e-05 | K142: 0.001117304662 | L142: 0.000218992956 | M142: 0.005764299264 | N142: 1.065874661e-06
A143: =IF('DF raw data'!A143="","",'DF raw data'!A143) -> -262 | B143: =IF('DF raw data'!B143="","",'DF raw data'!B143) -> -1.99808e-05 | C143: =IF('DF raw data'!C143="","",'DF raw data'!C143) -> 0.000261941 | D143: =IF('DF raw data'!D143="","",'DF raw data'!D143) -> -9.30687e-06 | F143: -6.663934781e-06 | G143: 6.761657e-06 | H143: 5.895163283e-06 | J143: 4.950736364e-05 | K143: 0.001142058344 | L143: 0.0002223737845 | M143: 0.005875486157 | N143: 1.091825201e-06
A144: =IF('DF raw data'!A144="","",'DF raw data'!A144) -> -261.5 | B144: =IF('DF raw data'!B144="","",'DF raw data'!B144) -> -6.51687e-06 | C144: =IF('DF raw data'!C144="","",'DF raw data'!C144) -> 0.000258336 | D144: =IF('DF raw data'!D144="","",'DF raw data'!D144) -> -2.29533e-05 | F144: 6.860582904e-06 | G144: 3.1404345e-06 | H144: -7.812675652e-06 | J144: 5.293765509e-05 | K144: 0.001168527171 | L144: 0.0002239440017 | M144: 0.005987458158 | N144: 1.118301857e-06
A145: =IF('DF raw data'!A145="","",'DF raw data'!A145) -> -261 | B145: =IF('DF raw data'!B145="","",'DF raw data'!B145) -> -1.68966e-05 | C145: =IF('DF raw data'!C145="","",'DF raw data'!C145) -> 0.000253653 | D145: =IF('DF raw data'!D145="","",'DF raw data'!D145) -> -2.27651e-05 | F145: -3.565855881e-06 | G145: -1.563639e-06 | H145: -7.623628752e-06 | J145: 5.115472715e-05 | K145: 0.001194104535 | L145: 0.0002231621822 | M145: 0.006099039249 | N145: 1.144510939e-06
A146: =IF('DF raw data'!A146="","",'DF raw data'!A146) -> -260.5 | B146: =IF('DF raw data'!B146="","",'DF raw data'!B146) -> -1.8501e-05 | C146: =IF('DF raw data'!C146="","",'DF raw data'!C146) -> 0.000251042 | D146: =IF('DF raw data'!D146="","",'DF raw data'!D146) -> -1.87615e-05 | F146: -5.177475681e-06 | G146: -4.1863885e-06 | H146: -3.602012552e-06 | J146: 4.856598931e-05 | K146: 0.00121838753 | L146: 0.000221068988 | M146: 0.006209573743 | N146: 1.170126016e-06
A147: =IF('DF raw data'!A147="","",'DF raw data'!A147) -> -260 | B147: =IF('DF raw data'!B147="","",'DF raw data'!B147) -> -4.66359e-06 | C147: =IF('DF raw data'!C147="","",'DF raw data'!C147) -> 0.000250056 | D147: =IF('DF raw data'!D147="","",'DF raw data'!D147) -> -1.59326e-05 | F147: 8.722202664e-06 | G147: -5.1768255e-06 | H147: -7.603825023e-07 | J147: 5.292709064e-05 | K147: 0.001244851075 | L147: 0.0002184805752 | M147: 0.00631881403 | N147: 1.195393535e-06
A148: =IF('DF raw data'!A148="","",'DF raw data'!A148) -> -259.5 | B148: =IF('DF raw data'!B148="","",'DF raw data'!B148) -> -1.44623e-05 | C148: =IF('DF raw data'!C148="","",'DF raw data'!C148) -> 0.000250233 | D148: =IF('DF raw data'!D148="","",'DF raw data'!D148) -> -2.2289e-05 | F148: -1.120601531e-06 | G148: -4.999029e-06 | H148: -7.145386302e-06 | J148: 5.236678988e-05 | K148: 0.00127103447 | L148: 0.0002159810607 | M148: 0.006426804561 | N148: 1.220088585e-06
A149: =IF('DF raw data'!A149="","",'DF raw data'!A149) -> -259 | B149: =IF('DF raw data'!B149="","",'DF raw data'!B149) -> -1.90747e-05 | C149: =IF('DF raw data'!C149="","",'DF raw data'!C149) -> 0.000254935 | D149: =IF('DF raw data'!D149="","",'DF raw data'!D149) -> -2.33948e-05 | F149: -5.753757331e-06 | G149: -2.7587e-07 | H149: -8.256162402e-06 | J149: 4.948991121e-05 | K149: 0.001295779426 | L149: 0.0002158431257 | M149: 0.006534726124 | N149: 1.244607338e-06
A150: =IF('DF raw data'!A150="","",'DF raw data'!A150) -> -258.5 | B150: =IF('DF raw data'!B150="","",'DF raw data'!B150) -> -2.28571e-05 | C150: =IF('DF raw data'!C150="","",'DF raw data'!C150) -> 0.000253112 | D150: =IF('DF raw data'!D150="","",'DF raw data'!D150) -> -1.99171e-05 | F150: -9.553178131e-06 | G150: -2.1070735e-06 | H150: -4.762812752e-06 | J150: 4.471332215e-05 | K150: 0.001318136087 | L150: 0.000214789589 | M150: 0.006642120918 | N150: 1.268674262e-06
A151: =IF('DF raw data'!A151="","",'DF raw data'!A151) -> -258 | B151: =IF('DF raw data'!B151="","",'DF raw data'!B151) -> -1.84993e-05 | C151: =IF('DF raw data'!C151="","",'DF raw data'!C151) -> 0.000260758 | D151: =IF('DF raw data'!D151="","",'DF raw data'!D151) -> -2.13935e-05 | F151: -5.175768031e-06 | G151: 5.5733335e-06 | H151: -6.245856552e-06 | J151: 4.212543813e-05 | K151: 0.001339198806 | L151: 0.0002175762557 | M151: 0.006750909046 | N151: 1.293231252e-06
A152: =IF('DF raw data'!A152="","",'DF raw data'!A152) -> -257.5 | B152: =IF('DF raw data'!B152="","",'DF raw data'!B152) -> -1.50406e-05 | C152: =IF('DF raw data'!C152="","",'DF raw data'!C152) -> 0.000264102 | D152: =IF('DF raw data'!D152="","",'DF raw data'!D152) -> -1.94274e-05 | F152: -1.701503881e-06 | G152: 8.9323815e-06 | H152: -4.270909102e-06 | J152: 4.127468619e-05 | K152: 0.001359836149 | L152: 0.0002220424465 | M152: 0.006861930269 | N152: 1.318734476e-06
A153: =IF('DF raw data'!A153="","",'DF raw data'!A153) -> -257 | B153: =IF('DF raw data'!B153="","",'DF raw data'!B153) -> -5.24068e-06 | C153: =IF('DF raw data'!C153="","",'DF raw data'!C153) -> 0.000265036 | D153: =IF('DF raw data'!D153="","",'DF raw data'!D153) -> -1.49913e-05 | F153: 8.142515759e-06 | G153: 9.8705845e-06 | H153: 1.851533477e-07 | J153: 4.534594407e-05 | K153: 0.001382509121 | L153: 0.0002269777387 | M153: 0.006975419139 | N153: 1.34552205e-06
A154: =IF('DF raw data'!A154="","",'DF raw data'!A154) -> -256.5 | B154: =IF('DF raw data'!B154="","",'DF raw data'!B154) -> -1.05561e-05 | C154: =IF('DF raw data'!C154="","",'DF raw data'!C154) -> 0.000261759 | D154: =IF('DF raw data'!D154="","",'DF raw data'!D154) -> -1.89854e-05 | F154: 2.803176369e-06 | G154: 6.578838e-06 | H154: -3.826920102e-06 | J154: 4.674753225e-05 | K154: 0.001405882887 | L154: 0.0002302671577 | M154: 0.007090552717 | N154: 1.373126198e-06
A155: =IF('DF raw data'!A155="","",'DF raw data'!A155) -> -256 | B155: =IF('DF raw data'!B155="","",'DF raw data'!B155) -> -3.08697e-05 | C155: =IF('DF raw data'!C155="","",'DF raw data'!C155) -> 0.000255766 | D155: =IF('DF raw data'!D155="","",'DF raw data'!D155) -> -1.43239e-05 | F155: -1.760183483e-05 | G155: 5.588695e-07 | H155: 8.555566477e-07 | J155: 3.794661484e-05 | K155: 0.001424856194 | L155: 0.0002305465925 | M155: 0.007205826014 | N155: 1.400422037e-06
A156: =IF('DF raw data'!A156="","",'DF raw data'!A156) -> -255.5 | B156: =IF('DF raw data'!B156="","",'DF raw data'!B156) -> -2.29986e-06 | C156: =IF('DF raw data'!C156="","",'DF raw data'!C156) -> 0.000249534 | D156: =IF('DF raw data'!D156="","",'DF raw data'!D156) -> -5.26103e-06 | F156: 1.109656945e-05 | G156: -5.7011745e-06 | H156: 9.959209563e-06 | J156: 4.349489956e-05 | K156: 0.001446603644 | L156: 0.0002276960052 | M156: 0.007319674016 | N156: 1.427290675e-06
A157: =IF('DF raw data'!A157="","",'DF raw data'!A157) -> -255 | B157: =IF('DF raw data'!B157="","",'DF raw data'!B157) -> -1.76701e-05 | C157: =IF('DF raw data'!C157="","",'DF raw data'!C157) -> 0.000242347 | D157: =IF('DF raw data'!D157="","",'DF raw data'!D157) -> -1.59252e-05 | F157: -4.342836631e-06 | G157: -1.2920516e-05 | H157: -7.529492023e-07 | J157: 4.132348125e-05 | K157: 0.001467265385 | L157: 0.0002212357472 | M157: 0.00743029189 | N157: 1.452617118e-06
A158: =IF('DF raw data'!A158="","",'DF raw data'!A158) -> -254.5 | B158: =IF('DF raw data'!B158="","",'DF raw data'!B158) -> -1.30605e-05 | C158: =IF('DF raw data'!C158="","",'DF raw data'!C158) -> 0.000247017 | D158: =IF('DF raw data'!D158="","",'DF raw data'!D158) -> -1.04487e-05 | F158: 2.87506569e-07 | G158: -8.229501e-06 | H158: 4.748195048e-06 | J158: 4.146723453e-05 | K158: 0.001487999002 | L158: 0.0002171209967 | M158: 0.007538852388 | N158: 1.477047647e-06
A159: =IF('DF raw data'!A159="","",'DF raw data'!A159) -> -254 | B159: =IF('DF raw data'!B159="","",'DF raw data'!B159) -> -1.62542e-05 | C159: =IF('DF raw data'!C159="","",'DF raw data'!C159) -> 0.000248413 | D159: =IF('DF raw data'!D159="","",'DF raw data'!D159) -> -2.53586e-05 | F159: -2.920565081e-06 | G159: -6.827219e-06 | H159: -1.02287995e-05 | J159: 4.000695199e-05 | K159: 0.001508002478 | L159: 0.0002137073872 | M159: 0.007645706082 | N159: 1.500683349e-06
A160: =IF('DF raw data'!A160="","",'DF raw data'!A160) -> -253.5 | B160: =IF('DF raw data'!B160="","",'DF raw data'!B160) -> -1.77956e-05 | C160: =IF('DF raw data'!C160="","",'DF raw data'!C160) -> 0.000246432 | D160: =IF('DF raw data'!D160="","",'DF raw data'!D160) -> -1.99811e-05 | F160: -4.468901381e-06 | G160: -8.8171335e-06 | H160: -4.827100752e-06 | J160: 3.77725013e-05 | K160: 0.001526888729 | L160: 0.0002092988205 | M160: 0.007750355492 | N160: 1.523299728e-06
A161: =IF('DF raw data'!A161="","",'DF raw data'!A161) -> -253 | B161: =IF('DF raw data'!B161="","",'DF raw data'!B161) -> -9.46537e-06 | C161: =IF('DF raw data'!C161="","",'DF raw data'!C161) -> 0.000248687 | D161: =IF('DF raw data'!D161="","",'DF raw data'!D161) -> -2.12722e-05 | F161: 3.898814654e-06 | G161: -6.551986e-06 | H161: -6.124010702e-06 | J161: 3.972190863e-05 | K161: 0.001546749683 | L161: 0.0002060228275 | M161: 0.007853366906 | N161: 1.545311346e-06
A162: =IF('DF raw data'!A162="","",'DF raw data'!A162) -> -252.5 | B162: =IF('DF raw data'!B162="","",'DF raw data'!B162) -> -2.83061e-05 | C162: =IF('DF raw data'!C162="","",'DF raw data'!C162) -> 0.000243906 | D162: =IF('DF raw data'!D162="","",'DF raw data'!D162) -> -1.57282e-05 | F162: -1.502669863e-05 | G162: -1.13545005e-05 | H162: -5.550627023e-07 | J162: 3.220855931e-05 | K162: 0.001562853963 | L162: 0.0002003455772 | M162: 0.007953539695 | N162: 1.565899217e-06
A163: =IF('DF raw data'!A163="","",'DF raw data'!A163) -> -252 | B163: =IF('DF raw data'!B163="","",'DF raw data'!B163) -> -1.22857e-05 | C163: =IF('DF raw data'!C163="","",'DF raw data'!C163) -> 0.00025005 | D163: =IF('DF raw data'!D163="","",'DF raw data'!D163) -> -1.92696e-05 | F163: 1.065793169e-06 | G163: -5.1828525e-06 | H163: -4.112399002e-06 | J163: 3.27414559e-05 | K163: 0.001579224691 | L163: 0.000197754151 | M163: 0.00805241677 | N163: 1.58598857e-06
A164: =IF('DF raw data'!A164="","",'DF raw data'!A164) -> -251.5 | B164: =IF('DF raw data'!B164="","",'DF raw data'!B164) -> -2.27287e-05 | C164: =IF('DF raw data'!C164="","",'DF raw data'!C164) -> 0.000253506 | D164: =IF('DF raw data'!D164="","",'DF raw data'!D164) -> -2.03807e-05 | F164: -9.424200331e-06 | G164: -1.7113005e-06 | H164: -5.228498952e-06 | J164: 2.802935573e-05 | K164: 0.001593239368 | L164: 0.0001968985007 | M164: 0.00815086602 | N164: 1.605765903e-06
A165: =IF('DF raw data'!A165="","",'DF raw data'!A165) -> -251 | B165: =IF('DF raw data'!B165="","",'DF raw data'!B165) -> -1.34476e-05 | C165: =IF('DF raw data'!C165="","",'DF raw data'!C165) -> 0.000247752 | D165: =IF('DF raw data'!D165="","",'DF raw data'!D165) -> -6.23655e-06 | F165: -1.01335381e-07 | G165: -7.4911935e-06 | H165: 8.979299723e-06 | J165: 2.797868804e-05 | K165: 0.001607228713 | L165: 0.000193152904 | M165: 0.008247442472 | N165: 1.624811328e-06
A166: =IF('DF raw data'!A166="","",'DF raw data'!A166) -> -250.5 | B166: =IF('DF raw data'!B166="","",'DF raw data'!B166) -> -2.68345e-05 | C166: =IF('DF raw data'!C166="","",'DF raw data'!C166) -> 0.000244797 | D166: =IF('DF raw data'!D166="","",'DF raw data'!D166) -> -1.24768e-05 | F166: -1.354847643e-05 | G166: -1.0459491e-05 | H166: 2.710968598e-06 | J166: 2.120444983e-05 | K166: 0.001617830937 | L166: 0.0001879231585 | M166: 0.008341404052 | N166: 1.642693699e-06
A167: =IF('DF raw data'!A167="","",'DF raw data'!A167) -> -250 | B167: =IF('DF raw data'!B167="","",'DF raw data'!B167) -> -1.62551e-05 | C167: =IF('DF raw data'!C167="","",'DF raw data'!C167) -> 0.000251136 | D167: =IF('DF raw data'!D167="","",'DF raw data'!D167) -> -2.39101e-05 | F167: -2.921469131e-06 | G167: -4.0919655e-06 | H167: -8.773781252e-06 | J167: 1.974371526e-05 | K167: 0.001627702795 | L167: 0.0001858771757 | M167: 0.00843434264 | N167: 1.660163769e-06
A168: =IF('DF raw data'!A168="","",'DF raw data'!A168) -> -249.5 | B168: =IF('DF raw data'!B168="","",'DF raw data'!B168) -> -1.26768e-05 | C168: =IF('DF raw data'!C168="","",'DF raw data'!C168) -> 0.000258798 | D168: =IF('DF raw data'!D168="","",'DF raw data'!D168) -> -9.2868e-06 | F168: 6.72933219e-07 | G168: 3.6045135e-06 | H168: 5.915323598e-06 | J168: 2.008018187e-05 | K168: 0.001637742886 | L168: 0.0001876794325 | M168: 0.008528182356 | N168: 1.67797716e-06
A169: =IF('DF raw data'!A169="","",'DF raw data'!A169) -> -249 | B169: =IF('DF raw data'!B169="","",'DF raw data'!B169) -> -1.49771e-05 | C169: =IF('DF raw data'!C169="","",'DF raw data'!C169) -> 0.000258779 | D169: =IF('DF raw data'!D169="","",'DF raw data'!D169) -> -1.8841e-05 | F169: -1.637718131e-06 | G169: 3.585428e-06 | H169: -3.681870302e-06 | J169: 1.92613228e-05 | K169: 0.001647373547 | L169: 0.0001894721465 | M169: 0.008622918429 | N169: 1.696112507e-06
A170: =IF('DF raw data'!A170="","",'DF raw data'!A170) -> -248.5 | B170: =IF('DF raw data'!B170="","",'DF raw data'!B170) -> -1.27405e-05 | C170: =IF('DF raw data'!C170="","",'DF raw data'!C170) -> 0.000257164 | D170: =IF('DF raw data'!D170="","",'DF raw data'!D170) -> -9.70176e-06 | F170: 6.08946569e-07 | G170: 1.9631605e-06 | H170: 5.498496278e-06 | J170: 1.956579609e-05 | K170: 0.001657156445 | L170: 0.0001904537267 | M170: 0.008718145292 | N170: 1.714440228e-06
A171: =IF('DF raw data'!A171="","",'DF raw data'!A171) -> -248 | B171: =IF('DF raw data'!B171="","",'DF raw data'!B171) -> -7.86929e-06 | C171: =IF('DF raw data'!C171="","",'DF raw data'!C171) -> 0.000257462 | D171: =IF('DF raw data'!D171="","",'DF raw data'!D171) -> -1.24016e-05 | F171: 5.502077014e-06 | G171: 2.2625015e-06 | H171: 2.786506998e-06 | J171: 2.23168346e-05 | K171: 0.001668314863 | L171: 0.0001915849775 | M171: 0.008813937781 | N171: 1.73304165e-06
A172: =IF('DF raw data'!A172="","",'DF raw data'!A172) -> -247.5 | B172: =IF('DF raw data'!B172="","",'DF raw data'!B172) -> -8.19561e-06 | C172: =IF('DF raw data'!C172="","",'DF raw data'!C172) -> 0.000269626 | D172: =IF('DF raw data'!D172="","",'DF raw data'!D172) -> -3.40077e-06 | F172: 5.174288574e-06 | G172: 1.44812395e-05 | H172: 1.182784073e-05 | J172: 2.490397888e-05 | K172: 0.001680766852 | L172: 0.0001988255972 | M172: 0.00891335058 | N172: 1.753117563e-06
A173: =IF('DF raw data'!A173="","",'DF raw data'!A173) -> -247 | B173: =IF('DF raw data'!B173="","",'DF raw data'!B173) -> -1.87618e-05 | C173: =IF('DF raw data'!C173="","",'DF raw data'!C173) -> 0.000263219 | D173: =IF('DF raw data'!D173="","",'DF raw data'!D173) -> -1.1743e-05 | F173: -5.439449281e-06 | G173: 8.045408e-06 | H173: 3.448070698e-06 | J173: 2.218425424e-05 | K173: 0.001691858979 | L173: 0.0002028483012 | M173: 0.00901477473 | N173: 1.773937351e-06
A174: =IF('DF raw data'!A174="","",'DF raw data'!A174) -> -246.5 | B174: =IF('DF raw data'!B174="","",'DF raw data'!B174) -> -1.29942e-05 | C174: =IF('DF raw data'!C174="","",'DF raw data'!C174) -> 0.000260387 | D174: =IF('DF raw data'!D174="","",'DF raw data'!D174) -> -1.36974e-05 | F174: 3.54104919e-07 | G174: 5.200664e-06 | H174: 1.484875898e-06 | J174: 2.23613067e-05 | K174: 0.001703039633 | L174: 0.0002054486332 | M174: 0.009117499047 | N174: 1.795291935e-06
A175: =IF('DF raw data'!A175="","",'DF raw data'!A175) -> -246 | B175: =IF('DF raw data'!B175="","",'DF raw data'!B175) -> -1.29901e-05 | C175: =IF('DF raw data'!C175="","",'DF raw data'!C175) -> 0.000252649 | D175: =IF('DF raw data'!D175="","",'DF raw data'!D175) -> -1.99221e-05 | F175: 3.58223369e-07 | G175: -2.572157e-06 | H175: -4.767835252e-06 | J175: 2.254041839e-05 | K175: 0.001714309842 | L175: 0.0002041625547 | M175: 0.009219580324 | N175: 1.816387145e-06
A176: =IF('DF raw data'!A176="","",'DF raw data'!A176) -> -245.5 | B176: =IF('DF raw data'!B176="","",'DF raw data'!B176) -> -1.5298e-05 | C176: =IF('DF raw data'!C176="","",'DF raw data'!C176) -> 0.000250996 | D176: =IF('DF raw data'!D176="","",'DF raw data'!D176) -> -1.8263e-05 | F176: -1.960062181e-06 | G176: -4.2325955e-06 | H176: -3.101269302e-06 | J176: 2.15603873e-05 | K176: 0.001725090035 | L176: 0.000202046257 | M176: 0.009320603453 | N176: 1.837030915e-06
A177: =IF('DF raw data'!A177="","",'DF raw data'!A177) -> -245 | B177: =IF('DF raw data'!B177="","",'DF raw data'!B177) -> -1.75422e-05 | C177: =IF('DF raw data'!C177="","",'DF raw data'!C177) -> 0.000252451 | D177: =IF('DF raw data'!D177="","",'DF raw data'!D177) -> -1.50981e-05 | F177: -4.214361081e-06 | G177: -2.771048e-06 | H177: 7.787274775e-08 | J177: 1.945320676e-05 | K177: 0.001734816639 | L177: 0.000200660733 | M177: 0.009420933819 | N177: 1.857352493e-06
A178: =IF('DF raw data'!A178="","",'DF raw data'!A178) -> -244.5 | B178: =IF('DF raw data'!B178="","",'DF raw data'!B178) -> -2.01049e-05 | C178: =IF('DF raw data'!C178="","",'DF raw data'!C178) -> 0.00024722 | D178: =IF('DF raw data'!D178="","",'DF raw data'!D178) -> -1.56701e-05 | F178: -6.788593231e-06 | G178: -8.0255875e-06 | H178: -4.967012523e-07 | J178: 1.605891014e-05 | K178: 0.001742846094 | L178: 0.0001966479392 | M178: 0.009519257789 | N178: 1.876816644e-06
A179: =IF('DF raw data'!A179="","",'DF raw data'!A179) -> -244 | B179: =IF('DF raw data'!B179="","",'DF raw data'!B179) -> -1.65885e-06 | C179: =IF('DF raw data'!C179="","",'DF raw data'!C179) -> 0.000252433 | D179: =IF('DF raw data'!D179="","",'DF raw data'!D179) -> -5.36249e-06 | F179: 1.174046399e-05 | G179: -2.789129e-06 | H179: 9.857292993e-06 | J179: 2.192914214e-05 | K179: 0.001753810665 | L179: 0.0001952533747 | M179: 0.009616884476 | N179: 1.896119027e-06
A180: =IF('DF raw data'!A180="","",'DF raw data'!A180) -> -243.5 | B180: =IF('DF raw data'!B180="","",'DF raw data'!B180) -> -7.60658e-06 | C180: =IF('DF raw data'!C180="","",'DF raw data'!C180) -> 0.00025804 | D180: =IF('DF raw data'!D180="","",'DF raw data'!D180) -> -2.23951e-05 | F180: 5.765969209e-06 | G180: 2.8431025e-06 | H180: -7.251963752e-06 | J180: 2.481212674e-05 | K180: 0.001766216728 | L180: 0.000196674926 | M180: 0.009715221939 | N180: 1.915767362e-06
A181: =IF('DF raw data'!A181="","",'DF raw data'!A181) -> -243 | B181: =IF('DF raw data'!B181="","",'DF raw data'!B181) -> -1.36909e-05 | C181: =IF('DF raw data'!C181="","",'DF raw data'!C181) -> 0.000245365 | D181: =IF('DF raw data'!D181="","",'DF raw data'!D181) -> -2.61929e-05 | F181: -3.45730231e-07 | G181: -9.888935e-06 | H181: -1.106685385e-05 | J181: 2.463926163e-05 | K181: 0.001778536359 | L181: 0.0001917304585 | M181: 0.009811087169 | N181: 1.934451193e-06
A182: =IF('DF raw data'!A182="","",'DF raw data'!A182) -> -242.5 | B182: =IF('DF raw data'!B182="","",'DF raw data'!B182) -> -1.65875e-05 | C182: =IF('DF raw data'!C182="","",'DF raw data'!C182) -> 0.000247135 | D182: =IF('DF raw data'!D182="","",'DF raw data'!D182) -> -5.83434e-06 | F182: -3.255364931e-06 | G182: -8.11097e-06 | H182: 9.383319668e-06 | J182: 2.301157916e-05 | K182: 0.001790042149 | L182: 0.0001876749735 | M182: 0.009904924655 | N182: 1.952326907e-06
A183: =IF('DF raw data'!A183="","",'DF raw data'!A183) -> -242 | B183: =IF('DF raw data'!B183="","",'DF raw data'!B183) -> -2.02933e-05 | C183: =IF('DF raw data'!C183="","",'DF raw data'!C183) -> 0.000253573 | D183: =IF('DF raw data'!D183="","",'DF raw data'!D183) -> -2.16259e-05 | F183: -6.977841031e-06 | G183: -1.643999e-06 | H183: -6.479302352e-06 | J183: 1.952265865e-05 | K183: 0.001799803478 | L183: 0.000186852974 | M183: 0.009998351142 | N183: 1.969974491e-06
A184: =IF('DF raw data'!A184="","",'DF raw data'!A184) -> -241.5 | B184: =IF('DF raw data'!B184="","",'DF raw data'!B184) -> -1.34454e-05 | C184: =IF('DF raw data'!C184="","",'DF raw data'!C184) -> 0.000253501 | D184: =IF('DF raw data'!D184="","",'DF raw data'!D184) -> -9.78892e-06 | F184: -9.9125481e-08 | G184: -1.716323e-06 | H184: 5.410944058e-06 | J184: 1.94730959e-05 | K184: 0.001809540026 | L184: 0.0001859948125 | M184: 0.01009134855 | N184: 1.987461127e-06
A185: =IF('DF raw data'!A185="","",'DF raw data'!A185) -> -241 | B185: =IF('DF raw data'!B185="","",'DF raw data'!B185) -> -2.42108e-05 | C185: =IF('DF raw data'!C185="","",'DF raw data'!C185) -> 0.000265638 | D185: =IF('DF raw data'!D185="","",'DF raw data'!D185) -> -7.26654e-06 | F185: -1.091296978e-05 | G185: 1.04752935e-05 | H185: 7.944674768e-06 | J185: 1.401661101e-05 | K185: 0.001816548332 | L185: 0.0001912324592 | M185: 0.01018696478 | N185: 2.005844286e-06
A186: =IF('DF raw data'!A186="","",'DF raw data'!A186) -> -240.5 | B186: =IF('DF raw data'!B186="","",'DF raw data'!B186) -> -1.47834e-05 | C186: =IF('DF raw data'!C186="","",'DF raw data'!C186) -> 0.000270327 | D186: =IF('DF raw data'!D186="","",'DF raw data'!D186) -> -2.11878e-05 | F186: -1.443146481e-06 | G186: 1.5185394e-05 | H186: -6.039230902e-06 | J186: 1.329503777e-05 | K186: 0.00182319585 | L186: 0.0001988251562 | M186: 0.01028637736 | N186: 2.025698387e-06
A187: =IF('DF raw data'!A187="","",'DF raw data'!A187) -> -240 | B187: =IF('DF raw data'!B187="","",'DF raw data'!B187) -> -1.33781e-05 | C187: =IF('DF raw data'!C187="","",'DF raw data'!C187) -> 0.000256854 | D187: =IF('DF raw data'!D187="","",'DF raw data'!D187) -> -1.42431e-05 | F187: -3.1522631e-08 | G187: 1.6517655e-06 | H187: 9.367202477e-07 | J187: 1.327927646e-05 | K187: 0.001829835489 | L187: 0.000199651039 | M187: 0.01038620288 | N187: 2.045716825e-06
A188: =IF('DF raw data'!A188="","",'DF raw data'!A188) -> -239.5 | B188: =IF('DF raw data'!B188="","",'DF raw data'!B188) -> -2.30546e-05 | C188: =IF('DF raw data'!C188="","",'DF raw data'!C188) -> 0.000250634 | D188: =IF('DF raw data'!D188="","",'DF raw data'!D188) -> -1.25238e-05 | F188: -9.751566881e-06 | G188: -4.5962245e-06 | H188: 2.663757098e-06 | J188: 8.403493018e-06 | K188: 0.001834037235 | L188: 0.0001973529267 | M188: 0.01048487934 | N188: 2.065226223e-06
A189: =IF('DF raw data'!A189="","",'DF raw data'!A189) -> -239 | B189: =IF('DF raw data'!B189="","",'DF raw data'!B189) -> -1.82509e-05 | C189: =IF('DF raw data'!C189="","",'DF raw data'!C189) -> 0.000247812 | D189: =IF('DF raw data'!D189="","",'DF raw data'!D189) -> -8.8978e-06 | F189: -4.926250231e-06 | G189: -7.4309235e-06 | H189: 6.306074098e-06 | J189: 5.940367902e-06 | K189: 0.001837007419 | L189: 0.000193637465 | M189: 0.01058169807 | N189: 2.083991601e-06
A190: =IF('DF raw data'!A190="","",'DF raw data'!A190) -> -238.5 | B190: =IF('DF raw data'!B190="","",'DF raw data'!B190) -> -4.92529e-06 | C190: =IF('DF raw data'!C190="","",'DF raw data'!C190) -> 0.000258078 | D190: =IF('DF raw data'!D190="","",'DF raw data'!D190) -> -7.69239e-06 | F190: 8.459325014e-06 | G190: 2.8812735e-06 | H190: 7.516908443e-06 | J190: 1.017003041e-05 | K190: 0.001842092434 | L190: 0.0001950781017 | M190: 0.01067923712 | N190: 2.103071049e-06
A191: =IF('DF raw data'!A191="","",'DF raw data'!A191) -> -238 | B191: =IF('DF raw data'!B191="","",'DF raw data'!B191) -> -1.72225e-05 | C191: =IF('DF raw data'!C191="","",'DF raw data'!C191) -> 0.000258571 | D191: =IF('DF raw data'!D191="","",'DF raw data'!D191) -> -1.40315e-05 | F191: -3.893222431e-06 | G191: 3.376492e-06 | H191: 1.149272448e-06 | J191: 8.223419194e-06 | K191: 0.001846204144 | L191: 0.0001967663477 | M191: 0.0107776203 | N191: 2.122463359e-06
A192: =IF('DF raw data'!A192="","",'DF raw data'!A192) -> -237.5 | B192: =IF('DF raw data'!B192="","",'DF raw data'!B192) -> -1.35048e-05 | C192: =IF('DF raw data'!C192="","",'DF raw data'!C192) -> 0.000251818 | D192: =IF('DF raw data'!D192="","",'DF raw data'!D192) -> -1.69258e-05 | F192: -1.58792781e-07 | G192: -3.4068965e-06 | H192: -1.758051902e-06 | J192: =F192*$G$3+J191 -> 8.144022803e-06 | K192: =J192*$G$3+K191 -> 0.001850276155 | L192: =G192*$G$3+L191 -> 0.0001950628995 | M192: =L192*$G$3+M191 -> 0.01087515175 | N192: =(J192^2+L192^2)*$G$3+N191 -> 2.141521289e-06
A193: =IF('DF raw data'!A193="","",'DF raw data'!A193) -> -237 | B193: =IF('DF raw data'!B193="","",'DF raw data'!B193) -> -1.03015e-05 | C193: =IF('DF raw data'!C193="","",'DF raw data'!C193) -> 0.000249636 | D193: =IF('DF raw data'!D193="","",'DF raw data'!D193) -> -1.63581e-05 | F193: 3.058922069e-06 | G193: -5.5987155e-06 | H193: -1.187797252e-06 | J193: 9.673483838e-06 | K193: 0.001855112897 | L193: 0.0001922635417 | M193: 0.01097128352 | N193: 2.160050711e-06
A194: =IF('DF raw data'!A194="","",'DF raw data'!A194) -> -236.5 | B194: =IF('DF raw data'!B194="","",'DF raw data'!B194) -> -2.22877e-05 | C194: =IF('DF raw data'!C194="","",'DF raw data'!C194) -> 0.000240504 | D194: =IF('DF raw data'!D194="","",'DF raw data'!D194) -> -9.15576e-06 | F194: -8.981215831e-06 | G194: -1.47718095e-05 | H194: 6.046953278e-06 | J194: 5.182875922e-06 | K194: 0.001857704335 | L194: 0.000184877637 | M194: 0.01106372234 | N194: 2.177154013e-06
A195: =IF('DF raw data'!A195="","",'DF raw data'!A195) -> -236 | B195: =IF('DF raw data'!B195="","",'DF raw data'!B195) -> -1.38341e-05 | C195: =IF('DF raw data'!C195="","",'DF raw data'!C195) -> 0.000239964 | D195: =IF('DF raw data'!D195="","",'DF raw data'!D195) -> -2.75792e-06 | F195: =(1-$G$1*($B$54-$G$2))*(B195-F$5) -> -4.89574631e-07 | G195: =(1-$G$1*($B$54-$G$2))*(C195-G$5) -> -1.53142395e-05 | H195: =(1-$G$1*($B$54-$G$2))*(D195-H$5) -> 1.247358356e-05 | J195: 4.938088607e-06 | K195: 0.00186017338 | L195: 0.0001772205172 | M195: 0.01115233259 | N195: 2.192869761e-06
A196: =IF('DF raw data'!A196="","",'DF raw data'!A196) -> -235.5 | B196: =IF('DF raw data'!B196="","",'DF raw data'!B196) -> -1.92095e-05 | C196: =IF('DF raw data'!C196="","",'DF raw data'!C196) -> 0.000239951 | D196: =IF('DF raw data'!D196="","",'DF raw data'!D196) -> -1.37055e-05 | F196: -5.889163931e-06 | G196: -1.5327298e-05 | H196: 1.476739448e-06 | J196: 1.993506641e-06 | K196: 0.001861170133 | L196: 0.0001695568682 | M196: 0.01123711103 | N196: 2.207246514e-06
A197: =IF('DF raw data'!A197="","",'DF raw data'!A197) -> -235 | B197: =IF('DF raw data'!B197="","",'DF raw data'!B197) -> -1.75511e-05 | C197: =IF('DF raw data'!C197="","",'DF raw data'!C197) -> 0.000239274 | D197: =IF('DF raw data'!D197="","",'DF raw data'!D197) -> -1.16808e-06 | F197: -4.223301131e-06 | G197: -1.60073445e-05 | H197: 1.407057784e-05 | J197: -1.181439245e-07 | K197: 0.001861111061 | L197: 0.000161553196 | M197: 0.01131788763 | N197: 2.220296239e-06
A198: =IF('DF raw data'!A198="","",'DF raw data'!A198) -> -234.5 | B198: =IF('DF raw data'!B198="","",'DF raw data'!B198) -> -1.32565e-05 | C198: =IF('DF raw data'!C198="","",'DF raw data'!C198) -> 0.000245606 | D198: =IF('DF raw data'!D198="","",'DF raw data'!D198) -> -4.61142e-06 | F198: 9.0624569e-08 | G198: -9.6468505e-06 | H198: 1.061174281e-05 | J198: -7.283164e-08 | K198: 0.001861074645 | L198: 0.0001567297707 | M198: 0.01139625251 | N198: 2.232578352e-06
A199: =IF('DF raw data'!A199="","",'DF raw data'!A199) -> -234 | B199: =IF('DF raw data'!B199="","",'DF raw data'!B199) -> -1.43412e-05 | C199: =IF('DF raw data'!C199="","",'DF raw data'!C199) -> 0.000247361 | D199: =IF('DF raw data'!D199="","",'DF raw data'!D199) -> -1.12222e-05 | F199: -9.98956581e-07 | G199: -7.883953e-06 | H199: 3.971214298e-06 | J199: -5.723099305e-07 | K199: 0.00186078849 | L199: 0.0001527877942 | M199: 0.01147264641 | N199: 2.24425057e-06
A200: =IF('DF raw data'!A200="","",'DF raw data'!A200) -> -233.5 | B200: =IF('DF raw data'!B200="","",'DF raw data'!B200) -> -1.11339e-05 | C200: =IF('DF raw data'!C200="","",'DF raw data'!C200) -> 0.000254201 | D200: =IF('DF raw data'!D200="","",'DF raw data'!D200) -> -1.73213e-05 | F200: 2.222776269e-06 | G200: -1.013173e-06 | H200: -2.155331652e-06 | J200: 5.39078204e-07 | K200: 0.001861058029 | L200: 0.0001522812077 | M200: 0.01154878701 | N200: 2.255845499e-06
... 1079 more rows

Sheet 15 mm
A1: =IF('DF raw data'!E1="","",'DF raw data'!E1) -> Number of header lines | B1: =IF('DF raw data'!F1="","",'DF raw data'!F1) -> 54 | C1: =IF('DF raw data'!C1="","",'DF raw data'!C1) ->  | D1: =IF('DF raw data'!D1="","",'DF raw data'!D1) ->  | F1: T_coeff | G1: -0.001 | H1: /degC | J1: IBy total | K1: =J1267*1000 -> 10.85042004 | L1: muTm | M1: =L1267*1000 -> -4.410433959 | R1: DF ref | S1: 1
A2: =IF('DF raw data'!E2="","",'DF raw data'!E2) -> Measured by | B2: =IF('DF raw data'!F2="","",'DF raw data'!F2) -> Danfysik | C2: =IF('DF raw data'!C2="","",'DF raw data'!C2) ->  | D2: =IF('DF raw data'!D2="","",'DF raw data'!D2) ->  | F2: Tcorr | G2: 20 | H2: degC | J2: JBy total | K2: =K1267 -> -8.078704596 | L2: muTm^2 | M2: =M1267 -> 1.385684464
A3: =IF('DF raw data'!E3="","",'DF raw data'!E3) -> Operator | B3: =IF('DF raw data'!F3="","",'DF raw data'!F3) -> PMHA | C3: =IF('DF raw data'!C3="","",'DF raw data'!C3) ->  | D3: =IF('DF raw data'!D3="","",'DF raw data'!D3) ->  | F3: Step | G3: =A68-A67 -> 0.5 | H3: mm | J3: PI total | K3: =N1267 -> 7283.584031 | L3: T^2mm^3
A4: =IF('DF raw data'!E4="","",'DF raw data'!E4) -> Data-time | B4: =IF('DF raw data'!F4="","",'DF raw data'!F4) -> 13-09-2024, 14:07:13 | C4: =IF('DF raw data'!C4="","",'DF raw data'!C4) ->  | D4: =IF('DF raw data'!D4="","",'DF raw data'!D4) -> 
A5: =IF('DF raw data'!E5="","",'DF raw data'!E5) -> Project | B5: =IF('DF raw data'!F5="","",'DF raw data'!F5) -> 504314 | C5: =IF('DF raw data'!C5="","",'DF raw data'!C5) ->  | D5: Bamb avr | F5: =(AVERAGE(B67:B107) + AVERAGE(B1227:B1267))/2 -> -2.771031537e-05 | G5: =(AVERAGE(C67:C107) + AVERAGE(C1227:C1267))/2 -> 0.0001134756402 | H5: =(AVERAGE(D67:D107) + AVERAGE(D1227:D1267))/2 -> -1.493947732e-05
A6: =IF('DF raw data'!E6="","",'DF raw data'!E6) -> Magnet type | B6: =IF('DF raw data'!F6="","",'DF raw data'!F6) -> Dipole | C6: =IF('DF raw data'!C6="","",'DF raw data'!C6) -> 
A7: =IF('DF raw data'!E7="","",'DF raw data'!E7) -> Magnet nr. | B7: =IF('DF raw data'!F7="","",'DF raw data'!F7) -> 2410096 | C7: =IF('DF raw data'!C7="","",'DF raw data'!C7) -> 
A8: =IF('DF raw data'!E8="","",'DF raw data'!E8) -> Meas. number | B8: =IF('DF raw data'!F8="","",'DF raw data'!F8) -> 461 | C8: =IF('DF raw data'!C8="","",'DF raw data'!C8) -> 
A9: =IF('DF raw data'!E9="","",'DF raw data'!E9) -> Add. info | B9: =IF('DF raw data'!F9="","",'DF raw data'!F9) ->  | C9: =IF('DF raw data'!C9="","",'DF raw data'!C9) ->  | D9: =IF('DF raw data'!D9="","",'DF raw data'!D9) -> 
A10: =IF('DF raw data'!E10="","",'DF raw data'!E10) -> Device | B10: =IF('DF raw data'!F10="","",'DF raw data'!F10) -> (HAL) HALL-PROBE | C10: =IF('DF raw data'!C10="","",'DF raw data'!C10) ->  | D10: =IF('DF raw data'!D10="","",'DF raw data'!D10) -> 
A11: =IF('DF raw data'!E11="","",'DF raw data'!E11) -> Goal | B11: =IF('DF raw data'!F11="","",'DF raw data'!F11) -> (AXI) AXis Integral (Line, EFB) | C11: =IF('DF raw data'!C11="","",'DF raw data'!C11) ->  | D11: =IF('DF raw data'!D11="","",'DF raw data'!D11) -> 
A12: =IF('DF raw data'!E12="","",'DF raw data'!E12) -> Power supply mode | B12: =IF('DF raw data'!F12="","",'DF raw data'!F12) -> (PM) Permanent Magnet (no MPS in use) | C12: =IF('DF raw data'!C12="","",'DF raw data'!C12) ->  | D12: =IF('DF raw data'!D12="","",'DF raw data'!D12) -> 
A13: =IF('DF raw data'!E13="","",'DF raw data'!E13) -> Data format | B13: =IF('DF raw data'!F13="","",'DF raw data'!F13) -> Raw data text file | C13: =IF('DF raw data'!C13="","",'DF raw data'!C13) ->  | D13: =IF('DF raw data'!D13="","",'DF raw data'!D13) -> 
A14: =IF('DF raw data'!E14="","",'DF raw data'!E14) -> Direction of the pos. x-axis | B14: =IF('DF raw data'!F14="","",'DF raw data'!F14) -> See test program | C14: =IF('DF raw data'!C14="","",'DF raw data'!C14) ->  | D14: =IF('DF raw data'!D14="","",'DF raw data'!D14) -> 
A15: =IF('DF raw data'!E15="","",'DF raw data'!E15) -> Direction of the pos. y-axis | B15: =IF('DF raw data'!F15="","",'DF raw data'!F15) -> Vertical up | C15: =IF('DF raw data'!C15="","",'DF raw data'!C15) ->  | D15: =IF('DF raw data'!D15="","",'DF raw data'!D15) -> 
A16: =IF('DF raw data'!E16="","",'DF raw data'!E16) -> Direction of the pos. z-axis | B16: =IF('DF raw data'!F16="","",'DF raw data'!F16) -> See test program | C16: =IF('DF raw data'!C16="","",'DF raw data'!C16) ->  | D16: =IF('DF raw data'!D16="","",'DF raw data'!D16) -> 
A17: =IF('DF raw data'!E17="","",'DF raw data'!E17) -> Mapper type | B17: =IF('DF raw data'!F17="","",'DF raw data'!F17) -> Precision Hall Mapper | C17: =IF('DF raw data'!C17="","",'DF raw data'!C17) ->  | D17: =IF('DF raw data'!D17="","",'DF raw data'!D17) -> 
A18: =IF('DF raw data'!E18="","",'DF raw data'!E18) -> Mapper Danfysik Reg. Number | B18: =IF('DF raw data'!F18="","",'DF raw data'!F18) -> 2033-D (mapper 1) | C18: =IF('DF raw data'!C18="","",'DF raw data'!C18) ->  | D18: =IF('DF raw data'!D18="","",'DF raw data'!D18) -> 
A19: =IF('DF raw data'!E19="","",'DF raw data'!E19) -> Measurement consept | B19: =IF('DF raw data'!F19="","",'DF raw data'!F19) -> Square line grid | C19: =IF('DF raw data'!C19="","",'DF raw data'!C19) ->  | D19: =IF('DF raw data'!D19="","",'DF raw data'!D19) -> 
A20: =IF('DF raw data'!E20="","",'DF raw data'!E20) -> Mode | B20: =IF('DF raw data'!F20="","",'DF raw data'!F20) -> On-the-fly measurement | C20: =IF('DF raw data'!C20="","",'DF raw data'!C20) ->  | D20: =IF('DF raw data'!D20="","",'DF raw data'!D20) -> 
A21: =IF('DF raw data'!E21="","",'DF raw data'!E21) ->  | B21: =IF('DF raw data'!F21="","",'DF raw data'!F21) ->  | C21: =IF('DF raw data'!C21="","",'DF raw data'!C21) ->  | D21: =IF('DF raw data'!D21="","",'DF raw data'!D21) -> 
A22: =IF('DF raw data'!E22="","",'DF raw data'!E22) -> Probe Name | B22: =IF('DF raw data'!F22="","",'DF raw data'!F22) -> ID12_By | C22: =IF('DF raw data'!C22="","",'DF raw data'!C22) ->  | D22: =IF('DF raw data'!D22="","",'DF raw data'!D22) -> 
A23: =IF('DF raw data'!E23="","",'DF raw data'!E23) -> Probe Type | B23: =IF('DF raw data'!F23="","",'DF raw data'!F23) -> DF_ID_3D_Bxyz | C23: =IF('DF raw data'!C23="","",'DF raw data'!C23) ->  | D23: =IF('DF raw data'!D23="","",'DF raw data'!D23) -> 
A24: =IF('DF raw data'!E24="","",'DF raw data'!E24) -> Probe Danfysik Reg. Number | B24: =IF('DF raw data'!F24="","",'DF raw data'!F24) -> 2277 | C24: =IF('DF raw data'!C24="","",'DF raw data'!C24) ->  | D24: =IF('DF raw data'!D24="","",'DF raw data'!D24) -> 
A25: =IF('DF raw data'!E25="","",'DF raw data'!E25) -> Probe Axis | B25: =IF('DF raw data'!F25="","",'DF raw data'!F25) -> By | C25: =IF('DF raw data'!C25="","",'DF raw data'!C25) ->  | D25: =IF('DF raw data'!D25="","",'DF raw data'!D25) -> 
A26: =IF('DF raw data'!E26="","",'DF raw data'!E26) -> Probe Current Supply | B26: =IF('DF raw data'!F26="","",'DF raw data'!F26) -> 1825-D | C26: =IF('DF raw data'!C26="","",'DF raw data'!C26) ->  | D26: =IF('DF raw data'!D26="","",'DF raw data'!D26) -> 
A27: =IF('DF raw data'!E27="","",'DF raw data'!E27) -> Probe Gain Correction | B27: =IF('DF raw data'!F27="","",'DF raw data'!F27) -> 0.99619 | C27: =IF('DF raw data'!C27="","",'DF raw data'!C27) ->  | D27: =IF('DF raw data'!D27="","",'DF raw data'!D27) -> 
A28: =IF('DF raw data'!E28="","",'DF raw data'!E28) -> Probe Offset Correction | B28: =IF('DF raw data'!F28="","",'DF raw data'!F28) -> 0.002767 | C28: =IF('DF raw data'!C28="","",'DF raw data'!C28) ->  | D28: =IF('DF raw data'!D28="","",'DF raw data'!D28) -> 
A29: =IF('DF raw data'!E29="","",'DF raw data'!E29) -> DVM Number | B29: =IF('DF raw data'!F29="","",'DF raw data'!F29) -> 2 | C29: =IF('DF raw data'!C29="","",'DF raw data'!C29) ->  | D29: =IF('DF raw data'!D29="","",'DF raw data'!D29) -> 
A30: =IF('DF raw data'!E30="","",'DF raw data'!E30) -> DVM Type | B30: =IF('DF raw data'!F30="","",'DF raw data'!F30) -> K2701 | C30: =IF('DF raw data'!C30="","",'DF raw data'!C30) ->  | D30: =IF('DF raw data'!D30="","",'DF raw data'!D30) -> 
A31: =IF('DF raw data'!E31="","",'DF raw data'!E31) -> DVM Danfysik Reg. Number | B31: =IF('DF raw data'!F31="","",'DF raw data'!F31) -> 1743-D | C31: =IF('DF raw data'!C31="","",'DF raw data'!C31) ->  | D31: =IF('DF raw data'!D31="","",'DF raw data'!D31) -> 
A32: =IF('DF raw data'!E32="","",'DF raw data'!E32) -> Probe Name | B32: =IF('DF raw data'!F32="","",'DF raw data'!F32) -> ID12_Bx | C32: =IF('DF raw data'!C32="","",'DF raw data'!C32) ->  | D32: =IF('DF raw data'!D32="","",'DF raw data'!D32) -> 
A33: =IF('DF raw data'!E33="","",'DF raw data'!E33) -> Probe Type | B33: =IF('DF raw data'!F33="","",'DF raw data'!F33) -> DF_ID_3D_Bxyz | C33: =IF('DF raw data'!C33="","",'DF raw data'!C33) ->  | D33: =IF('DF raw data'!D33="","",'DF raw data'!D33) -> 
A34: =IF('DF raw data'!E34="","",'DF raw data'!E34) -> Probe Danfysik Reg. Number | B34: =IF('DF raw data'!F34="","",'DF raw data'!F34) -> 2277 | C34: =IF('DF raw data'!C34="","",'DF raw data'!C34) ->  | D34: =IF('DF raw data'!D34="","",'DF raw data'!D34) -> 
A35: =IF('DF raw data'!E35="","",'DF raw data'!E35) -> Probe Axis | B35: =IF('DF raw data'!F35="","",'DF raw data'!F35) -> Bx | C35: =IF('DF raw data'!C35="","",'DF raw data'!C35) ->  | D35: =IF('DF raw data'!D35="","",'DF raw data'!D35) -> 
A36: =IF('DF raw data'!E36="","",'DF raw data'!E36) -> Probe Current Supply | B36: =IF('DF raw data'!F36="","",'DF raw data'!F36) -> 1825-D | C36: =IF('DF raw data'!C36="","",'DF raw data'!C36) ->  | D36: =IF('DF raw data'!D36="","",'DF raw data'!D36) -> 
A37: =IF('DF raw data'!E37="","",'DF raw data'!E37) -> Probe Gain Correction | B37: =IF('DF raw data'!F37="","",'DF raw data'!F37) -> 1 | C37: =IF('DF raw data'!C37="","",'DF raw data'!C37) ->  | D37: =IF('DF raw data'!D37="","",'DF raw data'!D37) -> 
A38: =IF('DF raw data'!E38="","",'DF raw data'!E38) -> Probe Offset Correction | B38: =IF('DF raw data'!F38="","",'DF raw data'!F38) -> -0.17549 | C38: =IF('DF raw data'!C38="","",'DF raw data'!C38) ->  | D38: =IF('DF raw data'!D38="","",'DF raw data'!D38) -> 
A39: =IF('DF raw data'!E39="","",'DF raw data'!E39) -> DVM Number | B39: =IF('DF raw data'!F39="","",'DF raw data'!F39) -> 3 | C39: =IF('DF raw data'!C39="","",'DF raw data'!C39) ->  | D39: =IF('DF raw data'!D39="","",'DF raw data'!D39) -> 
A40: =IF('DF raw data'!E40="","",'DF raw data'!E40) -> DVM Type | B40: =IF('DF raw data'!F40="","",'DF raw data'!F40) -> K2701 | C40: =IF('DF raw data'!C40="","",'DF raw data'!C40) ->  | D40: =IF('DF raw data'!D40="","",'DF raw data'!D40) -> 
A41: =IF('DF raw data'!E41="","",'DF raw data'!E41) -> DVM Danfysik Reg. Number | B41: =IF('DF raw data'!F41="","",'DF raw data'!F41) -> 1744-D | C41: =IF('DF raw data'!C41="","",'DF raw data'!C41) ->  | D41: =IF('DF raw data'!D41="","",'DF raw data'!D41) -> 
A42: =IF('DF raw data'!E42="","",'DF raw data'!E42) -> Probe Name | B42: =IF('DF raw data'!F42="","",'DF raw data'!F42) -> ID12_Bz | C42: =IF('DF raw data'!C42="","",'DF raw data'!C42) ->  | D42: =IF('DF raw data'!D42="","",'DF raw data'!D42) -> 
A43: =IF('DF raw data'!E43="","",'DF raw data'!E43) -> Probe Type | B43: =IF('DF raw data'!F43="","",'DF raw data'!F43) -> DF_ID_3D_Bxyz | C43: =IF('DF raw data'!C43="","",'DF raw data'!C43) ->  | D43: =IF('DF raw data'!D43="","",'DF raw data'!D43) -> 
A44: =IF('DF raw data'!E44="","",'DF raw data'!E44) -> Probe Danfysik Reg. Number | B44: =IF('DF raw data'!F44="","",'DF raw data'!F44) -> 2277 | C44: =IF('DF raw data'!C44="","",'DF raw data'!C44) ->  | D44: =IF('DF raw data'!D44="","",'DF raw data'!D44) -> 
A45: =IF('DF raw data'!E45="","",'DF raw data'!E45) -> Probe Axis | B45: =IF('DF raw data'!F45="","",'DF raw data'!F45) -> Bz | C45: =IF('DF raw data'!C45="","",'DF raw data'!C45) ->  | D45: =IF('DF raw data'!D45="","",'DF raw data'!D45) -> 
A46: =IF('DF raw data'!E46="","",'DF raw data'!E46) -> Probe Current Supply | B46: =IF('DF raw data'!F46="","",'DF raw data'!F46) -> 1825-D | C46: =IF('DF raw data'!C46="","",'DF raw data'!C46) ->  | D46: =IF('DF raw data'!D46="","",'DF raw data'!D46) -> 
A47: =IF('DF raw data'!E47="","",'DF raw data'!E47) -> Probe Gain Correction | B47: =IF('DF raw data'!F47="","",'DF raw data'!F47) -> 1 | C47: =IF('DF raw data'!C47="","",'DF raw data'!C47) ->  | D47: =IF('DF raw data'!D47="","",'DF raw data'!D47) -> 
A48: =IF('DF raw data'!E48="","",'DF raw data'!E48) -> Probe Offset Correction | B48: =IF('DF raw data'!F48="","",'DF raw data'!F48) -> 0.0073199 | C48: =IF('DF raw data'!C48="","",'DF raw data'!C48) ->  | D48: =IF('DF raw data'!D48="","",'DF raw data'!D48) -> 
A49: =IF('DF raw data'!E49="","",'DF raw data'!E49) -> DVM Number | B49: =IF('DF raw data'!F49="","",'DF raw data'!F49) -> 8 | C49: =IF('DF raw data'!C49="","",'DF raw data'!C49) ->  | D49: =IF('DF raw data'!D49="","",'DF raw data'!D49) -> 
A50: =IF('DF raw data'!E50="","",'DF raw data'!E50) -> DVM Type | B50: =IF('DF raw data'!F50="","",'DF raw data'!F50) -> K2700 | C50: =IF('DF raw data'!C50="","",'DF raw data'!C50) ->  | D50: =IF('DF raw data'!D50="","",'DF raw data'!D50) -> 
A51: =IF('DF raw data'!E51="","",'DF raw data'!E51) -> DVM Danfysik Reg. Number | B51: =IF('DF raw data'!F51="","",'DF raw data'!F51) -> 1756-D | C51: =IF('DF raw data'!C51="","",'DF raw data'!C51) ->  | D51: =IF('DF raw data'!D51="","",'DF raw data'!D51) -> 
A52: =IF('DF raw data'!E52="","",'DF raw data'!E52) -> NTC voltage | B52: =IF('DF raw data'!F52="","",'DF raw data'!F52) -> 0.41387 | C52: =IF('DF raw data'!C52="","",'DF raw data'!C52) ->  | D52: =IF('DF raw data'!D52="","",'DF raw data'!D52) -> 
A53: =IF('DF raw data'!E53="","",'DF raw data'!E53) -> PS-Gap: | B53: =IF('DF raw data'!F53="","",'DF raw data'!F53) -> 15 | C53: =IF('DF raw data'!C53="","",'DF raw data'!C53) ->  | D53: =IF('DF raw data'!D53="","",'DF raw data'!D53) -> 
A54: =IF('DF raw data'!E54="","",'DF raw data'!E54) -> PS-Temperature: | B54: =IF('DF raw data'!F54="","",'DF raw data'!F54) -> 24.4 | C54: =IF('DF raw data'!C54="","",'DF raw data'!C54) ->  | D54: =IF('DF raw data'!D54="","",'DF raw data'!D54) -> 
A55: =IF('DF raw data'!E55="","",'DF raw data'!E55) -> PS-Encoder: | B55: =IF('DF raw data'!F55="","",'DF raw data'!F55) -> 24.7275 | C55: =IF('DF raw data'!C55="","",'DF raw data'!C55) ->  | D55: =IF('DF raw data'!D55="","",'DF raw data'!D55) -> 
A56: =IF('DF raw data'!E56="","",'DF raw data'!E56) ->  | B56: =IF('DF raw data'!F56="","",'DF raw data'!F56) -> 
A57: =IF('DF raw data'!E57="","",'DF raw data'!E57) -> Monitor-Index | B57: =IF('DF raw data'!F57="","",'DF raw data'!F57) -> [1,1,4]
A58: =IF('DF raw data'!E58="","",'DF raw data'!E58) ->  | B58: =IF('DF raw data'!F58="","",'DF raw data'!F58) -> 
A59: =IF('DF raw data'!E59="","",'DF raw data'!E59) -> Time [s] | B59: =IF('DF raw data'!F59="","",'DF raw data'!F59) -> Y [mm]
A60: =IF('DF raw data'!E60="","",'DF raw data'!E60) ->  | B60: =IF('DF raw data'!F60="","",'DF raw data'!F60) -> 
A61: =IF('DF raw data'!E61="","",'DF raw data'!E61) -> 207.7 | B61: =IF('DF raw data'!F61="","",'DF raw data'!F61) -> 31.76
A62: =IF('DF raw data'!E62="","",'DF raw data'!E62) ->  | B62: =IF('DF raw data'!F62="","",'DF raw data'!F62) -> 
A63: =IF('DF raw data'!E63="","",'DF raw data'!E63) -> Measurement-Index | B63: =IF('DF raw data'!F63="","",'DF raw data'!F63) -> [1,1,1201,2]
A64: =IF('DF raw data'!E64="","",'DF raw data'!E64) ->  | B64: =IF('DF raw data'!F64="","",'DF raw data'!F64) -> 
A65: =IF('DF raw data'!E65="","",'DF raw data'!E65) -> Z [mm] | B65: =IF('DF raw data'!F65="","",'DF raw data'!F65) -> By [T] | C65: =IF('DF raw data'!G65="","",'DF raw data'!G65) -> Bx [T] | D65: =IF('DF raw data'!H65="","",'DF raw data'!H65) -> Bz [T] | F65: By_corr | G65: Bx_corr | H65: Bz_corr | J65: Iy | K65: Jy | L65: Ix | M65: Jx | N65: PI
B66: =IF('DF raw data'!F66="","",'DF raw data'!F66) ->  | C66: =IF('DF raw data'!G66="","",'DF raw data'!G66) ->  | D66: =IF('DF raw data'!H66="","",'DF raw data'!H66) -> 
A67: =IF('DF raw data'!E67="","",'DF raw data'!E67) -> -300 | B67: =IF('DF raw data'!F67="","",'DF raw data'!F67) -> -3.04722e-05 | C67: =IF('DF raw data'!G67="","",'DF raw data'!G67) -> 0.000152964 | D67: =IF('DF raw data'!H67="","",'DF raw data'!H67) -> 6.19027e-06 | F67: =(1-$G$1*($B$54-$G$2))*(B67-F$5) -> -2.774036927e-06 | G67: =(1-$G$1*($B$54-$G$2))*(C67-G$5) -> 3.966210854e-05 | H67: =(1-$G$1*($B$54-$G$2))*(D67-H$5) -> 2.122271821e-05 | J67: =F67*$G$3+J66 -> -1.387018463e-06 | K67: =J67*$G$3+K66 -> -6.935092316e-07 | L67: =G67*$G$3+L66 -> 1.983105427e-05 | M67: =L67*$G$3+M66 -> 9.915527135e-06 | N67: =(J67^2+L67^2)*$G$3+N66 -> 1.975972668e-10
A68: =IF('DF raw data'!E68="","",'DF raw data'!E68) -> -299.5 | B68: =IF('DF raw data'!F68="","",'DF raw data'!F68) -> -1.96419e-05 | C68: =IF('DF raw data'!G68="","",'DF raw data'!G68) -> 0.00015836 | D68: =IF('DF raw data'!H68="","",'DF raw data'!H68) -> 5.68197e-06 | F68: 8.103916393e-06 | G68: 4.508185094e-05 | H68: 2.071218169e-05 | J68: =F68*$G$3+J67 -> 2.664939733e-06 | K68: =J68*$G$3+K67 -> 6.389606351e-07 | L68: =G68*$G$3+L67 -> 4.237197974e-05 | M68: =L68*$G$3+M67 -> 3.1101517e-05 | N68: =(J68^2+L68^2)*$G$3+N67 -> 1.098840552e-09
A69: =IF('DF raw data'!E69="","",'DF raw data'!E69) -> -299 | B69: =IF('DF raw data'!F69="","",'DF raw data'!F69) -> -2.43195e-05 | C69: =IF('DF raw data'!G69="","",'DF raw data'!G69) -> 0.000164665 | D69: =IF('DF raw data'!H69="","",'DF raw data'!H69) -> 5.26589e-06 | F69: 3.405734953e-06 | G69: 5.141459294e-05 | H69: 2.029427093e-05 | J69: 4.36780721e-06 | K69: 2.82286424e-06 | L69: 6.807927621e-05 | M69: 6.514115511e-05 | N69: 3.425773347e-09
A70: =IF('DF raw data'!E70="","",'DF raw data'!E70) -> -298.5 | B70: =IF('DF raw data'!F70="","",'DF raw data'!F70) -> -2.32318e-05 | C70: =IF('DF raw data'!G70="","",'DF raw data'!G70) -> 0.00016006 | D70: =IF('DF raw data'!H70="","",'DF raw data'!H70) -> 5.69836e-06 | F70: 4.498220833e-06 | G70: 4.678933094e-05 | H70: 2.07286438e-05 | J70: 6.616917627e-06 | K70: 6.131323054e-06 | L70: 9.147394168e-05 | M70: 0.0001108781259 | N70: 7.631406149e-09
A71: =IF('DF raw data'!E71="","",'DF raw data'!E71) -> -298 | B71: =IF('DF raw data'!F71="","",'DF raw data'!F71) -> -1.48356e-05 | C71: =IF('DF raw data'!G71="","",'DF raw data'!G71) -> 0.000163089 | D71: =IF('DF raw data'!H71="","",'DF raw data'!H71) -> 5.71024e-06 | F71: 1.293136411e-05 | G71: 4.983165854e-05 | H71: 2.074057607e-05 | J71: 1.308259968e-05 | K71: 1.26726229e-05 | L71: 0.0001163897709 | M71: 0.0001690730114 | N71: 1.449027275e-08
A72: =IF('DF raw data'!E72="","",'DF raw data'!E72) -> -297.5 | B72: =IF('DF raw data'!F72="","",'DF raw data'!F72) -> -3.87716e-06 | C72: =IF('DF raw data'!G72="","",'DF raw data'!G72) -> 0.000164741 | D72: =IF('DF raw data'!H72="","",'DF raw data'!H72) -> 4.41952e-06 | F72: 2.393802125e-05 | G72: 5.149092734e-05 | H72: 1.944417691e-05 | J72: 2.505161031e-05 | K72: 2.519842805e-05 | L72: 0.0001421352346 | M72: 0.0002401406287 | N72: 2.49052768e-08
A73: =IF('DF raw data'!E73="","",'DF raw data'!E73) -> -297 | B73: =IF('DF raw data'!F73="","",'DF raw data'!F73) -> -1.56032e-05 | C73: =IF('DF raw data'!G73="","",'DF raw data'!G73) -> 0.000163047 | D73: =IF('DF raw data'!H73="","",'DF raw data'!H73) -> 3.30141e-06 | F73: 1.216038667e-05 | G73: 4.978947374e-05 | H73: 1.832114722e-05 | J73: 3.113180365e-05 | K73: 4.076432987e-05 | L73: 0.0001670299715 | M73: 0.0003236556145 | N73: 3.933937708e-08
A74: =IF('DF raw data'!E74="","",'DF raw data'!E74) -> -296.5 | B74: =IF('DF raw data'!F74="","",'DF raw data'!F74) -> -2.21411e-05 | C74: =IF('DF raw data'!G74="","",'DF raw data'!G74) -> 0.000168468 | D74: =IF('DF raw data'!H74="","",'DF raw data'!H74) -> 3.48558e-06 | F74: 5.593719913e-06 | G74: 5.523432614e-05 | H74: 1.850612757e-05 | J74: 3.39286636e-05 | K74: 5.772866167e-05 | L74: 0.0001946471346 | M74: 0.0004209791818 | N74: 5.885870769e-08
A75: =IF('DF raw data'!E75="","",'DF raw data'!E75) -> -296 | B75: =IF('DF raw data'!F75="","",'DF raw data'!F75) -> -2.06018e-05 | C75: =IF('DF raw data'!G75="","",'DF raw data'!G75) -> 0.000158413 | D75: =IF('DF raw data'!H75="","",'DF raw data'!H75) -> 4.09519e-06 | F75: 7.139792833e-06 | G75: 4.513508414e-05 | H75: 1.911841985e-05 | J75: 3.749856002e-05 | K75: 7.647794168e-05 | L75: 0.0002172146766 | M75: 0.0005295865201 | N75: 8.315288656e-08
A76: =IF('DF raw data'!E76="","",'DF raw data'!E76) -> -295.5 | B76: =IF('DF raw data'!F76="","",'DF raw data'!F76) -> -1.93858e-05 | C76: =IF('DF raw data'!G76="","",'DF raw data'!G76) -> 0.000142586 | D76: =IF('DF raw data'!H76="","",'DF raw data'!H76) -> 4.00372e-06 | F76: 8.361143233e-06 | G76: 2.923844534e-05 | H76: 1.902654739e-05 | J76: 4.167913164e-05 | K76: 9.73175075e-05 | L76: 0.0002318338993 | M76: 0.0006455034697 | N76: 1.1089494e-07
A77: =IF('DF raw data'!E77="","",'DF raw data'!E77) -> -295 | B77: =IF('DF raw data'!F77="","",'DF raw data'!F77) -> -2.20752e-05 | C77: =IF('DF raw data'!G77="","",'DF raw data'!G77) -> 0.000155684 | D77: =IF('DF raw data'!H77="","",'DF raw data'!H77) -> 3.30165e-06 | F77: 5.659909873e-06 | G77: 4.239407654e-05 | H77: 1.832138828e-05 | J77: 4.450908657e-05 | K77: 0.0001195720508 | L77: 0.0002530309376 | M77: 0.0007720189385 | N77: 1.438977971e-07
A78: =IF('DF raw data'!E78="","",'DF raw data'!E78) -> -294.5 | B78: =IF('DF raw data'!F78="","",'DF raw data'!F78) -> -2.49607e-05 | C78: =IF('DF raw data'!G78="","",'DF raw data'!G78) -> 0.000158342 | D78: =IF('DF raw data'!H78="","",'DF raw data'!H78) -> 2.97218e-06 | F78: 2.761713673e-06 | G78: 4.506377174e-05 | H78: 1.799046861e-05 | J78: 4.588994341e-05 | K78: 0.0001425170225 | L78: 0.0002755628234 | M78: 0.0009098003502 | N78: 1.829181754e-07
A79: =IF('DF raw data'!E79="","",'DF raw data'!E79) -> -294 | B79: =IF('DF raw data'!F79="","",'DF raw data'!F79) -> -3.88645e-05 | C79: =IF('DF raw data'!G79="","",'DF raw data'!G79) -> 0.000164667 | D79: =IF('DF raw data'!H79="","",'DF raw data'!H79) -> 3.80914e-06 | F79: -1.120326305e-05 | G79: 5.141660174e-05 | H79: 1.883111123e-05 | J79: 4.028831189e-05 | K79: 0.0001626611784 | L79: 0.0003012711243 | M79: 0.001060435912 | N79: 2.291118946e-07
A80: =IF('DF raw data'!E80="","",'DF raw data'!E80) -> -293.5 | B80: =IF('DF raw data'!F80="","",'DF raw data'!F80) -> -3.37418e-05 | C80: =IF('DF raw data'!G80="","",'DF raw data'!G80) -> 0.000166569 | D80: =IF('DF raw data'!H80="","",'DF raw data'!H80) -> 4.92782e-06 | F80: -6.058023167e-06 | G80: 5.332697054e-05 | H80: 1.995471343e-05 | J80: 3.72593003e-05 | K80: 0.0001812908286 | L80: 0.0003279346096 | M80: 0.001224403217 | N80: 2.835765764e-07
A81: =IF('DF raw data'!E81="","",'DF raw data'!E81) -> -293 | B81: =IF('DF raw data'!F81="","",'DF raw data'!F81) -> -2.54084e-05 | C81: =IF('DF raw data'!G81="","",'DF raw data'!G81) -> 0.000151699 | D81: =IF('DF raw data'!H81="","",'DF raw data'!H81) -> 5.005e-06 | F81: 2.312043793e-06 | G81: 3.839154254e-05 | H81: 2.003223302e-05 | J81: 3.84153222e-05 | K81: 0.0002004984897 | L81: 0.0003471303808 | M81: 0.001397968408 | N81: 3.445641955e-07
A82: =IF('DF raw data'!E82="","",'DF raw data'!E82) -> -292.5 | B82: =IF('DF raw data'!F82="","",'DF raw data'!F82) -> -2.94477e-05 | C82: =IF('DF raw data'!G82="","",'DF raw data'!G82) -> 0.000155189 | D82: =IF('DF raw data'!H82="","",'DF raw data'!H82) -> 4.16209e-06 | F82: -1.745029127e-06 | G82: 4.189689854e-05 | H82: 1.918561421e-05 | J82: 3.754280764e-05 | K82: 0.0002192698935 | L82: 0.0003680788301 | M82: 0.001582007823 | N82: 4.130099393e-07
A83: =IF('DF raw data'!E83="","",'DF raw data'!E83) -> -292 | B83: =IF('DF raw data'!F83="","",'DF raw data'!F83) -> -2.59201e-05 | C83: =IF('DF raw data'!G83="","",'DF raw data'!G83) -> 0.000159671 | D83: =IF('DF raw data'!H83="","",'DF raw data'!H83) -> 3.69594e-06 | F83: 1.798092313e-06 | G83: 4.639861934e-05 | H83: 1.871741315e-05 | J83: 3.844185379e-05 | K83: 0.0002384908204 | L83: 0.0003912781398 | M83: 0.001777646893 | N83: 4.902981187e-07
A84: =IF('DF raw data'!E84="","",'DF raw data'!E84) -> -291.5 | B84: =IF('DF raw data'!F84="","",'DF raw data'!F84) -> -4.24372e-05 | C84: =IF('DF raw data'!G84="","",'DF raw data'!G84) -> 0.000157752 | D84: =IF('DF raw data'!H84="","",'DF raw data'!H84) -> -2.64599e-05 | F84: -1.479168293e-05 | G84: 4.447117574e-05 | H84: -1.157111254e-05 | J84: 3.104601233e-05 | K84: 0.0002540138266 | L84: 0.0004135137277 | M84: 0.001984403756 | N84: 5.762768476e-07
A85: =IF('DF raw data'!E85="","",'DF raw data'!E85) -> -291 | B85: =IF('DF raw data'!F85="","",'DF raw data'!F85) -> -3.07079e-05 | C85: =IF('DF raw data'!G85="","",'DF raw data'!G85) -> 0.000156944 | D85: =IF('DF raw data'!H85="","",'DF raw data'!H85) -> -2.41497e-05 | F85: -3.010774007e-06 | G85: 4.365962054e-05 | H85: -9.250747663e-06 | J85: 2.954062533e-05 | K85: 0.0002687841392 | L85: 0.0004353435379 | M85: 0.002202075525 | N85: 6.714751699e-07
A86: =IF('DF raw data'!E86="","",'DF raw data'!E86) -> -290.5 | B86: =IF('DF raw data'!F86="","",'DF raw data'!F86) -> -2.19358e-05 | C86: =IF('DF raw data'!G86="","",'DF raw data'!G86) -> 0.000150296 | D86: =IF('DF raw data'!H86="","",'DF raw data'!H86) -> -1.69548e-05 | F86: 5.799923233e-06 | G86: 3.698236934e-05 | H86: -2.024190103e-06 | J86: 3.244058694e-05 | K86: 0.0002850044327 | L86: 0.0004538347226 | M86: 0.002428992887 | N86: 7.749843434e-07
A87: =IF('DF raw data'!E87="","",'DF raw data'!E87) -> -290 | B87: =IF('DF raw data'!F87="","",'DF raw data'!F87) -> -1.97508e-05 | C87: =IF('DF raw data'!G87="","",'DF raw data'!G87) -> 0.000156443 | D87: =IF('DF raw data'!H87="","",'DF raw data'!H87) -> -2.34639e-05 | F87: 7.994537233e-06 | G87: 4.315641614e-05 | H87: -8.561930143e-06 | J87: 3.643785556e-05 | K87: 0.0003032233605 | L87: 0.0004754129307 | M87: 0.002666699352 | N87: 8.886569294e-07
A88: =IF('DF raw data'!E88="","",'DF raw data'!E88) -> -289.5 | B88: =IF('DF raw data'!F88="","",'DF raw data'!F88) -> -3.14231e-05 | C88: =IF('DF raw data'!G88="","",'DF raw data'!G88) -> 0.000146826 | D88: =IF('DF raw data'!H88="","",'DF raw data'!H88) -> -1.31245e-05 | F88: -3.729120887e-06 | G88: 3.349710134e-05 | H88: 1.822963217e-06 | J88: 3.457329512e-05 | K88: 0.000320510008 | L88: 0.0004921614813 | M88: 0.002912780093 | N88: 1.010366048e-06
A89: =IF('DF raw data'!E89="","",'DF raw data'!E89) -> -289 | B89: =IF('DF raw data'!F89="","",'DF raw data'!F89) -> -3.0008e-05 | C89: =IF('DF raw data'!G89="","",'DF raw data'!G89) -> 0.000148958 | D89: =IF('DF raw data'!H89="","",'DF raw data'!H89) -> -1.62318e-05 | F89: -2.307794447e-06 | G89: 3.563848214e-05 | H89: -1.298008903e-06 | J89: 3.341939789e-05 | K89: 0.000337219707 | L89: 0.0005099807224 | M89: 0.003167770454 | N89: 1.140964644e-06
A90: =IF('DF raw data'!E90="","",'DF raw data'!E90) -> -288.5 | B90: =IF('DF raw data'!F90="","",'DF raw data'!F90) -> -1.85438e-05 | C90: =IF('DF raw data'!G90="","",'DF raw data'!G90) -> 0.000154964 | D90: =IF('DF raw data'!H90="","",'DF raw data'!H90) -> -9.99729e-06 | F90: 9.206848033e-06 | G90: 4.167090854e-05 | H90: 4.963932941e-06 | J90: 3.802282191e-05 | K90: 0.0003562311179 | L90: 0.0005308161767 | M90: 0.003433178542 | N90: 1.282570419e-06
A91: =IF('DF raw data'!E91="","",'DF raw data'!E91) -> -288 | B91: =IF('DF raw data'!F91="","",'DF raw data'!F91) -> -2.39247e-05 | C91: =IF('DF raw data'!G91="","",'DF raw data'!G91) -> 0.000156522 | D91: =IF('DF raw data'!H91="","",'DF raw data'!H91) -> -9.78947e-06 | F91: 3.802272073e-06 | G91: 4.323576374e-05 | H91: 5.172667349e-06 | J91: 3.992395795e-05 | K91: 0.0003761930969 | L91: 0.0005524340585 | M91: 0.003709395571 | N91: 1.435959074e-06
A92: =IF('DF raw data'!E92="","",'DF raw data'!E92) -> -287.5 | B92: =IF('DF raw data'!F92="","",'DF raw data'!F92) -> -1.80278e-05 | C92: =IF('DF raw data'!G92="","",'DF raw data'!G92) -> 0.000154522 | D92: =IF('DF raw data'!H92="","",'DF raw data'!H92) -> -1.51884e-05 | F92: 9.725118433e-06 | G92: 4.122696374e-05 | H92: -2.500179427e-07 | J92: 4.478651716e-05 | K92: 0.0003985863555 | L92: 0.0005730475404 | M92: 0.003995919342 | N92: 1.601153732e-06
A93: =IF('DF raw data'!E93="","",'DF raw data'!E93) -> -287 | B93: =IF('DF raw data'!F93="","",'DF raw data'!F93) -> -1.82801e-05 | C93: =IF('DF raw data'!G93="","",'DF raw data'!G93) -> 0.000150199 | D93: =IF('DF raw data'!H93="","",'DF raw data'!H93) -> -1.82653e-05 | F93: 9.471708313e-06 | G93: 3.688494254e-05 | H93: -3.340456303e-06 | J93: 4.952237132e-05 | K93: 0.0004233475412 | L93: 0.0005914900117 | M93: 0.004291664347 | N93: 1.777310182e-06
A94: =IF('DF raw data'!E94="","",'DF raw data'!E94) -> -286.5 | B94: =IF('DF raw data'!F94="","",'DF raw data'!F94) -> -2.47547e-05 | C94: =IF('DF raw data'!G94="","",'DF raw data'!G94) -> 0.000138964 | D94: =IF('DF raw data'!H94="","",'DF raw data'!H94) -> -1.84529e-05 | F94: 2.968620073e-06 | G94: 2.560050854e-05 | H94: -3.528881743e-06 | J94: 5.100668136e-05 | K94: 0.0004488508818 | L94: 0.0006042902659 | M94: 0.00459380948 | N94: 1.961194385e-06
A95: =IF('DF raw data'!E95="","",'DF raw data'!E95) -> -286 | B95: =IF('DF raw data'!F95="","",'DF raw data'!F95) -> -1.30228e-05 | C95: =IF('DF raw data'!G95="","",'DF raw data'!G95) -> 0.000157307 | D95: =IF('DF raw data'!H95="","",'DF raw data'!H95) -> -2.24414e-05 | F95: 1.475214043e-05 | G95: 4.402421774e-05 | H95: -7.534931143e-06 | J95: 5.838275157e-05 | K95: 0.0004780422576 | L95: 0.0006263023748 | M95: 0.004906960668 | N95: 2.15902599e-06
A96: =IF('DF raw data'!E96="","",'DF raw data'!E96) -> -285.5 | B96: =IF('DF raw data'!F96="","",'DF raw data'!F96) -> -4.19927e-05 | C96: =IF('DF raw data'!G96="","",'DF raw data'!G96) -> 0.000159913 | D96: =IF('DF raw data'!H96="","",'DF raw data'!H96) -> -2.07461e-05 | F96: -1.434522713e-05 | G96: 4.664168414e-05 | H96: -5.832171823e-06 | J96: 5.121013801e-05 | K96: 0.0005036473266 | L96: 0.0006496232169 | M96: 0.005231772276 | N96: 2.371342391e-06
A97: =IF('DF raw data'!E97="","",'DF raw data'!E97) -> -285 | B97: =IF('DF raw data'!F97="","",'DF raw data'!F97) -> -1.85318e-05 | C97: =IF('DF raw data'!G97="","",'DF raw data'!G97) -> 0.00015639 | D97: =IF('DF raw data'!H97="","",'DF raw data'!H97) -> -2.53248e-05 | F97: 9.218900833e-06 | G97: 4.310318294e-05 | H97: -1.04310181e-05 | J97: 5.581958843e-05 | K97: 0.0005315571208 | L97: 0.0006711748084 | M97: 0.00556735968 | N97: 2.598138116e-06
A98: =IF('DF raw data'!E98="","",'DF raw data'!E98) -> -284.5 | B98: =IF('DF raw data'!F98="","",'DF raw data'!F98) -> -1.9564e-05 | C98: =IF('DF raw data'!G98="","",'DF raw data'!G98) -> 0.000152006 | D98: =IF('DF raw data'!H98="","",'DF raw data'!H98) -> -1.79911e-05 | F98: 8.182159153e-06 | G98: 3.869989334e-05 | H98: -3.065049823e-06 | J98: 5.9910668e-05 | K98: 0.0005615124548 | L98: 0.000690524755 | M98: 0.005912622058 | N98: 2.838344979e-06
A99: =IF('DF raw data'!E99="","",'DF raw data'!E99) -> -284 | B99: =IF('DF raw data'!F99="","",'DF raw data'!F99) -> -3.12842e-05 | C99: =IF('DF raw data'!G99="","",'DF raw data'!G99) -> 0.000148704 | D99: =IF('DF raw data'!H99="","",'DF raw data'!H99) -> -2.4487e-05 | F99: -3.589609727e-06 | G99: 3.538336454e-05 | H99: -9.589531783e-06 | J99: 5.811586314e-05 | K99: 0.0005905703864 | L99: 0.0007082164373 | M99: 0.006266730277 | N99: 3.090818967e-06
A100: =IF('DF raw data'!E100="","",'DF raw data'!E100) -> -283.5 | B100: =IF('DF raw data'!F100="","",'DF raw data'!F100) -> -1.12991e-05 | C100: =IF('DF raw data'!G100="","",'DF raw data'!G100) -> 0.000159304 | D100: =IF('DF raw data'!H100="","",'DF raw data'!H100) -> -1.42962e-05 | F100: 1.648342471e-05 | G100: 4.603000454e-05 | H100: 6.461077373e-07 | J100: 6.63575755e-05 | K100: 0.0006237491742 | L100: 0.0007312314396 | M100: 0.006632345996 | N100: 3.36037034e-06
A101: =IF('DF raw data'!E101="","",'DF raw data'!E101) -> -283 | B101: =IF('DF raw data'!F101="","",'DF raw data'!F101) -> -2.67364e-05 | C101: =IF('DF raw data'!G101="","",'DF raw data'!G101) -> 0.000161027 | D101: =IF('DF raw data'!H101="","",'DF raw data'!H101) -> -2.16515e-05 | F101: 9.782005935e-07 | G101: 4.776058574e-05 | H101: -6.741555583e-06 | J101: 6.684667579e-05 | K101: 0.0006571725121 | L101: 0.0007551117324 | M101: 0.007009901863 | N101: 3.647701443e-06
A102: =IF('DF raw data'!E102="","",'DF raw data'!E102) -> -282.5 | B102: =IF('DF raw data'!F102="","",'DF raw data'!F102) -> -2.23892e-05 | C102: =IF('DF raw data'!G102="","",'DF raw data'!G102) -> 0.000159526 | D102: =IF('DF raw data'!H102="","",'DF raw data'!H102) -> -9.72888e-06 | F102: 5.344528273e-06 | G102: 4.625298134e-05 | H102: 5.233523945e-06 | J102: 6.951893993e-05 | K102: 0.000691931982 | L102: 0.0007782382231 | M102: 0.007399020974 | N102: 3.952945251e-06
A103: =IF('DF raw data'!E103="","",'DF raw data'!E103) -> -282 | B103: =IF('DF raw data'!F103="","",'DF raw data'!F103) -> -1.56497e-05 | C103: =IF('DF raw data'!G103="","",'DF raw data'!G103) -> 0.000158227 | D103: =IF('DF raw data'!H103="","",'DF raw data'!H103) -> -2.31575e-05 | F103: 1.211368207e-05 | G103: 4.494826574e-05 | H103: -8.254181983e-06 | J103: 7.557578097e-05 | K103: 0.0007297198725 | L103: 0.000800712356 | M103: 0.007799377152 | N103: 4.276371238e-06
A104: =IF('DF raw data'!E104="","",'DF raw data'!E104) -> -281.5 | B104: =IF('DF raw data'!F104="","",'DF raw data'!F104) -> -1.51386e-05 | C104: =IF('DF raw data'!G104="","",'DF raw data'!G104) -> 0.000156386 | D104: =IF('DF raw data'!H104="","",'DF raw data'!H104) -> -2.32314e-05 | F104: 1.262703091e-05 | G104: 4.309916534e-05 | H104: -8.328407143e-06 | J104: 8.188929642e-05 | K104: 0.0007706645207 | L104: 0.0008222619386 | M104: 0.008210508121 | N104: 4.617781515e-06
A105: =IF('DF raw data'!E105="","",'DF raw data'!E105) -> -281 | B105: =IF('DF raw data'!F105="","",'DF raw data'!F105) -> -1.98786e-05 | C105: =IF('DF raw data'!G105="","",'DF raw data'!G105) -> 0.000162574 | D105: =IF('DF raw data'!H105="","",'DF raw data'!H105) -> -2.38403e-05 | F105: 7.866174913e-06 | G105: 4.931439254e-05 | H105: -8.939986303e-06 | J105: 8.582238388e-05 | K105: 0.0008135757127 | L105: 0.0008469191349 | M105: 0.008633967689 | N105: 4.980100266e-06
A106: =IF('DF raw data'!E106="","",'DF raw data'!E106) -> -280.5 | B106: =IF('DF raw data'!F106="","",'DF raw data'!F106) -> -2.76441e-05 | C106: =IF('DF raw data'!G106="","",'DF raw data'!G106) -> 0.000160417 | D106: =IF('DF raw data'!H106="","",'DF raw data'!H106) -> -9.63208e-06 | F106: 6.650671346e-08 | G106: 4.714790174e-05 | H106: 5.330749865e-06 | J106: 8.585563724e-05 | K106: 0.0008565035313 | L106: 0.0008704930858 | M106: 0.009069214232 | N106: 5.362664968e-06
A107: =IF('DF raw data'!E107="","",'DF raw data'!E107) -> -280 | B107: =IF('DF raw data'!F107="","",'DF raw data'!F107) -> -3.35915e-05 | C107: =IF('DF raw data'!G107="","",'DF raw data'!G107) -> 0.000168731 | D107: =IF('DF raw data'!H107="","",'DF raw data'!H107) -> -2.42029e-05 | F107: -5.907061847e-06 | G107: 5.549848334e-05 | H107: -9.304181743e-06 | J107: 8.290210631e-05 | K107: 0.0008979545844 | L107: 0.0008982423275 | M107: 0.009518335396 | N107: 5.769520987e-06
A108: =IF('DF raw data'!E108="","",'DF raw data'!E108) -> -279.5 | B108: =IF('DF raw data'!F108="","",'DF raw data'!F108) -> -3.52689e-05 | C108: =IF('DF raw data'!G108="","",'DF raw data'!G108) -> 0.000166758 | D108: =IF('DF raw data'!H108="","",'DF raw data'!H108) -> -1.2336e-05 | F108: -7.591842407e-06 | G108: 5.351680214e-05 | H108: 2.614932617e-06 | J108: 7.910618511e-05 | K108: 0.000937507677 | L108: 0.0009250007285 | M108: 0.00998083576 | N108: 6.200463055e-06
A109: =IF('DF raw data'!E109="","",'DF raw data'!E109) -> -279 | B109: =IF('DF raw data'!F109="","",'DF raw data'!F109) -> -3.35936e-05 | C109: =IF('DF raw data'!G109="","",'DF raw data'!G109) -> 0.00017431 | D109: =IF('DF raw data'!H109="","",'DF raw data'!H109) -> -2.09819e-05 | F109: -5.909171087e-06 | G109: 6.110203094e-05 | H109: -6.069009343e-06 | J109: 7.615159957e-05 | K109: 0.0009755834768 | L109: 0.000955551744 | M109: 0.01045861163 | N109: 6.659902155e-06
A110: =IF('DF raw data'!E110="","",'DF raw data'!E110) -> -278.5 | B110: =IF('DF raw data'!F110="","",'DF raw data'!F110) -> -2.88607e-05 | C110: =IF('DF raw data'!G110="","",'DF raw data'!G110) -> 0.000172083 | D110: =IF('DF raw data'!H110="","",'DF raw data'!H110) -> -1.15547e-05 | F110: -1.155446327e-06 | G110: 5.886523214e-05 | H110: 3.399670337e-06 | J110: 7.55738764e-05 | K110: 0.001013370415 | L110: 0.0009849843601 | M110: 0.01095110381 | N110: 7.147854956e-06
A111: =IF('DF raw data'!E111="","",'DF raw data'!E111) -> -278 | B111: =IF('DF raw data'!F111="","",'DF raw data'!F111) -> -2.27708e-05 | C111: =IF('DF raw data'!G111="","",'DF raw data'!G111) -> 0.000163022 | D111: =IF('DF raw data'!H111="","",'DF raw data'!H111) -> -1.06149e-05 | F111: 4.961249233e-06 | G111: 4.976436374e-05 | H111: 4.343605457e-06 | J111: 7.805450102e-05 | K111: 0.001052397665 | L111: 0.001009866542 | M111: 0.01145603708 | N111: 7.660816424e-06
A112: =IF('DF raw data'!E112="","",'DF raw data'!E112) -> -277.5 | B112: =IF('DF raw data'!F112="","",'DF raw data'!F112) -> -3.51416e-05 | C112: =IF('DF raw data'!G112="","",'DF raw data'!G112) -> 0.000157823 | D112: =IF('DF raw data'!H112="","",'DF raw data'!H112) -> -1.09094e-05 | F112: -7.463982287e-06 | G112: 4.454248814e-05 | H112: 4.047809657e-06 | J112: 7.432250988e-05 | K112: 0.00108955892 | L112: 0.001032137786 | M112: 0.01197210598 | N112: 8.196232547e-06
A113: =IF('DF raw data'!E113="","",'DF raw data'!E113) -> -277 | B113: =IF('DF raw data'!F113="","",'DF raw data'!F113) -> -2.82758e-05 | C113: =IF('DF raw data'!G113="","",'DF raw data'!G113) -> 0.000159283 | D113: =IF('DF raw data'!H113="","",'DF raw data'!H113) -> -1.92613e-05 | F113: -5.679727665e-07 | G113: 4.600891214e-05 | H113: -4.340838703e-06 | J113: 7.403852349e-05 | K113: 0.001126578182 | L113: 0.001055142242 | M113: 0.0124996771 | N113: 8.755635974e-06
A114: =IF('DF raw data'!E114="","",'DF raw data'!E114) -> -276.5 | B114: =IF('DF raw data'!F114="","",'DF raw data'!F114) -> -2.65534e-05 | C114: =IF('DF raw data'!G114="","",'DF raw data'!G114) -> 0.000161415 | D114: =IF('DF raw data'!H114="","",'DF raw data'!H114) -> -1.20392e-05 | F114: 1.162005793e-06 | G114: 4.815029294e-05 | H114: 2.913038537e-06 | J114: 7.461952639e-05 | K114: 0.001163887945 | L114: 0.001079217389 | M114: 0.01303928579 | N114: 9.340775097e-06
A115: =IF('DF raw data'!E115="","",'DF raw data'!E115) -> -276 | B115: =IF('DF raw data'!F115="","",'DF raw data'!F115) -> -1.50117e-05 | C115: =IF('DF raw data'!G115="","",'DF raw data'!G115) -> 0.000167267 | D115: =IF('DF raw data'!H115="","",'DF raw data'!H115) -> -1.88099e-05 | F115: 1.275448927e-05 | G115: 5.402804174e-05 | H115: -3.887452543e-06 | J115: 8.099677103e-05 | K115: 0.001204386331 | L115: 0.001106231409 | M115: 0.0135924015 | N115: 9.955929301e-06
A116: =IF('DF raw data'!E116="","",'DF raw data'!E116) -> -275.5 | B116: =IF('DF raw data'!F116="","",'DF raw data'!F116) -> -2.80167e-05 | C116: =IF('DF raw data'!G116="","",'DF raw data'!G116) -> 0.000160627 | D116: =IF('DF raw data'!H116="","",'DF raw data'!H116) -> -2.81198e-05 | F116: -3.077327265e-07 | G116: 4.735882574e-05 | H116: -1.32383161e-05 | J116: 8.084290466e-05 | K116: 0.001244807783 | L116: 0.001129910822 | M116: 0.01415735691 | N116: 1.059754632e-05
A117: =IF('DF raw data'!E117="","",'DF raw data'!E117) -> -275 | B117: =IF('DF raw data'!F117="","",'DF raw data'!F117) -> -2.90473e-05 | C117: =IF('DF raw data'!G117="","",'DF raw data'!G117) -> 0.000157799 | D117: =IF('DF raw data'!H117="","",'DF raw data'!H117) -> -1.58395e-05 | F117: -1.342867367e-06 | G117: 4.451838254e-05 | H117: -9.039827827e-07 | J117: 8.017147098e-05 | K117: 0.001284893519 | L117: 0.001152170014 | M117: 0.01473344191 | N117: 1.126450792e-05
A118: =IF('DF raw data'!E118="","",'DF raw data'!E118) -> -274.5 | B118: =IF('DF raw data'!F118="","",'DF raw data'!F118) -> -4.27004e-05 | C118: =IF('DF raw data'!G118="","",'DF raw data'!G118) -> 0.000154524 | D118: =IF('DF raw data'!H118="","",'DF raw data'!H118) -> -1.60951e-05 | F118: -1.505604101e-05 | G118: 4.122897254e-05 | H118: -1.160707423e-06 | J118: 7.264345048e-05 | K118: 0.001321215244 | L118: 0.0011727845 | M118: 0.01531983416 | N118: 1.19548582e-05
A119: =IF('DF raw data'!E119="","",'DF raw data'!E119) -> -274 | B119: =IF('DF raw data'!F119="","",'DF raw data'!F119) -> -3.80804e-05 | C119: =IF('DF raw data'!G119="","",'DF raw data'!G119) -> 0.000156809 | D119: =IF('DF raw data'!H119="","",'DF raw data'!H119) -> -1.90266e-05 | F119: -1.041571301e-05 | G119: 4.352402654e-05 | H119: -4.105106023e-06 | J119: 6.743559397e-05 | K119: 0.001354933041 | L119: 0.001194546513 | M119: 0.01591710742 | N119: 1.267060267e-05
A120: =IF('DF raw data'!E120="","",'DF raw data'!E120) -> -273.5 | B120: =IF('DF raw data'!F120="","",'DF raw data'!F120) -> -3.96917e-05 | C120: =IF('DF raw data'!G120="","",'DF raw data'!G120) -> 0.000162517 | D120: =IF('DF raw data'!H120="","",'DF raw data'!H120) -> -1.04891e-05 | F120: -1.203410273e-05 | G120: 4.925714174e-05 | H120: 4.469958977e-06 | J120: 6.141854261e-05 | K120: 0.001385642312 | L120: 0.001219175084 | M120: 0.01652669496 | N120: 1.341568273e-05
A121: =IF('DF raw data'!E121="","",'DF raw data'!E121) -> -273 | B121: =IF('DF raw data'!F121="","",'DF raw data'!F121) -> -2.34175e-05 | C121: =IF('DF raw data'!G121="","",'DF raw data'!G121) -> 0.000153008 | D121: =IF('DF raw data'!H121="","",'DF raw data'!H121) -> -1.66585e-06 | F121: 4.311703753e-06 | G121: 3.970630214e-05 | H121: 1.333203128e-05 | J121: 6.357439449e-05 | K121: 0.001417429509 | L121: 0.001239028235 | M121: 0.01714620908 | N121: 1.418529906e-05
A122: =IF('DF raw data'!E122="","",'DF raw data'!E122) -> -272.5 | B122: =IF('DF raw data'!F122="","",'DF raw data'!F122) -> -3.60404e-05 | C122: =IF('DF raw data'!G122="","",'DF raw data'!G122) -> 0.000146236 | D122: =IF('DF raw data'!H122="","",'DF raw data'!H122) -> -7.96462e-06 | F122: -8.366737007e-06 | G122: 3.290450534e-05 | H122: 7.005546689e-06 | J122: 5.939102598e-05 | K122: 0.001447125022 | L122: 0.001255480488 | M122: 0.01777394932 | N122: 1.497517834e-05
A123: =IF('DF raw data'!E123="","",'DF raw data'!E123) -> -272 | B123: =IF('DF raw data'!F123="","",'DF raw data'!F123) -> -1.30229e-05 | C123: =IF('DF raw data'!G123="","",'DF raw data'!G123) -> 0.000154497 | D123: =IF('DF raw data'!H123="","",'DF raw data'!H123) -> -2.25515e-05 | F123: 1.475203999e-05 | G123: 4.120185374e-05 | H123: -7.645515583e-06 | J123: 6.676704598e-05 | K123: 0.001480508545 | L123: 0.001276081415 | M123: 0.01841199003 | N123: 1.579159915e-05
A124: =IF('DF raw data'!E124="","",'DF raw data'!E124) -> -271.5 | B124: =IF('DF raw data'!F124="","",'DF raw data'!F124) -> -2.41784e-05 | C124: =IF('DF raw data'!G124="","",'DF raw data'!G124) -> 0.000152675 | D124: =IF('DF raw data'!H124="","",'DF raw data'!H124) -> -1.72671e-05 | F124: 3.547455793e-06 | G124: 3.937183694e-05 | H124: -2.337864223e-06 | J124: 6.854077388e-05 | K124: 0.001514778932 | L124: 0.001295767333 | M124: 0.0190598737 | N124: 1.663345455e-05
A125: =IF('DF raw data'!E125="","",'DF raw data'!E125) -> -271 | B125: =IF('DF raw data'!F125="","",'DF raw data'!F125) -> -2.08506e-05 | C125: =IF('DF raw data'!G125="","",'DF raw data'!G125) -> 0.000155175 | D125: =IF('DF raw data'!H125="","",'DF raw data'!H125) -> -7.44865e-06 | F125: 6.889898113e-06 | G125: 4.188283694e-05 | H125: 7.523786957e-06 | J125: 7.198572294e-05 | K125: 0.001550771794 | L125: 0.001316708752 | M125: 0.01971822807 | N125: 1.750290649e-05
A126: =IF('DF raw data'!E126="","",'DF raw data'!E126) -> -270.5 | B126: =IF('DF raw data'!F126="","",'DF raw data'!F126) -> -1.59154e-05 | C126: =IF('DF raw data'!G126="","",'DF raw data'!G126) -> 0.000161079 | D126: =IF('DF raw data'!H126="","",'DF raw data'!H126) -> -1.08156e-05 | F126: 1.184681299e-05 | G126: 4.781281454e-05 | H126: 4.142022377e-06 | J126: 7.790912943e-05 | K126: 0.001589726359 | L126: 0.001340615159 | M126: 0.02038853565 | N126: 1.840456591e-05
A127: =IF('DF raw data'!E127="","",'DF raw data'!E127) -> -270 | B127: =IF('DF raw data'!F127="","",'DF raw data'!F127) -> -1.27071e-05 | C127: =IF('DF raw data'!G127="","",'DF raw data'!G127) -> 0.000152161 | D127: =IF('DF raw data'!H127="","",'DF raw data'!H127) -> -1.5854e-05 | F127: 1.506922951e-05 | G127: 3.885557534e-05 | H127: -9.185465827e-07 | J127: 8.544374419e-05 | K127: 0.001632448231 | L127: 0.001360042946 | M127: 0.02106855713 | N127: 1.933307464e-05
A128: =IF('DF raw data'!E128="","",'DF raw data'!E128) -> -269.5 | B128: =IF('DF raw data'!F128="","",'DF raw data'!F128) -> -2.93022e-05 | C128: =IF('DF raw data'!G128="","",'DF raw data'!G128) -> 0.000147835 | D128: =IF('DF raw data'!H128="","",'DF raw data'!H128) -> -2.21127e-05 | F128: -1.598888927e-06 | G128: 3.451054094e-05 | H128: -7.204784863e-06 | J128: 8.464429973e-05 | K128: 0.001674770381 | L128: 0.001377298217 | M128: 0.02175720623 | N128: 2.028513216e-05
A129: =IF('DF raw data'!E129="","",'DF raw data'!E129) -> -269 | B129: =IF('DF raw data'!F129="","",'DF raw data'!F129) -> -3.2506e-05 | C129: =IF('DF raw data'!G129="","",'DF raw data'!G129) -> 0.000154084 | D129: =IF('DF raw data'!H129="","",'DF raw data'!H129) -> -1.89935e-05 | F129: -4.816785647e-06 | G129: 4.078703654e-05 | H129: -4.071860383e-06 | J129: 8.22359069e-05 | K129: 0.001715888334 | L129: 0.001397691735 | M129: 0.0224560521 | N129: 2.126528462e-05
A130: =IF('DF raw data'!E130="","",'DF raw data'!E130) -> -268.5 | B130: =IF('DF raw data'!F130="","",'DF raw data'!F130) -> -2.59715e-05 | C130: =IF('DF raw data'!G130="","",'DF raw data'!G130) -> 0.000157264 | D130: =IF('DF raw data'!H130="","",'DF raw data'!H130) -> -1.90163e-05 | F130: 1.746466153e-06 | G130: 4.398102854e-05 | H130: -4.094760703e-06 | J130: 8.310913998e-05 | K130: 0.001757442904 | L130: 0.001419682249 | M130: 0.02316589323 | N130: 2.227648703e-05
A131: =IF('DF raw data'!E131="","",'DF raw data'!E131) -> -268 | B131: =IF('DF raw data'!F131="","",'DF raw data'!F131) -> -3.05181e-05 | C131: =IF('DF raw data'!G131="","",'DF raw data'!G131) -> 0.000157555 | D131: =IF('DF raw data'!H131="","",'DF raw data'!H131) -> -2.09964e-05 | F131: =(1-$G$1*($B$54-$G$2))*(B131-F$5) -> -2.820138887e-06 | G131: =(1-$G$1*($B$54-$G$2))*(C131-G$5) -> 4.427330894e-05 | H131: =(1-$G$1*($B$54-$G$2))*(D131-H$5) -> -6.083573143e-06 | J131: 8.169907054e-05 | K131: 0.001798292439 | L131: 0.001441818904 | M131: 0.02388680268 | N131: 2.331924528e-05
A132: =IF('DF raw data'!E132="","",'DF raw data'!E132) -> -267.5 | B132: =IF('DF raw data'!F132="","",'DF raw data'!F132) -> -3.53301e-05 | C132: =IF('DF raw data'!G132="","",'DF raw data'!G132) -> 0.000158413 | D132: =IF('DF raw data'!H132="","",'DF raw data'!H132) -> -1.58997e-05 | F132: -7.653311687e-06 | G132: 4.513508414e-05 | H132: -9.644476627e-07 | J132: =F132*$G$3+J131 -> 7.787241469e-05 | K132: =J132*$G$3+K131 -> 0.001837228647 | L132: =G132*$G$3+L131 -> 0.001464386446 | M132: =L132*$G$3+M131 -> 0.0246189959 | N132: =(J132^2+L132^2)*$G$3+N131 -> 2.439449116e-05
A133: =IF('DF raw data'!E133="","",'DF raw data'!E133) -> -267 | B133: =IF('DF raw data'!F133="","",'DF raw data'!F133) -> -2.74416e-05 | C133: =IF('DF raw data'!G133="","",'DF raw data'!G133) -> 0.000153553 | D133: =IF('DF raw data'!H133="","",'DF raw data'!H133) -> -2.21237e-05 | F133: 2.698977135e-07 | G133: 4.025370014e-05 | H133: -7.215833263e-06 | J133: 7.800736355e-05 | K133: 0.001876232328 | L133: 0.001484513296 | M133: 0.02536125255 | N133: 2.54994236e-05
A134: =IF('DF raw data'!E134="","",'DF raw data'!E134) -> -266.5 | B134: =IF('DF raw data'!F134="","",'DF raw data'!F134) -> -4.57058e-05 | C134: =IF('DF raw data'!G134="","",'DF raw data'!G134) -> 0.0001489 | D134: =IF('DF raw data'!H134="","",'DF raw data'!H134) -> -2.50684e-05 | F134: -1.807466477e-05 | G134: 3.558022694e-05 | H134: -1.017348994e-05 | J134: 6.897003117e-05 | K134: 0.001910717344 | L134: 0.00150230341 | M134: 0.02611240425 | N134: 2.66302598e-05
A135: =IF('DF raw data'!E135="","",'DF raw data'!E135) -> -266 | B135: =IF('DF raw data'!F135="","",'DF raw data'!F135) -> -3.42413e-05 | C135: =IF('DF raw data'!G135="","",'DF raw data'!G135) -> 0.000156089 | D135: =IF('DF raw data'!H135="","",'DF raw data'!H135) -> -1.12455e-05 | F135: -6.559720967e-06 | G135: 4.280085854e-05 | H135: 3.710230817e-06 | J135: 6.569017068e-05 | K135: 0.001943562429 | L135: 0.001523703839 | M135: 0.02687425617 | N135: 2.779325409e-05
A136: =IF('DF raw data'!E136="","",'DF raw data'!E136) -> -265.5 | B136: =IF('DF raw data'!F136="","",'DF raw data'!F136) -> -2.7508e-05 | C136: =IF('DF raw data'!G136="","",'DF raw data'!G136) -> 0.0001503 | D136: =IF('DF raw data'!H136="","",'DF raw data'!H136) -> -2.11931e-05 | F136: 2.032055535e-07 | G136: 3.698638694e-05 | H136: -6.281138623e-06 | J136: 6.579177346e-05 | K136: 0.001976458316 | L136: 0.001542197032 | M136: 0.02764535469 | N136: 2.898460422e-05
A137: =IF('DF raw data'!E137="","",'DF raw data'!E137) -> -265 | B137: =IF('DF raw data'!F137="","",'DF raw data'!F137) -> -3.05199e-05 | C137: =IF('DF raw data'!G137="","",'DF raw data'!G137) -> 0.000152289 | D137: =IF('DF raw data'!H137="","",'DF raw data'!H137) -> -1.82764e-05 | F137: -2.821946807e-06 | G137: 3.898413854e-05 | H137: -3.351605143e-06 | J137: 6.438080006e-05 | K137: 0.002008648716 | L137: 0.001561689102 | M137: 0.02842619924 | N137: 3.020611308e-05
A138: =IF('DF raw data'!E138="","",'DF raw data'!E138) -> -264.5 | B138: =IF('DF raw data'!F138="","",'DF raw data'!F138) -> -4.12921e-05 | C138: =IF('DF raw data'!G138="","",'DF raw data'!G138) -> 0.000154563 | D138: =IF('DF raw data'!H138="","",'DF raw data'!H138) -> -1.26178e-05 | F138: -1.364154449e-05 | G138: 4.126814414e-05 | H138: 2.331892697e-06 | J138: 5.756002781e-05 | K138: 0.00203742873 | L138: 0.001582323174 | M138: 0.02921736083 | N138: 3.145964298e-05
A139: =IF('DF raw data'!E139="","",'DF raw data'!E139) -> -264 | B139: =IF('DF raw data'!F139="","",'DF raw data'!F139) -> -3.45535e-05 | C139: =IF('DF raw data'!G139="","",'DF raw data'!G139) -> 0.000163655 | D139: =IF('DF raw data'!H139="","",'DF raw data'!H139) -> -2.36699e-05 | F139: -6.873294647e-06 | G139: 5.040014894e-05 | H139: -8.768836543e-06 | J139: 5.412338049e-05 | K139: 0.00206449042 | L139: 0.001607523248 | M139: 0.03002112245 | N139: 3.275317314e-05
A140: =IF('DF raw data'!E140="","",'DF raw data'!E140) -> -263.5 | B140: =IF('DF raw data'!F140="","",'DF raw data'!F140) -> -2.8156e-05 | C140: =IF('DF raw data'!G140="","",'DF raw data'!G140) -> 0.000161084 | D140: =IF('DF raw data'!H140="","",'DF raw data'!H140) -> -1.01675e-05 | F140: -4.476456465e-07 | G140: 4.781783654e-05 | H140: 4.792974017e-06 | J140: 5.389955767e-05 | K140: 0.002091440199 | L140: 0.001631432166 | M140: 0.03083683853 | N140: 3.408541118e-05
A141: =IF('DF raw data'!E141="","",'DF raw data'!E141) -> -263 | B141: =IF('DF raw data'!F141="","",'DF raw data'!F141) -> -1.69294e-05 | C141: =IF('DF raw data'!G141="","",'DF raw data'!G141) -> 0.000167482 | D141: =IF('DF raw data'!H141="","",'DF raw data'!H141) -> -2.64367e-05 | F141: 1.082835139e-05 | G141: 5.424398774e-05 | H141: -1.154781046e-05 | J141: 5.931373336e-05 | K141: 0.002121097066 | L141: 0.00165855416 | M141: 0.03166611561 | N141: 3.546257119e-05
A142: =IF('DF raw data'!E142="","",'DF raw data'!E142) -> -262.5 | B142: =IF('DF raw data'!F142="","",'DF raw data'!F142) -> -2.84685e-05 | C142: =IF('DF raw data'!G142="","",'DF raw data'!G142) -> 0.000152337 | D142: =IF('DF raw data'!H142="","",'DF raw data'!H142) -> -2.25886e-05 | F142: -7.615206465e-07 | G142: 3.903234974e-05 | H142: -7.682778823e-06 | J142: 5.893297304e-05 | K142: 0.002150563552 | L142: 0.001678070335 | M142: 0.03250515078 | N142: 3.687226776e-05
A143: =IF('DF raw data'!E143="","",'DF raw data'!E143) -> -262 | B143: =IF('DF raw data'!F143="","",'DF raw data'!F143) -> -2.59081e-05 | C143: =IF('DF raw data'!G143="","",'DF raw data'!G143) -> 0.000146295 | D143: =IF('DF raw data'!H143="","",'DF raw data'!H143) -> -1.54775e-05 | F143: 1.810145113e-06 | G143: 3.296376494e-05 | H143: -5.403899827e-07 | J143: 5.98380456e-05 | K143: 0.002180482575 | L143: 0.001694552218 | M143: 0.03335242689 | N143: 3.830981167e-05
A144: =IF('DF raw data'!E144="","",'DF raw data'!E144) -> -261.5 | B144: =IF('DF raw data'!F144="","",'DF raw data'!F144) -> -4.92943e-05 | C144: =IF('DF raw data'!G144="","",'DF raw data'!G144) -> 0.000147066 | D144: =IF('DF raw data'!H144="","",'DF raw data'!H144) -> -2.58101e-05 | F144: -2.167895417e-05 | G144: 3.373815734e-05 | H144: -1.091845342e-05 | J144: 4.899856851e-05 | K144: 0.002204981859 | L144: 0.001711421296 | M144: 0.03420813754 | N144: 3.977549352e-05
A145: =IF('DF raw data'!E145="","",'DF raw data'!E145) -> -261 | B145: =IF('DF raw data'!F145="","",'DF raw data'!F145) -> -3.67379e-05 | C145: =IF('DF raw data'!G145="","",'DF raw data'!G145) -> 0.000144484 | D145: =IF('DF raw data'!H145="","",'DF raw data'!H145) -> -1.52493e-05 | F145: -9.067306007e-06 | G145: 3.114479654e-05 | H145: -3.111859027e-07 | J145: 4.446491551e-05 | K145: 0.002227214317 | L145: 0.001726993694 | M145: 0.03507163439 | N145: 4.12677357e-05
A146: =IF('DF raw data'!E146="","",'DF raw data'!E146) -> -260.5 | B146: =IF('DF raw data'!F146="","",'DF raw data'!F146) -> -3.87241e-05 | C146: =IF('DF raw data'!G146="","",'DF raw data'!G146) -> 0.000140837 | D146: =IF('DF raw data'!H146="","",'DF raw data'!H146) -> -1.9719e-05 | F146: -1.106224529e-05 | G146: 2.748174974e-05 | H146: -4.800552583e-06 | J146: 3.893379287e-05 | K146: 0.002246681213 | L146: 0.001740734569 | M146: 0.03594200167 | N146: 4.278357204e-05
A147: =IF('DF raw data'!E147="","",'DF raw data'!E147) -> -260 | B147: =IF('DF raw data'!F147="","",'DF raw data'!F147) -> -2.6669e-05 | C147: =IF('DF raw data'!G147="","",'DF raw data'!G147) -> 0.000142578 | D147: =IF('DF raw data'!H147="","",'DF raw data'!H147) -> -2.78335e-05 | F147: 1.045897153e-06 | G147: 2.923041014e-05 | H147: -1.295075638e-05 | J147: 3.945674144e-05 | K147: 0.002266409584 | L147: 0.001755349774 | M147: 0.03681967656 | N147: 4.432497687e-05
A148: =IF('DF raw data'!E148="","",'DF raw data'!E148) -> -259.5 | B148: =IF('DF raw data'!F148="","",'DF raw data'!F148) -> -2.48814e-05 | C148: =IF('DF raw data'!G148="","",'DF raw data'!G148) -> 0.000149775 | D148: =IF('DF raw data'!H148="","",'DF raw data'!H148) -> -1.97039e-05 | F148: 2.841362593e-06 | G148: 3.645907694e-05 | H148: -4.785386143e-06 | J148: 4.087742274e-05 | K148: 0.002286848296 | L148: 0.001773579313 | M148: 0.03770646621 | N148: 4.589860414e-05
A149: =IF('DF raw data'!E149="","",'DF raw data'!E149) -> -259 | B149: =IF('DF raw data'!F149="","",'DF raw data'!F149) -> -1.07234e-05 | C149: =IF('DF raw data'!G149="","",'DF raw data'!G149) -> 0.000151335 | D149: =IF('DF raw data'!H149="","",'DF raw data'!H149) -> -1.1545e-05 | F149: 1.706165779e-05 | G149: 3.802594094e-05 | H149: 3.409413017e-06 | J149: 4.940825164e-05 | K149: 0.002311552421 | L149: 0.001792592283 | M149: 0.03860276236 | N149: 4.750651828e-05
A150: =IF('DF raw data'!E150="","",'DF raw data'!E150) -> -258.5 | B150: =IF('DF raw data'!F150="","",'DF raw data'!F150) -> -3.03336e-05 | C150: =IF('DF raw data'!G150="","",'DF raw data'!G150) -> 0.000147472 | D150: =IF('DF raw data'!H150="","",'DF raw data'!H150) -> -1.22443e-05 | F150: -2.634827087e-06 | G150: 3.414594374e-05 | H150: 2.707036097e-06 | J150: 4.809083809e-05 | K150: 0.00233559784 | L150: 0.001809665255 | M150: 0.03950759498 | N150: 4.914511881e-05
A151: =IF('DF raw data'!E151="","",'DF raw data'!E151) -> -258 | B151: =IF('DF raw data'!F151="","",'DF raw data'!F151) -> -2.40477e-05 | C151: =IF('DF raw data'!G151="","",'DF raw data'!G151) -> 0.000152856 | D151: =IF('DF raw data'!H151="","",'DF raw data'!H151) -> -1.88466e-05 | F151: 3.678730873e-06 | G151: 3.955363334e-05 | H151: -3.924314023e-06 | J151: 4.993020353e-05 | K151: 0.002360562942 | L151: 0.001829442072 | M151: 0.04042231602 | N151: 5.081979447e-05
A152: =IF('DF raw data'!E152="","",'DF raw data'!E152) -> -257.5 | B152: =IF('DF raw data'!F152="","",'DF raw data'!F152) -> -3.25055e-05 | C152: =IF('DF raw data'!G152="","",'DF raw data'!G152) -> 0.000159677 | D152: =IF('DF raw data'!H152="","",'DF raw data'!H152) -> -2.26603e-05 | F152: -4.816283447e-06 | G152: 4.640464574e-05 | H152: -7.754794303e-06 | J152: 4.752206181e-05 | K152: 0.002384323973 | L152: 0.001852644395 | M152: 0.04134863822 | N152: 5.253706927e-05
A153: =IF('DF raw data'!E153="","",'DF raw data'!E153) -> -257 | B153: =IF('DF raw data'!F153="","",'DF raw data'!F153) -> -1.8212e-05 | C153: =IF('DF raw data'!G153="","",'DF raw data'!G153) -> 0.000149545 | D153: =IF('DF raw data'!H153="","",'DF raw data'!H153) -> -2.51674e-05 | F153: 9.540107953e-06 | G153: 3.622806494e-05 | H153: -1.027292554e-05 | J153: 5.229211578e-05 | K153: 0.002410470031 | L153: 0.001870758427 | M153: 0.04228401743 | N153: 5.428830505e-05
A154: =IF('DF raw data'!E154="","",'DF raw data'!E154) -> -256.5 | B154: =IF('DF raw data'!F154="","",'DF raw data'!F154) -> -3.21856e-05 | C154: =IF('DF raw data'!G154="","",'DF raw data'!G154) -> 0.000148675 | D154: =IF('DF raw data'!H154="","",'DF raw data'!H154) -> -2.19975e-05 | F154: -4.494975887e-06 | G154: 3.535423694e-05 | H154: -7.089077983e-06 | J154: 5.004462784e-05 | K154: 0.002435492345 | L154: 0.001888435546 | M154: 0.0432282352 | N154: 5.607265169e-05
A155: =IF('DF raw data'!E155="","",'DF raw data'!E155) -> -256 | B155: =IF('DF raw data'!F155="","",'DF raw data'!F155) -> -2.02061e-05 | C155: =IF('DF raw data'!G155="","",'DF raw data'!G155) -> 0.000153922 | D155: =IF('DF raw data'!H155="","",'DF raw data'!H155) -> -1.36963e-05 | F155: 7.537233913e-06 | G155: 4.062432374e-05 | H155: 1.248647297e-06 | J155: 5.38132448e-05 | K155: 0.002462398967 | L155: 0.001908747708 | M155: 0.04418260906 | N155: 5.789575853e-05
A156: =IF('DF raw data'!E156="","",'DF raw data'!E156) -> -255.5 | B156: =IF('DF raw data'!F156="","",'DF raw data'!F156) -> -2.65516e-05 | C156: =IF('DF raw data'!G156="","",'DF raw data'!G156) -> 0.000153537 | D156: =IF('DF raw data'!H156="","",'DF raw data'!H156) -> -1.33468e-05 | F156: 1.163813713e-06 | G156: 4.023762974e-05 | H156: 1.599685097e-06 | J156: 5.439515165e-05 | K156: 0.002489596543 | L156: 0.001928866522 | M156: 0.04514704232 | N156: 5.975750097e-05
A157: =IF('DF raw data'!E157="","",'DF raw data'!E157) -> -255 | B157: =IF('DF raw data'!F157="","",'DF raw data'!F157) -> -2.17454e-05 | C157: =IF('DF raw data'!G157="","",'DF raw data'!G157) -> 0.000153444 | D157: =IF('DF raw data'!H157="","",'DF raw data'!H157) -> -1.17081e-05 | F157: 5.991160993e-06 | G157: 4.014422054e-05 | H157: 3.245595377e-06 | J157: 5.739073215e-05 | K157: 0.002518291909 | L157: 0.001948938633 | M157: 0.04612151164 | N157: 6.165832872e-05
A158: =IF('DF raw data'!E158="","",'DF raw data'!E158) -> -254.5 | B158: =IF('DF raw data'!F158="","",'DF raw data'!F158) -> -4.29582e-05 | C158: =IF('DF raw data'!G158="","",'DF raw data'!G158) -> 0.000144854 | D158: =IF('DF raw data'!H158="","",'DF raw data'!H158) -> -1.14741e-05 | F158: -1.531497533e-05 | G158: 3.151642454e-05 | H158: 3.480624977e-06 | J158: 4.973324449e-05 | K158: 0.002543158531 | L158: 0.001964696845 | M158: 0.04710386006 | N158: 6.358958226e-05
A159: =IF('DF raw data'!E159="","",'DF raw data'!E159) -> -254 | B159: =IF('DF raw data'!F159="","",'DF raw data'!F159) -> -2.75759e-05 | C159: =IF('DF raw data'!G159="","",'DF raw data'!G159) -> 0.000153549 | D159: =IF('DF raw data'!H159="","",'DF raw data'!H159) -> -1.38029e-05 | F159: 1.350067935e-07 | G159: 4.024968254e-05 | H159: 1.141578257e-06 | J159: 4.980074788e-05 | K159: 0.002568058905 | L159: 0.001984821686 | M159: 0.0480962709 | N159: 6.556058088e-05
A160: =IF('DF raw data'!E160="","",'DF raw data'!E160) -> -253.5 | B160: =IF('DF raw data'!F160="","",'DF raw data'!F160) -> -2.82818e-05 | C160: =IF('DF raw data'!G160="","",'DF raw data'!G160) -> 0.000156546 | D160: =IF('DF raw data'!H160="","",'DF raw data'!H160) -> -1.29779e-05 | F160: -5.739991665e-07 | G160: 4.325986934e-05 | H160: 1.970208257e-06 | J160: 4.95137483e-05 | K160: 0.00259281578 | L160: 0.002006451621 | M160: 0.04909949671 | N160: 6.757473074e-05
A161: =IF('DF raw data'!E161="","",'DF raw data'!E161) -> -253 | B161: =IF('DF raw data'!F161="","",'DF raw data'!F161) -> -1.9559e-05 | C161: =IF('DF raw data'!G161="","",'DF raw data'!G161) -> 0.000159544 | D161: =IF('DF raw data'!H161="","",'DF raw data'!H161) -> -2.37842e-05 | F161: 8.187181153e-06 | G161: 4.627106054e-05 | H161: -8.883639463e-06 | J161: 5.360733888e-05 | K161: 0.002619619449 | L161: 0.002029587151 | M161: 0.05011429029 | N161: 6.963577962e-05
A162: =IF('DF raw data'!E162="","",'DF raw data'!E162) -> -252.5 | B162: =IF('DF raw data'!F162="","",'DF raw data'!F162) -> -2.93677e-05 | C162: =IF('DF raw data'!G162="","",'DF raw data'!G162) -> 0.000161529 | D162: =IF('DF raw data'!H162="","",'DF raw data'!H162) -> -1.84527e-05 | F162: -1.664677127e-06 | G162: 4.826479454e-05 | H162: -3.528680863e-06 | J162: 5.277500031e-05 | K162: 0.002646006949 | L162: 0.002053719548 | M162: 0.05114115006 | N162: 7.174605421e-05
A163: =IF('DF raw data'!E163="","",'DF raw data'!E163) -> -252 | B163: =IF('DF raw data'!F163="","",'DF raw data'!F163) -> -1.90437e-05 | C163: =IF('DF raw data'!G163="","",'DF raw data'!G163) -> 0.000153496 | D163: =IF('DF raw data'!H163="","",'DF raw data'!H163) -> -2.77948e-05 | F163: 8.704748473e-06 | G163: 4.019644934e-05 | H163: -1.29118861e-05 | J163: 5.712737455e-05 | K163: 0.002674570636 | L163: 0.002073817773 | M163: 0.05217805895 | N163: 7.389804606e-05
A164: =IF('DF raw data'!E164="","",'DF raw data'!E164) -> -251.5 | B164: =IF('DF raw data'!F164="","",'DF raw data'!F164) -> -3.59724e-05 | C164: =IF('DF raw data'!G164="","",'DF raw data'!G164) -> 0.000151097 | D164: =IF('DF raw data'!H164="","",'DF raw data'!H164) -> -1.23491e-05 | F164: -8.298437807e-06 | G164: 3.778689374e-05 | H164: 2.601774977e-06 | J164: 5.297815565e-05 | K164: 0.002701059714 | L164: 0.00209271122 | M164: 0.05322441456 | N164: 7.608916952e-05
A165: =IF('DF raw data'!E165="","",'DF raw data'!E165) -> -251 | B165: =IF('DF raw data'!F165="","",'DF raw data'!F165) -> -2.33317e-05 | C165: =IF('DF raw data'!G165="","",'DF raw data'!G165) -> 0.00015567 | D165: =IF('DF raw data'!H165="","",'DF raw data'!H165) -> -3.62929e-05 | F165: 4.397881273e-06 | G165: 4.238001494e-05 | H165: -2.144737774e-05 | J165: 5.517709628e-05 | K165: 0.002728648262 | L165: 0.002113901227 | M165: 0.05428136517 | N165: 7.832498098e-05
A166: =IF('DF raw data'!E166="","",'DF raw data'!E166) -> -250.5 | B166: =IF('DF raw data'!F166="","",'DF raw data'!F166) -> -3.39145e-05 | C166: =IF('DF raw data'!G166="","",'DF raw data'!G166) -> 0.000150986 | D166: =IF('DF raw data'!H166="","",'DF raw data'!H166) -> -2.30793e-05 | F166: -6.231483047e-06 | G166: 3.767540534e-05 | H166: -8.175637903e-06 | J166: 5.206135476e-05 | K166: 0.00275467894 | L166: 0.00213273893 | M166: 0.05534773464 | N166: 8.060062384e-05
A167: =IF('DF raw data'!E167="","",'DF raw data'!E167) -> -250 | B167: =IF('DF raw data'!F167="","",'DF raw data'!F167) -> -3.00672e-05 | C167: =IF('DF raw data'!G167="","",'DF raw data'!G167) -> 0.00014572 | D167: =IF('DF raw data'!H167="","",'DF raw data'!H167) -> -2.5917e-05 | F167: -2.367254927e-06 | G167: 3.238623494e-05 | H167: -1.102582378e-05 | J167: 5.08777273e-05 | K167: 0.002780117803 | L167: 0.002148932048 | M167: 0.05642220066 | N167: 8.291087259e-05
A168: =IF('DF raw data'!E168="","",'DF raw data'!E168) -> -249.5 | B168: =IF('DF raw data'!F168="","",'DF raw data'!F168) -> -3.98844e-05 | C168: =IF('DF raw data'!G168="","",'DF raw data'!G168) -> 0.000144279 | D168: =IF('DF raw data'!H168="","",'DF raw data'!H168) -> -8.09072e-06 | F168: -1.222765061e-05 | G168: 3.093889454e-05 | H168: 6.878891849e-06 | J168: 4.476390199e-05 | K168: 0.002802499754 | L168: 0.002164401495 | M168: 0.05750440141 | N168: 8.525419141e-05
A169: =IF('DF raw data'!E169="","",'DF raw data'!E169) -> -249 | B169: =IF('DF raw data'!F169="","",'DF raw data'!F169) -> -2.5652e-05 | C169: =IF('DF raw data'!G169="","",'DF raw data'!G169) -> 0.000150457 | D169: =IF('DF raw data'!H169="","",'DF raw data'!H169) -> -1.60356e-05 | F169: 2.067371953e-06 | G169: 3.714407774e-05 | H169: -1.100945623e-06 | J169: 4.579758797e-05 | K169: 0.002825398548 | L169: 0.002182973534 | M169: 0.05859588817 | N169: 8.763792684e-05
A170: =IF('DF raw data'!E170="","",'DF raw data'!E170) -> -248.5 | B170: =IF('DF raw data'!F170="","",'DF raw data'!F170) -> -2.94342e-05 | C170: =IF('DF raw data'!G170="","",'DF raw data'!G170) -> 0.000143225 | D170: =IF('DF raw data'!H170="","",'DF raw data'!H170) -> -1.51107e-05 | F170: -1.731469727e-06 | G170: 2.988025694e-05 | H170: -1.719760627e-07 | J170: 4.493185311e-05 | K170: 0.002847864475 | L170: 0.002197913662 | M170: 0.05969484501 | N170: 9.005434851e-05
A171: =IF('DF raw data'!E171="","",'DF raw data'!E171) -> -248 | B171: =IF('DF raw data'!F171="","",'DF raw data'!F171) -> -2.35326e-05 | C171: =IF('DF raw data'!G171="","",'DF raw data'!G171) -> 0.000148379 | D171: =IF('DF raw data'!H171="","",'DF raw data'!H171) -> -2.32048e-05 | F171: 4.196097313e-06 | G171: 3.505693454e-05 | H171: -8.301690103e-06 | J171: 4.702990176e-05 | K171: 0.002871379426 | L171: 0.002215442129 | M171: 0.06080256607 | N171: 9.250954633e-05
A172: =IF('DF raw data'!E172="","",'DF raw data'!E172) -> -247.5 | B172: =IF('DF raw data'!F172="","",'DF raw data'!F172) -> -2.9301e-05 | C172: =IF('DF raw data'!G172="","",'DF raw data'!G172) -> 0.000161552 | D172: =IF('DF raw data'!H172="","",'DF raw data'!H172) -> -2.28527e-05 | F172: -1.597683647e-06 | G172: 4.828789574e-05 | H172: -7.948040863e-06 | J172: 4.623105994e-05 | K172: 0.002894494956 | L172: 0.002239586077 | M172: 0.06192235911 | N172: 9.501848789e-05
A173: =IF('DF raw data'!E173="","",'DF raw data'!E173) -> -247 | B173: =IF('DF raw data'!F173="","",'DF raw data'!F173) -> -3.603e-05 | C173: =IF('DF raw data'!G173="","",'DF raw data'!G173) -> 0.000149306 | D173: =IF('DF raw data'!H173="","",'DF raw data'!H173) -> -2.0795e-05 | F173: -8.356291247e-06 | G173: 3.598801334e-05 | H173: -5.881286983e-06 | J173: 4.205291432e-05 | K173: 0.002915521413 | L173: 0.002257580084 | M173: 0.06305114915 | N173: 9.756770603e-05
A174: =IF('DF raw data'!E174="","",'DF raw data'!E174) -> -246.5 | B174: =IF('DF raw data'!F174="","",'DF raw data'!F174) -> -3.64204e-05 | C174: =IF('DF raw data'!G174="","",'DF raw data'!G174) -> 0.000142141 | D174: =IF('DF raw data'!H174="","",'DF raw data'!H174) -> -1.32671e-05 | F174: -8.748409007e-06 | G174: 2.879148734e-05 | H174: 1.679735777e-06 | J174: 3.767870982e-05 | K174: 0.002934360768 | L174: 0.002271975828 | M174: 0.06418713706 | N174: 0.000100149353
A175: =IF('DF raw data'!E175="","",'DF raw data'!E175) -> -246 | B175: =IF('DF raw data'!F175="","",'DF raw data'!F175) -> -2.86651e-05 | C175: =IF('DF raw data'!G175="","",'DF raw data'!G175) -> 0.00014271 | D175: =IF('DF raw data'!H175="","",'DF raw data'!H175) -> -1.40287e-05 | F175: -9.589856865e-07 | G175: 2.936299094e-05 | H175: 9.147847373e-07 | J175: 3.719921697e-05 | K175: 0.002952960376 | L175: 0.002286657323 | M175: 0.06533046573 | N175: 0.0001027644457
A176: =IF('DF raw data'!E176="","",'DF raw data'!E176) -> -245.5 | B176: =IF('DF raw data'!F176="","",'DF raw data'!F176) -> -3.07178e-05 | C176: =IF('DF raw data'!G176="","",'DF raw data'!G176) -> 0.000140643 | D176: =IF('DF raw data'!H176="","",'DF raw data'!H176) -> -1.19839e-05 | F176: -3.020717567e-06 | G176: 2.728689614e-05 | H176: 2.968581857e-06 | J176: 3.568885819e-05 | K176: 0.002970804805 | L176: 0.002300300771 | M176: 0.06648061611 | N176: 0.0001054107744
A177: =IF('DF raw data'!E177="","",'DF raw data'!E177) -> -245 | B177: =IF('DF raw data'!F177="","",'DF raw data'!F177) -> -3.07218e-05 | C177: =IF('DF raw data'!G177="","",'DF raw data'!G177) -> 0.000150717 | D177: =IF('DF raw data'!H177="","",'DF raw data'!H177) -> -4.70537e-06 | F177: -3.024735167e-06 | G177: 3.740522174e-05 | H177: 1.027913739e-05 | J177: 3.417649061e-05 | K177: 0.002987893051 | L177: 0.002319003382 | M177: 0.0676401178 | N177: 0.0001081002467
A178: =IF('DF raw data'!E178="","",'DF raw data'!E178) -> -244.5 | B178: =IF('DF raw data'!F178="","",'DF raw data'!F178) -> -2.80905e-05 | C178: =IF('DF raw data'!G178="","",'DF raw data'!G178) -> 0.000156384 | D178: =IF('DF raw data'!H178="","",'DF raw data'!H178) -> -1.1621e-05 | F178: -3.818574465e-07 | G178: 4.309715654e-05 | H178: 3.333078617e-06 | J178: 3.398556188e-05 | K178: 0.003004885832 | L178: 0.00234055196 | M178: 0.06881039378 | N178: 0.000110839916
A179: =IF('DF raw data'!E179="","",'DF raw data'!E179) -> -244 | B179: =IF('DF raw data'!F179="","",'DF raw data'!F179) -> -2.77693e-05 | C179: =IF('DF raw data'!G179="","",'DF raw data'!G179) -> 0.000144856 | D179: =IF('DF raw data'!H179="","",'DF raw data'!H179) -> -1.18623e-05 | F179: -5.924416654e-08 | G179: 3.151843334e-05 | H179: 3.090716897e-06 | J179: 3.39559398e-05 | K179: 0.003021863802 | L179: 0.002356311177 | M179: 0.06998854937 | N179: 0.0001136165937
A180: =IF('DF raw data'!E180="","",'DF raw data'!E180) -> -243.5 | B180: =IF('DF raw data'!F180="","",'DF raw data'!F180) -> -3.41727e-05 | C180: =IF('DF raw data'!G180="","",'DF raw data'!G180) -> 0.000138849 | D180: =IF('DF raw data'!H180="","",'DF raw data'!H180) -> -2.02981e-05 | F180: -6.490819127e-06 | G180: 2.548500254e-05 | H180: -5.382200623e-06 | J180: 3.071053024e-05 | K180: 0.003037219067 | L180: 0.002369053678 | M180: 0.07117307621 | N180: 0.0001164232729
A181: =IF('DF raw data'!E181="","",'DF raw data'!E181) -> -243 | B181: =IF('DF raw data'!F181="","",'DF raw data'!F181) -> -3.22555e-05 | C181: =IF('DF raw data'!G181="","",'DF raw data'!G181) -> 0.000148416 | D181: =IF('DF raw data'!H181="","",'DF raw data'!H181) -> -1.1706e-05 | F181: -4.565183447e-06 | G181: 3.509409734e-05 | H181: 3.247704617e-06 | J181: 2.842793851e-05 | K181: 0.003051433036 | L181: 0.002386600727 | M181: 0.07236637657 | N181: 0.0001192716085
A182: =IF('DF raw data'!E182="","",'DF raw data'!E182) -> -242.5 | B182: =IF('DF raw data'!F182="","",'DF raw data'!F182) -> -2.99522e-05 | C182: =IF('DF raw data'!G182="","",'DF raw data'!G182) -> 0.000151456 | D182: =IF('DF raw data'!H182="","",'DF raw data'!H182) -> -6.34451e-06 | F182: -2.251748927e-06 | G182: 3.814747334e-05 | H182: 8.632785173e-06 | J182: 2.730206405e-05 | K182: 0.003065084068 | L182: 0.002405674464 | M182: 0.07356921381 | N182: 0.000122165616
A183: =IF('DF raw data'!E183="","",'DF raw data'!E183) -> -242 | B183: =IF('DF raw data'!F183="","",'DF raw data'!F183) -> -4.50638e-05 | C183: =IF('DF raw data'!G183="","",'DF raw data'!G183) -> 0.000149827 | D183: =IF('DF raw data'!H183="","",'DF raw data'!H183) -> -2.46748e-05 | F183: -1.742983997e-05 | G183: 3.651130574e-05 | H183: -9.778158103e-06 | J183: 1.858714407e-05 | K183: 0.00307437764 | L183: 0.002423930117 | M183: 0.07478117886 | N183: 0.0001251035073
A184: =IF('DF raw data'!E184="","",'DF raw data'!E184) -> -241.5 | B184: =IF('DF raw data'!F184="","",'DF raw data'!F184) -> -2.9815e-05 | C184: =IF('DF raw data'!G184="","",'DF raw data'!G184) -> 0.000151861 | D184: =IF('DF raw data'!H184="","",'DF raw data'!H184) -> -2.01574e-05 | F184: -2.113945247e-06 | G184: 3.855425534e-05 | H184: -5.240881543e-06 | J184: 1.753017144e-05 | K184: 0.003083142726 | L184: 0.002443207244 | M184: 0.07600278249 | N184: 0.0001280882918
A185: =IF('DF raw data'!E185="","",'DF raw data'!E185) -> -241 | B185: =IF('DF raw data'!F185="","",'DF raw data'!F185) -> -3.02648e-05 | C185: =IF('DF raw data'!G185="","",'DF raw data'!G185) -> 0.000160284 | D185: =IF('DF raw data'!H185="","",'DF raw data'!H185) -> -1.80243e-05 | F185: -2.565724367e-06 | G185: 4.701431654e-05 | H185: -3.098395903e-06 | J185: 1.624730926e-05 | K185: 0.00309126638 | L185: 0.002466714402 | M185: 0.07723613969 | N185: 0.0001311307638
A186: =IF('DF raw data'!E186="","",'DF raw data'!E186) -> -240.5 | B186: =IF('DF raw data'!F186="","",'DF raw data'!F186) -> -3.48223e-05 | C186: =IF('DF raw data'!G186="","",'DF raw data'!G186) -> 0.000161904 | D186: =IF('DF raw data'!H186="","",'DF raw data'!H186) -> -6.35721e-06 | F186: -7.143277367e-06 | G186: 4.864144454e-05 | H186: 8.620029293e-06 | J186: 1.267567058e-05 | K186: 0.003097604216 | L186: 0.002491035125 | M186: 0.07848165725 | N186: 0.0001342334721
A187: =IF('DF raw data'!E187="","",'DF raw data'!E187) -> -240 | B187: =IF('DF raw data'!F187="","",'DF raw data'!F187) -> -3.39854e-05 | C187: =IF('DF raw data'!G187="","",'DF raw data'!G187) -> 0.000153861 | D187: =IF('DF raw data'!H187="","",'DF raw data'!H187) -> -1.24114e-05 | F187: -6.302695007e-06 | G187: 4.056305534e-05 | H187: 2.539200857e-06 | J187: 9.524323073e-06 | K187: 0.003102366377 | L187: 0.002511316652 | M187: 0.07973731558 | N187: 0.0001373868731
A188: =IF('DF raw data'!E188="","",'DF raw data'!E188) -> -239.5 | B188: =IF('DF raw data'!F188="","",'DF raw data'!F188) -> -3.05905e-05 | C188: =IF('DF raw data'!G188="","",'DF raw data'!G188) -> 0.000149609 | D188: =IF('DF raw data'!H188="","",'DF raw data'!H188) -> -1.01984e-05 | F188: -2.892857447e-06 | G188: 3.629234654e-05 | H188: 4.761938057e-06 | J188: 8.077894349e-06 | K188: 0.003106405324 | L188: 0.002529462826 | M188: 0.08100204699 | N188: 0.0001405859968
A189: =IF('DF raw data'!E189="","",'DF raw data'!E189) -> -239 | B189: =IF('DF raw data'!F189="","",'DF raw data'!F189) -> -3.93027e-05 | C189: =IF('DF raw data'!G189="","",'DF raw data'!G189) -> 0.000149249 | D189: =IF('DF raw data'!H189="","",'DF raw data'!H189) -> -1.46937e-05 | F189: -1.164339113e-05 | G189: 3.593076254e-05 | H189: 2.468587373e-07 | J189: 2.256198786e-06 | K189: 0.003107533424 | L189: 0.002547428207 | M189: 0.08227576109 | N189: 0.0001438306946
A190: =IF('DF raw data'!E190="","",'DF raw data'!E190) -> -238.5 | B190: =IF('DF raw data'!F190="","",'DF raw data'!F190) -> -3.35368e-05 | C190: =IF('DF raw data'!G190="","",'DF raw data'!G190) -> 0.000149395 | D190: =IF('DF raw data'!H190="","",'DF raw data'!H190) -> -1.22491e-05 | F190: -5.852121167e-06 | G190: 3.607740494e-05 | H190: 2.702214977e-06 | J190: -6.698617973e-07 | K190: 0.003107198493 | L190: 0.002565466909 | M190: 0.08355849455 | N190: 0.0001471215051
A191: =IF('DF raw data'!E191="","",'DF raw data'!E191) -> -238 | B191: =IF('DF raw data'!F191="","",'DF raw data'!F191) -> -3.28876e-05 | C191: =IF('DF raw data'!G191="","",'DF raw data'!G191) -> 0.00015822 | D191: =IF('DF raw data'!H191="","",'DF raw data'!H191) -> -2.5265e-05 | F191: -5.200064687e-06 | G191: 4.494123494e-05 | H191: -1.037095498e-05 | J191: -3.269894141e-06 | K191: 0.003105563546 | L191: 0.002587937527 | M191: 0.08485246331 | N191: 0.0001504702207
A192: =IF('DF raw data'!E192="","",'DF raw data'!E192) -> -237.5 | B192: =IF('DF raw data'!F192="","",'DF raw data'!F192) -> -4.06476e-05 | C192: =IF('DF raw data'!G192="","",'DF raw data'!G192) -> 0.000153663 | D192: =IF('DF raw data'!H192="","",'DF raw data'!H192) -> -1.62245e-05 | F192: -1.299420869e-05 | G192: 4.036418414e-05 | H192: -1.290676783e-06 | J192: -9.766998484e-06 | K192: 0.003100680047 | L192: 0.002608119619 | M192: 0.08615652312 | N192: 0.0001538714124
A193: =IF('DF raw data'!E193="","",'DF raw data'!E193) -> -237 | B193: =IF('DF raw data'!F193="","",'DF raw data'!F193) -> -3.7502e-05 | C193: =IF('DF raw data'!G193="","",'DF raw data'!G193) -> 0.000150284 | D193: =IF('DF raw data'!H193="","",'DF raw data'!H193) -> -2.46687e-05 | F193: -9.834768047e-06 | G193: 3.697031654e-05 | H193: -9.772031263e-06 | J193: -1.468438251e-05 | K193: 0.003093337855 | L193: 0.002626604777 | M193: 0.08746982551 | N193: 0.0001573210466
A194: =IF('DF raw data'!E194="","",'DF raw data'!E194) -> -236.5 | B194: =IF('DF raw data'!F194="","",'DF raw data'!F194) -> -4.30839e-05 | C194: =IF('DF raw data'!G194="","",'DF raw data'!G194) -> 0.000152915 | D194: =IF('DF raw data'!H194="","",'DF raw data'!H194) -> -1.44188e-05 | F194: -1.544122841e-05 | G194: 3.961289294e-05 | H194: 5.229682973e-07 | J194: -2.240499671e-05 | K194: 0.003082135357 | L194: 0.002646411224 | M194: 0.08879303112 | N194: 0.0001608230437
A195: =IF('DF raw data'!E195="","",'DF raw data'!E195) -> -236 | B195: =IF('DF raw data'!F195="","",'DF raw data'!F195) -> -3.93661e-05 | C195: =IF('DF raw data'!G195="","",'DF raw data'!G195) -> 0.000149659 | D195: =IF('DF raw data'!H195="","",'DF raw data'!H195) -> -1.59775e-05 | F195: =(1-$G$1*($B$54-$G$2))*(B195-F$5) -> -1.170707009e-05 | G195: =(1-$G$1*($B$54-$G$2))*(C195-G$5) -> 3.634256654e-05 | H195: =(1-$G$1*($B$54-$G$2))*(D195-H$5) -> -1.042589983e-06 | J195: -2.825853175e-05 | K195: 0.003068006091 | L195: 0.002664582507 | M195: 0.09012532237 | N195: 0.000164373443
A196: =IF('DF raw data'!E196="","",'DF raw data'!E196) -> -235.5 | B196: =IF('DF raw data'!F196="","",'DF raw data'!F196) -> -2.91195e-05 | C196: =IF('DF raw data'!G196="","",'DF raw data'!G196) -> 0.000157717 | D196: =IF('DF raw data'!H196="","",'DF raw data'!H196) -> -5.53874e-06 | F196: -1.415385047e-06 | G196: 4.443602174e-05 | H196: 9.442100561e-06 | J196: =F196*$G$3+J195 -> -2.896622428e-05 | K196: =J196*$G$3+K195 -> 0.003053522979 | L196: =G196*$G$3+L195 -> 0.002686800518 | M196: =L196*$G$3+M195 -> 0.09146872263 | N196: =(J196^2+L196^2)*$G$3+N195 -> 0.000167983311
A197: =IF('DF raw data'!E197="","",'DF raw data'!E197) -> -235 | B197: =IF('DF raw data'!F197="","",'DF raw data'!F197) -> -4.41704e-05 | C197: =IF('DF raw data'!G197="","",'DF raw data'!G197) -> 0.00015861 | D197: =IF('DF raw data'!H197="","",'DF raw data'!H197) -> -1.89339e-05 | F197: -1.653250901e-05 | G197: 4.533295094e-05 | H197: -4.011998143e-06 | J197: -3.723247878e-05 | K197: 0.00303490674 | L197: 0.002709466993 | M197: 0.09282345613 | N197: 0.0001716546098
A198: =IF('DF raw data'!E198="","",'DF raw data'!E198) -> -234.5 | B198: =IF('DF raw data'!F198="","",'DF raw data'!F198) -> -2.64926e-05 | C198: =IF('DF raw data'!G198="","",'DF raw data'!G198) -> 0.000153387 | D198: =IF('DF raw data'!H198="","",'DF raw data'!H198) -> -4.66558e-06 | F198: 1.223073313e-06 | G198: 4.008696974e-05 | H198: 1.031910247e-05 | J198: -3.662094212e-05 | K198: 0.003016596268 | L198: 0.002729510478 | M198: 0.09418821137 | N198: 0.0001753803941
A199: =IF('DF raw data'!E199="","",'DF raw data'!E199) -> -234 | B199: =IF('DF raw data'!F199="","",'DF raw data'!F199) -> -2.09807e-05 | C199: =IF('DF raw data'!G199="","",'DF raw data'!G199) -> 0.000157173 | D199: =IF('DF raw data'!H199="","",'DF raw data'!H199) -> -5.64808e-06 | F199: 6.759225673e-06 | G199: 4.388962814e-05 | H199: 9.332279465e-06 | J199: -3.324132929e-05 | K199: 0.002999975604 | L199: 0.002751455292 | M199: 0.09556393902 | N199: 0.0001791661997
A200: =IF('DF raw data'!E200="","",'DF raw data'!E200) -> -233.5 | B200: =IF('DF raw data'!F200="","",'DF raw data'!F200) -> -4.52032e-05 | C200: =IF('DF raw data'!G200="","",'DF raw data'!G200) -> 0.000155393 | D200: =IF('DF raw data'!H200="","",'DF raw data'!H200) -> -7.47079e-06 | F200: -1.756985333e-05 | G200: 4.210179614e-05 | H200: 7.501549541e-06 | J200: -4.202625595e-05 | K200: 0.002978962476 | L200: 0.00277250619 | M200: 0.09695019211 | N200: 0.0001830104781
... 1079 more rows

Sheet 20 mm
A1: =IF('DF raw data'!I1="","",'DF raw data'!I1) -> Number of header lines | B1: =IF('DF raw data'!J1="","",'DF raw data'!J1) -> 54 | C1: =IF('DF raw data'!C1="","",'DF raw data'!C1) ->  | D1: =IF('DF raw data'!D1="","",'DF raw data'!D1) ->  | F1: T_coeff | G1: -0.001 | H1: /degC | J1: IBy total | K1: =J1267*1000 -> 9.034057714 | L1: muTm | M1: =L1267*1000 -> -23.37657187 | R1: DF ref | S1: 1
A2: =IF('DF raw data'!I2="","",'DF raw data'!I2) -> Measured by | B2: =IF('DF raw data'!J2="","",'DF raw data'!J2) -> Danfysik | C2: =IF('DF raw data'!C2="","",'DF raw data'!C2) ->  | D2: =IF('DF raw data'!D2="","",'DF raw data'!D2) ->  | F2: Tcorr | G2: 20 | H2: degC | J2: JBy total | K2: =K1267 -> -7.621372372 | L2: muTm^2 | M2: =M1267 -> -3.958869339
A3: =IF('DF raw data'!I3="","",'DF raw data'!I3) -> Operator | B3: =IF('DF raw data'!J3="","",'DF raw data'!J3) -> PMHA | C3: =IF('DF raw data'!C3="","",'DF raw data'!C3) ->  | D3: =IF('DF raw data'!D3="","",'DF raw data'!D3) ->  | F3: Step | G3: =A68-A67 -> 0.5 | H3: mm | J3: PI total | K3: =N1267 -> 5029.531481 | L3: T^2mm^3
A4: =IF('DF raw data'!I4="","",'DF raw data'!I4) -> Data-time | B4: =IF('DF raw data'!J4="","",'DF raw data'!J4) -> 13-09-2024, 14:12:04 | C4: =IF('DF raw data'!C4="","",'DF raw data'!C4) ->  | D4: =IF('DF raw data'!D4="","",'DF raw data'!D4) -> 
A5: =IF('DF raw data'!I5="","",'DF raw data'!I5) -> Project | B5: =IF('DF raw data'!J5="","",'DF raw data'!J5) -> 504314 | C5: =IF('DF raw data'!C5="","",'DF raw data'!C5) ->  | D5: Bamb avr | F5: =(AVERAGE(B67:B107) + AVERAGE(B1227:B1267))/2 -> -2.354922805e-05 | G5: =(AVERAGE(C67:C107) + AVERAGE(C1227:C1267))/2 -> 0.0001588426951 | H5: =(AVERAGE(D67:D107) + AVERAGE(D1227:D1267))/2 -> -1.726964854e-05
A6: =IF('DF raw data'!I6="","",'DF raw data'!I6) -> Magnet type | B6: =IF('DF raw data'!J6="","",'DF raw data'!J6) -> Dipole | C6: =IF('DF raw data'!C6="","",'DF raw data'!C6) -> 
A7: =IF('DF raw data'!I7="","",'DF raw data'!I7) -> Magnet nr. | B7: =IF('DF raw data'!J7="","",'DF raw data'!J7) -> 2410096 | C7: =IF('DF raw data'!C7="","",'DF raw data'!C7) -> 
A8: =IF('DF raw data'!I8="","",'DF raw data'!I8) -> Meas. number | B8: =IF('DF raw data'!J8="","",'DF raw data'!J8) -> 462 | C8: =IF('DF raw data'!C8="","",'DF raw data'!C8) -> 
A9: =IF('DF raw data'!I9="","",'DF raw data'!I9) -> Add. info | B9: =IF('DF raw data'!J9="","",'DF raw data'!J9) ->  | C9: =IF('DF raw data'!C9="","",'DF raw data'!C9) ->  | D9: =IF('DF raw data'!D9="","",'DF raw data'!D9) -> 
A10: =IF('DF raw data'!I10="","",'DF raw data'!I10) -> Device | B10: =IF('DF raw data'!J10="","",'DF raw data'!J10) -> (HAL) HALL-PROBE | C10: =IF('DF raw data'!C10="","",'DF raw data'!C10) ->  | D10: =IF('DF raw data'!D10="","",'DF raw data'!D10) -> 
A11: =IF('DF raw data'!I11="","",'DF raw data'!I11) -> Goal | B11: =IF('DF raw data'!J11="","",'DF raw data'!J11) -> (AXI) AXis Integral (Line, EFB) | C11: =IF('DF raw data'!C11="","",'DF raw data'!C11) ->  | D11: =IF('DF raw data'!D11="","",'DF raw data'!D11) -> 
A12: =IF('DF raw data'!I12="","",'DF raw data'!I12) -> Power supply mode | B12: =IF('DF raw data'!J12="","",'DF raw data'!J12) -> (PM) Permanent Magnet (no MPS in use) | C12: =IF('DF raw data'!C12="","",'DF raw data'!C12) ->  | D12: =IF('DF raw data'!D12="","",'DF raw data'!D12) -> 
A13: =IF('DF raw data'!I13="","",'DF raw data'!I13) -> Data format | B13: =IF('DF raw data'!J13="","",'DF raw data'!J13) -> Raw data text file | C13: =IF('DF raw data'!C13="","",'DF raw data'!C13) ->  | D13: =IF('DF raw data'!D13="","",'DF raw data'!D13) -> 
A14: =IF('DF raw data'!I14="","",'DF raw data'!I14) -> Direction of the pos. x-axis | B14: =IF('DF raw data'!J14="","",'DF raw data'!J14) -> See test program | C14: =IF('DF raw data'!C14="","",'DF raw data'!C14) ->  | D14: =IF('DF raw data'!D14="","",'DF raw data'!D14) -> 
A15: =IF('DF raw data'!I15="","",'DF raw data'!I15) -> Direction of the pos. y-axis | B15: =IF('DF raw data'!J15="","",'DF raw data'!J15) -> Vertical up | C15: =IF('DF raw data'!C15="","",'DF raw data'!C15) ->  | D15: =IF('DF raw data'!D15="","",'DF raw data'!D15) -> 
A16: =IF('DF raw data'!I16="","",'DF raw data'!I16) -> Direction of the pos. z-axis | B16: =IF('DF raw data'!J16="","",'DF raw data'!J16) -> See test program | C16: =IF('DF raw data'!C16="","",'DF raw data'!C16) ->  | D16: =IF('DF raw data'!D16="","",'DF raw data'!D16) -> 
A17: =IF('DF raw data'!I17="","",'DF raw data'!I17) -> Mapper type | B17: =IF('DF raw data'!J17="","",'DF raw data'!J17) -> Precision Hall Mapper | C17: =IF('DF raw data'!C17="","",'DF raw data'!C17) ->  | D17: =IF('DF raw data'!D17="","",'DF raw data'!D17) -> 
A18: =IF('DF raw data'!I18="","",'DF raw data'!I18) -> Mapper Danfysik Reg. Number | B18: =IF('DF raw data'!J18="","",'DF raw data'!J18) -> 2033-D (mapper 1) | C18: =IF('DF raw data'!C18="","",'DF raw data'!C18) ->  | D18: =IF('DF raw data'!D18="","",'DF raw data'!D18) -> 
A19: =IF('DF raw data'!I19="","",'DF raw data'!I19) -> Measurement consept | B19: =IF('DF raw data'!J19="","",'DF raw data'!J19) -> Square line grid | C19: =IF('DF raw data'!C19="","",'DF raw data'!C19) ->  | D19: =IF('DF raw data'!D19="","",'DF raw data'!D19) -> 
A20: =IF('DF raw data'!I20="","",'DF raw data'!I20) -> Mode | B20: =IF('DF raw data'!J20="","",'DF raw data'!J20) -> On-the-fly measurement | C20: =IF('DF raw data'!C20="","",'DF raw data'!C20) ->  | D20: =IF('DF raw data'!D20="","",'DF raw data'!D20) -> 
A21: =IF('DF raw data'!I21="","",'DF raw data'!I21) ->  | B21: =IF('DF raw data'!J21="","",'DF raw data'!J21) ->  | C21: =IF('DF raw data'!C21="","",'DF raw data'!C21) ->  | D21: =IF('DF raw data'!D21="","",'DF raw data'!D21) -> 
A22: =IF('DF raw data'!I22="","",'DF raw data'!I22) -> Probe Name | B22: =IF('DF raw data'!J22="","",'DF raw data'!J22) -> ID12_By | C22: =IF('DF raw data'!C22="","",'DF raw data'!C22) ->  | D22: =IF('DF raw data'!D22="","",'DF raw data'!D22) -> 
A23: =IF('DF raw data'!I23="","",'DF raw data'!I23) -> Probe Type | B23: =IF('DF raw data'!J23="","",'DF raw data'!J23) -> DF_ID_3D_Bxyz | C23: =IF('DF raw data'!C23="","",'DF raw data'!C23) ->  | D23: =IF('DF raw data'!D23="","",'DF raw data'!D23) -> 
A24: =IF('DF raw data'!I24="","",'DF raw data'!I24) -> Probe Danfysik Reg. Number | B24: =IF('DF raw data'!J24="","",'DF raw data'!J24) -> 2277 | C24: =IF('DF raw data'!C24="","",'DF raw data'!C24) ->  | D24: =IF('DF raw data'!D24="","",'DF raw data'!D24) -> 
A25: =IF('DF raw data'!I25="","",'DF raw data'!I25) -> Probe Axis | B25: =IF('DF raw data'!J25="","",'DF raw data'!J25) -> By | C25: =IF('DF raw data'!C25="","",'DF raw data'!C25) ->  | D25: =IF('DF raw data'!D25="","",'DF raw data'!D25) -> 
A26: =IF('DF raw data'!I26="","",'DF raw data'!I26) -> Probe Current Supply | B26: =IF('DF raw data'!J26="","",'DF raw data'!J26) -> 1825-D | C26: =IF('DF raw data'!C26="","",'DF raw data'!C26) ->  | D26: =IF('DF raw data'!D26="","",'DF raw data'!D26) -> 
A27: =IF('DF raw data'!I27="","",'DF raw data'!I27) -> Probe Gain Correction | B27: =IF('DF raw data'!J27="","",'DF raw data'!J27) -> 0.99619 | C27: =IF('DF raw data'!C27="","",'DF raw data'!C27) ->  | D27: =IF('DF raw data'!D27="","",'DF raw data'!D27) -> 
A28: =IF('DF raw data'!I28="","",'DF raw data'!I28) -> Probe Offset Correction | B28: =IF('DF raw data'!J28="","",'DF raw data'!J28) -> 0.002767 | C28: =IF('DF raw data'!C28="","",'DF raw data'!C28) ->  | D28: =IF('DF raw data'!D28="","",'DF raw data'!D28) -> 
A29: =IF('DF raw data'!I29="","",'DF raw data'!I29) -> DVM Number | B29: =IF('DF raw data'!J29="","",'DF raw data'!J29) -> 2 | C29: =IF('DF raw data'!C29="","",'DF raw data'!C29) ->  | D29: =IF('DF raw data'!D29="","",'DF raw data'!D29) -> 
A30: =IF('DF raw data'!I30="","",'DF raw data'!I30) -> DVM Type | B30: =IF('DF raw data'!J30="","",'DF raw data'!J30) -> K2701 | C30: =IF('DF raw data'!C30="","",'DF raw data'!C30) ->  | D30: =IF('DF raw data'!D30="","",'DF raw data'!D30) -> 
A31: =IF('DF raw data'!I31="","",'DF raw data'!I31) -> DVM Danfysik Reg. Number | B31: =IF('DF raw data'!J31="","",'DF raw data'!J31) -> 1743-D | C31: =IF('DF raw data'!C31="","",'DF raw data'!C31) ->  | D31: =IF('DF raw data'!D31="","",'DF raw data'!D31) -> 
A32: =IF('DF raw data'!I32="","",'DF raw data'!I32) -> Probe Name | B32: =IF('DF raw data'!J32="","",'DF raw data'!J32) -> ID12_Bx | C32: =IF('DF raw data'!C32="","",'DF raw data'!C32) ->  | D32: =IF('DF raw data'!D32="","",'DF raw data'!D32) -> 
A33: =IF('DF raw data'!I33="","",'DF raw data'!I33) -> Probe Type | B33: =IF('DF raw data'!J33="","",'DF raw data'!J33) -> DF_ID_3D_Bxyz | C33: =IF('DF raw data'!C33="","",'DF raw data'!C33) ->  | D33: =IF('DF raw data'!D33="","",'DF raw data'!D33) -> 
A34: =IF('DF raw data'!I34="","",'DF raw data'!I34) -> Probe Danfysik Reg. Number | B34: =IF('DF raw data'!J34="","",'DF raw data'!J34) -> 2277 | C34: =IF('DF raw data'!C34="","",'DF raw data'!C34) ->  | D34: =IF('DF raw data'!D34="","",'DF raw data'!D34) -> 
A35: =IF('DF raw data'!I35="","",'DF raw data'!I35) -> Probe Axis | B35: =IF('DF raw data'!J35="","",'DF raw data'!J35) -> Bx | C35: =IF('DF raw data'!C35="","",'DF raw data'!C35) ->  | D35: =IF('DF raw data'!D35="","",'DF raw data'!D35) -> 
A36: =IF('DF raw data'!I36="","",'DF raw data'!I36) -> Probe Current Supply | B36: =IF('DF raw data'!J36="","",'DF raw data'!J36) -> 1825-D | C36: =IF('DF raw data'!C36="","",'DF raw data'!C36) ->  | D36: =IF('DF raw data'!D36="","",'DF raw data'!D36) -> 
A37: =IF('DF raw data'!I37="","",'DF raw data'!I37) -> Probe Gain Correction | B37: =IF('DF raw data'!J37="","",'DF raw data'!J37) -> 1 | C37: =IF('DF raw data'!C37="","",'DF raw data'!C37) ->  | D37: =IF('DF raw data'!D37="","",'DF raw data'!D37) -> 
A38: =IF('DF raw data'!I38="","",'DF raw data'!I38) -> Probe Offset Correction | B38: =IF('DF raw data'!J38="","",'DF raw data'!J38) -> -0.17549 | C38: =IF('DF raw data'!C38="","",'DF raw data'!C38) ->  | D38: =IF('DF raw data'!D38="","",'DF raw data'!D38) -> 
A39: =IF('DF raw data'!I39="","",'DF raw data'!I39) -> DVM Number | B39: =IF('DF raw data'!J39="","",'DF raw data'!J39) -> 3 | C39: =IF('DF raw data'!C39="","",'DF raw data'!C39) ->  | D39: =IF('DF raw data'!D39="","",'DF raw data'!D39) -> 
A40: =IF('DF raw data'!I40="","",'DF raw data'!I40) -> DVM Type | B40: =IF('DF raw data'!J40="","",'DF raw data'!J40) -> K2701 | C40: =IF('DF raw data'!C40="","",'DF raw data'!C40) ->  | D40: =IF('DF raw data'!D40="","",'DF raw data'!D40) -> 
A41: =IF('DF raw data'!I41="","",'DF raw data'!I41) -> DVM Danfysik Reg. Number | B41: =IF('DF raw data'!J41="","",'DF raw data'!J41) -> 1744-D | C41: =IF('DF raw data'!C41="","",'DF raw data'!C41) ->  | D41: =IF('DF raw data'!D41="","",'DF raw data'!D41) -> 
A42: =IF('DF raw data'!I42="","",'DF raw data'!I42) -> Probe Name | B42: =IF('DF raw data'!J42="","",'DF raw data'!J42) -> ID12_Bz | C42: =IF('DF raw data'!C42="","",'DF raw data'!C42) ->  | D42: =IF('DF raw data'!D42="","",'DF raw data'!D42) -> 
A43: =IF('DF raw data'!I43="","",'DF raw data'!I43) -> Probe Type | B43: =IF('DF raw data'!J43="","",'DF raw data'!J43) -> DF_ID_3D_Bxyz | C43: =IF('DF raw data'!C43="","",'DF raw data'!C43) ->  | D43: =IF('DF raw data'!D43="","",'DF raw data'!D43) -> 
A44: =IF('DF raw data'!I44="","",'DF raw data'!I44) -> Probe Danfysik Reg. Number | B44: =IF('DF raw data'!J44="","",'DF raw data'!J44) -> 2277 | C44: =IF('DF raw data'!C44="","",'DF raw data'!C44) ->  | D44: =IF('DF raw data'!D44="","",'DF raw data'!D44) -> 
A45: =IF('DF raw data'!I45="","",'DF raw data'!I45) -> Probe Axis | B45: =IF('DF raw data'!J45="","",'DF raw data'!J45) -> Bz | C45: =IF('DF raw data'!C45="","",'DF raw data'!C45) ->  | D45: =IF('DF raw data'!D45="","",'DF raw data'!D45) -> 
A46: =IF('DF raw data'!I46="","",'DF raw data'!I46) -> Probe Current Supply | B46: =IF('DF raw data'!J46="","",'DF raw data'!J46) -> 1825-D | C46: =IF('DF raw data'!C46="","",'DF raw data'!C46) ->  | D46: =IF('DF raw data'!D46="","",'DF raw data'!D46) -> 
A47: =IF('DF raw data'!I47="","",'DF raw data'!I47) -> Probe Gain Correction | B47: =IF('DF raw data'!J47="","",'DF raw data'!J47) -> 1 | C47: =IF('DF raw data'!C47="","",'DF raw data'!C47) ->  | D47: =IF('DF raw data'!D47="","",'DF raw data'!D47) -> 
A48: =IF('DF raw data'!I48="","",'DF raw data'!I48) -> Probe Offset Correction | B48: =IF('DF raw data'!J48="","",'DF raw data'!J48) -> 0.0073199 | C48: =IF('DF raw data'!C48="","",'DF raw data'!C48) ->  | D48: =IF('DF raw data'!D48="","",'DF raw data'!D48) -> 
A49: =IF('DF raw data'!I49="","",'DF raw data'!I49) -> DVM Number | B49: =IF('DF raw data'!J49="","",'DF raw data'!J49) -> 8 | C49: =IF('DF raw data'!C49="","",'DF raw data'!C49) ->  | D49: =IF('DF raw data'!D49="","",'DF raw data'!D49) -> 
A50: =IF('DF raw data'!I50="","",'DF raw data'!I50) -> DVM Type | B50: =IF('DF raw data'!J50="","",'DF raw data'!J50) -> K2700 | C50: =IF('DF raw data'!C50="","",'DF raw data'!C50) ->  | D50: =IF('DF raw data'!D50="","",'DF raw data'!D50) -> 
A51: =IF('DF raw data'!I51="","",'DF raw data'!I51) -> DVM Danfysik Reg. Number | B51: =IF('DF raw data'!J51="","",'DF raw data'!J51) -> 1756-D | C51: =IF('DF raw data'!C51="","",'DF raw data'!C51) ->  | D51: =IF('DF raw data'!D51="","",'DF raw data'!D51) -> 
A52: =IF('DF raw data'!I52="","",'DF raw data'!I52) -> NTC voltage | B52: =IF('DF raw data'!J52="","",'DF raw data'!J52) -> 0.41387 | C52: =IF('DF raw data'!C52="","",'DF raw data'!C52) ->  | D52: =IF('DF raw data'!D52="","",'DF raw data'!D52) -> 
A53: =IF('DF raw data'!I53="","",'DF raw data'!I53) -> PS-Gap: | B53: =IF('DF raw data'!J53="","",'DF raw data'!J53) -> 20 | C53: =IF('DF raw data'!C53="","",'DF raw data'!C53) ->  | D53: =IF('DF raw data'!D53="","",'DF raw data'!D53) -> 
A54: =IF('DF raw data'!I54="","",'DF raw data'!I54) -> PS-Temperature: | B54: =IF('DF raw data'!J54="","",'DF raw data'!J54) -> 24.4 | C54: =IF('DF raw data'!C54="","",'DF raw data'!C54) ->  | D54: =IF('DF raw data'!D54="","",'DF raw data'!D54) -> 
A55: =IF('DF raw data'!I55="","",'DF raw data'!I55) -> PS-Encoder: | B55: =IF('DF raw data'!J55="","",'DF raw data'!J55) -> 29.737 | C55: =IF('DF raw data'!C55="","",'DF raw data'!C55) ->  | D55: =IF('DF raw data'!D55="","",'DF raw data'!D55) -> 
A56: =IF('DF raw data'!I56="","",'DF raw data'!I56) ->  | B56: =IF('DF raw data'!J56="","",'DF raw data'!J56) -> 
A57: =IF('DF raw data'!I57="","",'DF raw data'!I57) -> Monitor-Index | B57: =IF('DF raw data'!J57="","",'DF raw data'!J57) -> [1,1,4]
A58: =IF('DF raw data'!I58="","",'DF raw data'!I58) ->  | B58: =IF('DF raw data'!J58="","",'DF raw data'!J58) -> 
A59: =IF('DF raw data'!I59="","",'DF raw data'!I59) -> Time [s] | B59: =IF('DF raw data'!J59="","",'DF raw data'!J59) -> Y [mm]
A60: =IF('DF raw data'!I60="","",'DF raw data'!I60) ->  | B60: =IF('DF raw data'!J60="","",'DF raw data'!J60) -> 
A61: =IF('DF raw data'!I61="","",'DF raw data'!I61) -> 206.3 | B61: =IF('DF raw data'!J61="","",'DF raw data'!J61) -> 31.76
A62: =IF('DF raw data'!I62="","",'DF raw data'!I62) ->  | B62: =IF('DF raw data'!J62="","",'DF raw data'!J62) -> 
A63: =IF('DF raw data'!I63="","",'DF raw data'!I63) -> Measurement-Index | B63: =IF('DF raw data'!J63="","",'DF raw data'!J63) -> [1,1,1201,2]
A64: =IF('DF raw data'!I64="","",'DF raw data'!I64) ->  | B64: =IF('DF raw data'!J64="","",'DF raw data'!J64) -> 
A65: =IF('DF raw data'!I65="","",'DF raw data'!I65) -> Z [mm] | B65: =IF('DF raw data'!J65="","",'DF raw data'!J65) -> By [T] | C65: =IF('DF raw data'!K65="","",'DF raw data'!K65) -> Bx [T] | D65: =IF('DF raw data'!L65="","",'DF raw data'!L65) -> Bz [T] | F65: By_corr | G65: Bx_corr | H65: Bz_corr | J65: Iy | K65: Jy | L65: Ix | M65: Jx | N65: PI
A66: =IF('DF raw data'!I66="","",'DF raw data'!I66) -> [1, 0, 0, 0] | B66: =IF('DF raw data'!J66="","",'DF raw data'!J66) ->  | C66: =IF('DF raw data'!K66="","",'DF raw data'!K66) ->  | D66: =IF('DF raw data'!L66="","",'DF raw data'!L66) -> 
A67: =IF('DF raw data'!I67="","",'DF raw data'!I67) -> -300 | B67: =IF('DF raw data'!J67="","",'DF raw data'!J67) -> -2.22521e-05 | C67: =IF('DF raw data'!K67="","",'DF raw data'!K67) -> 0.000203262 | D67: =IF('DF raw data'!L67="","",'DF raw data'!L67) -> -8.21431e-06 | F67: =(1-$G$1*($B$54-$G$2))*(B67-F$5) -> 1.302835412e-06 | G67: =(1-$G$1*($B$54-$G$2))*(C67-G$5) -> 4.461474982e-05 | H67: =(1-$G$1*($B$54-$G$2))*(D67-H$5) -> 9.095182026e-06 | J67: =F67*$G$3+J66 -> 6.514177061e-07 | K67: =J67*$G$3+K66 -> 3.25708853e-07 | L67: =G67*$G$3+L66 -> 2.230737491e-05 | M67: =L67*$G$3+M66 -> 1.115368745e-05 | N67: =(J67^2+L67^2)*$G$3+N66 -> 2.490216602e-10
A68: =IF('DF raw data'!I68="","",'DF raw data'!I68) -> -299.5 | B68: =IF('DF raw data'!J68="","",'DF raw data'!J68) -> -2.7508e-05 | C68: =IF('DF raw data'!K68="","",'DF raw data'!K68) -> 0.000205212 | D68: =IF('DF raw data'!L68="","",'DF raw data'!L68) -> -7.93611e-06 | F68: -3.976190548e-06 | G68: 4.657332982e-05 | H68: 9.374606106e-06 | J68: =F68*$G$3+J67 -> -1.336677568e-06 | K68: =J68*$G$3+K67 -> -3.426299309e-07 | L68: =G68*$G$3+L67 -> 4.559403982e-05 | M68: =L68*$G$3+M67 -> 3.395070736e-05 | N68: =(J68^2+L68^2)*$G$3+N67 -> 1.289323247e-09
A69: =IF('DF raw data'!I69="","",'DF raw data'!I69) -> -299 | B69: =IF('DF raw data'!J69="","",'DF raw data'!J69) -> -2.44961e-05 | C69: =IF('DF raw data'!K69="","",'DF raw data'!K69) -> 0.000204633 | D69: =IF('DF raw data'!L69="","",'DF raw data'!L69) -> -7.60371e-06 | F69: -9.510381878e-07 | G69: 4.599178222e-05 | H69: 9.708468666e-06 | J69: -1.812196662e-06 | K69: -1.248728262e-06 | L69: 6.858993093e-05 | M69: 6.824567283e-05 | N69: 3.643254588e-09
A70: =IF('DF raw data'!I70="","",'DF raw data'!I70) -> -298.5 | B70: =IF('DF raw data'!J70="","",'DF raw data'!J70) -> -2.50079e-05 | C70: =IF('DF raw data'!K70="","",'DF raw data'!K70) -> 0.000202811 | D70: =IF('DF raw data'!L70="","",'DF raw data'!L70) -> -7.5183e-06 | F70: -1.465090108e-06 | G70: 4.416176542e-05 | H70: 9.79425447e-06 | J70: -2.544741716e-06 | K70: -2.52109912e-06 | L70: 9.067081364e-05 | M70: 0.0001135810796 | N70: 7.757090666e-09
A71: =IF('DF raw data'!I71="","",'DF raw data'!I71) -> -298 | B71: =IF('DF raw data'!J71="","",'DF raw data'!J71) -> -2.67393e-05 | C71: =IF('DF raw data'!K71="","",'DF raw data'!K71) -> 0.000206785 | D71: =IF('DF raw data'!L71="","",'DF raw data'!L71) -> -7.23443e-06 | F71: -3.204108268e-06 | G71: 4.815325102e-05 | H71: 1.00793735e-05 | J71: -4.14679585e-06 | K71: -4.594497044e-06 | L71: 0.0001147474391 | M71: 0.0001709547992 | N71: 1.434917602e-08
A72: =IF('DF raw data'!I72="","",'DF raw data'!I72) -> -297.5 | B72: =IF('DF raw data'!J72="","",'DF raw data'!J72) -> -2.75717e-05 | C72: =IF('DF raw data'!K72="","",'DF raw data'!K72) -> 0.000202771 | D72: =IF('DF raw data'!L72="","",'DF raw data'!L72) -> -6.75156e-06 | F72: -4.040170828e-06 | G72: 4.412158942e-05 | H72: 1.056436813e-05 | J72: -6.166881263e-06 | K72: -7.677937676e-06 | L72: 0.0001368082339 | M72: 0.0002393589162 | N72: 2.372643766e-08
A73: =IF('DF raw data'!I73="","",'DF raw data'!I73) -> -297 | B73: =IF('DF raw data'!J73="","",'DF raw data'!J73) -> -1.84731e-05 | C73: =IF('DF raw data'!K73="","",'DF raw data'!K73) -> 0.000197147 | D73: =IF('DF raw data'!L73="","",'DF raw data'!L73) -> -6.80637e-06 | F73: 5.098463012e-06 | G73: 3.847284382e-05 | H73: 1.050931696e-05 | J73: -3.617649757e-06 | K73: -9.486762555e-06 | L73: 0.0001560446558 | M73: 0.000317381244 | N73: 3.590794865e-08
A74: =IF('DF raw data'!I74="","",'DF raw data'!I74) -> -296.5 | B74: =IF('DF raw data'!J74="","",'DF raw data'!J74) -> -1.87924e-05 | C74: =IF('DF raw data'!K74="","",'DF raw data'!K74) -> 0.000189498 | D74: =IF('DF raw data'!L74="","",'DF raw data'!L74) -> -7.26052e-06 | F74: 4.777758092e-06 | G74: 3.079018822e-05 | H74: 1.00531687e-05 | J74: -1.228770711e-06 | K74: -1.010114791e-05 | L74: 0.0001714397499 | M74: 0.000403101119 | N74: 5.060449751e-08
A75: =IF('DF raw data'!I75="","",'DF raw data'!I75) -> -296 | B75: =IF('DF raw data'!J75="","",'DF raw data'!J75) -> -2.29587e-05 | C75: =IF('DF raw data'!K75="","",'DF raw data'!K75) -> 0.000197796 | D75: =IF('DF raw data'!L75="","",'DF raw data'!L75) -> -7.41964e-06 | F75: 5.931263722e-07 | G75: 3.912469942e-05 | H75: 9.893348574e-06 | J75: -9.322075251e-07 | K75: -1.056725167e-05 | L75: 0.0001910020996 | M75: 0.0004986021688 | N75: 6.884583304e-08
A76: =IF('DF raw data'!I76="","",'DF raw data'!I76) -> -295.5 | B76: =IF('DF raw data'!J76="","",'DF raw data'!J76) -> -1.89204e-05 | C76: =IF('DF raw data'!K76="","",'DF raw data'!K76) -> 0.000208461 | D76: =IF('DF raw data'!L76="","",'DF raw data'!L76) -> -7.40127e-06 | F76: 4.649194892e-06 | G76: 4.983662542e-05 | H76: 9.911799402e-06 | J76: 1.392389921e-06 | K76: -9.871056712e-06 | L76: 0.0002159204123 | M76: 0.0006065623749 | N76: 9.215761463e-08
A77: =IF('DF raw data'!I77="","",'DF raw data'!I77) -> -295 | B77: =IF('DF raw data'!J77="","",'DF raw data'!J77) -> -1.90498e-05 | C77: =IF('DF raw data'!K77="","",'DF raw data'!K77) -> 0.000209947 | D77: =IF('DF raw data'!L77="","",'DF raw data'!L77) -> -7.4318e-06 | F77: 4.519225532e-06 | G77: 5.132916382e-05 | H77: 9.88113507e-06 | J77: 3.652002687e-06 | K77: -8.045055369e-06 | L77: 0.0002415849942 | M77: 0.000727354872 | N77: 1.213459379e-07
A78: =IF('DF raw data'!I78="","",'DF raw data'!I78) -> -294.5 | B78: =IF('DF raw data'!J78="","",'DF raw data'!J78) -> -2.18677e-05 | C78: =IF('DF raw data'!K78="","",'DF raw data'!K78) -> 0.000202096 | D78: =IF('DF raw data'!L78="","",'DF raw data'!L78) -> -7.30441e-06 | F78: 1.688926772e-06 | G78: 4.344361942e-05 | H78: 1.000908559e-05 | J78: 4.496466073e-06 | K78: -5.796822332e-06 | L78: 0.0002633068039 | M78: 0.000859008274 | N78: 1.560212835e-07
A79: =IF('DF raw data'!I79="","",'DF raw data'!I79) -> -294 | B79: =IF('DF raw data'!J79="","",'DF raw data'!J79) -> -1.98828e-05 | C79: =IF('DF raw data'!K79="","",'DF raw data'!K79) -> 0.000198584 | D79: =IF('DF raw data'!L79="","",'DF raw data'!L79) -> -7.41184e-06 | F79: 3.682560332e-06 | G79: 3.991616662e-05 | H79: 9.901182894e-06 | J79: 6.337746239e-06 | K79: -2.627949213e-06 | L79: 0.0002832648872 | M79: 0.001000640718 | N79: 1.961608652e-07
A80: =IF('DF raw data'!I80="","",'DF raw data'!I80) -> -293.5 | B80: =IF('DF raw data'!J80="","",'DF raw data'!J80) -> -1.36012e-05 | C80: =IF('DF raw data'!K80="","",'DF raw data'!K80) -> 0.000199882 | D80: =IF('DF raw data'!L80="","",'DF raw data'!L80) -> -8.16505e-06 | F80: 9.991799372e-06 | G80: 4.121987782e-05 | H80: 9.14465877e-06 | J80: 1.133364593e-05 | K80: 3.03887375e-06 | L80: 0.0003038748261 | M80: 0.001152578131 | N80: 2.423950459e-07
A81: =IF('DF raw data'!I81="","",'DF raw data'!I81) -> -293 | B81: =IF('DF raw data'!J81="","",'DF raw data'!J81) -> -2.55213e-05 | C81: =IF('DF raw data'!K81="","",'DF raw data'!K81) -> 0.000206169 | D81: =IF('DF raw data'!L81="","",'DF raw data'!L81) -> -8.60619e-06 | F81: -1.980749068e-06 | G81: 4.753454062e-05 | H81: 8.701577754e-06 | J81: 1.034327139e-05 | K81: 8.210509446e-06 | L81: 0.0003276420964 | M81: 0.001316399179 | N81: 2.961232092e-07
A82: =IF('DF raw data'!I82="","",'DF raw data'!I82) -> -292.5 | B82: =IF('DF raw data'!J82="","",'DF raw data'!J82) -> -2.98769e-05 | C82: =IF('DF raw data'!K82="","",'DF raw data'!K82) -> 0.00021205 | D82: =IF('DF raw data'!L82="","",'DF raw data'!L82) -> -8.01693e-06 | F82: -6.355513708e-06 | G82: 5.344141702e-05 | H82: 9.293430498e-06 | J82: 7.165514538e-06 | K82: 1.179326671e-05 | L82: 0.000354362805 | M82: 0.001493580581 | N82: 3.589353803e-07
A83: =IF('DF raw data'!I83="","",'DF raw data'!I83) -> -292 | B83: =IF('DF raw data'!J83="","",'DF raw data'!J83) -> -2.72526e-05 | C83: =IF('DF raw data'!K83="","",'DF raw data'!K83) -> 0.000197907 | D83: =IF('DF raw data'!L83="","",'DF raw data'!L83) -> -6.92082e-06 | F83: -3.719666788e-06 | G83: 3.923618782e-05 | H83: 1.039436338e-05 | J83: 5.305681144e-06 | K83: 1.444610729e-05 | L83: 0.0003739808989 | M83: 0.001680571031 | N83: 4.288803118e-07
A84: =IF('DF raw data'!I84="","",'DF raw data'!I84) -> -291.5 | B84: =IF('DF raw data'!J84="","",'DF raw data'!J84) -> -2.69903e-05 | C84: =IF('DF raw data'!K84="","",'DF raw data'!K84) -> 0.000194866 | D84: =IF('DF raw data'!L84="","",'DF raw data'!L84) -> -1.31101e-05 | F84: -3.456212668e-06 | G84: 3.618180742e-05 | H84: 4.17785055e-06 | J84: 3.57757481e-06 | K84: 1.623489469e-05 | L84: 0.0003920718026 | M84: 0.001876606932 | N84: 5.057468605e-07
A85: =IF('DF raw data'!I85="","",'DF raw data'!I85) -> -291 | B85: =IF('DF raw data'!J85="","",'DF raw data'!J85) -> -1.64256e-05 | C85: =IF('DF raw data'!K85="","",'DF raw data'!K85) -> 0.00019634 | D85: =IF('DF raw data'!L85="","",'DF raw data'!L85) -> -2.71848e-06 | F85: 7.154972012e-06 | G85: 3.766229302e-05 | H85: 1.461519368e-05 | J85: 7.155060816e-06 | K85: 1.98124251e-05 | L85: 0.0004109029491 | M85: 0.002082058407 | N85: 5.901930747e-07
A86: =IF('DF raw data'!I86="","",'DF raw data'!I86) -> -290.5 | B86: =IF('DF raw data'!J86="","",'DF raw data'!J86) -> -1.34058e-05 | C86: =IF('DF raw data'!K86="","",'DF raw data'!K86) -> 0.000201247 | D86: =IF('DF raw data'!L86="","",'DF raw data'!L86) -> -1.33595e-05 | F86: 1.018805913e-05 | G86: 4.259088382e-05 | H86: 3.92735319e-06 | J86: 1.224909038e-05 | K86: 2.593697029e-05 | L86: 0.000432198391 | M86: 0.002298157602 | N86: 6.836658194e-07
A87: =IF('DF raw data'!I87="","",'DF raw data'!I87) -> -290 | B87: =IF('DF raw data'!J87="","",'DF raw data'!J87) -> -1.87232e-05 | C87: =IF('DF raw data'!K87="","",'DF raw data'!K87) -> 0.000191685 | D87: =IF('DF raw data'!L87="","",'DF raw data'!L87) -> -1.69059e-05 | F87: 4.847262572e-06 | G87: 3.298681102e-05 | H87: 3.653490301e-07 | J87: 1.467272167e-05 | K87: 3.327333112e-05 | L87: 0.0004486917965 | M87: 0.0025225035 | N87: 7.844356279e-07
A88: =IF('DF raw data'!I88="","",'DF raw data'!I88) -> -289.5 | B88: =IF('DF raw data'!J88="","",'DF raw data'!J88) -> -3.05666e-05 | C88: =IF('DF raw data'!K88="","",'DF raw data'!K88) -> 0.000200125 | D88: =IF('DF raw data'!L88="","",'DF raw data'!L88) -> -3.14661e-05 | F88: -7.048248388e-06 | G88: 4.146394702e-05 | H88: -1.425891585e-05 | J88: 1.114859747e-05 | K88: 3.884762986e-05 | L88: 0.00046942377 | M88: 0.002757215385 | N88: 8.946771115e-07
A89: =IF('DF raw data'!I89="","",'DF raw data'!I89) -> -289 | B89: =IF('DF raw data'!J89="","",'DF raw data'!J89) -> -2.25064e-05 | C89: =IF('DF raw data'!K89="","",'DF raw data'!K89) -> 0.00018956 | D89: =IF('DF raw data'!L89="","",'DF raw data'!L89) -> -1.33756e-05 | F89: 1.047416492e-06 | G89: 3.085246102e-05 | H89: 3.91118235e-06 | J89: 1.167230572e-05 | K89: 4.468378272e-05 | L89: 0.0004848500005 | M89: 0.002999640386 | N89: 1.012284994e-06
A90: =IF('DF raw data'!I90="","",'DF raw data'!I90) -> -288.5 | B90: =IF('DF raw data'!J90="","",'DF raw data'!J90) -> -1.9754e-05 | C90: =IF('DF raw data'!K90="","",'DF raw data'!K90) -> 0.000192039 | D90: =IF('DF raw data'!L90="","",'DF raw data'!L90) -> -5.86682e-06 | F90: 3.811927052e-06 | G90: 3.334236862e-05 | H90: 1.145300098e-05 | J90: 1.357826925e-05 | K90: 5.147291734e-05 | L90: 0.0005015211848 | M90: 0.003250400978 | N90: 1.138138928e-06
A91: =IF('DF raw data'!I91="","",'DF raw data'!I91) -> -288 | B91: =IF('DF raw data'!J91="","",'DF raw data'!J91) -> -2.0145e-05 | C91: =IF('DF raw data'!K91="","",'DF raw data'!K91) -> 0.000197579 | D91: =IF('DF raw data'!L91="","",'DF raw data'!L91) -> 1.49178e-06 | F91: 3.419206652e-06 | G91: 3.890674462e-05 | H91: 1.884397882e-05 | J91: 1.528787257e-05 | K91: 5.911685363e-05 | L91: 0.0005209745571 | M91: 0.003510888257 | N91: 1.273963033e-06
A92: =IF('DF raw data'!I92="","",'DF raw data'!I92) -> -287.5 | B92: =IF('DF raw data'!J92="","",'DF raw data'!J92) -> -1.85369e-05 | C92: =IF('DF raw data'!K92="","",'DF raw data'!K92) -> 0.000199782 | D92: =IF('DF raw data'!L92="","",'DF raw data'!L92) -> -5.35507e-06 | F92: 5.034382292e-06 | G92: 4.111943782e-05 | H92: 1.196700268e-05 | J92: 1.780506372e-05 | K92: 6.801938549e-05 | L92: 0.0005415342761 | M92: 0.003781655395 | N92: 1.420751229e-06
A93: =IF('DF raw data'!I93="","",'DF raw data'!I93) -> -287 | B93: =IF('DF raw data'!J93="","",'DF raw data'!J93) -> -2.16697e-05 | C93: =IF('DF raw data'!K93="","",'DF raw data'!K93) -> 0.000191742 | D93: =IF('DF raw data'!L93="","",'DF raw data'!L93) -> -1.93087e-05 | F93: 1.887797972e-06 | G93: 3.304406182e-05 | H93: -2.04802329e-06 | J93: 1.87489627e-05 | K93: 7.739386684e-05 | L93: 0.000558056307 | M93: 0.004060683548 | N93: 1.576640411e-06
A94: =IF('DF raw data'!I94="","",'DF raw data'!I94) -> -286.5 | B94: =IF('DF raw data'!J94="","",'DF raw data'!J94) -> -3.05784e-05 | C94: =IF('DF raw data'!K94="","",'DF raw data'!K94) -> 0.000194507 | D94: =IF('DF raw data'!L94="","",'DF raw data'!L94) -> -1.28827e-05 | F94: -7.060100308e-06 | G94: 3.582122782e-05 | H94: 4.40625111e-06 | J94: 1.521891255e-05 | K94: 8.500332312e-05 | L94: 0.0005759669209 | M94: 0.004348667009 | N94: 1.742625166e-06
A95: =IF('DF raw data'!I95="","",'DF raw data'!I95) -> -286 | B95: =IF('DF raw data'!J95="","",'DF raw data'!J95) -> -1.91067e-05 | C95: =IF('DF raw data'!K95="","",'DF raw data'!K95) -> 0.000200149 | D95: =IF('DF raw data'!L95="","",'DF raw data'!L95) -> -1.88142e-05 | F95: 4.462075172e-06 | G95: 4.148805262e-05 | H95: -1.55134749e-06 | J95: 1.744995014e-05 | K95: 9.372829819e-05 | L95: 0.0005967109472 | M95: 0.004647022482 | N95: 1.920809394e-06
A96: =IF('DF raw data'!I96="","",'DF raw data'!I96) -> -285.5 | B96: =IF('DF raw data'!J96="","",'DF raw data'!J96) -> -2.3521e-05 | C96: =IF('DF raw data'!K96="","",'DF raw data'!K96) -> 0.00020631 | D96: =IF('DF raw data'!L96="","",'DF raw data'!L96) -> -2.61652e-05 | F96: 2.83522522e-08 | G96: 4.767616102e-05 | H96: -8.93469189e-06 | J96: 1.746412626e-05 | K96: 0.0001024603613 | L96: 0.0006205490277 | M96: 0.004957296996 | N96: 2.113502439e-06
A97: =IF('DF raw data'!I97="","",'DF raw data'!I97) -> -285 | B97: =IF('DF raw data'!J97="","",'DF raw data'!J97) -> -1.95563e-05 | C97: =IF('DF raw data'!K97="","",'DF raw data'!K97) -> 0.000199552 | D97: =IF('DF raw data'!L97="","",'DF raw data'!L97) -> -1.73999e-05 | F97: 4.010496932e-06 | G97: 4.088842582e-05 | H97: -1.308245699e-07 | J97: 1.946937473e-05 | K97: 0.0001121950487 | L97: 0.0006409932406 | M97: 0.005277793616 | N97: 2.319128135e-06
A98: =IF('DF raw data'!I98="","",'DF raw data'!I98) -> -284.5 | B98: =IF('DF raw data'!J98="","",'DF raw data'!J98) -> -3.31443e-05 | C98: =IF('DF raw data'!K98="","",'DF raw data'!K98) -> 0.000192293 | D98: =IF('DF raw data'!L98="","",'DF raw data'!L98) -> -7.92402e-06 | F98: -9.637290268e-06 | G98: 3.359748622e-05 | H98: 9.386749302e-06 | J98: 1.46507296e-05 | K98: 0.0001195204135 | L98: 0.0006577919837 | M98: 0.005606689608 | N98: 2.535580604e-06
A99: =IF('DF raw data'!I99="","",'DF raw data'!I99) -> -284 | B99: =IF('DF raw data'!J99="","",'DF raw data'!J99) -> -2.21852e-05 | C99: =IF('DF raw data'!K99="","",'DF raw data'!K99) -> 0.000196328 | D99: =IF('DF raw data'!L99="","",'DF raw data'!L99) -> -1.52177e-05 | F99: 1.370029772e-06 | G99: 3.765024022e-05 | H99: 2.06097711e-06 | J99: 1.533574448e-05 | K99: 0.0001271882857 | L99: 0.0006766171038 | M99: 0.00594499816 | N99: 2.764603549e-06
A100: =IF('DF raw data'!I100="","",'DF raw data'!I100) -> -283.5 | B100: =IF('DF raw data'!J100="","",'DF raw data'!J100) -> -3.03257e-05 | C100: =IF('DF raw data'!K100="","",'DF raw data'!K100) -> 0.000205561 | D100: =IF('DF raw data'!L100="","",'DF raw data'!L100) -> -6.93228e-06 | F100: -6.806288428e-06 | G100: 4.692386542e-05 | H100: 1.038285296e-05 | J100: 1.193260027e-05 | K100: 0.0001331545859 | L100: 0.0007000790365 | M100: 0.006295037678 | N100: 3.009730071e-06
A101: =IF('DF raw data'!I101="","",'DF raw data'!I101) -> -283 | B101: =IF('DF raw data'!J101="","",'DF raw data'!J101) -> -2.64157e-05 | C101: =IF('DF raw data'!K101="","",'DF raw data'!K101) -> 0.000200993 | D101: =IF('DF raw data'!L101="","",'DF raw data'!L101) -> -1.3424e-05 | F101: -2.879084428e-06 | G101: 4.233576622e-05 | H101: 3.86256939e-06 | J101: 1.049305805e-05 | K101: 0.0001384011149 | L101: 0.0007212469196 | M101: 0.006655661138 | N101: 3.269883683e-06
A102: =IF('DF raw data'!I102="","",'DF raw data'!I102) -> -282.5 | B102: =IF('DF raw data'!J102="","",'DF raw data'!J102) -> -1.94862e-05 | C102: =IF('DF raw data'!K102="","",'DF raw data'!K102) -> 0.00020659 | D102: =IF('DF raw data'!L102="","",'DF raw data'!L102) -> -2.3071e-05 | F102: 4.080905372e-06 | G102: 4.795739302e-05 | H102: -5.82687741e-06 | J102: 1.253351074e-05 | K102: 0.0001446678703 | L102: 0.0007452256162 | M102: 0.007028273946 | N102: 3.547642837e-06
A103: =IF('DF raw data'!I103="","",'DF raw data'!I103) -> -282 | B103: =IF('DF raw data'!J103="","",'DF raw data'!J103) -> -2.13552e-05 | C103: =IF('DF raw data'!K103="","",'DF raw data'!K103) -> 0.000205411 | D103: =IF('DF raw data'!L103="","",'DF raw data'!L103) -> -1.03668e-05 | F103: 2.203681772e-06 | G103: 4.677320542e-05 | H103: 6.93322107e-06 | J103: 1.363535163e-05 | K103: 0.0001514855461 | L103: 0.0007686122189 | M103: 0.007412580056 | N103: 3.84311817e-06
A104: =IF('DF raw data'!I104="","",'DF raw data'!I104) -> -281.5 | B104: =IF('DF raw data'!J104="","",'DF raw data'!J104) -> -1.69967e-05 | C104: =IF('DF raw data'!K104="","",'DF raw data'!K104) -> 0.000213345 | D104: =IF('DF raw data'!L104="","",'DF raw data'!L104) -> -8.56172e-06 | F104: 6.581359172e-06 | G104: 5.474211502e-05 | H104: 8.746243422e-06 | J104: 1.692603121e-05 | K104: 0.0001599485617 | L104: 0.0007959832764 | M104: 0.007810571694 | N104: 4.160056103e-06
A105: =IF('DF raw data'!I105="","",'DF raw data'!I105) -> -281 | B105: =IF('DF raw data'!J105="","",'DF raw data'!J105) -> -2.75667e-05 | C105: =IF('DF raw data'!K105="","",'DF raw data'!K105) -> 0.000212804 | D105: =IF('DF raw data'!L105="","",'DF raw data'!L105) -> -1.76045e-05 | F105: -4.035148828e-06 | G105: 5.419873462e-05 | H105: -3.363248099e-07 | J105: 1.49084568e-05 | K105: 0.0001674027901 | L105: 0.0008230826437 | M105: 0.008222113016 | N105: 4.498899753e-06
A106: =IF('DF raw data'!I106="","",'DF raw data'!I106) -> -280.5 | B106: =IF('DF raw data'!J106="","",'DF raw data'!J106) -> -1.66684e-05 | C106: =IF('DF raw data'!K106="","",'DF raw data'!K106) -> 0.000206031 | D106: =IF('DF raw data'!L106="","",'DF raw data'!L106) -> -2.0975e-05 | F106: 6.911103692e-06 | G106: 4.739593342e-05 | H106: -3.72165501e-06 | J106: 1.836400864e-05 | K106: 0.0001765847944 | L106: 0.0008467806104 | M106: 0.008645503321 | N106: 4.857587073e-06
A107: =IF('DF raw data'!I107="","",'DF raw data'!I107) -> -280 | B107: =IF('DF raw data'!J107="","",'DF raw data'!J107) -> -2.0393e-05 | C107: =IF('DF raw data'!K107="","",'DF raw data'!K107) -> 0.00020361 | D107: =IF('DF raw data'!L107="","",'DF raw data'!L107) -> -1.16943e-05 | F107: 3.170115452e-06 | G107: 4.496428102e-05 | H107: 5.59988007e-06 | J107: 1.994906637e-05 | K107: 0.0001865593276 | L107: 0.0008692627509 | M107: 0.009080134696 | N107: 5.23559492e-06
A108: =IF('DF raw data'!I108="","",'DF raw data'!I108) -> -279.5 | B108: =IF('DF raw data'!J108="","",'DF raw data'!J108) -> -2.59601e-05 | C108: =IF('DF raw data'!K108="","",'DF raw data'!K108) -> 0.000207371 | D108: =IF('DF raw data'!L108="","",'DF raw data'!L108) -> -1.98045e-05 | F108: -2.421479788e-06 | G108: 4.874182942e-05 | H108: -2.54600481e-06 | J108: 1.873832648e-05 | K108: 0.0001959284908 | L108: 0.0008936336656 | M108: 0.009526951529 | N108: 5.635061047e-06
A109: =IF('DF raw data'!I109="","",'DF raw data'!I109) -> -279 | B109: =IF('DF raw data'!J109="","",'DF raw data'!J109) -> -2.98101e-05 | C109: =IF('DF raw data'!K109="","",'DF raw data'!K109) -> 0.000214959 | D109: =IF('DF raw data'!L109="","",'DF raw data'!L109) -> -1.64433e-05 | F109: -6.288419788e-06 | G109: 5.636321662e-05 | H109: 8.299844701e-07 | J109: 1.559411658e-05 | K109: 0.0002037255491 | L109: 0.0009218152739 | M109: 0.009987859166 | N109: 6.060054335e-06
A110: =IF('DF raw data'!I110="","",'DF raw data'!I110) -> -278.5 | B110: =IF('DF raw data'!J110="","",'DF raw data'!J110) -> -2.3465e-05 | C110: =IF('DF raw data'!K110="","",'DF raw data'!K110) -> 0.000205374 | D110: =IF('DF raw data'!L110="","",'DF raw data'!L110) -> -1.38699e-05 | F110: 8.45986522e-08 | G110: 4.673604262e-05 | H110: 3.41470743e-06 | J110: 1.563641591e-05 | K110: 0.0002115437571 | L110: 0.0009451832952 | M110: 0.01046045081 | N110: 6.506862314e-06
A111: =IF('DF raw data'!I111="","",'DF raw data'!I111) -> -278 | B111: =IF('DF raw data'!J111="","",'DF raw data'!J111) -> -8.59861e-06 | C111: =IF('DF raw data'!K111="","",'DF raw data'!K111) -> 0.000205015 | D111: =IF('DF raw data'!L111="","",'DF raw data'!L111) -> -1.63687e-05 | F111: 1.501640077e-05 | G111: 4.637546302e-05 | H111: 9.049127101e-07 | J111: 2.314461629e-05 | K111: 0.0002231160652 | L111: 0.0009683710267 | M111: 0.01094463633 | N111: 6.976001374e-06
A112: =IF('DF raw data'!I112="","",'DF raw data'!I112) -> -277.5 | B112: =IF('DF raw data'!J112="","",'DF raw data'!J112) -> -1.10874e-05 | C112: =IF('DF raw data'!K112="","",'DF raw data'!K112) -> 0.000215897 | D112: =IF('DF raw data'!L112="","",'DF raw data'!L112) -> -3.04991e-05 | F112: 1.251666009e-05 | G112: 5.730534382e-05 | H112: -1.328766105e-05 | J112: 2.940294634e-05 | K112: 0.0002378175384 | L112: 0.0009970236986 | M112: 0.01144314818 | N112: 7.473461768e-06
A113: =IF('DF raw data'!I113="","",'DF raw data'!I113) -> -277 | B113: =IF('DF raw data'!J113="","",'DF raw data'!J113) -> -2.68586e-05 | C113: =IF('DF raw data'!K113="","",'DF raw data'!K113) -> 0.000214136 | D113: =IF('DF raw data'!L113="","",'DF raw data'!L113) -> -2.23022e-05 | F113: -3.323933188e-06 | G113: 5.553659542e-05 | H113: -5.05469469e-06 | J113: 2.774097974e-05 | K113: 0.0002516880282 | L113: 0.001024791996 | M113: 0.01195554417 | N113: 7.998945867e-06
A114: =IF('DF raw data'!I114="","",'DF raw data'!I114) -> -276.5 | B114: =IF('DF raw data'!J114="","",'DF raw data'!J114) -> -2.57104e-05 | C114: =IF('DF raw data'!K114="","",'DF raw data'!K114) -> 0.000209052 | D114: =IF('DF raw data'!L114="","",'DF raw data'!L114) -> -9.73095e-06 | F114: -2.170681108e-06 | G114: 5.043022582e-05 | H114: 7.57186881e-06 | J114: 2.665563919e-05 | K114: 0.0002650158478 | L114: 0.001050007109 | M114: 0.01248054773 | N114: 8.550558593e-06
A115: =IF('DF raw data'!I115="","",'DF raw data'!I115) -> -276 | B115: =IF('DF raw data'!J115="","",'DF raw data'!J115) -> -2.46875e-05 | C115: =IF('DF raw data'!K115="","",'DF raw data'!K115) -> 0.000204886 | D115: =IF('DF raw data'!L115="","",'DF raw data'!L115) -> -1.05529e-05 | F115: -1.143280348e-06 | G115: 4.624589542e-05 | H115: 6.74630223e-06 | J115: 2.608399902e-05 | K115: 0.0002780578473 | L115: 0.001073130057 | M115: 0.01301711276 | N115: 9.12670284e-06
A116: =IF('DF raw data'!I116="","",'DF raw data'!I116) -> -275.5 | B116: =IF('DF raw data'!J116="","",'DF raw data'!J116) -> -1.62901e-05 | C116: =IF('DF raw data'!K116="","",'DF raw data'!K116) -> 0.000210719 | D116: =IF('DF raw data'!L116="","",'DF raw data'!L116) -> -1.14223e-05 | F116: 7.291068212e-06 | G116: 5.210456062e-05 | H116: 5.87307687e-06 | J116: 2.972953312e-05 | K116: 0.0002929226139 | L116: 0.001099182337 | M116: 0.01356670393 | N116: 9.731245668e-06
A117: =IF('DF raw data'!I117="","",'DF raw data'!I117) -> -275 | B117: =IF('DF raw data'!J117="","",'DF raw data'!J117) -> -2.83324e-05 | C117: =IF('DF raw data'!K117="","",'DF raw data'!K117) -> 0.000202558 | D117: =IF('DF raw data'!L117="","",'DF raw data'!L117) -> -2.26371e-05 | F117: -4.804217908e-06 | G117: 4.390765222e-05 | H117: -5.39106825e-06 | J117: 2.732742417e-05 | K117: 0.000306586326 | L117: 0.001121136163 | M117: 0.01412727201 | N117: 1.036009221e-05
A118: =IF('DF raw data'!I118="","",'DF raw data'!I118) -> -274.5 | B118: =IF('DF raw data'!J118="","",'DF raw data'!J118) -> -3.42278e-05 | C118: =IF('DF raw data'!K118="","",'DF raw data'!K118) -> 0.000195095 | D118: =IF('DF raw data'!L118="","",'DF raw data'!L118) -> -1.6981e-05 | F118: -1.072555767e-05 | G118: 3.641181502e-05 | H118: 2.899185901e-07 | J118: 2.196464534e-05 | K118: 0.0003175686487 | L118: 0.001139342071 | M118: 0.01469694304 | N118: 1.100938361e-05
A119: =IF('DF raw data'!I119="","",'DF raw data'!I119) -> -274 | B119: =IF('DF raw data'!J119="","",'DF raw data'!J119) -> -9.04697e-06 | C119: =IF('DF raw data'!K119="","",'DF raw data'!K119) -> 0.000192324 | D119: =IF('DF raw data'!L119="","",'DF raw data'!L119) -> -1.68886e-05 | F119: 1.456606798e-05 | G119: 3.362862262e-05 | H119: 3.827251501e-07 | J119: 2.924767933e-05 | K119: 0.0003321924883 | L119: 0.001156156382 | M119: 0.01527502123 | N119: 1.167816011e-05
A120: =IF('DF raw data'!I120="","",'DF raw data'!I120) -> -273.5 | B120: =IF('DF raw data'!J120="","",'DF raw data'!J120) -> -1.80745e-05 | C120: =IF('DF raw data'!K120="","",'DF raw data'!K120) -> 0.000205431 | D120: =IF('DF raw data'!L120="","",'DF raw data'!L120) -> -2.64375e-05 | F120: 5.498816852e-06 | G120: 4.679329342e-05 | H120: -9.20819001e-06 | J120: 3.199708775e-05 | K120: 0.0003481910322 | L120: 0.001179553029 | M120: 0.01586479775 | N120: 1.23743447e-05
A121: =IF('DF raw data'!I121="","",'DF raw data'!I121) -> -273 | B121: =IF('DF raw data'!J121="","",'DF raw data'!J121) -> -3.00057e-05 | C121: =IF('DF raw data'!K121="","",'DF raw data'!K121) -> 0.000205671 | D121: =IF('DF raw data'!L121="","",'DF raw data'!L121) -> -1.13685e-05 | F121: -6.484880428e-06 | G121: 4.703434942e-05 | H121: 5.92711359e-06 | J121: 2.875464754e-05 | K121: 0.000362568356 | L121: 0.001203070204 | M121: 0.01646633285 | N121: 1.309844707e-05
A122: =IF('DF raw data'!I122="","",'DF raw data'!I122) -> -272.5 | B122: =IF('DF raw data'!J122="","",'DF raw data'!J122) -> -2.57665e-05 | C122: =IF('DF raw data'!K122="","",'DF raw data'!K122) -> 0.000202561 | D122: =IF('DF raw data'!L122="","",'DF raw data'!L122) -> -2.19058e-05 | F122: -2.227027948e-06 | G122: 4.391066542e-05 | H122: -4.65655053e-06 | J122: 2.764113357e-05 | K122: 0.0003763889228 | L122: 0.001225025536 | M122: 0.01707884562 | N122: 1.384917287e-05
A123: =IF('DF raw data'!I123="","",'DF raw data'!I123) -> -272 | B123: =IF('DF raw data'!J123="","",'DF raw data'!J123) -> -2.63447e-05 | C123: =IF('DF raw data'!K123="","",'DF raw data'!K123) -> 0.000203808 | D123: =IF('DF raw data'!L123="","",'DF raw data'!L123) -> -2.41166e-05 | F123: -2.807772028e-06 | G123: 4.516315222e-05 | H123: -6.87707805e-06 | J123: 2.623724755e-05 | K123: 0.0003895075465 | L123: 0.001247607112 | M123: 0.01770264918 | N123: 1.462777882e-05
A124: =IF('DF raw data'!I124="","",'DF raw data'!I124) -> -271.5 | B124: =IF('DF raw data'!J124="","",'DF raw data'!J124) -> -1.85873e-05 | C124: =IF('DF raw data'!K124="","",'DF raw data'!K124) -> 0.000211335 | D124: =IF('DF raw data'!L124="","",'DF raw data'!L124) -> -2.61892e-05 | F124: 4.983760532e-06 | G124: 5.272327102e-05 | H124: -8.95879749e-06 | J124: 2.872912782e-05 | K124: 0.0004038721104 | L124: 0.001273968748 | M124: 0.01833963355 | N124: 1.543968968e-05
A125: =IF('DF raw data'!I125="","",'DF raw data'!I125) -> -271 | B125: =IF('DF raw data'!J125="","",'DF raw data'!J125) -> -2.28885e-05 | C125: =IF('DF raw data'!K125="","",'DF raw data'!K125) -> 0.000208713 | D125: =IF('DF raw data'!L125="","",'DF raw data'!L125) -> -1.71039e-05 | F125: 6.636352522e-07 | G125: 5.008973422e-05 | H125: 1.664778301e-07 | J125: 2.906094544e-05 | K125: 0.0004184025832 | L125: 0.001299013615 | M125: 0.01898914036 | N125: 1.628383014e-05
A126: =IF('DF raw data'!I126="","",'DF raw data'!I126) -> -270.5 | B126: =IF('DF raw data'!J126="","",'DF raw data'!J126) -> -1.69894e-05 | C126: =IF('DF raw data'!K126="","",'DF raw data'!K126) -> 0.00021105 | D126: =IF('DF raw data'!L126="","",'DF raw data'!L126) -> -2.00445e-05 | F126: 6.588691292e-06 | G126: 5.243701702e-05 | H126: -2.78706081e-06 | J126: 3.235529109e-05 | K126: 0.0004345802287 | L126: 0.001325232124 | M126: 0.01965175642 | N126: 1.716247366e-05
A127: =IF('DF raw data'!I127="","",'DF raw data'!I127) -> -270 | B127: =IF('DF raw data'!J127="","",'DF raw data'!J127) -> -2.73724e-05 | C127: =IF('DF raw data'!K127="","",'DF raw data'!K127) -> 0.000211402 | D127: =IF('DF raw data'!L127="","",'DF raw data'!L127) -> -2.00068e-05 | F127: -3.839993908e-06 | G127: 5.279056582e-05 | H127: -2.74919493e-06 | J127: 3.043529414e-05 | K127: 0.0004497978758 | L127: 0.001351627406 | M127: 0.02032757012 | N127: 1.807638514e-05
A128: =IF('DF raw data'!I128="","",'DF raw data'!I128) -> -269.5 | B128: =IF('DF raw data'!J128="","",'DF raw data'!J128) -> -1.25096e-05 | C128: =IF('DF raw data'!K128="","",'DF raw data'!K128) -> 0.000207005 | D128: =IF('DF raw data'!L128="","",'DF raw data'!L128) -> -1.17897e-05 | F128: 1.108820241e-05 | G128: 4.837421902e-05 | H128: 5.50406031e-06 | J128: 3.597939534e-05 | K128: 0.0004677875734 | L128: 0.001375814516 | M128: 0.02101547738 | N128: 1.902346519e-05
A129: =IF('DF raw data'!I129="","",'DF raw data'!I129) -> -269 | B129: =IF('DF raw data'!J129="","",'DF raw data'!J129) -> -3.01325e-05 | C129: =IF('DF raw data'!K129="","",'DF raw data'!K129) -> 0.000198135 | D129: =IF('DF raw data'!L129="","",'DF raw data'!L129) -> -1.3301e-05 | F129: -6.612238348e-06 | G129: 3.946519102e-05 | H129: 3.98611059e-06 | J129: 3.267327617e-05 | K129: 0.0004841242115 | L129: 0.001395547112 | M129: 0.02171325094 | N129: 1.999777483e-05
A130: =IF('DF raw data'!I130="","",'DF raw data'!I130) -> -268.5 | B130: =IF('DF raw data'!J130="","",'DF raw data'!J130) -> -2.49966e-05 | C130: =IF('DF raw data'!K130="","",'DF raw data'!K130) -> 0.000193654 | D130: =IF('DF raw data'!L130="","",'DF raw data'!L130) -> -2.3717e-05 | F130: -1.453740388e-06 | G130: 3.496447462e-05 | H130: -6.47571981e-06 | J130: 3.194640597e-05 | K130: 0.0005000974145 | L130: 0.001413029349 | M130: 0.02241976561 | N130: 2.099661109e-05
A131: =IF('DF raw data'!I131="","",'DF raw data'!I131) -> -268 | B131: =IF('DF raw data'!J131="","",'DF raw data'!J131) -> -2.46162e-05 | C131: =IF('DF raw data'!K131="","",'DF raw data'!K131) -> 0.000198457 | D131: =IF('DF raw data'!L131="","",'DF raw data'!L131) -> -2.1011e-05 | F131: =(1-$G$1*($B$54-$G$2))*(B131-F$5) -> -1.071666628e-06 | G131: =(1-$G$1*($B$54-$G$2))*(C131-G$5) -> 3.978860782e-05 | H131: =(1-$G$1*($B$54-$G$2))*(D131-H$5) -> -3.75781341e-06 | J131: 3.141057266e-05 | K131: 0.0005158027008 | L131: 0.001432923653 | M131: 0.02313622744 | N131: 2.20237395e-05
A132: =IF('DF raw data'!I132="","",'DF raw data'!I132) -> -267.5 | B132: =IF('DF raw data'!J132="","",'DF raw data'!J132) -> -2.9616e-05 | C132: =IF('DF raw data'!K132="","",'DF raw data'!K132) -> 0.000201936 | D132: =IF('DF raw data'!L132="","",'DF raw data'!L132) -> -1.48603e-05 | F132: -6.093465748e-06 | G132: 4.328291542e-05 | H132: 2.41994967e-06 | J132: =F132*$G$3+J131 -> 2.836383979e-05 | K132: =J132*$G$3+K131 -> 0.0005299846207 | L132: =G132*$G$3+L131 -> 0.00145456511 | M132: =L132*$G$3+M131 -> 0.02386350999 | N132: =(J132^2+L132^2)*$G$3+N131 -> 2.308202158e-05
A133: =IF('DF raw data'!I133="","",'DF raw data'!I133) -> -267 | B133: =IF('DF raw data'!J133="","",'DF raw data'!J133) -> -3.75577e-05 | C133: =IF('DF raw data'!K133="","",'DF raw data'!K133) -> 0.000202264 | D133: =IF('DF raw data'!L133="","",'DF raw data'!L133) -> -2.55897e-05 | F133: -1.407010923e-05 | G133: 4.361235862e-05 | H133: -8.35665969e-06 | J133: 2.132878517e-05 | K133: 0.0005406490133 | L133: 0.00147637129 | M133: 0.02460169564 | N133: 2.417208513e-05
A134: =IF('DF raw data'!I134="","",'DF raw data'!I134) -> -266.5 | B134: =IF('DF raw data'!J134="","",'DF raw data'!J134) -> -1.91696e-05 | C134: =IF('DF raw data'!K134="","",'DF raw data'!K134) -> 0.00019991 | D134: =IF('DF raw data'!L134="","",'DF raw data'!L134) -> -1.78745e-05 | F134: 4.398898412e-06 | G134: 4.124800102e-05 | H134: -6.075128099e-07 | J134: 2.352823438e-05 | K134: 0.0005524131305 | L134: 0.00149699529 | M134: 0.02535019328 | N134: 2.529285937e-05
A135: =IF('DF raw data'!I135="","",'DF raw data'!I135) -> -266 | B135: =IF('DF raw data'!J135="","",'DF raw data'!J135) -> -1.9684e-05 | C135: =IF('DF raw data'!K135="","",'DF raw data'!K135) -> 0.000201906 | D135: =IF('DF raw data'!L135="","",'DF raw data'!L135) -> -1.78079e-05 | F135: 3.882235052e-06 | G135: 4.325278342e-05 | H135: -5.406197699e-07 | J135: 2.54693519e-05 | K135: 0.0005651478065 | L135: 0.001518621682 | M135: 0.02610950412 | N135: 2.644628962e-05
A136: =IF('DF raw data'!I136="","",'DF raw data'!I136) -> -265.5 | B136: =IF('DF raw data'!J136="","",'DF raw data'!J136) -> -1.55853e-05 | C136: =IF('DF raw data'!K136="","",'DF raw data'!K136) -> 0.000213009 | D136: =IF('DF raw data'!L136="","",'DF raw data'!L136) -> -1.15632e-05 | F136: 7.998969332e-06 | G136: 5.440463662e-05 | H136: 5.73155691e-06 | J136: 2.946883657e-05 | K136: 0.0005798822248 | L136: 0.001545824 | M136: 0.02688241612 | N136: 2.764150975e-05
A137: =IF('DF raw data'!I137="","",'DF raw data'!I137) -> -265 | B137: =IF('DF raw data'!J137="","",'DF raw data'!J137) -> -2.83998e-05 | C137: =IF('DF raw data'!K137="","",'DF raw data'!K137) -> 0.000202562 | D137: =IF('DF raw data'!L137="","",'DF raw data'!L137) -> -1.66716e-05 | F137: -4.871914468e-06 | G137: 4.391166982e-05 | H137: 6.006799501e-07 | J137: 2.703287934e-05 | K137: 0.0005933986644 | L137: 0.001567779835 | M137: 0.02766630604 | N137: 2.887084194e-05
A138: =IF('DF raw data'!I138="","",'DF raw data'!I138) -> -264.5 | B138: =IF('DF raw data'!J138="","",'DF raw data'!J138) -> -3.08967e-05 | C138: =IF('DF raw data'!K138="","",'DF raw data'!K138) -> 0.00020292 | D138: =IF('DF raw data'!L138="","",'DF raw data'!L138) -> -1.604e-05 | F138: -7.379800828e-06 | G138: 4.427124502e-05 | H138: 1.23505899e-06 | J138: 2.334297892e-05 | K138: 0.0006050701539 | L138: 0.001589915458 | M138: 0.02846126377 | N138: 3.013502997e-05
A139: =IF('DF raw data'!I139="","",'DF raw data'!I139) -> -264 | B139: =IF('DF raw data'!J139="","",'DF raw data'!J139) -> -2.94375e-05 | C139: =IF('DF raw data'!K139="","",'DF raw data'!K139) -> 0.000204633 | D139: =IF('DF raw data'!L139="","",'DF raw data'!L139) -> 2.58303e-06 | F139: -5.914180348e-06 | G139: 4.599178222e-05 | H139: 1.994003032e-05 | J139: 2.038588875e-05 | K139: 0.0006152630983 | L139: 0.001612911349 | M139: 0.02926771944 | N139: 3.143597927e-05
A140: =IF('DF raw data'!I140="","",'DF raw data'!I140) -> -263.5 | B140: =IF('DF raw data'!J140="","",'DF raw data'!J140) -> -2.09051e-05 | C140: =IF('DF raw data'!K140="","",'DF raw data'!K140) -> 0.00020139 | D140: =IF('DF raw data'!L140="","",'DF raw data'!L140) -> -9.08614e-06 | F140: 2.655762212e-06 | G140: 4.273451302e-05 | H140: 8.219515974e-06 | J140: 2.171376986e-05 | K140: 0.0006261199832 | L140: 0.001634278605 | M140: 0.03008485875 | N140: 3.277164829e-05
A141: =IF('DF raw data'!I141="","",'DF raw data'!I141) -> -263 | B141: =IF('DF raw data'!J141="","",'DF raw data'!J141) -> -2.41739e-05 | C141: =IF('DF raw data'!K141="","",'DF raw data'!K141) -> 0.000202311 | D141: =IF('DF raw data'!L141="","",'DF raw data'!L141) -> -1.1555e-05 | F141: -6.274205078e-07 | G141: 4.365956542e-05 | H141: 5.73979299e-06 | J141: 2.14000596e-05 | K141: 0.000636820013 | L141: 0.001656108388 | M141: 0.03091291294 | N141: 3.414322477e-05
A142: =IF('DF raw data'!I142="","",'DF raw data'!I142) -> -262.5 | B142: =IF('DF raw data'!J142="","",'DF raw data'!J142) -> -2.75079e-05 | C142: =IF('DF raw data'!K142="","",'DF raw data'!K142) -> 0.000210046 | D142: =IF('DF raw data'!L142="","",'DF raw data'!L142) -> -4.82447e-06 | F142: -3.976090108e-06 | G142: 5.142859942e-05 | H142: 1.249993732e-05 | J142: 1.941201455e-05 | K142: 0.0006465260203 | L142: 0.001681822688 | M142: 0.03175382428 | N142: 3.555767696e-05
A143: =IF('DF raw data'!I143="","",'DF raw data'!I143) -> -262 | B143: =IF('DF raw data'!J143="","",'DF raw data'!J143) -> -2.55835e-05 | C143: =IF('DF raw data'!K143="","",'DF raw data'!K143) -> 0.000210874 | D143: =IF('DF raw data'!L143="","",'DF raw data'!L143) -> -1.19533e-05 | F143: -2.043222748e-06 | G143: 5.226024262e-05 | H143: 5.33974047e-06 | J143: 1.839040317e-05 | K143: 0.0006557212218 | L143: 0.001707952809 | M143: 0.03260780069 | N143: 3.701639746e-05
A144: =IF('DF raw data'!I144="","",'DF raw data'!I144) -> -261.5 | B144: =IF('DF raw data'!J144="","",'DF raw data'!J144) -> -1.42369e-05 | C144: =IF('DF raw data'!K144="","",'DF raw data'!K144) -> 0.000207851 | D144: =IF('DF raw data'!L144="","",'DF raw data'!L144) -> -1.57072e-05 | F144: 9.353302292e-06 | G144: 4.922394142e-05 | H144: 1.56932331e-06 | J144: 2.306705432e-05 | K144: 0.000667254749 | L144: 0.00173256478 | M144: 0.03347408308 | N144: 3.851755387e-05
A145: =IF('DF raw data'!I145="","",'DF raw data'!I145) -> -261 | B145: =IF('DF raw data'!J145="","",'DF raw data'!J145) -> -3.01873e-05 | C145: =IF('DF raw data'!K145="","",'DF raw data'!K145) -> 0.00020943 | D145: =IF('DF raw data'!L145="","",'DF raw data'!L145) -> -2.70087e-05 | F145: -6.667279468e-06 | G145: 5.080988902e-05 | H145: -9.78190329e-06 | J145: 1.973341459e-05 | K145: 0.0006771214563 | L145: 0.001757969724 | M145: 0.03435306794 | N145: 4.006297735e-05
A146: =IF('DF raw data'!I146="","",'DF raw data'!I146) -> -260.5 | B146: =IF('DF raw data'!J146="","",'DF raw data'!J146) -> -2.49281e-05 | C146: =IF('DF raw data'!K146="","",'DF raw data'!K146) -> 0.000207907 | D146: =IF('DF raw data'!L146="","",'DF raw data'!L146) -> -3.07992e-05 | F146: -1.384938988e-06 | G146: 4.928018782e-05 | H146: -1.358908149e-05 | J146: 1.904094509e-05 | K146: 0.0006866419288 | L146: 0.001782609818 | M146: 0.03524437285 | N146: 4.165200751e-05
A147: =IF('DF raw data'!I147="","",'DF raw data'!I147) -> -260 | B147: =IF('DF raw data'!J147="","",'DF raw data'!J147) -> -2.88475e-05 | C147: =IF('DF raw data'!K147="","",'DF raw data'!K147) -> 0.000197178 | D147: =IF('DF raw data'!L147="","",'DF raw data'!L147) -> -1.81133e-05 | F147: -5.321584348e-06 | G147: 3.850398022e-05 | H147: -8.473635299e-07 | J147: 1.638015292e-05 | K147: 0.0006948320053 | L147: 0.001801861808 | M147: 0.03614530375 | N147: 4.327549465e-05
A148: =IF('DF raw data'!I148="","",'DF raw data'!I148) -> -259.5 | B148: =IF('DF raw data'!J148="","",'DF raw data'!J148) -> -2.62173e-05 | C148: =IF('DF raw data'!K148="","",'DF raw data'!K148) -> 0.000197394 | D148: =IF('DF raw data'!L148="","",'DF raw data'!L148) -> -1.90772e-05 | F148: -2.679811468e-06 | G148: 3.872093062e-05 | H148: -1.81550469e-06 | J148: 1.504024718e-05 | K148: 0.0007023521289 | L148: 0.001821222274 | M148: 0.03705591489 | N148: 4.493403304e-05
A149: =IF('DF raw data'!I149="","",'DF raw data'!I149) -> -259 | B149: =IF('DF raw data'!J149="","",'DF raw data'!J149) -> -3.89062e-05 | C149: =IF('DF raw data'!K149="","",'DF raw data'!K149) -> 0.000206296 | D149: =IF('DF raw data'!L149="","",'DF raw data'!L149) -> -2.14318e-05 | F149: -1.542454263e-05 | G149: 4.766209942e-05 | H149: -4.18046493e-06 | J149: 7.32797587e-06 | K149: 0.0007060161168 | L149: 0.001845053323 | M149: 0.03797844155 | N149: 4.663617077e-05
A150: =IF('DF raw data'!I150="","",'DF raw data'!I150) -> -258.5 | B150: =IF('DF raw data'!J150="","",'DF raw data'!J150) -> -2.91637e-05 | C150: =IF('DF raw data'!K150="","",'DF raw data'!K150) -> 0.000202288 | D150: =IF('DF raw data'!L150="","",'DF raw data'!L150) -> -2.07532e-05 | F150: -5.639175628e-06 | G150: 4.363646422e-05 | H150: -3.49887909e-06 | J150: 4.508388056e-06 | K150: 0.0007082703109 | L150: 0.001866871555 | M150: 0.03891187733 | N150: 4.837878564e-05
A151: =IF('DF raw data'!I151="","",'DF raw data'!I151) -> -258 | B151: =IF('DF raw data'!J151="","",'DF raw data'!J151) -> -1.62922e-05 | C151: =IF('DF raw data'!K151="","",'DF raw data'!K151) -> 0.00020231 | D151: =IF('DF raw data'!L151="","",'DF raw data'!L151) -> -1.0566e-05 | F151: 7.288958972e-06 | G151: 4.365856102e-05 | H151: 6.73314459e-06 | J151: 8.152867542e-06 | K151: 0.0007123467446 | L151: 0.001888700836 | M151: 0.03985622775 | N151: 5.016241429e-05
A152: =IF('DF raw data'!I152="","",'DF raw data'!I152) -> -257.5 | B152: =IF('DF raw data'!J152="","",'DF raw data'!J152) -> -3.11482e-05 | C152: =IF('DF raw data'!K152="","",'DF raw data'!K152) -> 0.000213556 | D152: =IF('DF raw data'!L152="","",'DF raw data'!L152) -> -2.37012e-05 | F152: -7.632407428e-06 | G152: 5.495404342e-05 | H152: -6.45985029e-06 | J152: 4.336663828e-06 | K152: 0.0007145150765 | L152: 0.001916177858 | M152: 0.04081431668 | N152: 5.199829249e-05
A153: =IF('DF raw data'!I153="","",'DF raw data'!I153) -> -257 | B153: =IF('DF raw data'!J153="","",'DF raw data'!J153) -> -1.8977e-05 | C153: =IF('DF raw data'!K153="","",'DF raw data'!K153) -> 0.000211642 | D153: =IF('DF raw data'!L153="","",'DF raw data'!L153) -> -2.05903e-05 | F153: 4.592345852e-06 | G153: 5.303162182e-05 | H153: -3.33526233e-06 | J153: 6.632836754e-06 | K153: 0.0007178314949 | L153: 0.001942693669 | M153: 0.04178566351 | N153: 5.388534383e-05
A154: =IF('DF raw data'!I154="","",'DF raw data'!I154) -> -256.5 | B154: =IF('DF raw data'!J154="","",'DF raw data'!J154) -> -2.23018e-05 | C154: =IF('DF raw data'!K154="","",'DF raw data'!K154) -> 0.000202288 | D154: =IF('DF raw data'!L154="","",'DF raw data'!L154) -> -2.98471e-05 | F154: 1.252916732e-06 | G154: 4.363646422e-05 | H154: -1.263279225e-05 | J154: 7.259295121e-06 | K154: 0.0007214611425 | L154: 0.001964511901 | M154: 0.04276791946 | N154: 5.581502368e-05
A155: =IF('DF raw data'!I155="","",'DF raw data'!I155) -> -256 | B155: =IF('DF raw data'!J155="","",'DF raw data'!J155) -> -3.14749e-05 | C155: =IF('DF raw data'!K155="","",'DF raw data'!K155) -> 0.000195114 | D155: =IF('DF raw data'!L155="","",'DF raw data'!L155) -> -1.77406e-05 | F155: -7.960544908e-06 | G155: 3.643089862e-05 | H155: -4.730236499e-07 | J155: 3.279022667e-06 | K155: 0.0007231006538 | L155: 0.00198272735 | M155: 0.04375928314 | N155: 5.778063293e-05
A156: =IF('DF raw data'!I156="","",'DF raw data'!I156) -> -255.5 | B156: =IF('DF raw data'!J156="","",'DF raw data'!J156) -> -2.84005e-05 | C156: =IF('DF raw data'!K156="","",'DF raw data'!K156) -> 0.000201079 | D156: =IF('DF raw data'!L156="","",'DF raw data'!L156) -> -1.21971e-05 | F156: -4.872617548e-06 | G156: 4.242214462e-05 | H156: 5.09486775e-06 | J156: 8.427138928e-07 | K156: 0.0007235220108 | L156: 0.002003938422 | M156: 0.04476125235 | N156: 5.978851789e-05
A157: =IF('DF raw data'!I157="","",'DF raw data'!I157) -> -255 | B157: =IF('DF raw data'!J157="","",'DF raw data'!J157) -> -2.64066e-05 | C157: =IF('DF raw data'!K157="","",'DF raw data'!K157) -> 0.000205231 | D157: =IF('DF raw data'!L157="","",'DF raw data'!L157) -> -2.63363e-05 | F157: -2.869944388e-06 | G157: 4.659241342e-05 | H157: -9.10654473e-06 | J157: -5.922583011e-07 | K157: 0.0007232258816 | L157: 0.002027234629 | M157: 0.04577486966 | N157: 6.184335818e-05
A158: =IF('DF raw data'!I158="","",'DF raw data'!I158) -> -254.5 | B158: =IF('DF raw data'!J158="","",'DF raw data'!J158) -> -1.81482e-05 | C158: =IF('DF raw data'!K158="","",'DF raw data'!K158) -> 0.00020746 | D158: =IF('DF raw data'!L158="","",'DF raw data'!L158) -> -1.24048e-05 | F158: 5.424792572e-06 | G158: 4.883122102e-05 | H158: 4.88625387e-06 | J158: 2.120137985e-06 | K158: 0.0007242859506 | L158: 0.002051650239 | M158: 0.04680069478 | N158: 6.394799478e-05
A159: =IF('DF raw data'!I159="","",'DF raw data'!I159) -> -254 | B159: =IF('DF raw data'!J159="","",'DF raw data'!J159) -> -1.89818e-05 | C159: =IF('DF raw data'!K159="","",'DF raw data'!K159) -> 0.000199018 | D159: =IF('DF raw data'!L159="","",'DF raw data'!L159) -> -1.29619e-05 | F159: 4.587524732e-06 | G159: 4.035207622e-05 | H159: 4.32670263e-06 | J159: 4.413900351e-06 | K159: 0.0007264929008 | L159: 0.002071826278 | M159: 0.04783660792 | N159: 6.609423659e-05
A160: =IF('DF raw data'!I160="","",'DF raw data'!I160) -> -253.5 | B160: =IF('DF raw data'!J160="","",'DF raw data'!J160) -> -1.99382e-05 | C160: =IF('DF raw data'!K160="","",'DF raw data'!K160) -> 0.000205647 | D160: =IF('DF raw data'!L160="","",'DF raw data'!L160) -> -1.88064e-05 | F160: 3.626916572e-06 | G160: 4.701024382e-05 | H160: -1.54351317e-06 | J160: 6.227358637e-06 | K160: 0.0007296065801 | L160: 0.0020953314 | M160: 0.04888427362 | N160: 6.828946281e-05
A161: =IF('DF raw data'!I161="","",'DF raw data'!I161) -> -253 | B161: =IF('DF raw data'!J161="","",'DF raw data'!J161) -> -3.07686e-05 | C161: =IF('DF raw data'!K161="","",'DF raw data'!K161) -> 0.000204663 | D161: =IF('DF raw data'!L161="","",'DF raw data'!L161) -> -1.94349e-05 | F161: -7.251137188e-06 | G161: 4.602191422e-05 | H161: -2.17477857e-06 | J161: 2.601790043e-06 | K161: 0.0007309074751 | L161: 0.002118342357 | M161: 0.0499434448 | N161: 7.053315337e-05
A162: =IF('DF raw data'!I162="","",'DF raw data'!I162) -> -252.5 | B162: =IF('DF raw data'!J162="","",'DF raw data'!J162) -> -3.17945e-05 | C162: =IF('DF raw data'!K162="","",'DF raw data'!K162) -> 0.000204102 | D162: =IF('DF raw data'!L162="","",'DF raw data'!L162) -> -1.57326e-05 | F162: -8.281551148e-06 | G162: 4.545844582e-05 | H162: 1.54381155e-06 | J162: -1.538985531e-06 | K162: 0.0007301379824 | L162: 0.00214107158 | M162: 0.05101398059 | N162: 7.282524831e-05
A163: =IF('DF raw data'!I163="","",'DF raw data'!I163) -> -252 | B163: =IF('DF raw data'!J163="","",'DF raw data'!J163) -> -3.23729e-05 | C163: =IF('DF raw data'!K163="","",'DF raw data'!K163) -> 0.00020325 | D163: =IF('DF raw data'!L163="","",'DF raw data'!L163) -> -1.58478e-05 | F163: -8.862496108e-06 | G163: 4.460269702e-05 | H163: 1.42810467e-06 | J163: -5.970233585e-06 | K163: 0.0007271528656 | L163: 0.002163372928 | M163: 0.05209566705 | N163: 7.516535734e-05
A164: =IF('DF raw data'!I164="","",'DF raw data'!I164) -> -251.5 | B164: =IF('DF raw data'!J164="","",'DF raw data'!J164) -> -2.81357e-05 | C164: =IF('DF raw data'!K164="","",'DF raw data'!K164) -> 0.000208404 | D164: =IF('DF raw data'!L164="","",'DF raw data'!L164) -> -2.55068e-05 | F164: -4.606652428e-06 | G164: 4.977937462e-05 | H164: -8.27339493e-06 | J164: -8.273559798e-06 | K164: 0.0007230160857 | L164: 0.002188262615 | M164: 0.05318979836 | N164: 7.75596382e-05
A165: =IF('DF raw data'!I165="","",'DF raw data'!I165) -> -251 | B165: =IF('DF raw data'!J165="","",'DF raw data'!J165) -> -3.33324e-05 | C165: =IF('DF raw data'!K165="","",'DF raw data'!K165) -> 0.000207474 | D165: =IF('DF raw data'!L165="","",'DF raw data'!L165) -> -1.81704e-05 | F165: -9.826217908e-06 | G165: 4.884528262e-05 | H165: -9.047147699e-07 | J165: -1.318666875e-05 | K165: 0.0007164227513 | L165: 0.002212685257 | M165: 0.05429614099 | N165: 8.000771317e-05
A166: =IF('DF raw data'!I166="","",'DF raw data'!I166) -> -250.5 | B166: =IF('DF raw data'!J166="","",'DF raw data'!J166) -> -2.82018e-05 | C166: =IF('DF raw data'!K166="","",'DF raw data'!K166) -> 0.000203002 | D166: =IF('DF raw data'!L166="","",'DF raw data'!L166) -> -2.26016e-05 | F166: -4.673043268e-06 | G166: 4.435360582e-05 | H166: -5.35541205e-06 | J166: -1.552319039e-05 | K166: 0.0007086611561 | L166: 0.00223486206 | M166: 0.05541357202 | N166: 8.250513787e-05
A167: =IF('DF raw data'!I167="","",'DF raw data'!I167) -> -250 | B167: =IF('DF raw data'!J167="","",'DF raw data'!J167) -> -3.55764e-05 | C167: =IF('DF raw data'!K167="","",'DF raw data'!K167) -> 0.000200599 | D167: =IF('DF raw data'!L167="","",'DF raw data'!L167) -> -1.67209e-05 | F167: -1.208009151e-05 | G167: 4.194003262e-05 | H167: 5.511630301e-07 | J167: -2.156323614e-05 | K167: 0.000697879538 | L167: 0.002255832076 | M167: 0.05654148806 | N167: 8.504975953e-05
A168: =IF('DF raw data'!I168="","",'DF raw data'!I168) -> -249.5 | B168: =IF('DF raw data'!J168="","",'DF raw data'!J168) -> -3.34669e-05 | C168: =IF('DF raw data'!K168="","",'DF raw data'!K168) -> 0.000208064 | D168: =IF('DF raw data'!L168="","",'DF raw data'!L168) -> -5.95455e-06 | F168: -9.961309708e-06 | G168: 4.943787862e-05 | H168: 1.136488497e-05 | J168: -2.654389099e-05 | K168: 0.0006846075925 | L168: 0.002280551015 | M168: 0.05768176356 | N168: 8.765056829e-05
A169: =IF('DF raw data'!I169="","",'DF raw data'!I169) -> -249 | B169: =IF('DF raw data'!J169="","",'DF raw data'!J169) -> -3.32081e-05 | C169: =IF('DF raw data'!K169="","",'DF raw data'!K169) -> 0.000208855 | D169: =IF('DF raw data'!L169="","",'DF raw data'!L169) -> -1.2643e-05 | F169: -9.701370988e-06 | G169: 5.023235902e-05 | H169: 4.64700579e-06 | J169: -3.139457649e-05 | K169: 0.0006689103043 | L169: 0.002305667195 | M169: 0.05883459716 | N169: 9.03091117e-05
A170: =IF('DF raw data'!I170="","",'DF raw data'!I170) -> -248.5 | B170: =IF('DF raw data'!J170="","",'DF raw data'!J170) -> -3.03836e-05 | C170: =IF('DF raw data'!K170="","",'DF raw data'!K170) -> 0.000203187 | D170: =IF('DF raw data'!L170="","",'DF raw data'!L170) -> -1.74824e-05 | F170: -6.864443188e-06 | G170: 4.453941982e-05 | H170: -2.136875699e-07 | J170: -3.482679808e-05 | K170: 0.0006514969052 | L170: 0.002327936905 | M170: 0.05999856561 | N170: 9.301936327e-05
A171: =IF('DF raw data'!I171="","",'DF raw data'!I171) -> -248 | B171: =IF('DF raw data'!J171="","",'DF raw data'!J171) -> -3.39754e-05 | C171: =IF('DF raw data'!K171="","",'DF raw data'!K171) -> 0.000203336 | D171: =IF('DF raw data'!L171="","",'DF raw data'!L171) -> -1.54146e-05 | F171: -1.047204711e-05 | G171: 4.468907542e-05 | H171: 1.86321075e-06 | J171: -4.006282164e-05 | K171: 0.0006314654944 | L171: 0.002350281442 | M171: 0.06117370633 | N171: 9.578207722e-05
A172: =IF('DF raw data'!I172="","",'DF raw data'!I172) -> -247.5 | B172: =IF('DF raw data'!J172="","",'DF raw data'!J172) -> -3.15371e-05 | C172: =IF('DF raw data'!K172="","",'DF raw data'!K172) -> 0.000212541 | D172: =IF('DF raw data'!L172="","",'DF raw data'!L172) -> -1.71466e-05 | F172: -8.023018588e-06 | G172: 5.393457742e-05 | H172: 1.235899501e-07 | J172: -4.407433093e-05 | K172: 0.000609428329 | L172: 0.002377248731 | M172: 0.0623623307 | N172: 9.860870425e-05
A173: =IF('DF raw data'!I173="","",'DF raw data'!I173) -> -247 | B173: =IF('DF raw data'!J173="","",'DF raw data'!J173) -> -3.19946e-05 | C173: =IF('DF raw data'!K173="","",'DF raw data'!K173) -> 0.000202708 | D173: =IF('DF raw data'!L173="","",'DF raw data'!L173) -> -6.5068e-06 | F173: -8.482531588e-06 | G173: 4.405831222e-05 | H173: 1.081020507e-05 | J173: -4.831559672e-05 | K173: 0.0005852705306 | L173: 0.002399277887 | M173: 0.06356196964 | N173: 0.0001014881386
A174: =IF('DF raw data'!I174="","",'DF raw data'!I174) -> -246.5 | B174: =IF('DF raw data'!J174="","",'DF raw data'!J174) -> -3.00637e-05 | C174: =IF('DF raw data'!K174="","",'DF raw data'!K174) -> 0.000195332 | D174: =IF('DF raw data'!L174="","",'DF raw data'!L174) -> -1.64801e-05 | F174: -6.543135628e-06 | G174: 3.664985782e-05 | H174: 7.930225501e-07 | J174: -5.158716454e-05 | K174: 0.0005594769483 | L174: 0.002417602816 | M174: 0.06477077105 | N174: 0.0001044118709
A175: =IF('DF raw data'!I175="","",'DF raw data'!I175) -> -246 | B175: =IF('DF raw data'!J175="","",'DF raw data'!J175) -> -2.64723e-05 | C175: =IF('DF raw data'!K175="","",'DF raw data'!K175) -> 0.000194012 | D175: =IF('DF raw data'!L175="","",'DF raw data'!L175) -> -2.40173e-05 | F175: -2.935933468e-06 | G175: 3.532404982e-05 | H175: -6.77734113e-06 | J175: -5.305513127e-05 | K175: 0.0005329493827 | L175: 0.002435264841 | M175: 0.06598840347 | N175: 0.0001073785358
A176: =IF('DF raw data'!I176="","",'DF raw data'!I176) -> -245.5 | B176: =IF('DF raw data'!J176="","",'DF raw data'!J176) -> -3.50617e-05 | C176: =IF('DF raw data'!K176="","",'DF raw data'!K176) -> 0.000191581 | D176: =IF('DF raw data'!L176="","",'DF raw data'!L176) -> -1.69233e-05 | F176: -1.156312683e-05 | G176: 3.288235342e-05 | H176: 3.478724701e-07 | J176: -5.883669469e-05 | K176: 0.0005035310354 | L176: 0.002451706018 | M176: 0.06721425648 | N176: 0.0001103856979
A177: =IF('DF raw data'!I177="","",'DF raw data'!I177) -> -245 | B177: =IF('DF raw data'!J177="","",'DF raw data'!J177) -> -4.43556e-05 | C177: =IF('DF raw data'!K177="","",'DF raw data'!K177) -> 0.000188593 | D177: =IF('DF raw data'!L177="","",'DF raw data'!L177) -> -1.65115e-05 | F177: -2.089791999e-05 | G177: 2.988120622e-05 | H177: 7.614843901e-07 | J177: -6.928565468e-05 | K177: 0.000468888208 | L177: 0.002466646621 | M177: 0.06844757979 | N177: 0.0001134302709
A178: =IF('DF raw data'!I178="","",'DF raw data'!I178) -> -244.5 | B178: =IF('DF raw data'!J178="","",'DF raw data'!J178) -> -2.75019e-05 | C178: =IF('DF raw data'!K178="","",'DF raw data'!K178) -> 0.000194244 | D178: =IF('DF raw data'!L178="","",'DF raw data'!L178) -> -1.4893e-05 | F178: -3.970063708e-06 | G178: 3.555707062e-05 | H178: 2.38710579e-06 | J178: -7.127068653e-05 | K178: 0.0004332528647 | L178: 0.002484425156 | M178: 0.06968979237 | N178: 0.0001165189948
A179: =IF('DF raw data'!I179="","",'DF raw data'!I179) -> -244 | B179: =IF('DF raw data'!J179="","",'DF raw data'!J179) -> -4.01887e-05 | C179: =IF('DF raw data'!K179="","",'DF raw data'!K179) -> 0.000198837 | D179: =IF('DF raw data'!L179="","",'DF raw data'!L179) -> -1.89888e-05 | F179: -1.671268563e-05 | G179: 4.017027982e-05 | H179: -1.72671573e-06 | J179: -7.962702935e-05 | K179: 0.0003934393501 | L179: 0.002504510296 | M179: 0.07094204752 | N179: 0.000119658451
A180: =IF('DF raw data'!I180="","",'DF raw data'!I180) -> -243.5 | B180: =IF('DF raw data'!J180="","",'DF raw data'!J180) -> -2.71189e-05 | C180: =IF('DF raw data'!K180="","",'DF raw data'!K180) -> 0.000204908 | D180: =IF('DF raw data'!L180="","",'DF raw data'!L180) -> -1.26518e-05 | F180: -3.585378508e-06 | G180: 4.626799222e-05 | H180: 4.63816707e-06 | J180: -8.14197186e-05 | K180: 0.0003527294908 | L180: 0.002527644292 | M180: 0.07220586966 | N180: 0.0001228562584
A181: =IF('DF raw data'!I181="","",'DF raw data'!I181) -> -243 | B181: =IF('DF raw data'!J181="","",'DF raw data'!J181) -> -3.15434e-05 | C181: =IF('DF raw data'!K181="","",'DF raw data'!K181) -> 0.000208722 | D181: =IF('DF raw data'!L181="","",'DF raw data'!L181) -> -1.02924e-05 | F181: -8.029346308e-06 | G181: 5.009877382e-05 | H181: 7.00794843e-06 | J181: -8.543439175e-05 | K181: 0.0003100122949 | L181: 0.002552693679 | M181: 0.0734822165 | N181: 0.0001261180304
A182: =IF('DF raw data'!I182="","",'DF raw data'!I182) -> -242.5 | B182: =IF('DF raw data'!J182="","",'DF raw data'!J182) -> -2.37846e-05 | C182: =IF('DF raw data'!K182="","",'DF raw data'!K182) -> 0.000204146 | D182: =IF('DF raw data'!L182="","",'DF raw data'!L182) -> -1.61234e-05 | F182: -2.364075878e-07 | G182: 4.550263942e-05 | H182: 1.15129203e-06 | J182: -8.555259555e-05 | K182: 0.0002672359971 | L182: 0.002575444999 | M182: 0.074769939 | N182: 0.0001294381485
A183: =IF('DF raw data'!I183="","",'DF raw data'!I183) -> -242 | B183: =IF('DF raw data'!J183="","",'DF raw data'!J183) -> -2.46203e-05 | C183: =IF('DF raw data'!K183="","",'DF raw data'!K183) -> 0.000197169 | D183: =IF('DF raw data'!L183="","",'DF raw data'!L183) -> -1.3704e-05 | F183: -1.075784668e-06 | G183: 3.849494062e-05 | H183: 3.58133739e-06 | J183: -8.609048788e-05 | K183: 0.0002241907532 | L183: 0.002594692469 | M183: 0.07606728524 | N183: 0.0001328080688
A184: =IF('DF raw data'!I184="","",'DF raw data'!I184) -> -241.5 | B184: =IF('DF raw data'!J184="","",'DF raw data'!J184) -> -2.56356e-05 | C184: =IF('DF raw data'!K184="","",'DF raw data'!K184) -> 0.00020124 | D184: =IF('DF raw data'!L184="","",'DF raw data'!L184) -> -2.74247e-05 | F184: -2.095551988e-06 | G184: 4.258385302e-05 | H184: -1.019973369e-05 | J184: -8.713826388e-05 | K184: 0.0001806216212 | L184: 0.002615984396 | M184: 0.07737527743 | N184: 0.0001362335525
A185: =IF('DF raw data'!I185="","",'DF raw data'!I185) -> -241 | B185: =IF('DF raw data'!J185="","",'DF raw data'!J185) -> -3.82631e-05 | C185: =IF('DF raw data'!K185="","",'DF raw data'!K185) -> 0.00020065 | D185: =IF('DF raw data'!L185="","",'DF raw data'!L185) -> -2.33774e-05 | F185: -1.477861299e-05 | G185: 4.199125702e-05 | H185: -6.13462557e-06 | J185: -9.452757037e-05 | K185: 0.0001333578361 | L185: 0.002636980024 | M185: 0.07869376745 | N185: 0.0001397148521
A186: =IF('DF raw data'!I186="","",'DF raw data'!I186) -> -240.5 | B186: =IF('DF raw data'!J186="","",'DF raw data'!J186) -> -3.04455e-05 | C186: =IF('DF raw data'!K186="","",'DF raw data'!K186) -> 0.000204253 | D186: =IF('DF raw data'!L186="","",'DF raw data'!L186) -> -2.17233e-05 | F186: -6.926615548e-06 | G186: 4.561011022e-05 | H186: -4.47324753e-06 | J186: -9.799087814e-05 | K186: 8.436239698e-05 | L186: 0.002659785079 | M186: 0.08002365999 | N186: 0.0001432568815
A187: =IF('DF raw data'!I187="","",'DF raw data'!I187) -> -240 | B187: =IF('DF raw data'!J187="","",'DF raw data'!J187) -> -2.39137e-05 | C187: =IF('DF raw data'!K187="","",'DF raw data'!K187) -> 0.000215862 | D187: =IF('DF raw data'!L187="","",'DF raw data'!L187) -> -1.59523e-05 | F187: -3.660756278e-07 | G187: 5.727018982e-05 | H187: 1.32314487e-06 | J187: -9.817391596e-05 | K187: 3.5275439e-05 | L187: 0.002688420174 | M187: 0.08136787007 | N187: 0.0001468755021
A188: =IF('DF raw data'!I188="","",'DF raw data'!I188) -> -239.5 | B188: =IF('DF raw data'!J188="","",'DF raw data'!J188) -> -3.50503e-05 | C188: =IF('DF raw data'!K188="","",'DF raw data'!K188) -> 0.000220301 | D188: =IF('DF raw data'!L188="","",'DF raw data'!L188) -> -3.51468e-05 | F188: -1.155167667e-05 | G188: 6.172872142e-05 | H188: -1.795581093e-05 | J188: -0.0001039497543 | K188: -1.669943814e-05 | L188: 0.002719284535 | M188: 0.08272751234 | N188: 0.0001505781591
A189: =IF('DF raw data'!I189="","",'DF raw data'!I189) -> -239 | B189: =IF('DF raw data'!J189="","",'DF raw data'!J189) -> -3.55065e-05 | C189: =IF('DF raw data'!K189="","",'DF raw data'!K189) -> 0.000206181 | D189: =IF('DF raw data'!L189="","",'DF raw data'!L189) -> -2.48973e-05 | F189: -1.200988395e-05 | G189: 4.754659342e-05 | H189: -7.66121313e-06 | J189: -0.0001099546963 | K189: -7.167678628e-05 | L189: 0.002743057831 | M189: 0.08409904126 | N189: 0.0001543463872
A190: =IF('DF raw data'!I190="","",'DF raw data'!I190) -> -238.5 | B190: =IF('DF raw data'!J190="","",'DF raw data'!J190) -> -4.72296e-05 | C190: =IF('DF raw data'!K190="","",'DF raw data'!K190) -> 0.000204809 | D190: =IF('DF raw data'!L190="","",'DF raw data'!L190) -> -2.8556e-05 | F190: -2.378456559e-05 | G190: 4.616855662e-05 | H190: -1.133601141e-05 | J190: -0.0001218469791 | K190: -0.0001326002758 | L190: 0.00276614211 | M190: 0.08548211231 | N190: 0.0001581795816
A191: =IF('DF raw data'!I191="","",'DF raw data'!I191) -> -238 | B191: =IF('DF raw data'!J191="","",'DF raw data'!J191) -> -3.74988e-05 | C191: =IF('DF raw data'!K191="","",'DF raw data'!K191) -> 0.000202562 | D191: =IF('DF raw data'!L191="","",'DF raw data'!L191) -> -1.58642e-05 | F191: -1.401095007e-05 | G191: 4.391166982e-05 | H191: 1.41163251e-06 | J191: -0.0001288524541 | K191: -0.0001970265029 | L191: 0.002788097945 | M191: 0.08687616128 | N191: 0.0001620746282
A192: =IF('DF raw data'!I192="","",'DF raw data'!I192) -> -237.5 | B192: =IF('DF raw data'!J192="","",'DF raw data'!J192) -> -3.71127e-05 | C192: =IF('DF raw data'!K192="","",'DF raw data'!K192) -> 0.000207773 | D192: =IF('DF raw data'!L192="","",'DF raw data'!L192) -> -1.72734e-05 | F192: -1.362315123e-05 | G192: 4.914559822e-05 | H192: -3.767969854e-09 | J192: -0.0001356640297 | K192: -0.0002648585177 | L192: 0.002812670744 | M192: 0.08828249666 | N192: 0.0001660393889
A193: =IF('DF raw data'!I193="","",'DF raw data'!I193) -> -237 | B193: =IF('DF raw data'!J193="","",'DF raw data'!J193) -> -3.33343e-05 | C193: =IF('DF raw data'!K193="","",'DF raw data'!K193) -> 0.000208568 | D193: =IF('DF raw data'!L193="","",'DF raw data'!L193) -> -1.45507e-05 | F193: -9.828126268e-06 | G193: 4.994409622e-05 | H193: 2.73091191e-06 | J193: -0.0001405780928 | K193: -0.0003351475641 | L193: 0.002837642792 | M193: 0.08970131805 | N193: 0.0001700753783
A194: =IF('DF raw data'!I194="","",'DF raw data'!I194) -> -236.5 | B194: =IF('DF raw data'!J194="","",'DF raw data'!J194) -> -3.37801e-05 | C194: =IF('DF raw data'!K194="","",'DF raw data'!K194) -> 0.000205666 | D194: =IF('DF raw data'!L194="","",'DF raw data'!L194) -> -1.77454e-05 | F194: -1.027588779e-05 | G194: 4.702932742e-05 | H194: -4.778447699e-07 | J194: -0.0001457160367 | K194: -0.0004080055825 | L194: 0.002861157456 | M194: 0.09113189678 | N194: 0.0001741791059
A195: =IF('DF raw data'!I195="","",'DF raw data'!I195) -> -236 | B195: =IF('DF raw data'!J195="","",'DF raw data'!J195) -> -4.03166e-05 | C195: =IF('DF raw data'!K195="","",'DF raw data'!K195) -> 0.000200003 | D195: =IF('DF raw data'!L195="","",'DF raw data'!L195) -> -1.8418e-05 | F195: =(1-$G$1*($B$54-$G$2))*(B195-F$5) -> -1.684114839e-05 | G195: =(1-$G$1*($B$54-$G$2))*(C195-G$5) -> 4.134141022e-05 | H195: =(1-$G$1*($B$54-$G$2))*(D195-H$5) -> -1.15340421e-06 | J195: -0.0001541366109 | K195: -0.000485073888 | L195: 0.002881828161 | M195: 0.09257281086 | N195: 0.0001783434517
A196: =IF('DF raw data'!I196="","",'DF raw data'!I196) -> -235.5 | B196: =IF('DF raw data'!J196="","",'DF raw data'!J196) -> -3.17187e-05 | C196: =IF('DF raw data'!K196="","",'DF raw data'!K196) -> 0.000199727 | D196: =IF('DF raw data'!L196="","",'DF raw data'!L196) -> -3.47075e-05 | F196: -8.205417628e-06 | G196: 4.106419582e-05 | H196: -1.751457801e-05 | J196: =F196*$G$3+J195 -> -0.0001582393197 | K196: =J196*$G$3+K195 -> -0.0005641935478 | L196: =G196*$G$3+L195 -> 0.002902360259 | M196: =L196*$G$3+M195 -> 0.09402399099 | N196: =(J196^2+L196^2)*$G$3+N195 -> 0.0001825678191
A197: =IF('DF raw data'!I197="","",'DF raw data'!I197) -> -235 | B197: =IF('DF raw data'!J197="","",'DF raw data'!J197) -> -4.21127e-05 | C197: =IF('DF raw data'!K197="","",'DF raw data'!K197) -> 0.000204412 | D197: =IF('DF raw data'!L197="","",'DF raw data'!L197) -> -1.55543e-05 | F197: -1.864515123e-05 | G197: 4.576980982e-05 | H197: 1.72289607e-06 | J197: -0.0001675618954 | K197: -0.0006479744955 | L197: 0.002925245164 | M197: 0.09548661357 | N197: 0.0001868603872
A198: =IF('DF raw data'!I198="","",'DF raw data'!I198) -> -234.5 | B198: =IF('DF raw data'!J198="","",'DF raw data'!J198) -> -3.19892e-05 | C198: =IF('DF raw data'!K198="","",'DF raw data'!K198) -> 0.000203181 | D198: =IF('DF raw data'!L198="","",'DF raw data'!L198) -> -1.27656e-05 | F198: -8.477107828e-06 | G198: 4.453339342e-05 | H198: 4.52386635e-06 | J198: -0.0001718004493 | K198: -0.0007338747201 | L198: 0.00294751186 | M198: 0.0969603695 | N198: 0.000191219058
A199: =IF('DF raw data'!I199="","",'DF raw data'!I199) -> -234 | B199: =IF('DF raw data'!J199="","",'DF raw data'!J199) -> -3.32693e-05 | C199: =IF('DF raw data'!K199="","",'DF raw data'!K199) -> 0.000195555 | D199: =IF('DF raw data'!L199="","",'DF raw data'!L199) -> -1.62479e-05 | F199: -9.762840268e-06 | G199: 3.687383902e-05 | H199: 1.02624423e-06 | J199: -0.0001766818694 | K199: -0.0008222156548 | L199: 0.00296594878 | M199: 0.09844334389 | N199: 0.0001956330923
A200: =IF('DF raw data'!I200="","",'DF raw data'!I200) -> -233.5 | B200: =IF('DF raw data'!J200="","",'DF raw data'!J200) -> -2.99366e-05 | C200: =IF('DF raw data'!K200="","",'DF raw data'!K200) -> 0.000198524 | D200: =IF('DF raw data'!L200="","",'DF raw data'!L200) -> -1.57301e-05 | F200: -6.415476388e-06 | G200: 3.985590262e-05 | H200: 1.54632255e-06 | J200: -0.0001798896076 | K200: -0.0009121604586 | L200: 0.002985876731 | M200: 0.09993628226 | N200: 0.0002001070024
... 1079 more rows

Sheet 30 mm
A1: =IF('DF raw data'!M1="","",'DF raw data'!M1) -> Number of header lines | B1: =IF('DF raw data'!N1="","",'DF raw data'!N1) -> 54 | C1: =IF('DF raw data'!C1="","",'DF raw data'!C1) ->  | D1: =IF('DF raw data'!D1="","",'DF raw data'!D1) ->  | F1: T_coeff | G1: -0.001 | H1: /degC | J1: IBy total | K1: =J1267*1000 -> 7.174876616 | L1: muTm | M1: =L1267*1000 -> -14.71568041 | R1: DF ref | S1: 1
A2: =IF('DF raw data'!M2="","",'DF raw data'!M2) -> Measured by | B2: =IF('DF raw data'!N2="","",'DF raw data'!N2) -> Danfysik | C2: =IF('DF raw data'!C2="","",'DF raw data'!C2) ->  | D2: =IF('DF raw data'!D2="","",'DF raw data'!D2) ->  | F2: Tcorr | G2: 20 | H2: degC | J2: JBy total | K2: =K1267 -> -6.995696895 | L2: muTm^2 | M2: =M1267 -> -6.344680359
A3: =IF('DF raw data'!M3="","",'DF raw data'!M3) -> Operator | B3: =IF('DF raw data'!N3="","",'DF raw data'!N3) -> PMHA | C3: =IF('DF raw data'!C3="","",'DF raw data'!C3) ->  | D3: =IF('DF raw data'!D3="","",'DF raw data'!D3) ->  | F3: Step | G3: =A68-A67 -> 0.5 | H3: mm | J3: PI total | K3: =N1267 -> 2474.485911 | L3: T^2mm^3
A4: =IF('DF raw data'!M4="","",'DF raw data'!M4) -> Data-time | B4: =IF('DF raw data'!N4="","",'DF raw data'!N4) -> 13-09-2024, 11:45:29 | C4: =IF('DF raw data'!C4="","",'DF raw data'!C4) ->  | D4: =IF('DF raw data'!D4="","",'DF raw data'!D4) -> 
A5: =IF('DF raw data'!M5="","",'DF raw data'!M5) -> Project | B5: =IF('DF raw data'!N5="","",'DF raw data'!N5) -> 504314 | C5: =IF('DF raw data'!C5="","",'DF raw data'!C5) ->  | D5: Bamb avr | F5: =(AVERAGE(B67:B107) + AVERAGE(B1227:B1267))/2 -> -1.740264805e-05 | G5: =(AVERAGE(C67:C107) + AVERAGE(C1227:C1267))/2 -> 0.0001951427195 | H5: =(AVERAGE(D67:D107) + AVERAGE(D1227:D1267))/2 -> -1.239031593e-05
A6: =IF('DF raw data'!M6="","",'DF raw data'!M6) -> Magnet type | B6: =IF('DF raw data'!N6="","",'DF raw data'!N6) -> Dipole | C6: =IF('DF raw data'!C6="","",'DF raw data'!C6) -> 
A7: =IF('DF raw data'!M7="","",'DF raw data'!M7) -> Magnet nr. | B7: =IF('DF raw data'!N7="","",'DF raw data'!N7) -> 2410096 | C7: =IF('DF raw data'!C7="","",'DF raw data'!C7) -> 
A8: =IF('DF raw data'!M8="","",'DF raw data'!M8) -> Meas. number | B8: =IF('DF raw data'!N8="","",'DF raw data'!N8) -> 458 | C8: =IF('DF raw data'!C8="","",'DF raw data'!C8) -> 
A9: =IF('DF raw data'!M9="","",'DF raw data'!M9) -> Add. info | B9: =IF('DF raw data'!N9="","",'DF raw data'!N9) -> X-alignment scan 3) | C9: =IF('DF raw data'!C9="","",'DF raw data'!C9) ->  | D9: =IF('DF raw data'!D9="","",'DF raw data'!D9) -> 
A10: =IF('DF raw data'!M10="","",'DF raw data'!M10) -> Device | B10: =IF('DF raw data'!N10="","",'DF raw data'!N10) -> (HAL) HALL-PROBE | C10: =IF('DF raw data'!C10="","",'DF raw data'!C10) ->  | D10: =IF('DF raw data'!D10="","",'DF raw data'!D10) -> 
A11: =IF('DF raw data'!M11="","",'DF raw data'!M11) -> Goal | B11: =IF('DF raw data'!N11="","",'DF raw data'!N11) -> (AXI) AXis Integral (Line, EFB) | C11: =IF('DF raw data'!C11="","",'DF raw data'!C11) ->  | D11: =IF('DF raw data'!D11="","",'DF raw data'!D11) -> 
A12: =IF('DF raw data'!M12="","",'DF raw data'!M12) -> Power supply mode | B12: =IF('DF raw data'!N12="","",'DF raw data'!N12) -> (PM) Permanent Magnet (no MPS in use) | C12: =IF('DF raw data'!C12="","",'DF raw data'!C12) ->  | D12: =IF('DF raw data'!D12="","",'DF raw data'!D12) -> 
A13: =IF('DF raw data'!M13="","",'DF raw data'!M13) -> Data format | B13: =IF('DF raw data'!N13="","",'DF raw data'!N13) -> Raw data text file | C13: =IF('DF raw data'!C13="","",'DF raw data'!C13) ->  | D13: =IF('DF raw data'!D13="","",'DF raw data'!D13) -> 
A14: =IF('DF raw data'!M14="","",'DF raw data'!M14) -> Direction of the pos. x-axis | B14: =IF('DF raw data'!N14="","",'DF raw data'!N14) -> See test program | C14: =IF('DF raw data'!C14="","",'DF raw data'!C14) ->  | D14: =IF('DF raw data'!D14="","",'DF raw data'!D14) -> 
A15: =IF('DF raw data'!M15="","",'DF raw data'!M15) -> Direction of the pos. y-axis | B15: =IF('DF raw data'!N15="","",'DF raw data'!N15) -> Vertical up | C15: =IF('DF raw data'!C15="","",'DF raw data'!C15) ->  | D15: =IF('DF raw data'!D15="","",'DF raw data'!D15) -> 
A16: =IF('DF raw data'!M16="","",'DF raw data'!M16) -> Direction of the pos. z-axis | B16: =IF('DF raw data'!N16="","",'DF raw data'!N16) -> See test program | C16: =IF('DF raw data'!C16="","",'DF raw data'!C16) ->  | D16: =IF('DF raw data'!D16="","",'DF raw data'!D16) -> 
A17: =IF('DF raw data'!M17="","",'DF raw data'!M17) -> Mapper type | B17: =IF('DF raw data'!N17="","",'DF raw data'!N17) -> Precision Hall Mapper | C17: =IF('DF raw data'!C17="","",'DF raw data'!C17) ->  | D17: =IF('DF raw data'!D17="","",'DF raw data'!D17) -> 
A18: =IF('DF raw data'!M18="","",'DF raw data'!M18) -> Mapper Danfysik Reg. Number | B18: =IF('DF raw data'!N18="","",'DF raw data'!N18) -> 2033-D (mapper 1) | C18: =IF('DF raw data'!C18="","",'DF raw data'!C18) ->  | D18: =IF('DF raw data'!D18="","",'DF raw data'!D18) -> 
A19: =IF('DF raw data'!M19="","",'DF raw data'!M19) -> Measurement consept | B19: =IF('DF raw data'!N19="","",'DF raw data'!N19) -> Square line grid | C19: =IF('DF raw data'!C19="","",'DF raw data'!C19) ->  | D19: =IF('DF raw data'!D19="","",'DF raw data'!D19) -> 
A20: =IF('DF raw data'!M20="","",'DF raw data'!M20) -> Mode | B20: =IF('DF raw data'!N20="","",'DF raw data'!N20) -> On-the-fly measurement | C20: =IF('DF raw data'!C20="","",'DF raw data'!C20) ->  | D20: =IF('DF raw data'!D20="","",'DF raw data'!D20) -> 
A21: =IF('DF raw data'!M21="","",'DF raw data'!M21) ->  | B21: =IF('DF raw data'!N21="","",'DF raw data'!N21) ->  | C21: =IF('DF raw data'!C21="","",'DF raw data'!C21) ->  | D21: =IF('DF raw data'!D21="","",'DF raw data'!D21) -> 
A22: =IF('DF raw data'!M22="","",'DF raw data'!M22) -> Probe Name | B22: =IF('DF raw data'!N22="","",'DF raw data'!N22) -> ID12_By | C22: =IF('DF raw data'!C22="","",'DF raw data'!C22) ->  | D22: =IF('DF raw data'!D22="","",'DF raw data'!D22) -> 
A23: =IF('DF raw data'!M23="","",'DF raw data'!M23) -> Probe Type | B23: =IF('DF raw data'!N23="","",'DF raw data'!N23) -> DF_ID_3D_Bxyz | C23: =IF('DF raw data'!C23="","",'DF raw data'!C23) ->  | D23: =IF('DF raw data'!D23="","",'DF raw data'!D23) -> 
A24: =IF('DF raw data'!M24="","",'DF raw data'!M24) -> Probe Danfysik Reg. Number | B24: =IF('DF raw data'!N24="","",'DF raw data'!N24) -> 2277 | C24: =IF('DF raw data'!C24="","",'DF raw data'!C24) ->  | D24: =IF('DF raw data'!D24="","",'DF raw data'!D24) -> 
A25: =IF('DF raw data'!M25="","",'DF raw data'!M25) -> Probe Axis | B25: =IF('DF raw data'!N25="","",'DF raw data'!N25) -> By | C25: =IF('DF raw data'!C25="","",'DF raw data'!C25) ->  | D25: =IF('DF raw data'!D25="","",'DF raw data'!D25) -> 
A26: =IF('DF raw data'!M26="","",'DF raw data'!M26) -> Probe Current Supply | B26: =IF('DF raw data'!N26="","",'DF raw data'!N26) -> 1825-D | C26: =IF('DF raw data'!C26="","",'DF raw data'!C26) ->  | D26: =IF('DF raw data'!D26="","",'DF raw data'!D26) -> 
A27: =IF('DF raw data'!M27="","",'DF raw data'!M27) -> Probe Gain Correction | B27: =IF('DF raw data'!N27="","",'DF raw data'!N27) -> 0.99619 | C27: =IF('DF raw data'!C27="","",'DF raw data'!C27) ->  | D27: =IF('DF raw data'!D27="","",'DF raw data'!D27) -> 
A28: =IF('DF raw data'!M28="","",'DF raw data'!M28) -> Probe Offset Correction | B28: =IF('DF raw data'!N28="","",'DF raw data'!N28) -> 0.002767 | C28: =IF('DF raw data'!C28="","",'DF raw data'!C28) ->  | D28: =IF('DF raw data'!D28="","",'DF raw data'!D28) -> 
A29: =IF('DF raw data'!M29="","",'DF raw data'!M29) -> DVM Number | B29: =IF('DF raw data'!N29="","",'DF raw data'!N29) -> 2 | C29: =IF('DF raw data'!C29="","",'DF raw data'!C29) ->  | D29: =IF('DF raw data'!D29="","",'DF raw data'!D29) -> 
A30: =IF('DF raw data'!M30="","",'DF raw data'!M30) -> DVM Type | B30: =IF('DF raw data'!N30="","",'DF raw data'!N30) -> K2701 | C30: =IF('DF raw data'!C30="","",'DF raw data'!C30) ->  | D30: =IF('DF raw data'!D30="","",'DF raw data'!D30) -> 
A31: =IF('DF raw data'!M31="","",'DF raw data'!M31) -> DVM Danfysik Reg. Number | B31: =IF('DF raw data'!N31="","",'DF raw data'!N31) -> 1743-D | C31: =IF('DF raw data'!C31="","",'DF raw data'!C31) ->  | D31: =IF('DF raw data'!D31="","",'DF raw data'!D31) -> 
A32: =IF('DF raw data'!M32="","",'DF raw data'!M32) -> Probe Name | B32: =IF('DF raw data'!N32="","",'DF raw data'!N32) -> ID12_Bx | C32: =IF('DF raw data'!C32="","",'DF raw data'!C32) ->  | D32: =IF('DF raw data'!D32="","",'DF raw data'!D32) -> 
A33: =IF('DF raw data'!M33="","",'DF raw data'!M33) -> Probe Type | B33: =IF('DF raw data'!N33="","",'DF raw data'!N33) -> DF_ID_3D_Bxyz | C33: =IF('DF raw data'!C33="","",'DF raw data'!C33) ->  | D33: =IF('DF raw data'!D33="","",'DF raw data'!D33) -> 
A34: =IF('DF raw data'!M34="","",'DF raw data'!M34) -> Probe Danfysik Reg. Number | B34: =IF('DF raw data'!N34="","",'DF raw data'!N34) -> 2277 | C34: =IF('DF raw data'!C34="","",'DF raw data'!C34) ->  | D34: =IF('DF raw data'!D34="","",'DF raw data'!D34) -> 
A35: =IF('DF raw data'!M35="","",'DF raw data'!M35) -> Probe Axis | B35: =IF('DF raw data'!N35="","",'DF raw data'!N35) -> Bx | C35: =IF('DF raw data'!C35="","",'DF raw data'!C35) ->  | D35: =IF('DF raw data'!D35="","",'DF raw data'!D35) -> 
A36: =IF('DF raw data'!M36="","",'DF raw data'!M36) -> Probe Current Supply | B36: =IF('DF raw data'!N36="","",'DF raw data'!N36) -> 1825-D | C36: =IF('DF raw data'!C36="","",'DF raw data'!C36) ->  | D36: =IF('DF raw data'!D36="","",'DF raw data'!D36) -> 
A37: =IF('DF raw data'!M37="","",'DF raw data'!M37) -> Probe Gain Correction | B37: =IF('DF raw data'!N37="","",'DF raw data'!N37) -> 1 | C37: =IF('DF raw data'!C37="","",'DF raw data'!C37) ->  | D37: =IF('DF raw data'!D37="","",'DF raw data'!D37) -> 
A38: =IF('DF raw data'!M38="","",'DF raw data'!M38) -> Probe Offset Correction | B38: =IF('DF raw data'!N38="","",'DF raw data'!N38) -> -0.17549 | C38: =IF('DF raw data'!C38="","",'DF raw data'!C38) ->  | D38: =IF('DF raw data'!D38="","",'DF raw data'!D38) -> 
A39: =IF('DF raw data'!M39="","",'DF raw data'!M39) -> DVM Number | B39: =IF('DF raw data'!N39="","",'DF raw data'!N39) -> 3 | C39: =IF('DF raw data'!C39="","",'DF raw data'!C39) ->  | D39: =IF('DF raw data'!D39="","",'DF raw data'!D39) -> 
A40: =IF('DF raw data'!M40="","",'DF raw data'!M40) -> DVM Type | B40: =IF('DF raw data'!N40="","",'DF raw data'!N40) -> K2701 | C40: =IF('DF raw data'!C40="","",'DF raw data'!C40) ->  | D40: =IF('DF raw data'!D40="","",'DF raw data'!D40) -> 
A41: =IF('DF raw data'!M41="","",'DF raw data'!M41) -> DVM Danfysik Reg. Number | B41: =IF('DF raw data'!N41="","",'DF raw data'!N41) -> 1744-D | C41: =IF('DF raw data'!C41="","",'DF raw data'!C41) ->  | D41: =IF('DF raw data'!D41="","",'DF raw data'!D41) -> 
A42: =IF('DF raw data'!M42="","",'DF raw data'!M42) -> Probe Name | B42: =IF('DF raw data'!N42="","",'DF raw data'!N42) -> ID12_Bz | C42: =IF('DF raw data'!C42="","",'DF raw data'!C42) ->  | D42: =IF('DF raw data'!D42="","",'DF raw data'!D42) -> 
A43: =IF('DF raw data'!M43="","",'DF raw data'!M43) -> Probe Type | B43: =IF('DF raw data'!N43="","",'DF raw data'!N43) -> DF_ID_3D_Bxyz | C43: =IF('DF raw data'!C43="","",'DF raw data'!C43) ->  | D43: =IF('DF raw data'!D43="","",'DF raw data'!D43) -> 
A44: =IF('DF raw data'!M44="","",'DF raw data'!M44) -> Probe Danfysik Reg. Number | B44: =IF('DF raw data'!N44="","",'DF raw data'!N44) -> 2277 | C44: =IF('DF raw data'!C44="","",'DF raw data'!C44) ->  | D44: =IF('DF raw data'!D44="","",'DF raw data'!D44) -> 
A45: =IF('DF raw data'!M45="","",'DF raw data'!M45) -> Probe Axis | B45: =IF('DF raw data'!N45="","",'DF raw data'!N45) -> Bz | C45: =IF('DF raw data'!C45="","",'DF raw data'!C45) ->  | D45: =IF('DF raw data'!D45="","",'DF raw data'!D45) -> 
A46: =IF('DF raw data'!M46="","",'DF raw data'!M46) -> Probe Current Supply | B46: =IF('DF raw data'!N46="","",'DF raw data'!N46) -> 1825-D | C46: =IF('DF raw data'!C46="","",'DF raw data'!C46) ->  | D46: =IF('DF raw data'!D46="","",'DF raw data'!D46) -> 
A47: =IF('DF raw data'!M47="","",'DF raw data'!M47) -> Probe Gain Correction | B47: =IF('DF raw data'!N47="","",'DF raw data'!N47) -> 1 | C47: =IF('DF raw data'!C47="","",'DF raw data'!C47) ->  | D47: =IF('DF raw data'!D47="","",'DF raw data'!D47) -> 
A48: =IF('DF raw data'!M48="","",'DF raw data'!M48) -> Probe Offset Correction | B48: =IF('DF raw data'!N48="","",'DF raw data'!N48) -> 0.0073199 | C48: =IF('DF raw data'!C48="","",'DF raw data'!C48) ->  | D48: =IF('DF raw data'!D48="","",'DF raw data'!D48) -> 
A49: =IF('DF raw data'!M49="","",'DF raw data'!M49) -> DVM Number | B49: =IF('DF raw data'!N49="","",'DF raw data'!N49) -> 8 | C49: =IF('DF raw data'!C49="","",'DF raw data'!C49) ->  | D49: =IF('DF raw data'!D49="","",'DF raw data'!D49) -> 
A50: =IF('DF raw data'!M50="","",'DF raw data'!M50) -> DVM Type | B50: =IF('DF raw data'!N50="","",'DF raw data'!N50) -> K2700 | C50: =IF('DF raw data'!C50="","",'DF raw data'!C50) ->  | D50: =IF('DF raw data'!D50="","",'DF raw data'!D50) -> 
A51: =IF('DF raw data'!M51="","",'DF raw data'!M51) -> DVM Danfysik Reg. Number | B51: =IF('DF raw data'!N51="","",'DF raw data'!N51) -> 1756-D | C51: =IF('DF raw data'!C51="","",'DF raw data'!C51) ->  | D51: =IF('DF raw data'!D51="","",'DF raw data'!D51) -> 
A52: =IF('DF raw data'!M52="","",'DF raw data'!M52) -> NTC voltage | B52: =IF('DF raw data'!N52="","",'DF raw data'!N52) -> 0.41387 | C52: =IF('DF raw data'!C52="","",'DF raw data'!C52) ->  | D52: =IF('DF raw data'!D52="","",'DF raw data'!D52) -> 
A53: =IF('DF raw data'!M53="","",'DF raw data'!M53) -> PS-Gap: | B53: =IF('DF raw data'!N53="","",'DF raw data'!N53) -> 30 | C53: =IF('DF raw data'!C53="","",'DF raw data'!C53) ->  | D53: =IF('DF raw data'!D53="","",'DF raw data'!D53) -> 
A54: =IF('DF raw data'!M54="","",'DF raw data'!M54) -> PS-Temperature: | B54: =IF('DF raw data'!N54="","",'DF raw data'!N54) -> 24.3 | C54: =IF('DF raw data'!C54="","",'DF raw data'!C54) ->  | D54: =IF('DF raw data'!D54="","",'DF raw data'!D54) -> 
A55: =IF('DF raw data'!M55="","",'DF raw data'!M55) -> PS-Encoder: | B55: =IF('DF raw data'!N55="","",'DF raw data'!N55) -> 39.7334 | C55: =IF('DF raw data'!C55="","",'DF raw data'!C55) ->  | D55: =IF('DF raw data'!D55="","",'DF raw data'!D55) -> 
A56: =IF('DF raw data'!M56="","",'DF raw data'!M56) ->  | B56: =IF('DF raw data'!N56="","",'DF raw data'!N56) -> 
A57: =IF('DF raw data'!M57="","",'DF raw data'!M57) -> Monitor-Index | B57: =IF('DF raw data'!N57="","",'DF raw data'!N57) -> [1,1,4]
A58: =IF('DF raw data'!M58="","",'DF raw data'!M58) ->  | B58: =IF('DF raw data'!N58="","",'DF raw data'!N58) -> 
A59: =IF('DF raw data'!M59="","",'DF raw data'!M59) -> Time [s] | B59: =IF('DF raw data'!N59="","",'DF raw data'!N59) -> Y [mm]
A60: =IF('DF raw data'!M60="","",'DF raw data'!M60) ->  | B60: =IF('DF raw data'!N60="","",'DF raw data'!N60) -> 
A61: =IF('DF raw data'!M61="","",'DF raw data'!M61) -> 207 | B61: =IF('DF raw data'!N61="","",'DF raw data'!N61) -> 31.76
A62: =IF('DF raw data'!M62="","",'DF raw data'!M62) ->  | B62: =IF('DF raw data'!N62="","",'DF raw data'!N62) -> 
A63: =IF('DF raw data'!M63="","",'DF raw data'!M63) -> Measurement-Index | B63: =IF('DF raw data'!N63="","",'DF raw data'!N63) -> [1,1,1201,2]
A64: =IF('DF raw data'!M64="","",'DF raw data'!M64) ->  | B64: =IF('DF raw data'!N64="","",'DF raw data'!N64) -> 
A65: =IF('DF raw data'!M65="","",'DF raw data'!M65) -> Z [mm] | B65: =IF('DF raw data'!N65="","",'DF raw data'!N65) -> By [T] | C65: =IF('DF raw data'!O65="","",'DF raw data'!O65) -> Bx [T] | D65: =IF('DF raw data'!P65="","",'DF raw data'!P65) -> Bz [T] | F65: By_corr | G65: Bx_corr | H65: Bz_corr | J65: Iy | K65: Jy | L65: Ix | M65: Jx | N65: PI
B66: =IF('DF raw data'!N66="","",'DF raw data'!N66) ->  | C66: =IF('DF raw data'!O66="","",'DF raw data'!O66) ->  | D66: =IF('DF raw data'!P66="","",'DF raw data'!P66) -> 
A67: =IF('DF raw data'!M67="","",'DF raw data'!M67) -> -300 | B67: =IF('DF raw data'!N67="","",'DF raw data'!N67) -> -2.13391e-05 | C67: =IF('DF raw data'!O67="","",'DF raw data'!O67) -> 0.00017229 | D67: =IF('DF raw data'!P67="","",'DF raw data'!P67) -> -2.72006e-05 | F67: =(1-$G$1*($B$54-$G$2))*(B67-F$5) -> -3.953378695e-06 | G67: =(1-$G$1*($B$54-$G$2))*(C67-G$5) -> -2.295098621e-05 | H67: =(1-$G$1*($B$54-$G$2))*(D67-H$5) -> -1.487396829e-05 | J67: =F67*$G$3+J66 -> -1.976689347e-06 | K67: =J67*$G$3+K66 -> -9.883446737e-07 | L67: =G67*$G$3+L66 -> -1.14754931e-05 | M67: =L67*$G$3+M66 -> -5.737746552e-06 | N67: =(J67^2+L67^2)*$G$3+N66 -> 6.779712137e-11
A68: =IF('DF raw data'!M68="","",'DF raw data'!M68) -> -299.5 | B68: =IF('DF raw data'!N68="","",'DF raw data'!N68) -> -2.13393e-05 | C68: =IF('DF raw data'!O68="","",'DF raw data'!O68) -> 0.00018333 | D68: =IF('DF raw data'!P68="","",'DF raw data'!P68) -> -2.7396e-05 | F68: -3.953579555e-06 | G68: -1.186351421e-05 | H68: -1.507020851e-05 | J68: =F68*$G$3+J67 -> -3.953479125e-06 | K68: =J68*$G$3+K67 -> -2.965084236e-06 | L68: =G68*$G$3+L67 -> -1.740725021e-05 | M68: =L68*$G$3+M67 -> -1.444137165e-05 | N68: =(J68^2+L68^2)*$G$3+N67 -> 2.271182998e-10
A69: =IF('DF raw data'!M69="","",'DF raw data'!M69) -> -299 | B69: =IF('DF raw data'!N69="","",'DF raw data'!N69) -> -2.4992e-05 | C69: =IF('DF raw data'!O69="","",'DF raw data'!O69) -> 0.00018641 | D69: =IF('DF raw data'!P69="","",'DF raw data'!P69) -> -2.74638e-05 | F69: -7.621986165e-06 | G69: -8.770270206e-06 | H69: -1.513830005e-05 | J69: -7.764472207e-06 | K69: -6.847320339e-06 | L69: -2.179238531e-05 | M69: -2.533756431e-05 | N69: 4.947158429e-10
A70: =IF('DF raw data'!M70="","",'DF raw data'!M70) -> -298.5 | B70: =IF('DF raw data'!N70="","",'DF raw data'!N70) -> -2.94138e-05 | C70: =IF('DF raw data'!O70="","",'DF raw data'!O70) -> 0.000179971 | D70: =IF('DF raw data'!P70="","",'DF raw data'!P70) -> -2.66197e-05 | F70: -1.20627999e-05 | G70: -1.523695791e-05 | H70: -1.429057042e-05 | J70: -1.379587216e-05 | K70: -1.374525642e-05 | L70: -2.941086426e-05 | M70: -4.004299644e-05 | N70: 1.022378356e-09
A71: =IF('DF raw data'!M71="","",'DF raw data'!M71) -> -298 | B71: =IF('DF raw data'!N71="","",'DF raw data'!N71) -> -3.19138e-05 | C71: =IF('DF raw data'!O71="","",'DF raw data'!O71) -> 0.000194675 | D71: =IF('DF raw data'!P71="","",'DF raw data'!P71) -> -2.54122e-05 | F71: -1.45735499e-05 | G71: -4.697307061e-07 | H71: -1.307787817e-05 | J71: -2.108264711e-05 | K71: -2.428657997e-05 | L71: -2.964572962e-05 | M71: -5.486586125e-05 | N71: 1.684052002e-09
A72: =IF('DF raw data'!M72="","",'DF raw data'!M72) -> -297.5 | B72: =IF('DF raw data'!N72="","",'DF raw data'!N72) -> -1.13446e-05 | C72: =IF('DF raw data'!O72="","",'DF raw data'!O72) -> 0.000194884 | D72: =IF('DF raw data'!P72="","",'DF raw data'!P72) -> -2.53029e-05 | F72: 6.084097655e-06 | G72: -2.598320061e-07 | H72: -1.296810818e-05 | J72: -1.804059828e-05 | K72: -3.330687912e-05 | L72: -2.977564562e-05 | M72: -6.975368406e-05 | N72: 2.290078132e-09
A73: =IF('DF raw data'!M73="","",'DF raw data'!M73) -> -297 | B73: =IF('DF raw data'!N73="","",'DF raw data'!N73) -> -1.68549e-05 | C73: =IF('DF raw data'!O73="","",'DF raw data'!O73) -> 0.000193016 | D73: =IF('DF raw data'!P73="","",'DF raw data'!P73) -> -2.6049e-05 | F73: 5.501033654e-07 | G73: -2.135864406e-06 | H73: -1.371741641e-05 | J73: -1.77655466e-05 | K73: -4.218965242e-05 | L73: -3.084357782e-05 | M73: -8.517547297e-05 | N73: 2.923548601e-09
A74: =IF('DF raw data'!M74="","",'DF raw data'!M74) -> -296.5 | B74: =IF('DF raw data'!N74="","",'DF raw data'!N74) -> -1.51242e-05 | C74: =IF('DF raw data'!O74="","",'DF raw data'!O74) -> 0.000195287 | D74: =IF('DF raw data'!P74="","",'DF raw data'!P74) -> -2.68157e-05 | F74: 2.288245375e-06 | G74: 1.449008939e-07 | H74: -1.448741322e-05 | J74: -1.662142391e-05 | K74: -5.050036437e-05 | L74: -3.077112737e-05 | M74: -0.0001005610367 | N74: 3.535115607e-09
A75: =IF('DF raw data'!M75="","",'DF raw data'!M75) -> -296 | B75: =IF('DF raw data'!N75="","",'DF raw data'!N75) -> -1.10871e-05 | C75: =IF('DF raw data'!O75="","",'DF raw data'!O75) -> 0.000189612 | D75: =IF('DF raw data'!P75="","",'DF raw data'!P75) -> -2.72473e-05 | F75: 6.342704905e-06 | G75: -5.554501606e-06 | H75: -1.49208691e-05 | J75: -1.345007146e-05 | K75: -5.72254001e-05 | L75: -3.354837818e-05 | M75: -0.0001173352257 | N75: 4.188314658e-09
A76: =IF('DF raw data'!M76="","",'DF raw data'!M76) -> -295.5 | B76: =IF('DF raw data'!N76="","",'DF raw data'!N76) -> -2.3326e-05 | C76: =IF('DF raw data'!O76="","",'DF raw data'!O76) -> 0.00018943 | D76: =IF('DF raw data'!P76="","",'DF raw data'!P76) -> -2.69681e-05 | F76: -5.948822365e-06 | G76: -5.737284206e-06 | H76: -1.464046854e-05 | J76: -1.642448264e-05 | K76: -6.543764143e-05 | L76: -3.641702028e-05 | M76: -0.0001355437359 | N76: 4.986296156e-09
A77: =IF('DF raw data'!M77="","",'DF raw data'!M77) -> -295 | B77: =IF('DF raw data'!N77="","",'DF raw data'!N77) -> -1.8008e-05 | C77: =IF('DF raw data'!O77="","",'DF raw data'!O77) -> 0.000194154 | D77: =IF('DF raw data'!P77="","",'DF raw data'!P77) -> -2.64431e-05 | F77: -6.079549646e-07 | G77: -9.929710061e-07 | H77: -1.411321104e-05 | J77: -1.672846013e-05 | K77: -7.380187149e-05 | L77: -3.691350578e-05 | M77: -0.0001540004888 | N77: 5.8075203e-09
A78: =IF('DF raw data'!M78="","",'DF raw data'!M78) -> -294.5 | B78: =IF('DF raw data'!N78="","",'DF raw data'!N78) -> -1.2561e-05 | C78: =IF('DF raw data'!O78="","",'DF raw data'!O78) -> 0.000196598 | D78: =IF('DF raw data'!P78="","",'DF raw data'!P78) -> -2.66426e-05 | F78: 4.862467135e-06 | G78: 1.461538194e-06 | H78: -1.431356889e-05 | J78: -1.429722656e-05 | K78: -8.095048477e-05 | L78: -3.618273669e-05 | M78: -0.0001720918571 | N78: 6.56432086e-09
A79: =IF('DF raw data'!M79="","",'DF raw data'!M79) -> -294 | B79: =IF('DF raw data'!N79="","",'DF raw data'!N79) -> -1.53802e-05 | C79: =IF('DF raw data'!O79="","",'DF raw data'!O79) -> 0.000192522 | D79: =IF('DF raw data'!P79="","",'DF raw data'!P79) -> -2.74009e-05 | F79: 2.031144575e-06 | G79: -2.631988606e-06 | H79: -1.507512958e-05 | J79: -1.328165427e-05 | K79: -8.75913119e-05 | L79: -3.749873099e-05 | M79: -0.0001908412226 | N79: 7.355599443e-09
A80: =IF('DF raw data'!M80="","",'DF raw data'!M80) -> -293.5 | B80: =IF('DF raw data'!N80="","",'DF raw data'!N80) -> -2.08263e-05 | C80: =IF('DF raw data'!O80="","",'DF raw data'!O80) -> 0.000180729 | D80: =IF('DF raw data'!P80="","",'DF raw data'!P80) -> -2.78797e-05 | F80: -3.438373655e-06 | G80: -1.447569851e-05 | H80: -1.555598842e-05 | J80: -1.50008411e-05 | K80: -9.509173245e-05 | L80: -4.473658024e-05 | M80: -0.0002132095127 | N80: 8.468792866e-09
A81: =IF('DF raw data'!M81="","",'DF raw data'!M81) -> -293 | B81: =IF('DF raw data'!N81="","",'DF raw data'!N81) -> -2.14034e-05 | C81: =IF('DF raw data'!O81="","",'DF raw data'!O81) -> 0.000181798 | D81: =IF('DF raw data'!P81="","",'DF raw data'!P81) -> -2.76877e-05 | F81: -4.017955185e-06 | G81: -1.340210181e-05 | H81: -1.536316282e-05 | J81: -1.700981869e-05 | K81: -0.0001035966418 | L81: -5.143763115e-05 | M81: -0.0002389283283 | N81: 9.936374781e-09
A82: =IF('DF raw data'!M82="","",'DF raw data'!M82) -> -292.5 | B82: =IF('DF raw data'!N82="","",'DF raw data'!N82) -> -3.18483e-05 | C82: =IF('DF raw data'!O82="","",'DF raw data'!O82) -> 0.00018926 | D82: =IF('DF raw data'!P82="","",'DF raw data'!P82) -> -2.69215e-05 | F82: -1.450776825e-05 | G82: -5.908015206e-06 | H82: -1.459366816e-05 | J82: -2.426370282e-05 | K82: -0.0001157284932 | L82: -5.439163875e-05 | M82: -0.0002661241477 | N82: 1.17099636e-08
A83: =IF('DF raw data'!M83="","",'DF raw data'!M83) -> -292 | B83: =IF('DF raw data'!N83="","",'DF raw data'!N83) -> -2.34545e-05 | C83: =IF('DF raw data'!O83="","",'DF raw data'!O83) -> 0.000191086 | D83: =IF('DF raw data'!P83="","",'DF raw data'!P83) -> -2.66415e-05 | F83: -6.077874915e-06 | G83: -4.074163406e-06 | H83: -1.431246416e-05 | J83: -2.730264027e-05 | K83: -0.0001293798133 | L83: -5.642872045e-05 | M83: -0.0002943385079 | N83: 1.367478093e-08
A84: =IF('DF raw data'!M84="","",'DF raw data'!M84) -> -291.5 | B84: =IF('DF raw data'!N84="","",'DF raw data'!N84) -> -1.89812e-05 | C84: =IF('DF raw data'!O84="","",'DF raw data'!O84) -> 0.000187218 | D84: =IF('DF raw data'!P84="","",'DF raw data'!P84) -> -7.94127e-06 | F84: -1.585339725e-06 | G84: -7.958795806e-06 | H84: 4.46817683e-06 | J84: -2.809531014e-05 | K84: -0.0001434274684 | L84: -6.040811835e-05 | M84: -0.0003245425671 | N84: 1.589402454e-08
A85: =IF('DF raw data'!M85="","",'DF raw data'!M85) -> -291 | B85: =IF('DF raw data'!N85="","",'DF raw data'!N85) -> -3.34539e-05 | C85: =IF('DF raw data'!O85="","",'DF raw data'!O85) -> 0.000179705 | D85: =IF('DF raw data'!P85="","",'DF raw data'!P85) -> -2.18258e-05 | F85: -1.612027233e-05 | G85: -1.550410171e-05 | H85: -9.476056649e-06 | J85: -3.61554463e-05 | K85: -0.0001615051916 | L85: -6.816016921e-05 | M85: -0.0003586226517 | N85: 1.887053702e-08
A86: =IF('DF raw data'!M86="","",'DF raw data'!M86) -> -290.5 | B86: =IF('DF raw data'!N86="","",'DF raw data'!N86) -> -2.75028e-05 | C86: =IF('DF raw data'!O86="","",'DF raw data'!O86) -> 0.000177454 | D86: =IF('DF raw data'!P86="","",'DF raw data'!P86) -> -8.70103e-06 | F86: -1.01435826e-05 | G86: -1.776478101e-05 | H86: 3.705149862e-06 | J86: -4.122723761e-05 | K86: -0.0001821188104 | L86: -7.704255971e-05 | M86: -0.0003971439315 | N86: 2.268815758e-08
A87: =IF('DF raw data'!M87="","",'DF raw data'!M87) -> -290 | B87: =IF('DF raw data'!N87="","",'DF raw data'!N87) -> -1.75768e-05 | C87: =IF('DF raw data'!O87="","",'DF raw data'!O87) -> 0.00017632 | D87: =IF('DF raw data'!P87="","",'DF raw data'!P87) -> 4.46204e-07 | F87: -1.749008046e-07 | G87: -1.890365721e-05 | H87: 1.289171697e-05 | J87: -4.131468801e-05 | K87: -0.0002027761544 | L87: -8.649438831e-05 | M87: -0.0004403911257 | N87: 2.728224891e-08
A88: =IF('DF raw data'!M88="","",'DF raw data'!M88) -> -289.5 | B88: =IF('DF raw data'!N88="","",'DF raw data'!N88) -> -1.74443e-05 | C88: =IF('DF raw data'!O88="","",'DF raw data'!O88) -> 0.000183252 | D88: =IF('DF raw data'!P88="","",'DF raw data'!P88) -> -6.14666e-06 | F88: -4.183105461e-08 | G88: -1.194184961e-05 | H88: 6.270503653e-06 | J88: -4.133560354e-05 | K88: -0.0002234439561 | L88: -9.246531312e-05 | M88: -0.0004866237823 | N88: 3.241148204e-08
A89: =IF('DF raw data'!M89="","",'DF raw data'!M89) -> -289 | B89: =IF('DF raw data'!N89="","",'DF raw data'!N89) -> -1.99444e-05 | C89: =IF('DF raw data'!O89="","",'DF raw data'!O89) -> 0.000186919 | D89: =IF('DF raw data'!P89="","",'DF raw data'!P89) -> -4.73614e-06 | F89: -2.552681485e-06 | G89: -8.259081506e-06 | H89: 7.687088889e-06 | J89: -4.261194428e-05 | K89: -0.0002447499283 | L89: -9.659485387e-05 | M89: -0.0005349212092 | N89: 3.798465383e-08
A90: =IF('DF raw data'!M90="","",'DF raw data'!M90) -> -288.5 | B90: =IF('DF raw data'!N90="","",'DF raw data'!N90) -> -7.3867e-06 | C90: =IF('DF raw data'!O90="","",'DF raw data'!O90) -> 0.000183156 | D90: =IF('DF raw data'!P90="","",'DF raw data'!P90) -> -2.09234e-06 | F90: 1.005901663e-05 | G90: -1.203826241e-05 | H90: 1.034225723e-05 | J90: -3.758243597e-05 | K90: -0.0002635411463 | L90: -0.0001026139851 | M90: -0.0005862282017 | N90: 4.395568854e-08
A91: =IF('DF raw data'!M91="","",'DF raw data'!M91) -> -288 | B91: =IF('DF raw data'!N91="","",'DF raw data'!N91) -> -1.07132e-05 | C91: =IF('DF raw data'!O91="","",'DF raw data'!O91) -> 0.000180825 | D91: =IF('DF raw data'!P91="","",'DF raw data'!P91) -> -1.09185e-05 | F91: 6.718212675e-06 | G91: -1.437928571e-05 | H91: 1.478144741e-06 | J91: -3.422332963e-05 | K91: -0.0002806528111 | L91: -0.0001098036279 | M91: -0.0006411300157 | N91: 5.056972504e-08
A92: =IF('DF raw data'!M92="","",'DF raw data'!M92) -> -287.5 | B92: =IF('DF raw data'!N92="","",'DF raw data'!N92) -> -1.91704e-05 | C92: =IF('DF raw data'!O92="","",'DF raw data'!O92) -> 0.000184237 | D92: =IF('DF raw data'!P92="","",'DF raw data'!P92) -> -1.2416e-05 | F92: -1.775353285e-06 | G92: -1.095261411e-05 | H92: -2.579450856e-08 | J92: -3.511100627e-05 | K92: -0.0002982083142 | L92: -0.000115279935 | M92: -0.0006987699832 | N92: 5.783084813e-08
A93: =IF('DF raw data'!M93="","",'DF raw data'!M93) -> -287 | B93: =IF('DF raw data'!N93="","",'DF raw data'!N93) -> -2.48741e-05 | C93: =IF('DF raw data'!O93="","",'DF raw data'!O93) -> 0.000184633 | D93: =IF('DF raw data'!P93="","",'DF raw data'!P93) -> -1.16959e-05 | F93: -7.503579195e-06 | G93: -1.055491131e-05 | H93: 6.974019214e-07 | J93: -3.886279587e-05 | K93: -0.0003176397121 | L93: -0.0001205573906 | M93: -0.0007590486785 | N93: 6.58530488e-08
A94: =IF('DF raw data'!M94="","",'DF raw data'!M94) -> -286.5 | B94: =IF('DF raw data'!N94="","",'DF raw data'!N94) -> -2.24365e-05 | C94: =IF('DF raw data'!O94="","",'DF raw data'!O94) -> 0.000181632 | D94: =IF('DF raw data'!P94="","",'DF raw data'!P94) -> -1.52255e-05 | F94: -5.055497515e-06 | G94: -1.356881561e-05 | H94: -2.847375359e-06 | J94: -4.139054462e-05 | K94: -0.0003383349845 | L94: -0.0001273417984 | M94: -0.0008227195777 | N94: 7.48176042e-08
A95: =IF('DF raw data'!M95="","",'DF raw data'!M95) -> -286 | B95: =IF('DF raw data'!N95="","",'DF raw data'!N95) -> -2.40383e-05 | C95: =IF('DF raw data'!O95="","",'DF raw data'!O95) -> 0.000186409 | D95: =IF('DF raw data'!P95="","",'DF raw data'!P95) -> -1.59197e-05 | F95: -6.664185255e-06 | G95: -8.771274506e-06 | H95: -3.544560419e-06 | J95: -4.472263725e-05 | K95: -0.0003606963031 | L95: -0.0001317274357 | M95: -0.0008885832956 | N95: 8.449372e-08
A96: =IF('DF raw data'!M96="","",'DF raw data'!M96) -> -285.5 | B96: =IF('DF raw data'!N96="","",'DF raw data'!N96) -> -1.14806e-05 | C96: =IF('DF raw data'!O96="","",'DF raw data'!O96) -> 0.000186769 | D96: =IF('DF raw data'!P96="","",'DF raw data'!P96) -> -1.31299e-05 | F96: 5.947512855e-06 | G96: -8.409726506e-06 | H96: -7.427642786e-07 | J96: -4.174888082e-05 | K96: -0.0003815707435 | L96: -0.0001359322989 | M96: -0.000956549445 | N96: 9.460399947e-08
A97: =IF('DF raw data'!M97="","",'DF raw data'!M97) -> -285 | B97: =IF('DF raw data'!N97="","",'DF raw data'!N97) -> -1.74371e-05 | C97: =IF('DF raw data'!O97="","",'DF raw data'!O97) -> 0.000186871 | D97: =IF('DF raw data'!P97="","",'DF raw data'!P97) -> -1.74915e-05 | F97: -3.460009461e-08 | G97: -8.307287906e-06 | H97: -5.123119159e-06 | J97: -4.176618087e-05 | K97: -0.0004024538339 | L97: -0.0001400859429 | M97: -0.001026592416 | N97: 1.052882421e-07
A98: =IF('DF raw data'!M98="","",'DF raw data'!M98) -> -284.5 | B98: =IF('DF raw data'!N98="","",'DF raw data'!N98) -> -3.27603e-05 | C98: =IF('DF raw data'!O98="","",'DF raw data'!O98) -> 0.000182015 | D98: =IF('DF raw data'!P98="","",'DF raw data'!P98) -> -3.94658e-06 | F98: -1.542368985e-05 | G98: -1.318416871e-05 | H98: 8.480043997e-06 | J98: -4.94780258e-05 | K98: -0.0004271928468 | L98: -0.0001466780272 | M98: -0.00109993143 | N98: 1.172695015e-07
A99: =IF('DF raw data'!M99="","",'DF raw data'!M99) -> -284 | B99: =IF('DF raw data'!N99="","",'DF raw data'!N99) -> -1.88583e-05 | C99: =IF('DF raw data'!O99="","",'DF raw data'!O99) -> 0.00018482 | D99: =IF('DF raw data'!P99="","",'DF raw data'!P99) -> -5.45905e-08 | F99: -1.461911255e-06 | G99: -1.036710721e-05 | H99: 1.238876905e-05 | J99: -5.020898143e-05 | K99: -0.0004522973375 | L99: -0.0001518615809 | M99: -0.001175862221 | N99: 1.300609422e-07
A100: =IF('DF raw data'!M100="","",'DF raw data'!M100) -> -283.5 | B100: =IF('DF raw data'!N100="","",'DF raw data'!N100) -> -3.33292e-05 | C100: =IF('DF raw data'!O100="","",'DF raw data'!O100) -> 0.000192009 | D100: =IF('DF raw data'!P100="","",'DF raw data'!P100) -> -1.60701e-05 | F100: -1.599503612e-05 | G100: -3.147194506e-06 | H100: -3.695607139e-06 | J100: -5.820649949e-05 | K100: -0.0004814005873 | L100: -0.0001534351781 | M100: -0.00125257981 | N100: 1.435261175e-07
A101: =IF('DF raw data'!M101="","",'DF raw data'!M101) -> -283 | B101: =IF('DF raw data'!N101="","",'DF raw data'!N101) -> -2.96087e-05 | C101: =IF('DF raw data'!O101="","",'DF raw data'!O101) -> 0.000185347 | D101: =IF('DF raw data'!P101="","",'DF raw data'!P101) -> -2.25446e-05 | F101: -1.225853797e-05 | G101: -9.837841106e-06 | H101: -1.019794749e-05 | J101: -6.433576848e-05 | K101: -0.0005135684715 | L101: -0.0001583540987 | M101: -0.001331756859 | N101: 1.581336733e-07
A102: =IF('DF raw data'!M102="","",'DF raw data'!M102) -> -282.5 | B102: =IF('DF raw data'!N102="","",'DF raw data'!N102) -> -2.94912e-05 | C102: =IF('DF raw data'!O102="","",'DF raw data'!O102) -> 0.00018408 | D102: =IF('DF raw data'!P102="","",'DF raw data'!P102) -> -5.73701e-06 | F102: -1.214053272e-05 | G102: -1.111028921e-05 | H102: 6.681915148e-06 | J102: -7.040603484e-05 | K102: -0.0005487714889 | L102: -0.0001639092433 | M102: -0.001413711481 | N102: 1.740452982e-07
A103: =IF('DF raw data'!M103="","",'DF raw data'!M103) -> -282 | B103: =IF('DF raw data'!N103="","",'DF raw data'!N103) -> -2.3785e-05 | C103: =IF('DF raw data'!O103="","",'DF raw data'!O103) -> 0.000187862 | D103: =IF('DF raw data'!P103="","",'DF raw data'!P103) -> -1.13045e-05 | F103: -6.409796065e-06 | G103: -7.312026606e-06 | H103: 1.090484941e-06 | J103: -7.361093287e-05 | K103: -0.0005855769554 | L103: -0.0001675652566 | M103: -0.001497494109 | N103: 1.907936405e-07
A104: =IF('DF raw data'!M104="","",'DF raw data'!M104) -> -281.5 | B104: =IF('DF raw data'!N104="","",'DF raw data'!N104) -> -2.34051e-05 | C104: =IF('DF raw data'!O104="","",'DF raw data'!O104) -> 0.000190165 | D104: =IF('DF raw data'!P104="","",'DF raw data'!P104) -> -3.89882e-06 | F104: -6.028262495e-06 | G104: -4.999123706e-06 | H104: 8.528009365e-06 | J104: -7.662506412e-05 | K104: -0.0006238894874 | L104: -0.0001700648184 | M104: -0.001582526518 | N104: 2.08190362e-07
A105: =IF('DF raw data'!M105="","",'DF raw data'!M105) -> -281 | B105: =IF('DF raw data'!N105="","",'DF raw data'!N105) -> -2.27012e-05 | C105: =IF('DF raw data'!O105="","",'DF raw data'!O105) -> 0.000188746 | D105: =IF('DF raw data'!P105="","",'DF raw data'!P105) -> -2.57221e-06 | F105: -5.321335725e-06 | G105: -6.424225406e-06 | H105: 9.860323788e-06 | J105: -7.928573198e-05 | K105: -0.0006635323534 | L105: -0.0001732769311 | M105: -0.001669164984 | N105: 2.26345923e-07
A106: =IF('DF raw data'!M106="","",'DF raw data'!M106) -> -280.5 | B106: =IF('DF raw data'!N106="","",'DF raw data'!N106) -> -2.35304e-05 | C106: =IF('DF raw data'!O106="","",'DF raw data'!O106) -> 0.000183167 | D106: =IF('DF raw data'!P106="","",'DF raw data'!P106) -> -8.3825e-06 | F106: -6.154101285e-06 | G106: -1.202721511e-05 | H106: 4.025049541e-06 | J106: -8.236278262e-05 | K106: -0.0007047137447 | L106: -0.0001792905387 | M106: -0.001758810253 | N106: 2.458102857e-07
A107: =IF('DF raw data'!M107="","",'DF raw data'!M107) -> -280 | B107: =IF('DF raw data'!N107="","",'DF raw data'!N107) -> -1.60926e-05 | C107: =IF('DF raw data'!O107="","",'DF raw data'!O107) -> 0.000189788 | D107: =IF('DF raw data'!P107="","",'DF raw data'!P107) -> -1.58928e-05 | F107: 1.315681255e-06 | G107: -5.377744806e-06 | H107: -3.517544749e-06 | J107: -8.170494199e-05 | K107: -0.0007455662157 | L107: -0.0001819794111 | M107: -0.001849799958 | N107: 2.657063875e-07
A108: =IF('DF raw data'!M108="","",'DF raw data'!M108) -> -279.5 | B108: =IF('DF raw data'!N108="","",'DF raw data'!N108) -> -2.11568e-05 | C108: =IF('DF raw data'!O108="","",'DF raw data'!O108) -> 0.000184963 | D108: =IF('DF raw data'!P108="","",'DF raw data'!P108) -> -1.25723e-05 | F108: -3.770294805e-06 | G108: -1.022349231e-05 | H108: -1.827665986e-07 | J108: -8.35900894e-05 | K108: -0.0007873612604 | L108: -0.0001870911572 | M108: -0.001943345537 | N108: 2.867015895e-07
A109: =IF('DF raw data'!M109="","",'DF raw data'!M109) -> -279 | B109: =IF('DF raw data'!N109="","",'DF raw data'!N109) -> -3.01313e-05 | C109: =IF('DF raw data'!O109="","",'DF raw data'!O109) -> 0.000178914 | D109: =IF('DF raw data'!P109="","",'DF raw data'!P109) -> -6.90638e-06 | F109: -1.278338515e-05 | G109: -1.629850301e-05 | H109: 5.507516857e-06 | J109: -8.998178197e-05 | K109: -0.0008323521514 | L109: -0.0001952404087 | M109: -0.002040965741 | N109: 3.098093587e-07
A110: =IF('DF raw data'!M110="","",'DF raw data'!M110) -> -278.5 | B110: =IF('DF raw data'!N110="","",'DF raw data'!N110) -> -2.41694e-05 | C110: =IF('DF raw data'!O110="","",'DF raw data'!O110) -> 0.000191871 | D110: =IF('DF raw data'!P110="","",'DF raw data'!P110) -> -1.11414e-05 | F110: -6.795848985e-06 | G110: -3.285787906e-06 | H110: 1.254286271e-06 | J110: -9.337970647e-05 | K110: -0.0008790420047 | L110: -0.0001968833027 | M110: -0.002139407393 | N110: 3.335507609e-07
A111: =IF('DF raw data'!M111="","",'DF raw data'!M111) -> -278 | B111: =IF('DF raw data'!N111="","",'DF raw data'!N111) -> -1.94885e-05 | C111: =IF('DF raw data'!O111="","",'DF raw data'!O111) -> 0.000184992 | D111: =IF('DF raw data'!P111="","",'DF raw data'!P111) -> -1.6232e-05 | F111: -2.094821115e-06 | G111: -1.019436761e-05 | H111: -3.858203309e-06 | J111: -9.442711702e-05 | K111: -0.0009262555632 | L111: -0.0002019804865 | M111: -0.002240397636 | N111: 3.584070596e-07
A112: =IF('DF raw data'!M112="","",'DF raw data'!M112) -> -277.5 | B112: =IF('DF raw data'!N112="","",'DF raw data'!N112) -> -2.06354e-05 | C112: =IF('DF raw data'!O112="","",'DF raw data'!O112) -> 0.000171368 | D112: =IF('DF raw data'!P112="","",'DF raw data'!P112) -> -2.61415e-05 | F112: -3.246652785e-06 | G112: -2.387695081e-05 | H112: -1.381031416e-05 | J112: -9.605044342e-05 | K112: -0.0009742807849 | L112: -0.0002139189619 | M112: -0.002347357117 | N112: 3.859005645e-07
A113: =IF('DF raw data'!M113="","",'DF raw data'!M113) -> -277 | B113: =IF('DF raw data'!N113="","",'DF raw data'!N113) -> -2.70502e-05 | C113: =IF('DF raw data'!O113="","",'DF raw data'!O113) -> 0.000168754 | D113: =IF('DF raw data'!P113="","",'DF raw data'!P113) -> -1.53553e-05 | F113: -9.689036425e-06 | G113: -2.650219101e-05 | H113: -2.977733499e-06 | J113: -0.0001008949616 | K113: -0.001024728266 | L113: -0.0002271700574 | M113: -0.002460942146 | N113: 4.167935787e-07
A114: =IF('DF raw data'!M114="","",'DF raw data'!M114) -> -276.5 | B114: =IF('DF raw data'!N114="","",'DF raw data'!N114) -> -2.85976e-05 | C114: =IF('DF raw data'!O114="","",'DF raw data'!O114) -> 0.000170273 | D114: =IF('DF raw data'!P114="","",'DF raw data'!P114) -> -6.29107e-07 | F114: -1.124309024e-05 | G114: -2.497665931e-05 | H114: 1.181178213e-05 | J114: -0.0001065165068 | K114: -0.001077986519 | L114: -0.000239658387 | M114: -0.002580771339 | N114: 4.51184533e-07
A115: =IF('DF raw data'!M115="","",'DF raw data'!M115) -> -276 | B115: =IF('DF raw data'!N115="","",'DF raw data'!N115) -> -2.44946e-05 | C115: =IF('DF raw data'!O115="","",'DF raw data'!O115) -> 0.00017456 | D115: =IF('DF raw data'!P115="","",'DF raw data'!P115) -> -3.49659e-06 | F115: -7.122447345e-06 | G115: -2.067122521e-05 | H115: 8.931968954e-06 | J115: -0.0001100777304 | K115: -0.001133025384 | L115: -0.0002499939996 | M115: -0.002705768339 | N115: 4.884915863e-07
A116: =IF('DF raw data'!M116="","",'DF raw data'!M116) -> -275.5 | B116: =IF('DF raw data'!N116="","",'DF raw data'!N116) -> -2.74994e-05 | C116: =IF('DF raw data'!O116="","",'DF raw data'!O116) -> 0.000184258 | D116: =IF('DF raw data'!P116="","",'DF raw data'!P116) -> -1.41135e-05 | F116: -1.014016798e-05 | G116: -1.093152381e-05 | H116: -1.730593759e-06 | J116: -0.0001151478144 | K116: -0.001190599291 | L116: -0.0002554597616 | M116: -0.00283349822 | N116: 5.277509408e-07
A117: =IF('DF raw data'!M117="","",'DF raw data'!M117) -> -275 | B117: =IF('DF raw data'!N117="","",'DF raw data'!N117) -> -1.8138e-05 | C117: =IF('DF raw data'!O117="","",'DF raw data'!O117) -> 0.000190997 | D117: =IF('DF raw data'!P117="","",'DF raw data'!P117) -> -2.35691e-05 | F117: -7.385139646e-07 | G117: -4.163546106e-06 | H117: -1.122685284e-05 | J117: -0.0001155170714 | K117: -0.001248357827 | L117: -0.0002575415346 | M117: -0.002962268987 | N117: 5.675868587e-07
A118: =IF('DF raw data'!M118="","",'DF raw data'!M118) -> -274.5 | B118: =IF('DF raw data'!N118="","",'DF raw data'!N118) -> -2.62204e-05 | C118: =IF('DF raw data'!O118="","",'DF raw data'!O118) -> 0.000180872 | D118: =IF('DF raw data'!P118="","",'DF raw data'!P118) -> -1.03232e-05 | F118: -8.855668285e-06 | G118: -1.433208361e-05 | H118: 2.076004531e-06 | J118: -0.0001199449055 | K118: -0.00130833028 | L118: -0.0002647075764 | M118: -0.003094622775 | N118: 6.098152994e-07
A119: =IF('DF raw data'!M119="","",'DF raw data'!M119) -> -274 | B119: =IF('DF raw data'!N119="","",'DF raw data'!N119) -> -2.65996e-05 | C119: =IF('DF raw data'!O119="","",'DF raw data'!O119) -> 0.000166912 | D119: =IF('DF raw data'!P119="","",'DF raw data'!P119) -> -1.83226e-05 | F119: -9.236498845e-06 | G119: -2.835211161e-05 | H119: -5.957792889e-06 | J119: -0.000124563155 | K119: -0.001370611857 | L119: -0.0002788836322 | M119: -0.003234064591 | N119: 6.564613293e-07
A120: =IF('DF raw data'!M120="","",'DF raw data'!M120) -> -273.5 | B120: =IF('DF raw data'!N120="","",'DF raw data'!N120) -> -3.26307e-05 | C120: =IF('DF raw data'!O120="","",'DF raw data'!O120) -> 0.000172187 | D120: =IF('DF raw data'!P120="","",'DF raw data'!P120) -> -6.45977e-06 | F120: -1.529353257e-05 | G120: -2.305442911e-05 | H120: 5.95604728e-06 | J120: -0.0001322099212 | K120: -0.001436716818 | L120: -0.0002904108468 | M120: -0.003379270015 | N120: 7.073702909e-07
A121: =IF('DF raw data'!M121="","",'DF raw data'!M121) -> -273 | B121: =IF('DF raw data'!N121="","",'DF raw data'!N121) -> -3.16642e-05 | C121: =IF('DF raw data'!O121="","",'DF raw data'!O121) -> 0.000183798 | D121: =IF('DF raw data'!P121="","",'DF raw data'!P121) -> -1.4911e-05 | F121: -1.432287662e-05 | G121: -1.139350181e-05 | H121: -2.531523009e-06 | J121: -0.0001393713596 | K121: -0.001506402498 | L121: -0.0002961075977 | M121: -0.003527323814 | N121: 7.609223336e-07
A122: =IF('DF raw data'!M122="","",'DF raw data'!M122) -> -272.5 | B122: =IF('DF raw data'!N122="","",'DF raw data'!N122) -> -2.21768e-05 | C122: =IF('DF raw data'!O122="","",'DF raw data'!O122) -> 0.000185695 | D122: =IF('DF raw data'!P122="","",'DF raw data'!P122) -> -2.0608e-05 | F122: -4.794680805e-06 | G122: -9.488344706e-06 | H122: -8.253020109e-06 | J122: -0.0001417687 | K122: -0.001577286848 | L122: -0.00030085177 | M122: -0.003677749699 | N122: 8.162274095e-07
A123: =IF('DF raw data'!M123="","",'DF raw data'!M123) -> -272 | B123: =IF('DF raw data'!N123="","",'DF raw data'!N123) -> -3.07086e-05 | C123: =IF('DF raw data'!O123="","",'DF raw data'!O123) -> 0.000181637 | D123: =IF('DF raw data'!P123="","",'DF raw data'!P123) -> -6.20633e-06 | F123: -1.336316754e-05 | G123: -1.356379411e-05 | H123: 6.210577072e-06 | J123: -0.0001484502837 | K123: -0.00165151199 | L123: -0.0003076336671 | M123: -0.003831566532 | N123: 8.745653894e-07
A124: =IF('DF raw data'!M124="","",'DF raw data'!M124) -> -271.5 | B124: =IF('DF raw data'!N124="","",'DF raw data'!N124) -> -2.29516e-05 | C124: =IF('DF raw data'!O124="","",'DF raw data'!O124) -> 0.0001822 | D124: =IF('DF raw data'!P124="","",'DF raw data'!P124) -> -1.16112e-05 | F124: -5.572812445e-06 | G124: -1.299837321e-05 | H124: 7.824661314e-07 | J124: -0.00015123669 | K124: -0.001727130335 | L124: -0.0003141328537 | M124: -0.003988632959 | N124: 9.353413825e-07
A125: =IF('DF raw data'!M125="","",'DF raw data'!M125) -> -271 | B125: =IF('DF raw data'!N125="","",'DF raw data'!N125) -> -2.80136e-05 | C125: =IF('DF raw data'!O125="","",'DF raw data'!O125) -> 0.000181733 | D125: =IF('DF raw data'!P125="","",'DF raw data'!P125) -> -1.20984e-05 | F125: -1.065657904e-05 | G125: -1.346738131e-05 | H125: 2.931711714e-07 | J125: -0.0001565649795 | K125: -0.001805412824 | L125: -0.0003208665443 | M125: -0.004149066231 | N125: 9.990753485e-07
A126: =IF('DF raw data'!M126="","",'DF raw data'!M126) -> -270.5 | B126: =IF('DF raw data'!N126="","",'DF raw data'!N126) -> -2.44813e-05 | C126: =IF('DF raw data'!O126="","",'DF raw data'!O126) -> 0.000188057 | D126: =IF('DF raw data'!P126="","",'DF raw data'!P126) -> -2.4011e-05 | F126: -7.109090155e-06 | G126: -7.116188106e-06 | H126: -1.167065301e-05 | J126: -0.0001601195246 | K126: -0.001885472587 | L126: -0.0003244246384 | M126: -0.00431127855 | N126: 1.064520153e-06
A127: =IF('DF raw data'!M127="","",'DF raw data'!M127) -> -270 | B127: =IF('DF raw data'!N127="","",'DF raw data'!N127) -> -2.64782e-05 | C127: =IF('DF raw data'!O127="","",'DF raw data'!O127) -> 0.000186265 | D127: =IF('DF raw data'!P127="","",'DF raw data'!P127) -> -7.99009e-06 | F127: -9.114576825e-06 | G127: -8.915893706e-06 | H127: 4.419146904e-06 | J127: -0.000164676813 | K127: -0.001967810993 | L127: -0.0003288825852 | M127: -0.004475719843 | N127: 1.132161256e-06
A128: =IF('DF raw data'!M128="","",'DF raw data'!M128) -> -269.5 | B128: =IF('DF raw data'!N128="","",'DF raw data'!N128) -> -2.32722e-05 | C128: =IF('DF raw data'!O128="","",'DF raw data'!O128) -> 0.000188379 | D128: =IF('DF raw data'!P128="","",'DF raw data'!P128) -> -1.13889e-05 | F128: -5.894791025e-06 | G128: -6.792803506e-06 | H128: 1.005722021e-06 | J128: -0.0001676242085 | K128: -0.002051623097 | L128: -0.000332278987 | M128: -0.004641859336 | N128: 1.201414857e-06
A129: =IF('DF raw data'!M129="","",'DF raw data'!M129) -> -269 | B129: =IF('DF raw data'!N129="","",'DF raw data'!N129) -> -2.72454e-05 | C129: =IF('DF raw data'!O129="","",'DF raw data'!O129) -> 0.000189335 | D129: =IF('DF raw data'!P129="","",'DF raw data'!P129) -> -1.05889e-05 | F129: -9.885075785e-06 | G129: -5.832692706e-06 | H129: 1.809162021e-06 | J129: -0.0001725667464 | K129: -0.002137906471 | L129: -0.0003351953333 | M129: -0.004809457003 | N129: 1.272482453e-06
A130: =IF('DF raw data'!M130="","",'DF raw data'!M130) -> -268.5 | B130: =IF('DF raw data'!N130="","",'DF raw data'!N130) -> -3.30777e-05 | C130: =IF('DF raw data'!O130="","",'DF raw data'!O130) -> 0.000192845 | D130: =IF('DF raw data'!P130="","",'DF raw data'!P130) -> -8.93591e-06 | F130: -1.574245467e-05 | G130: -2.307599706e-06 | H130: 3.469259878e-06 | J130: -0.0001804379737 | K130: -0.002228125457 | L130: -0.0003363491332 | M130: -0.00497763157 | N130: 1.345326754e-06
A131: =IF('DF raw data'!M131="","",'DF raw data'!M131) -> -268 | B131: =IF('DF raw data'!N131="","",'DF raw data'!N131) -> -3.63353e-05 | C131: =IF('DF raw data'!O131="","",'DF raw data'!O131) -> 0.000194697 | D131: =IF('DF raw data'!P131="","",'DF raw data'!P131) -> -2.49917e-05 | F131: =(1-$G$1*($B$54-$G$2))*(B131-F$5) -> -1.901406235e-05 | G131: =(1-$G$1*($B$54-$G$2))*(C131-G$5) -> -4.476361061e-07 | H131: =(1-$G$1*($B$54-$G$2))*(D131-H$5) -> -1.265557002e-05 | J131: -0.0001899450049 | K131: -0.00232309796 | L131: -0.0003365729512 | M131: -0.005145918045 | N131: 1.420006982e-06
A132: =IF('DF raw data'!M132="","",'DF raw data'!M132) -> -267.5 | B132: =IF('DF raw data'!N132="","",'DF raw data'!N132) -> -2.16018e-05 | C132: =IF('DF raw data'!O132="","",'DF raw data'!O132) -> 0.000195683 | D132: =IF('DF raw data'!P132="","",'DF raw data'!P132) -> -1.78552e-05 | F132: -4.217208305e-06 | G132: 5.426036939e-07 | H132: -5.488383069e-06 | J132: =F132*$G$3+J131 -> -0.000192053609 | K132: =J132*$G$3+K131 -> -0.002419124764 | L132: =G132*$G$3+L131 -> -0.0003363016494 | M132: =L132*$G$3+M131 -> -0.00531406887 | N132: =(J132^2+L132^2)*$G$3+N131 -> 1.494998676e-06
A133: =IF('DF raw data'!M133="","",'DF raw data'!M133) -> -267 | B133: =IF('DF raw data'!N133="","",'DF raw data'!N133) -> -3.09619e-05 | C133: =IF('DF raw data'!O133="","",'DF raw data'!O133) -> 0.000187822 | D133: =IF('DF raw data'!P133="","",'DF raw data'!P133) -> -1.08256e-05 | F133: -1.361755673e-05 | G133: -7.352198606e-06 | H133: 1.571444211e-06 | J133: -0.0001988623874 | K133: -0.002518555958 | L133: -0.0003399777487 | M133: -0.005484057744 | N133: 1.572564236e-06
A134: =IF('DF raw data'!M134="","",'DF raw data'!M134) -> -266.5 | B134: =IF('DF raw data'!N134="","",'DF raw data'!N134) -> -1.83356e-05 | C134: =IF('DF raw data'!O134="","",'DF raw data'!O134) -> 0.000191074 | D134: =IF('DF raw data'!P134="","",'DF raw data'!P134) -> -1.50931e-05 | F134: -9.369636446e-07 | G134: -4.086215006e-06 | H134: -2.714406039e-06 | J134: -0.0001993308692 | K134: -0.002618221393 | L134: -0.0003420208562 | M134: -0.005655068173 | N134: 1.650919767e-06
A135: =IF('DF raw data'!M135="","",'DF raw data'!M135) -> -266 | B135: =IF('DF raw data'!N135="","",'DF raw data'!N135) -> -2.53843e-05 | C135: =IF('DF raw data'!O135="","",'DF raw data'!O135) -> 0.000189355 | D135: =IF('DF raw data'!P135="","",'DF raw data'!P135) -> -1.53426e-05 | F135: -8.015973055e-06 | G135: -5.812606706e-06 | H135: -2.964978889e-06 | J135: -0.0002033388558 | K135: -0.002719890821 | L135: -0.0003449271596 | M135: -0.005827531752 | N135: 1.731080484e-06
A136: =IF('DF raw data'!M136="","",'DF raw data'!M136) -> -265.5 | B136: =IF('DF raw data'!N136="","",'DF raw data'!N136) -> -1.39187e-05 | C136: =IF('DF raw data'!O136="","",'DF raw data'!O136) -> 0.000196343 | D136: =IF('DF raw data'!P136="","",'DF raw data'!P136) -> -8.20775e-06 | F136: 3.498929025e-06 | G136: 1.205441694e-06 | H136: 4.200550966e-06 | J136: -0.0002015893912 | K136: -0.002820685516 | L136: -0.0003443244387 | M136: -0.005999693972 | N136: 1.810679285e-06
A137: =IF('DF raw data'!M137="","",'DF raw data'!M137) -> -265 | B137: =IF('DF raw data'!N137="","",'DF raw data'!N137) -> -2.17328e-05 | C137: =IF('DF raw data'!O137="","",'DF raw data'!O137) -> 0.000200047 | D137: =IF('DF raw data'!P137="","",'DF raw data'!P137) -> -1.37889e-05 | F137: -4.348771605e-06 | G137: 4.925368894e-06 | H137: -1.404597979e-06 | J137: -0.000203763777 | K137: -0.002922567405 | L137: -0.0003418617543 | M137: -0.006170624849 | N137: 1.889873853e-06
A138: =IF('DF raw data'!M138="","",'DF raw data'!M138) -> -264.5 | B138: =IF('DF raw data'!N138="","",'DF raw data'!N138) -> -2.62197e-05 | C138: =IF('DF raw data'!O138="","",'DF raw data'!O138) -> 0.000193488 | D138: =IF('DF raw data'!P138="","",'DF raw data'!P138) -> -1.14396e-05 | F138: -8.854965275e-06 | G138: -1.661834806e-06 | H138: 9.548040114e-07 | J138: -0.0002081912597 | K138: -0.003026663035 | L138: -0.0003426926717 | M138: -0.006341971185 | N138: 1.970264787e-06
A139: =IF('DF raw data'!M139="","",'DF raw data'!M139) -> -264 | B139: =IF('DF raw data'!N139="","",'DF raw data'!N139) -> -3.00664e-05 | C139: =IF('DF raw data'!O139="","",'DF raw data'!O139) -> 0.000186056 | D139: =IF('DF raw data'!P139="","",'DF raw data'!P139) -> -8.34809e-06 | F139: -1.271820608e-05 | G139: -9.125792406e-06 | H139: 4.059607504e-06 | J139: -0.0002145503627 | K139: -0.003133938216 | L139: -0.0003472555679 | M139: -0.006515598969 | N139: 2.053573931e-06
A140: =IF('DF raw data'!M140="","",'DF raw data'!M140) -> -263.5 | B140: =IF('DF raw data'!N140="","",'DF raw data'!N140) -> -3.25603e-05 | C140: =IF('DF raw data'!O140="","",'DF raw data'!O140) -> 0.00018694 | D140: =IF('DF raw data'!P140="","",'DF raw data'!P140) -> -1.64455e-05 | F140: -1.522282985e-05 | G140: -8.237991206e-06 | H140: -4.072621359e-06 | J140: -0.0002221617777 | K140: -0.003245019105 | L140: -0.0003513745635 | M140: -0.00669128625 | N140: 2.139983901e-06
A141: =IF('DF raw data'!M141="","",'DF raw data'!M141) -> -263 | B141: =IF('DF raw data'!N141="","",'DF raw data'!N141) -> -1.98059e-05 | C141: =IF('DF raw data'!O141="","",'DF raw data'!O141) -> 0.000193896 | D141: =IF('DF raw data'!P141="","",'DF raw data'!P141) -> -2.05262e-05 | F141: -2.413585935e-06 | G141: -1.252080406e-06 | H141: -8.170868369e-06 | J141: -0.0002233685706 | K141: -0.00335670339 | L141: -0.0003520006037 | M141: -0.006867286552 | N141: 2.226882872e-06
A142: =IF('DF raw data'!M142="","",'DF raw data'!M142) -> -262.5 | B142: =IF('DF raw data'!N142="","",'DF raw data'!N142) -> -4.03156e-05 | C142: =IF('DF raw data'!O142="","",'DF raw data'!O142) -> 0.000195764 | D142: =IF('DF raw data'!P142="","",'DF raw data'!P142) -> -1.37119e-05 | F142: -2.301147764e-05 | G142: 6.239519939e-07 | H142: -1.327266879e-06 | J142: -0.0002348743094 | K142: -0.003474140545 | L142: -0.0003516886277 | M142: -0.007043130866 | N142: 2.316308288e-06
A143: =IF('DF raw data'!M143="","",'DF raw data'!M143) -> -262 | B143: =IF('DF raw data'!N143="","",'DF raw data'!N143) -> -2.89715e-05 | C143: =IF('DF raw data'!O143="","",'DF raw data'!O143) -> 0.000195425 | D143: =IF('DF raw data'!P143="","",'DF raw data'!P143) -> -1.68078e-05 | F143: -1.161859801e-05 | G143: 2.834942939e-07 | H143: -4.436479249e-06 | J143: -0.0002406836085 | K143: -0.003594482349 | L143: -0.0003515468805 | M143: -0.007218904306 | N143: 2.407065193e-06
A144: =IF('DF raw data'!M144="","",'DF raw data'!M144) -> -261.5 | B144: =IF('DF raw data'!N144="","",'DF raw data'!N144) -> -2.77593e-05 | C144: =IF('DF raw data'!O144="","",'DF raw data'!O144) -> 0.000189823 | D144: =IF('DF raw data'!P144="","",'DF raw data'!P144) -> -9.01857e-06 | F144: -1.040118555e-05 | G144: -5.342594306e-06 | H144: 3.38624444e-06 | J144: -0.0002458842012 | K144: -0.00371742445 | L144: -0.0003542181777 | M144: -0.007396013395 | N144: 2.500029972e-06
A145: =IF('DF raw data'!M145="","",'DF raw data'!M145) -> -261 | B145: =IF('DF raw data'!N145="","",'DF raw data'!N145) -> -3.16595e-05 | C145: =IF('DF raw data'!O145="","",'DF raw data'!O145) -> 0.000193908 | D145: =IF('DF raw data'!P145="","",'DF raw data'!P145) -> -2.21244e-05 | F145: -1.431815641e-05 | G145: -1.240028806e-06 | H145: -9.775940629e-06 | J145: -0.0002530432794 | K145: -0.003843946089 | L145: -0.0003548381921 | M145: -0.007573432491 | N145: 2.595000493e-06
A146: =IF('DF raw data'!M146="","",'DF raw data'!M146) -> -260.5 | B146: =IF('DF raw data'!N146="","",'DF raw data'!N146) -> -3.8198e-05 | C146: =IF('DF raw data'!O146="","",'DF raw data'!O146) -> 0.000190427 | D146: =IF('DF raw data'!P146="","",'DF raw data'!P146) -> -1.8321e-05 | F146: -2.088477196e-05 | G146: -4.735997106e-06 | H146: -5.956186009e-06 | J146: -0.0002634856654 | K146: -0.003975688922 | L146: -0.0003572061906 | M146: -0.007752035586 | N146: 2.693510973e-06
A147: =IF('DF raw data'!M147="","",'DF raw data'!M147) -> -260 | B147: =IF('DF raw data'!N147="","",'DF raw data'!N147) -> -2.82645e-05 | C147: =IF('DF raw data'!O147="","",'DF raw data'!O147) -> 0.000180851 | D147: =IF('DF raw data'!P147="","",'DF raw data'!P147) -> -2.04618e-05 | F147: -1.090855791e-05 | G147: -1.435317391e-05 | H147: -8.106191449e-06 | J147: -0.0002689399444 | K147: -0.004110158894 | L147: -0.0003643827776 | M147: -0.007934226975 | N147: 2.796062724e-06
A148: =IF('DF raw data'!M148="","",'DF raw data'!M148) -> -259.5 | B148: =IF('DF raw data'!N148="","",'DF raw data'!N148) -> -2.93559e-05 | C148: =IF('DF raw data'!O148="","",'DF raw data'!O148) -> 0.000181632 | D148: =IF('DF raw data'!P148="","",'DF raw data'!P148) -> -1.69657e-05 | F148: -1.200465093e-05 | G148: -1.356881561e-05 | H148: -4.595058219e-06 | J148: -0.0002749422698 | K148: -0.004247630029 | L148: -0.0003711671854 | M148: -0.008119810568 | N148: 2.902741889e-06
A149: =IF('DF raw data'!M149="","",'DF raw data'!M149) -> -259 | B149: =IF('DF raw data'!N149="","",'DF raw data'!N149) -> -3.44865e-05 | C149: =IF('DF raw data'!O149="","",'DF raw data'!O149) -> 0.000189163 | D149: =IF('DF raw data'!P149="","",'DF raw data'!P149) -> -1.03507e-05 | F149: -1.715731251e-05 | G149: -6.005432306e-06 | H149: 2.048386281e-06 | J149: -0.0002835209261 | K149: -0.004389390492 | L149: -0.0003741699016 | M149: -0.008306895519 | N149: 3.012935505e-06
A150: =IF('DF raw data'!M150="","",'DF raw data'!M150) -> -258.5 | B150: =IF('DF raw data'!N150="","",'DF raw data'!N150) -> -3.30776e-05 | C150: =IF('DF raw data'!O150="","",'DF raw data'!O150) -> 0.00018929 | D150: =IF('DF raw data'!P150="","",'DF raw data'!P150) -> -9.25822e-06 | F150: -1.574235424e-05 | G150: -5.877886206e-06 | H150: 3.145563945e-06 | J150: -0.0002913921032 | K150: -0.004535086544 | L150: -0.0003771088447 | M150: -0.008495449941 | N150: 3.126495724e-06
A151: =IF('DF raw data'!M151="","",'DF raw data'!M151) -> -258 | B151: =IF('DF raw data'!N151="","",'DF raw data'!N151) -> -2.9032e-05 | C151: =IF('DF raw data'!O151="","",'DF raw data'!O151) -> 0.000186406 | D151: =IF('DF raw data'!P151="","",'DF raw data'!P151) -> -2.25638e-05 | F151: -1.167935816e-05 | G151: -8.774287406e-06 | H151: -1.021723005e-05 | J151: -0.0002972317823 | K151: -0.004683702435 | L151: -0.0003814959884 | M151: -0.008686197935 | N151: 3.243438685e-06
A152: =IF('DF raw data'!M152="","",'DF raw data'!M152) -> -257.5 | B152: =IF('DF raw data'!N152="","",'DF raw data'!N152) -> -2.87142e-05 | C152: =IF('DF raw data'!O152="","",'DF raw data'!O152) -> 0.000184741 | D152: =IF('DF raw data'!P152="","",'DF raw data'!P152) -> -1.84338e-05 | F152: -1.136019162e-05 | G152: -1.044644691e-05 | H152: -6.069471049e-06 | J152: -0.0003029118781 | K152: -0.004835158374 | L152: -0.0003867192118 | M152: -0.008879557541 | N152: 3.364092362e-06
A153: =IF('DF raw data'!M153="","",'DF raw data'!M153) -> -257 | B153: =IF('DF raw data'!N153="","",'DF raw data'!N153) -> -3.93558e-05 | C153: =IF('DF raw data'!O153="","",'DF raw data'!O153) -> 0.000181929 | D153: =IF('DF raw data'!P153="","",'DF raw data'!P153) -> -1.1402e-05 | F153: -2.20475505e-05 | G153: -1.327053851e-05 | H153: 9.925656914e-07 | J153: -0.0003139356534 | K153: -0.004992126201 | L153: -0.0003933544811 | M153: -0.009076234782 | N153: 3.490734033e-06
A154: =IF('DF raw data'!M154="","",'DF raw data'!M154) -> -256.5 | B154: =IF('DF raw data'!N154="","",'DF raw data'!N154) -> -4.19786e-05 | C154: =IF('DF raw data'!O154="","",'DF raw data'!O154) -> 0.000185451 | D154: =IF('DF raw data'!P154="","",'DF raw data'!P154) -> -1.82621e-05 | F154: -2.468162854e-05 | G154: -9.733393906e-06 | H154: -5.897032739e-06 | J154: -0.0003262764676 | K154: -0.005155264435 | L154: -0.000398221178 | M154: -0.009275345371 | N154: 3.623252253e-06
A155: =IF('DF raw data'!M155="","",'DF raw data'!M155) -> -256 | B155: =IF('DF raw data'!N155="","",'DF raw data'!N155) -> -2.73648e-05 | C155: =IF('DF raw data'!O155="","",'DF raw data'!O155) -> 0.000191862 | D155: =IF('DF raw data'!P155="","",'DF raw data'!P155) -> -2.40974e-05 | F155: -1.00049892e-05 | G155: -3.294826606e-06 | H155: -1.175742453e-05 | J155: -0.0003312789622 | K155: -0.005320903916 | L155: -0.0003998685913 | M155: -0.009475279666 | N155: 3.758072574e-06
A156: =IF('DF raw data'!M156="","",'DF raw data'!M156) -> -255.5 | B156: =IF('DF raw data'!N156="","",'DF raw data'!N156) -> -2.37838e-05 | C156: =IF('DF raw data'!O156="","",'DF raw data'!O156) -> 0.000187777 | D156: =IF('DF raw data'!P156="","",'DF raw data'!P156) -> -1.30358e-05 | F156: -6.408590905e-06 | G156: -7.397392106e-06 | H156: -6.482596486e-07 | J156: -0.0003344832577 | K156: -0.005488145545 | L156: -0.0004035672874 | M156: -0.00967706331 | N156: 3.895445376e-06
A157: =IF('DF raw data'!M157="","",'DF raw data'!M157) -> -255 | B157: =IF('DF raw data'!N157="","",'DF raw data'!N157) -> -2.53843e-05 | C157: =IF('DF raw data'!O157="","",'DF raw data'!O157) -> 0.000188831 | D157: =IF('DF raw data'!P157="","",'DF raw data'!P157) -> -1.53392e-05 | F157: -8.015973055e-06 | G157: -6.338859906e-06 | H157: -2.961564269e-06 | J157: -0.0003384912442 | K157: -0.005657391167 | L157: -0.0004067367173 | M157: -0.009880431669 | N157: 4.035450916e-06
A158: =IF('DF raw data'!M158="","",'DF raw data'!M158) -> -254.5 | B158: =IF('DF raw data'!N158="","",'DF raw data'!N158) -> -3.42876e-05 | C158: =IF('DF raw data'!O158="","",'DF raw data'!O158) -> 0.000194631 | D158: =IF('DF raw data'!P158="","",'DF raw data'!P158) -> -2.09529e-05 | F158: -1.695755724e-05 | G158: -5.139199061e-07 | H158: -8.599403179e-06 | J158: -0.0003469700228 | K158: -0.005830876178 | L158: -0.0004069936773 | M158: -0.01008392851 | N158: 4.178466941e-06
A159: =IF('DF raw data'!M159="","",'DF raw data'!M159) -> -254 | B159: =IF('DF raw data'!N159="","",'DF raw data'!N159) -> -4.12127e-05 | C159: =IF('DF raw data'!O159="","",'DF raw data'!O159) -> 0.000191101 | D159: =IF('DF raw data'!P159="","",'DF raw data'!P159) -> -1.35852e-05 | F159: -2.391243517e-05 | G159: -4.059098906e-06 | H159: -1.200022069e-06 | J159: -0.0003589262404 | K159: -0.006010339298 | L159: -0.0004090232267 | M159: -0.01028844012 | N159: 4.326530964e-06
A160: =IF('DF raw data'!M160="","",'DF raw data'!M160) -> -253.5 | B160: =IF('DF raw data'!N160="","",'DF raw data'!N160) -> -3.5504e-05 | C160: =IF('DF raw data'!O160="","",'DF raw data'!O160) -> 0.000192632 | D160: =IF('DF raw data'!P160="","",'DF raw data'!P160) -> -2.23443e-05 | F160: -1.817918776e-05 | G160: -2.521515606e-06 | H160: -9.996786199e-06 | J160: -0.0003680158343 | K160: -0.006194347215 | L160: -0.0004102839845 | M160: -0.01049358211 | N160: 4.478415266e-06
A161: =IF('DF raw data'!M161="","",'DF raw data'!M161) -> -253 | B161: =IF('DF raw data'!N161="","",'DF raw data'!N161) -> -2.32578e-05 | C161: =IF('DF raw data'!O161="","",'DF raw data'!O161) -> 0.000191797 | D161: =IF('DF raw data'!P161="","",'DF raw data'!P161) -> -3.36845e-05 | F161: -5.880329105e-06 | G161: -3.360106106e-06 | H161: -2.138574906e-05 | J161: -0.0003709559989 | K161: -0.006379825215 | L161: -0.0004119640376 | M161: -0.01069956413 | N161: 4.632076626e-06
